{"text_format":"1","workbook":"xlsx","n_sheets":13,"sheets":["Copyright","Cover","Instruction","Fresh Data QA","Sheet1","Fresh Quality","Marine Data QA","Marine Quality","Terrestrial Data QA","Terrestrial Quality","Sediment Data QA","Sediment Quality","All Result"],"not_rendered":{"charts":0,"images":0,"macros":1,"external_links":0,"defined_names":5,"comments":8,"pivot_tables":0},"unopened":[],"bounds":{"document_bytes":16777216,"sheet_cells":100000,"rows_first":2000,"rows_last":500,"rows_between":2000,"halvings":0,"cell_chars":16384,"cell_head_chars":4096},"cells_cut":0,"cells_raw":0,"read":"whole","date_system":"1900"}

{"sheet":"Copyright","index":0,"n_rows":0,"n_cols":0,"rows_kept":0,"cut":false,"hidden":false,"merged":[]}

{"sheet":"Cover","index":1,"n_rows":20,"n_cols":7,"rows_kept":20,"cut":false,"hidden":false,"merged":[[18,6,18,8],[14,6,14,8],[13,6,13,8],[4,4,4,10],[9,6,9,8],[12,6,12,8],[5,5,6,9]]}
[]
[]
[]
[]
[null,null,null,null,"Ecotoxicity Data Quality Assessment Method "]
[null,null,null,null,null,"To be used to assess the quality of data used for the Australian and New Zealand Guidelines for Fresh and Marine Water Quality (including sediment) and the Australian National Environment Protection (Assessment of Site Contamination) Measure"]
[]
[]
[]
[null,null,null,null,null,null,"Developed by "]
[]
[]
[null,null,null,null,null,null,"Zoe Zhang"]
[null,null,null,null,null,null,"   Dr. Michael Warne"]
[null,null,null,null,null,null,"Alison Vieritz "]
[]
[]
[]
[null,null,null,null,null,null,"Catchment Water Science Group"]
[null,null,null,null,null,"                 Department of Environment and Resource Management"]

{"sheet":"Instruction","index":2,"n_rows":17,"n_cols":11,"rows_kept":17,"cut":false,"hidden":false,"merged":[[16,6,16,8],[22,4,22,8]]}
[]
[]
[]
[]
[]
[]
[null,"Tabs contain questionaries -->           ",null,null,"Fresh Data QA ",null,"Marine Data QA",null,"Terrestrial Data QA",null,"Sediment Data QA"]
[]
[]
[]
[null,"Tabs contain score of paper and short answers to questions -->",null,null,"Fresh Quality",null,"Marine Quality",null,"Terrestrial Quality",null,"Sediment Quality"]
[]
[]
[]
[]
[]
[null,"Tab Contains all scores of paper --> ",null,null,null,null,"All Result "]

{"sheet":"Fresh Data QA","index":3,"n_rows":98,"n_cols":25,"rows_kept":98,"cut":false,"hidden":false,"merged":[[3,4,7,4],[56,7,59,7],[60,7,63,7],[40,7,42,7],[43,7,45,7],[46,7,48,7],[49,7,51,7],[34,7,36,7],[52,7,54,7],[14,7,16,7],[9,2,9,4],[20,2,21,2],[22,2,24,2],[17,7,19,7],[20,7,21,7],[22,7,24,7],[80,7,82,7],[64,7,67,7],[68,7,71,7],[72,7,75,7],[76,7,79,7],[76,2,79,2],[11,7,13,7],[37,7,39,7],[28,7,30,7],[31,7,33,7],[25,7,27,7],[11,2,13,2],[14,2,16,2],[17,2,19,2],[25,2,27,2],[64,2,67,2],[83,7,86,7],[34,2,36,2],[37,2,39,2],[28,2,30,2],[60,2,63,2],[40,2,42,2],[43,2,45,2],[83,2,86,2],[46,2,48,2],[31,2,33,2],[80,2,82,2],[49,2,51,2],[52,2,54,2],[56,2,59,2],[68,2,71,2],[72,2,75,2]]}
[null,1,"FILL IN BLANKS BELOW,PICK OPTIONS FROM DROPDOWN LIST",null,null,null,null,null,null,null,"* All the text in Blue are used for drop down list ,make changes with caution."]
[null,null,"Category",null,"Freshwater",{"$f":"IF(M3=\"\",0,1)","v":1},"Citation No.",{"$f":"IF(E3=\"\",\"\",LEFT(E3,FIND(\"-\",E3) -1))","v":{"$error":"#VALUE!"}},null,null,"Species",null,null,"Lifestage",null,null,"Exposure duration",null,null,"Measure of toxicity",null,null,"Toxicity endpoint"]
[null,null,"Paper and data unique identifier(eg. 1-1,10-150)",null,"Canadian Summit Report, 2007_17",{"$f":"IF(E3=\"\",0,1)","v":1},"Species (Scientific name)",null,null,null,"Anabaena catenula",64,{"$f":"IF(L3=0,\"\",INDEX(K3:K200,L3))","v":"Hyalella azteca"},"<24-hour old",17,{"$f":"IF(O3=0,\"\",INDEX(N3:N200,O3))","v":"Juveniles"},"1 day",8,{"$f":"IF(R3=0,\"\",INDEX(Q3:Q200,R3))","v":"14 days"},"Development: Eggs embryonated",66,{"$f":"IF(U3=0,\"\",INDEX(T3:T100,U3))","v":"Growth: Dry weight"},0.01,33,{"$f":"IF(X3=0,\"\",INDEX(W3:W200,X3))","v":"LC50"}]
[null,null,"Citation",null,"SEC (2007). Toxicity of glyphosate and thiram to aquatic invertebrates, Final Report 551-04.01, Prepared for Environment Canada, Summit Environmental Consultants, British Columbia.",{"$f":"IF(E4=\"\",0,1)","v":1},"Lifestage",null,null,null,"Arthrospira fusiformis",null,null,"3cm apical segments",null,null,"1 hour ",null,null,"Development: Eggs hatched",null,null,0.02]
[null,null,null,null,null,{"$f":"IF(S3=\"\",0,1)","v":1},"Exposure duration",null,null,null,"Aulacoseira sp. ",null,null,"6 fronds",null,null,"10 days",null,null,"Development: Embryos hatched",null,null,0.03]
[null,null,null,null,null,{"$f":"IF(V3=\"\",0,1)","v":1},"Measure of toxicity",null,null,null,"Australian Bass",null,null,"Adult",null,null,"10 days",null,null,"Development: Mass",null,null,0.04]
[null,null,null,null,null,{"$f":"IF(Y3=\"\",0,1)","v":1},"Toxicity endpoint",null,null,null,"Bala Shark",null,null,"Adults (20 weeks old)",null,null,"12 days",null,null,"Development: Metamorphosis",null,null,0.05]
[null,null,null,null,null,{"$f":"IF(H8=\"\",0,1)","v":1},"Toxicity value","160.6 mg/L",null,null,"Basa",null,null,"Advanced Juveniles",null,null,"12 days",null,null,"Growth inhibition: Cell proliferation",null,null,0.06]
[null,2,"CHOOSE ANSWER OPTIONS AND FILL IN ANSWERS IN ANSWER COLUMN",null,null,{"$f":"IF(M3=\"\",0,1)","v":1},null,null,null,null,"Black Parinha",null,null,"Daughter frond",null,null,"12 days",null,null,"Growth inhibition: Chlorophyll-a content",null,null,7.0000000000000007E-2]
[null,"*","If had problem click on answer options,click on any  other cells first and then click back again.",null,null,{"$f":"IF(P3=\"\",0,1)","v":1},null,null,null,null,"Catfish",null,null,"Egg",null,null,"14 days",null,null,"Growth rate: Front number",null,null,0.08]
[null,"No.","Question","Marks Awarded","Answer Options","Option References","Scores","Answers",null,null,"Ceriodaphnia dubia",null,null,"Embryo",null,null,"2 Days",null,null,"Growth Rate: Weight Gain",null,null,0.09]
[null,null,"Was the duration of the exposure stated (e.g., 48 or 96 h)?",10,null,1,{"$f":"IF(F15=0,0,INDEX($D12:$D13,F12,1))","v":10},"14-day - survival and dry weight (chronic)\n96-hour - survival (acute)",null,null,"Cherax quadricarinatus",null,null,"Embryo (24 hours post fertilization)",null,null,"2 hours",null,null,"Growth: Biomass",null,null,0.1]
[null,1,null,0,null,null,null,null,null,null,"Chlorella kessleri",null,null,"Embryo (3.5 hours past fertilization)",null,null,"21 days",null,null,"Growth: Body length ",null,null,"EC10"]
[null,null,null,null,null,null,null,null,null,null,"Chlorella pyrenoidosa",null,null,"Embryo (54 hours post fertilisation)",null,null,"21 days",null,null,"Growth: Body mass",null,null,"EC10"]
[null,null,"Was the biological endpoint (e.g., immobilization or population growth) stated and defined (10 marks)? Award 5 marks if the biological endpoint is only stated.",10,null,2,{"$f":"IF(F15=0,0,INDEX($D15:$D17,F15,1))","v":5},"Survival and growth (measured as dry weight)",null,null,"Chlorella saccharophila",null,null,"Exponential Growth Phase",null,null,"24 days",null,null,"Growth: Body Weight",null,null,"EC100"]
[null,2,null,5,null,null,null,null,null,null,"Chlorella vulgaris",null,null,"First generation egg masses",null,null,"24 hours",null,null,"Growth: Cell proliferation",null,null,"EC14.4"]
[null,null,null,0,null,null,null,null,null,null,"Danio rerio",null,null,"Glochidia",null,null,"24 hours",null,null,"Growth: Fresh Weight",null,null,"EC15.6"]
[null,null,"Was the biological effect stated (e.g., LC or NOEC)?",5,null,1,{"$f":"IF(F18=0,0,INDEX($D18:$D19,F18,1))","v":5},null,null,null,"Daphnia magna",null,null,"Hatching",null,null,"25 days",null,null,"Growth: Frond (longitudinal axis)",null,null,"EC17.2"]
[null,3,null,0,null,null,null,null,null,null,"Daphnia magna",null,null,"Juveniles",null,null,"26 days",null,null,"Growth: Frond (Transversal axis)",null,null,"EC5"]
[null,null,null,null,null,null,null,null,null,null,"Echinostoma trivolvis",null,null,"Larval: <48 hrs old",null,null,"28 days",null,null,"Growth: Frond area",null,null,"EC50"]
[null,4,"Was the biological effect quantified (e.g., 50% effect, 25% effect)? The effect for NOEC and LOEC data must be quantified.",5,null,1,{"$f":"IF(F21=0,0,INDEX($D21:$D22,F21,1))","v":5},null,null,null,"Eel",null,null,"Log growth stage: Trophozoites",null,null,"3 days",null,null,"Growth: Front (Transversal axis)",null,null,"EC60"]
[null,null,null,0,null,null,null,null,null,null,"Galaxias anomalus",null,null,"Log-Growth Stage",null,null,"3 hours",null,null,"Growth: Inhibition",null,null,"IC10"]
[null,5,"Were appropriate controls (e.g., a no-toxicant control and/or solvent control) used?",5,null,1,{"$f":"IF(F23=0,0,INDEX($D23:$D24,F23,1))","v":5},"Laboratory control",null,null,"Hyalella castrol",null,null,"Mother' frond",null,null,"30 days",null,null,"Growth: Length",null,null,"IC25"]
[null,null,null,0,null,null,null,null,null,null,"Hydra attenuata",null,null,"Myriophyllum spicatum",null,null,"36 days",null,null,"Growth: Length (mm)",null,null,"IC50"]
[null,null,null,null,null,null,null,null,null,null,"Hyla versicolor",null,null,"Neonate",null,null,"4 hours",null,null,"Growth: Root Length",null,null,"IC50"]
[null,6,"Was each control and contaminant concentration at least duplicated?",5,null,1,{"$f":"IF(F26=0,0,INDEX($D26:$D27,F26,1))","v":5},"Six glyphosate concentrations and a\nlaboratory control, with four replicates per concentration",null,null,"Lampsilis siliquoidea",null,null,"Neonates: <24 hrs old",null,null,"48 hours",null,null,"Growth: Root length",null,null,"IC66"]
[null,null,null,0,null,null,null,null,null,null,"Lemna gibba",null,null,"Newly hatched",null,null,"5 days",null,null,"Growth: Root number",null,null,"IC7"]
[null,null,null,null,null,null,null,null,null,null,"Lemna minor",null,null,"Newly hatched (0-24 hours)",null,null,"5 hours",null,null,"Growth: Shoot growth",null,null,"LC1"]
[null,7,"Were test acceptability criteria stated (e.g., mortality in controls must not exceed a certain percentage) (5 marks)?\nOR\nWere test acceptability criteria inferred (e.g., test method used [USEPA, OECD, ASTM etc]) (award 2 marks). Note: Invalid data must no",5,null,1,{"$f":"IF(F29=0,0,INDEX($D29:$D31,F29,1))","v":5},"Amphipod survival must be ≥90% in the control",null,null,"Lemna paucicostata",null,null,"Not stated",null,null,"50 days",null,null,"Growth: Shoot Length",null,null,"LC10"]
[null,null,null,2,null,null,null,null,null,null,"Leporinus obtusidens",null,null,"not-stated",null,null,"55 days",null,null,"Growth: Shoot Length",null,null,"LC15"]
[null,null,null,0,null,null,null,null,null,null,"Leptolynbya boryana",null,null,"Ovigerous female adults",null,null,"57 days",null,null,"Immobility",null,null,"LC26.08"]
[null,8,"Were the characteristics of the test organism (e.g., length, mass, age) stated?",5,null,1,{"$f":"IF(F32=0,0,INDEX($D32:$D34,F32,1))","v":5},"Juvenile",null,null,"Lungfish",null,null,"Phase 1",null,null,"6 days",null,null,"Increases in growth: Cell number and size",null,null,"LC38.88"]
[null,null,null,0,null,null,null,null,null,null,"Microcystis aeruginosa",null,null,"Phase 2",null,null,"6 days",null,null,"Method 1",null,null,"LC44.68"]
[null,null,null,null,null,null,null,null,null,null,"Microcystis aeruginosa",null,null,"Phase 3",null,null,"6 hours",null,null,"Method 10",null,null,"LC5"]
[null,9,"Was the type of test media used stated?",5,null,1,{"$f":"IF(F35=0,0,INDEX($D35:$D37,F35,1))","v":5},"Dechlorinated and activated carbon treated\nmunicipal tapwater",null,null,"Microcystis wesenbergii",null,null,"Phase 4",null,null,"60 days",null,null,"Method 2",null,null,"LC50"]
[null,null,null,0,null,null,null,null,null,null,"Murray Cod",null,null,"Phase 5",null,null,"7 days",null,null,"Method 3",null,null,"LC52.28"]
[null,null,null,null,null,null,null,null,null,null,"Myriophyllum aquaticum",null,null,"Phase 6",null,null,"7 hours",null,null,"Method 4",null,null,"LC85"]
[null,null,"Was the type of exposure (e.g. static, flow through) stated? ",4,null,1,{"$f":"IF(F38=0,0,INDEX($D38:$D40,F38,1))","v":4},"Renewed daily by removing approximately 80% of the overlying solution and replacing it with freshly prepared test solution",null,null,"Myriophyllum sibiricum",null,null,"Phase 7 ",null,null,"72 hours",null,null,"Method 5",null,null,"LOEC"]
[null,10,null,0,null,null,null,null,null,null,"Myriophyllum spicatum",null,null,"Phase 8",null,null,"8 days",null,null,"Method 6",null,null,"NOEC"]
[null,null,null,null,null,null,null,null,null,null,"Myriophyllum spicatum",null,null,"Phase 9",null,null,"8 hours",null,null,"Method 7"]
[null,null,"Were the contaminant concentrations measured?",4,null,1,{"$f":"IF(F41=0,0,INDEX($D41:$D43,F41,1))","v":4},"Measured daily in old and new solutions",null,null,"Nemo",null,null,"Reproductive status: 20 week old",null,null,"9 days",null,null,"Method 8"]
[null,11,null,0,null,null,null,null,null,null,"Neohelice Granulata",null,null,"Tadpoles",null,null,"9 hours",null,null,"Method 9"]
[null,null,null,null,null,null,null,null,null,null,"Nostoc punctiforme",null,null,"Tadpoles: 5 day old post-hatch",null,null,"90 days",null,null,"Mortality"]
[null,null,"Were parallel reference toxicant toxicity tests conducted?",4,null,1,{"$f":"IF(F44=0,0,INDEX($D44:$D46,F44,1))","v":4},"A 96-hr acute toxicity test using sodium chloride",null,null,"Perkinsus olseni",null,null,null,null,null,"96 hours",null,null,"Mortality"]
[null,12,null,0,null,null,null,null,null,null,"Perkkinsus olseni",null,null,null,null,null,"Not stated",null,null,"Mortality"]
[null,null,null,null,null,null,null,null,null,null,"Pimephales promelas",null,null,null,null,null,null,null,null,"Mortality: Immobility"]
[null,null,"Was there a concentration–response relationship either observable or stated",4,null,1,{"$f":"IF(F47=0,0,INDEX($D47:$D49,F47,1))","v":4},"Table 3.6",null,null,"Planktothrix",null,null,null,null,null,null,null,null,"Mortality: Survival"]
[null,13,null,0,null,null,null,null,null,null,"Planktothrix agardhii",null,null,null,null,null,null,null,null,"Population: Abundance"]
[null,null,null,null,null,null,null,null,null,null,"Polypedates cruciger",null,null,null,null,null,null,null,null,"Population: Biomass (chlorophyll-a)"]
[null,null,"Was an appropriate statistical method or model used to determine the toxicity?",4,null,1,{"$f":"IF(F50=0,0,INDEX($D50:$D52,F50,1))","v":4},null,null,null,"Pomacea lineata",null,null,null,null,null,null,null,null,"Population: Biomass (chlorophyll-b)"]
[null,14,null,0,null,null,null,null,null,null,"Pseudokirchneriella subcapitata",null,null,null,null,null,null,null,null,"Population: Growt (Chlorophyll a)"]
[null,null,null,null,null,null,null,null,null,null,"Pseudokirecheriella subcapitata",null,null,null,null,null,null,null,null,"Population: Growth"]
[null,15,"For LC/EC/BEC data was an estimate of variability provided? Or For NO EC/LOEC data was the significance level 0.05 or less?  \n\n",4,null,1,{"$f":"IF(F53=0,0,INDEX($D53:$D55,F53,1))","v":4},"(95% CL, 150.3-171.6).",null,null,"Pseudosuccinea columella",null,null,null,null,null,null,null,null,"Population: Growth (increase in shoot length)"]
[null,null,null,0,null,null,null,null,null,null,"Rana pipiens",null,null,null,null,null,null,null,null,"Population: Growth (Weight Gain)"]
[null,null,null,null,null,null,null,null,null,null,"Redclaw",null,null,null,null,null,null,null,null,"Population: Growth Inhibition"]
[null,16,"Were the following parameters measured and stated? (3 marks if measured and stated, 1 if just measured)",null,null,null,null,null,null,null,"Scenedesmus acutus",null,null,null,null,null,null,null,null,"Population: Growth Length"]
[null,null,"pH",3,null,2,{"$f":"IF(F57=0,0,INDEX($D57:$D59,F57,1))","v":1},null,null,null,"Scenedesmus obliquus",null,null,null,null,null,null,null,null,"Population: Growth Rate"]
[null,16.100000000000001,null,1,null,null,null,null,null,null,"Scenedesmus quadricauda ",null,null,null,null,null,null,null,null,"Population: Growth Size"]
[null,null,null,0,null,null,null,null,null,null,"Scenedesmus subspicatus",null,null,null,null,null,null,null,null,"Population: Relative Growth Rate"]
[null,null,null,null,null,null,null,null,null,null,"Scenedesmus vacuolatus",null,null,null,null,null,null,null,null,"Reproduction: Abortion Rate"]
[null,null,"Hardness",3,null,2,{"$f":"IF(F61=0,0,INDEX($D61:$D63,F61,1))","v":1},"Measured for controls only",null,null,"Sea Mullet",null,null,null,null,null,null,null,null,"Reproduction: Cumulative eggs layed/female"]
[null,16.2,null,1,null,null,null,null,null,null,"Selenastrum capricornutum",null,null,null,null,null,null,null,null,"Reproduction: Egg Hatching Success"]
[null,null,null,0,null,null,null,null,null,null,"SilverPerch",null,null,null,null,null,null,null,null,"Reproduction: Fercundity"]
[null,null,null,null,null,null,null,null,null,null,"Spirulina platensis",null,null,null,null,null,null,null,null,"Reproduction: Number eggs/female/day"]
[null,null,"Alkalinity",3,null,3,{"$f":"IF(F65=0,0,INDEX($D65:$D67,F65,1))","v":0},null,null,null,"Synechocystis aquatilis",null,null,null,null,null,null,null,null,"Reproduction: Number of eggs/female/day (cumulative)"]
[null,16.3,null,1,null,null,null,null,null,null,"Hyalella azteca",null,null,null,null,null,null,null,null,"Reproduction: Number of young per female"]
[null,null,null,0,null,null,null,null,null,null,null,null,null,null,null,null,null,null,null,"Reproduction: Progeny"]
[null,null,null,null,null,null,null,null,null,null,null,null,null,null,null,null,null,null,null,"Growth: Dry weight"]
[null,null,"Organic carbon concentration",3,null,2,{"$f":"IF(F69=0,0,INDEX($D69:$D71,F69,1))","v":1},"Measured for controls only"]
[null,16.399999999999999,null,1]
[null,null,null,0]
[]
[null,null,"Conductivity ",3,null,2,{"$f":"IF(F73=0,0,INDEX($D73:$D75,F73,1))","v":1}]
[null,16.5,null,1]
[null,null,null,0]
[]
[null,null,"Dissolved Oxygen",3,null,2,{"$f":"IF(F77=0,0,INDEX($D77:$D79,F77,1))","v":1}]
[null,16.600000000000001,null,1]
[null,null,null,0]
[]
[null,null,"Was the temperature measured and stated?",3,null,1,{"$f":"IF(F81=0,0,INDEX($D81:$D83,F81,1))","v":3},"23±1°C"]
[null,17,null,0]
[]
[null,null,"Was the grade or purity of the test contaminant stated?",3,null,1,{"$f":"IF(F84=0,0,INDEX($D84:$D85,F84,1))","v":3},"98% purity"]
[null,18,null,0]
[]
[null,null,null,null,null,null,null,null,{"$f":"(COUNTIF(F12:F87,\"=0\"))+COUNTIF(F2:F10,\"=0\")","v":0}]
[]
[]
[null,null,"Total score",null,null,null,{"$f":"IF(SUM(G12:G84)=0,\"\",SUM(G12:G84))","v":85}]
[null,null,"Total Max. possible score for the various types of data and contaminants ",null,{"$f":"D12+D15+D18+D21+D23+D26+D29+D32+D35+D38+D41+D44+D47+D50+D53+D57+D61+D65+D69+D73+D77+D81+D84","v":103}]
[null,null,"Quality Score",null,{"$f":"\"= [Total score / Total possible score] * 100 = \"","v":"= [Total score / Total possible score] * 100 = "},null,{"$f":"IF(ISERROR(G90/E91),#N/A,G90/E91)","v":0.82524271844660191}]
[]
[null,null,"H = high quality                           Quality score >=80%      "]
[null,null,"A = acceptable quality         80%>Quality score>50%      "]
[null,null,"U = unacceptable quality              Quality score <=50%  "]
[]
[3,null,"CLICK \"Save&Update\" BUTTON TO SAVE ANSWER TO SAMPLE FINALISED ASSESSMENT SHEET"]

{"sheet":"Sheet1","index":4,"n_rows":34,"n_cols":29,"rows_kept":34,"cut":false,"hidden":true,"merged":[]}
[]
[{"$f":"'Fresh Data QA'!B11","v":"No."},{"$f":"'Fresh Data QA'!B13","v":1},{"$f":"'Fresh Data QA'!B16","v":2},{"$f":"'Fresh Data QA'!B19","v":3},{"$f":"'Fresh Data QA'!B21","v":4},{"$f":"'Fresh Data QA'!B23","v":5},{"$f":"'Fresh Data QA'!B26","v":6},{"$f":"'Fresh Data QA'!B29","v":7},{"$f":"'Fresh Data QA'!B32","v":8},{"$f":"'Fresh Data QA'!B35","v":9},{"$f":"'Fresh Data QA'!B39","v":10},{"$f":"'Fresh Data QA'!B42","v":11},{"$f":"'Fresh Data QA'!B45","v":12},{"$f":"'Fresh Data QA'!B48","v":13},{"$f":"'Fresh Data QA'!B51","v":14},{"$f":"'Fresh Data QA'!B53","v":15},{"$f":"'Fresh Data QA'!B58","v":16.100000000000001},{"$f":"'Fresh Data QA'!B62","v":16.2},{"$f":"'Fresh Data QA'!B66","v":16.3},{"$f":"'Fresh Data QA'!B70","v":16.399999999999999},{"$f":"'Fresh Data QA'!B74","v":16.5},{"$f":"'Fresh Data QA'!B78","v":16.600000000000001},{"$f":"'Fresh Data QA'!B82","v":17},{"$f":"'Fresh Data QA'!B85","v":18},{"$f":"'Fresh Data QA'!C90","v":"Total score"},{"$f":"'Fresh Data QA'!C92","v":"Quality Score"}]
[{"$f":"'Fresh Data QA'!C2","v":"Category"},{"$f":"'Fresh Data QA'!E2","v":"Freshwater"},{"$f":"'Fresh Data QA'!C3","v":"Paper and data unique identifier(eg. 1-1,10-150)"},{"$f":"'Fresh Data QA'!E3","v":"Canadian Summit Report, 2007_17"}]
[{"$f":"'Fresh Data QA'!G11","v":"Scores"},{"$f":"'Fresh Data QA'!G12","v":10},{"$f":"'Fresh Data QA'!G15","v":5},{"$f":"'Fresh Data QA'!G18","v":5},{"$f":"'Fresh Data QA'!G21","v":5},{"$f":"'Fresh Data QA'!G23","v":5},{"$f":"'Fresh Data QA'!G26","v":5},{"$f":"'Fresh Data QA'!G29","v":5},{"$f":"'Fresh Data QA'!G32","v":5},{"$f":"'Fresh Data QA'!G35","v":5},{"$f":"'Fresh Data QA'!G38","v":4},{"$f":"'Fresh Data QA'!G41","v":4},{"$f":"'Fresh Data QA'!G44","v":4},{"$f":"'Fresh Data QA'!G47","v":4},{"$f":"'Fresh Data QA'!G50","v":4},{"$f":"'Fresh Data QA'!G53","v":4},{"$f":"'Fresh Data QA'!G57","v":1},{"$f":"'Fresh Data QA'!G61","v":1},{"$f":"'Fresh Data QA'!G65","v":0},{"$f":"'Fresh Data QA'!G69","v":1},{"$f":"'Fresh Data QA'!G73","v":1},{"$f":"'Fresh Data QA'!G77","v":1},{"$f":"'Fresh Data QA'!G81","v":3},{"$f":"'Fresh Data QA'!G84","v":3},{"$f":"'Fresh Data QA'!G90","v":85},{"$f":"'Fresh Data QA'!G92","v":0.82524271844660191}]
["Answers",{"$f":"IF('Fresh Data QA'!H12=0,\"\",'Fresh Data QA'!H12)","v":"14-day - survival and dry weight (chronic)\n96-hour - survival (acute)"},{"$f":"IF('Fresh Data QA'!H15=0,\"\",'Fresh Data QA'!H15)","v":"Survival and growth (measured as dry weight)"},{"$f":"IF('Fresh Data QA'!H18=0,\"\",'Fresh Data QA'!H18)","v":""},{"$f":"IF('Fresh Data QA'!H21=0,\"\",'Fresh Data QA'!H21)","v":""},{"$f":"IF('Fresh Data QA'!H23=0,\"\",'Fresh Data QA'!H23)","v":"Laboratory control"},{"$f":"IF('Fresh Data QA'!H26=0,\"\",'Fresh Data QA'!H26)","v":"Six glyphosate concentrations and a\nlaboratory control, with four replicates per concentration"},{"$f":"IF('Fresh Data QA'!H29=0,\"\",'Fresh Data QA'!H29)","v":"Amphipod survival must be ≥90% in the control"},{"$f":"IF('Fresh Data QA'!H32=0,\"\",'Fresh Data QA'!H32)","v":"Juvenile"},{"$f":"IF('Fresh Data QA'!H35=0,\"\",'Fresh Data QA'!H35)","v":"Dechlorinated and activated carbon treated\nmunicipal tapwater"},{"$f":"IF('Fresh Data QA'!H38=0,\"\",'Fresh Data QA'!H38)","v":"Renewed daily by removing approximately 80% of the overlying solution and replacing it with freshly prepared test solution"},{"$f":"IF('Fresh Data QA'!H41=0,\"\",'Fresh Data QA'!H41)","v":"Measured daily in old and new solutions"},{"$f":"IF('Fresh Data QA'!H44=0,\"\",'Fresh Data QA'!H44)","v":"A 96-hr acute toxicity test using sodium chloride"},{"$f":"IF('Fresh Data QA'!H47=0,\"\",'Fresh Data QA'!H47)","v":"Table 3.6"},{"$f":"IF('Fresh Data QA'!H50=0,\"\",'Fresh Data QA'!H50)","v":""},{"$f":"IF('Fresh Data QA'!H53=0,\"\",'Fresh Data QA'!H53)","v":"(95% CL, 150.3-171.6)."},{"$f":"IF('Fresh Data QA'!H57=0,\"\",'Fresh Data QA'!H57)","v":""},{"$f":"IF('Fresh Data QA'!H61=0,\"\",'Fresh Data QA'!H65)","v":0},{"$f":"IF('Fresh Data QA'!H65=0,\"\",'Fresh Data QA'!H65)","v":""},{"$f":"IF('Fresh Data QA'!H69=0,\"\",'Fresh Data QA'!H69)","v":"Measured for controls only"},{"$f":"IF('Fresh Data QA'!H73=0,\"\",'Fresh Data QA'!H73)","v":""},{"$f":"IF('Fresh Data QA'!H77=0,\"\",'Fresh Data QA'!H77)","v":""},{"$f":"IF('Fresh Data QA'!H81=0,\"\",'Fresh Data QA'!H81)","v":"23±1°C"},{"$f":"IF('Fresh Data QA'!H84=0,\"\",'Fresh Data QA'!H84)","v":"98% purity"}]
[{"$f":"'Fresh Data QA'!G3","v":"Species (Scientific name)"},{"$f":"'Fresh Data QA'!G4","v":"Lifestage"},{"$f":"'Fresh Data QA'!G5","v":"Exposure duration"},{"$f":"'Fresh Data QA'!G6","v":"Measure of toxicity"},{"$f":"'Fresh Data QA'!G7","v":"Toxicity endpoint"},{"$f":"'Fresh Data QA'!G8","v":"Toxicity value"},{"$f":"'Fresh Data QA'!C4","v":"Citation"},{"$f":"'Fresh Data QA'!G2","v":"Citation No."}]
[{"$f":"'Fresh Data QA'!M3","v":"Hyalella azteca"},{"$f":"'Fresh Data QA'!P3","v":"Juveniles"},{"$f":"'Fresh Data QA'!S3","v":"14 days"},{"$f":"'Fresh Data QA'!V3","v":"Growth: Dry weight"},{"$f":"'Fresh Data QA'!Y3","v":"LC50"},{"$f":"IF('Fresh Data QA'!H8=0,\"\",'Fresh Data QA'!H8)","v":"160.6 mg/L"},{"$f":"IF('Fresh Data QA'!E4=0,\"\",'Fresh Data QA'!E4)","v":"SEC (2007). Toxicity of glyphosate and thiram to aquatic invertebrates, Final Report 551-04.01, Prepared for Environment Canada, Summit Environmental Consultants, British Columbia."},{"$f":"IF('Fresh Data QA'!H2=0,\"\",'Fresh Data QA'!H2)","v":{"$error":"#VALUE!"}}]
[]
[]
[]
[{"$f":"'Marine Data QA'!B11","v":"No."},{"$f":"'Marine Data QA'!B13","v":1},{"$f":"'Marine Data QA'!B16","v":2},{"$f":"'Marine Data QA'!B19","v":3},{"$f":"'Marine Data QA'!B21","v":4},{"$f":"'Marine Data QA'!B23","v":5},{"$f":"'Marine Data QA'!B26","v":6},{"$f":"'Marine Data QA'!B29","v":7},{"$f":"'Marine Data QA'!B32","v":8},{"$f":"'Marine Data QA'!B35","v":9},{"$f":"'Marine Data QA'!B39","v":10},{"$f":"'Marine Data QA'!B42","v":11},{"$f":"'Marine Data QA'!B45","v":12},{"$f":"'Marine Data QA'!B48","v":13},{"$f":"'Marine Data QA'!B51","v":14},{"$f":"'Marine Data QA'!B53","v":15},{"$f":"'Marine Data QA'!B58","v":16.100000000000001},{"$f":"'Marine Data QA'!B62","v":16.2},{"$f":"'Marine Data QA'!B66","v":16.3},{"$f":"'Marine Data QA'!B70","v":16.399999999999999},{"$f":"'Marine Data QA'!B74","v":16.5},{"$f":"'Marine Data QA'!B78","v":16.600000000000001},{"$f":"'Marine Data QA'!B82","v":17},{"$f":"'Marine Data QA'!B85","v":18},{"$f":"'Marine Data QA'!B88","v":19},{"$f":"'Marine Data QA'!C90","v":"Total score"},{"$f":"'Marine Data QA'!C92","v":"Quality Score"}]
[{"$f":"'Marine Data QA'!C2","v":"Category"},{"$f":"'Marine Data QA'!E2","v":"Marine "},{"$f":"'Marine Data QA'!C3","v":"Paper and data unique identifier(eg. 1-1,10-150)"},{"$f":"'Marine Data QA'!E3","v":"971-3"}]
[{"$f":"'Marine Data QA'!G11","v":"Scores"},{"$f":"'Marine Data QA'!G12","v":10},{"$f":"'Marine Data QA'!G15","v":10},{"$f":"'Marine Data QA'!G18","v":0},{"$f":"'Marine Data QA'!G21","v":0},{"$f":"'Marine Data QA'!G23","v":5},{"$f":"'Marine Data QA'!G26","v":5},{"$f":"'Marine Data QA'!G29","v":0},{"$f":"'Marine Data QA'!G32","v":5},{"$f":"'Marine Data QA'!G35","v":5},{"$f":"'Marine Data QA'!G38","v":0},{"$f":"'Marine Data QA'!G41","v":0},{"$f":"'Marine Data QA'!G44","v":0},{"$f":"'Marine Data QA'!G47","v":0},{"$f":"'Marine Data QA'!G50","v":4},{"$f":"'Marine Data QA'!G53","v":4},{"$f":"'Marine Data QA'!G57","v":0},{"$f":"'Marine Data QA'!G61","v":0},{"$f":"'Marine Data QA'!G65","v":3},{"$f":"'Marine Data QA'!G69","v":0},{"$f":"'Marine Data QA'!G73","v":0},{"$f":"'Marine Data QA'!G77","v":0},{"$f":"'Marine Data QA'!G81","v":0},{"$f":"'Marine Data QA'!G84","v":0},{"$f":"'Marine Data QA'!G88","v":0},{"$f":"'Marine Data QA'!G90","v":51},{"$f":"'Marine Data QA'!G92","v":0.52577319587628868}]
[{"$f":"'Marine Data QA'!H11","v":"Answers"},{"$f":"IF('Marine Data QA'!H12=0,\"\",'Marine Data QA'!H12)","v":""},{"$f":"IF('Marine Data QA'!H15=0,\"\",'Marine Data QA'!H15)","v":""},{"$f":"IF('Marine Data QA'!H18=0,\"\",'Marine Data QA'!H18)","v":""},{"$f":"IF('Marine Data QA'!H21=0,\"\",'Marine Data QA'!H21)","v":""},null,{"$f":"IF('Marine Data QA'!H26=0,\"\",'Marine Data QA'!H26)","v":""},{"$f":"IF('Marine Data QA'!H29=0,\"\",'Marine Data QA'!H29)","v":""},{"$f":"IF('Marine Data QA'!H32=0,\"\",'Marine Data QA'!H32)","v":""},{"$f":"IF('Marine Data QA'!H35=0,\"\",'Marine Data QA'!H35)","v":""},{"$f":"IF('Marine Data QA'!H38=0,\"\",'Marine Data QA'!H38)","v":""},{"$f":"IF('Marine Data QA'!H41=0,\"\",'Marine Data QA'!H41)","v":""},{"$f":"IF('Marine Data QA'!H44=0,\"\",'Marine Data QA'!H44)","v":""},{"$f":"IF('Marine Data QA'!H47=0,\"\",'Marine Data QA'!H47)","v":""},{"$f":"IF('Marine Data QA'!H50=0,\"\",'Marine Data QA'!H50)","v":""},{"$f":"IF('Marine Data QA'!H53=0,\"\",'Marine Data QA'!H53)","v":""},{"$f":"IF('Marine Data QA'!H57=0,\"\",'Marine Data QA'!H57)","v":""},{"$f":"IF('Marine Data QA'!H61=0,\"\",'Marine Data QA'!H61)","v":""},{"$f":"IF('Marine Data QA'!H65=0,\"\",'Marine Data QA'!H65)","v":""},{"$f":"IF('Marine Data QA'!H69=0,\"\",'Marine Data QA'!H69)","v":""},{"$f":"IF('Marine Data QA'!H73=0,\"\",'Marine Data QA'!H73)","v":""},{"$f":"IF('Marine Data QA'!H77=0,\"\",'Marine Data QA'!H77)","v":""},{"$f":"IF('Marine Data QA'!H81=0,\"\",'Marine Data QA'!H81)","v":""},{"$f":"IF('Marine Data QA'!H84=0,\"\",'Marine Data QA'!H84)","v":""},{"$f":"IF('Marine Data QA'!H88=0,\"\",'Marine Data QA'!H88)","v":""}]
[{"$f":"'Marine Data QA'!G3","v":"Species (Scientific name)"},{"$f":"'Marine Data QA'!$G4","v":"Lifestage"},{"$f":"'Marine Data QA'!$G5","v":"Exposure duration"},{"$f":"'Marine Data QA'!$G6","v":"Measure of toxicity"},{"$f":"'Marine Data QA'!$G7","v":"Toxicity endpoint"},{"$f":"'Marine Data QA'!$G8","v":"Toxicity value"},{"$f":"'Marine Data QA'!$C4","v":"Citation"},{"$f":"'Marine Data QA'!$G2","v":"Citation No."}]
[{"$f":"'Marine Data QA'!M3","v":"Zostera marina"},{"$f":"'Marine Data QA'!P3","v":"Not stated"},{"$f":"'Marine Data QA'!S3","v":"3 Days"},{"$f":"'Marine Data QA'!V3","v":"Chlorophyll-(a/b)"},{"$f":"'Marine Data QA'!Y3","v":"NOEC"},{"$f":"IF('Marine Data QA'!H8=0,\"\",'Marine Data QA'!H8)","v":"100 ug/L"},{"$f":"IF('Marine Data QA'!E4=0,\"\",'Marine Data QA'!E4)","v":"Nielsen, L. W. & Dahllof, I. 2007. Direct and indirect effects of the herbicides Glyphosate, Bentazone and MCPA on eelgrass (Zostera marina), vol. 82, pp. 47 - 54. "},{"$f":"IF('Marine Data QA'!H2=0,\"\",'Marine Data QA'!H2)","v":"971"}]
[]
[]
[]
[{"$f":"'Terrestrial Data QA'!B11","v":"No."},{"$f":"'Terrestrial Data QA'!B13","v":1},{"$f":"'Terrestrial Data QA'!B16","v":2},{"$f":"'Terrestrial Data QA'!B19","v":3},{"$f":"'Terrestrial Data QA'!B21","v":4},{"$f":"'Terrestrial Data QA'!B23","v":5},{"$f":"'Terrestrial Data QA'!B26","v":6},{"$f":"'Terrestrial Data QA'!B29","v":7},{"$f":"'Terrestrial Data QA'!B32","v":8},{"$f":"'Terrestrial Data QA'!B35","v":9},{"$f":"'Terrestrial Data QA'!B39","v":10},{"$f":"'Terrestrial Data QA'!B42","v":11},{"$f":"'Terrestrial Data QA'!B45","v":12},{"$f":"'Terrestrial Data QA'!B48","v":13},{"$f":"'Terrestrial Data QA'!B50","v":14},{"$f":"'Terrestrial Data QA'!B55","v":15.1},{"$f":"'Terrestrial Data QA'!B59","v":15.2},{"$f":"'Terrestrial Data QA'!B63","v":15.3},{"$f":"'Terrestrial Data QA'!B67","v":15.4},{"$f":"'Terrestrial Data QA'!B71","v":16},{"$f":"'Terrestrial Data QA'!B74","v":17},{"$f":"'Terrestrial Data QA'!B78","v":18},{"$f":"'Terrestrial Data QA'!B82","v":19},{"$f":"'Terrestrial Data QA'!B85","v":20},{"$f":"'Terrestrial Data QA'!C90","v":"Total Score"},{"$f":"'Terrestrial Data QA'!C92","v":"Quality Score"}]
[{"$f":"'Terrestrial Data QA'!C2","v":"Category"},{"$f":"'Terrestrial Data QA'!E2","v":"Terrestrial Quality"},{"$f":"'Terrestrial Data QA'!C3","v":"Paper and data unique identifier(eg. 1-1,10-150)"},{"$f":"'Terrestrial Data QA'!E3","v":0}]
[{"$f":"'Terrestrial Data QA'!G11","v":"Scores"},{"$f":"'Terrestrial Data QA'!G12","v":0},{"$f":"'Terrestrial Data QA'!G15","v":0},{"$f":"'Terrestrial Data QA'!G18","v":0},{"$f":"'Terrestrial Data QA'!G21","v":0},{"$f":"'Terrestrial Data QA'!G23","v":0},{"$f":"'Terrestrial Data QA'!G26","v":0},{"$f":"'Terrestrial Data QA'!G29","v":0},{"$f":"'Terrestrial Data QA'!G32","v":0},{"$f":"'Terrestrial Data QA'!G35","v":0},{"$f":"'Terrestrial Data QA'!G38","v":0},{"$f":"'Terrestrial Data QA'!G41","v":0},{"$f":"'Terrestrial Data QA'!G44","v":0},{"$f":"'Terrestrial Data QA'!G47","v":0},{"$f":"'Terrestrial Data QA'!G50","v":0},{"$f":"'Terrestrial Data QA'!G54","v":0},{"$f":"'Terrestrial Data QA'!G58","v":0},{"$f":"'Terrestrial Data QA'!G62","v":0},{"$f":"'Terrestrial Data QA'!G66","v":0},{"$f":"'Terrestrial Data QA'!G70","v":0},{"$f":"'Terrestrial Data QA'!G73","v":0},{"$f":"'Terrestrial Data QA'!G77","v":0},{"$f":"'Terrestrial Data QA'!G81","v":0},{"$f":"'Terrestrial Data QA'!G84","v":0},{"$f":"'Terrestrial Data QA'!G90","v":""},{"$f":"'Terrestrial Data QA'!G92","v":{"$error":"#N/A"}}]
[{"$f":"'Terrestrial Data QA'!H11","v":"Answers"},{"$f":"IF('Terrestrial Data QA'!H12=0,\"\",'Terrestrial Data QA'!H12)","v":""},{"$f":"IF('Terrestrial Data QA'!H15=0,\"\",'Terrestrial Data QA'!H15)","v":""},{"$f":"IF('Terrestrial Data QA'!H18=0,\"\",'Terrestrial Data QA'!H18)","v":""},{"$f":"IF('Terrestrial Data QA'!H21=0,\"\",'Terrestrial Data QA'!H21)","v":""},{"$f":"IF('Terrestrial Data QA'!H23=0,\"\",'Terrestrial Data QA'!H23)","v":""},{"$f":"IF('Terrestrial Data QA'!H26=0,\"\",'Terrestrial Data QA'!H26)","v":""},{"$f":"IF('Terrestrial Data QA'!H29=0,\"\",'Terrestrial Data QA'!H29)","v":""},{"$f":"IF('Terrestrial Data QA'!H32=0,\"\",'Terrestrial Data QA'!H32)","v":""},{"$f":"IF('Terrestrial Data QA'!H35=0,\"\",'Terrestrial Data QA'!H35)","v":""},{"$f":"IF('Terrestrial Data QA'!H38=0,\"\",'Terrestrial Data QA'!H38)","v":""},{"$f":"IF('Terrestrial Data QA'!H41=0,\"\",'Terrestrial Data QA'!H41)","v":""},{"$f":"IF('Terrestrial Data QA'!H44=0,\"\",'Terrestrial Data QA'!H44)","v":""},{"$f":"IF('Terrestrial Data QA'!H47=0,\"\",'Terrestrial Data QA'!H47)","v":""},{"$f":"IF('Terrestrial Data QA'!H50=0,\"\",'Terrestrial Data QA'!H50)","v":""},{"$f":"IF('Terrestrial Data QA'!H54=0,\"\",'Terrestrial Data QA'!H54)","v":""},{"$f":"IF('Terrestrial Data QA'!H58=0,\"\",'Terrestrial Data QA'!H58)","v":""},{"$f":"IF('Terrestrial Data QA'!H62=0,\"\",'Terrestrial Data QA'!H62)","v":""},{"$f":"IF('Terrestrial Data QA'!H66=0,\"\",'Terrestrial Data QA'!H66)","v":""},{"$f":"IF('Terrestrial Data QA'!H70=0,\"\",'Terrestrial Data QA'!H70)","v":""},{"$f":"IF('Terrestrial Data QA'!H73=0,\"\",'Terrestrial Data QA'!H73)","v":""},{"$f":"IF('Terrestrial Data QA'!H77=0,\"\",'Terrestrial Data QA'!H77)","v":""},{"$f":"IF('Terrestrial Data QA'!H81=0,\"\",'Terrestrial Data QA'!H81)","v":""},{"$f":"IF('Terrestrial Data QA'!H84=0,\"\",'Terrestrial Data QA'!H84)","v":""}]
[{"$f":"'Terrestrial Data QA'!G3","v":"Species (Scientific name)"},{"$f":"'Terrestrial Data QA'!G4","v":"Lifestage"},{"$f":"'Terrestrial Data QA'!G5","v":"Exposure duration"},{"$f":"'Terrestrial Data QA'!G6","v":"Measure of toxicity"},{"$f":"'Terrestrial Data QA'!G7","v":"Toxicity endpoint"},{"$f":"'Terrestrial Data QA'!G8","v":"Toxicity value"},{"$f":"'Terrestrial Data QA'!C4","v":"Citation"},{"$f":"'Terrestrial Data QA'!G2","v":"Citation No."}]
[{"$f":"'Terrestrial Data QA'!M3","v":""},{"$f":"'Terrestrial Data QA'!P3","v":""},{"$f":"'Terrestrial Data QA'!S3","v":""},{"$f":"'Terrestrial Data QA'!V3","v":""},{"$f":"'Terrestrial Data QA'!Y3","v":""},{"$f":"IF('Terrestrial Data QA'!H8=0,\"\",'Terrestrial Data QA'!H8)","v":""},{"$f":"IF('Terrestrial Data QA'!E4=0,\"\",'Terrestrial Data QA'!E4)","v":""},{"$f":"IF('Terrestrial Data QA'!H2=0,\"\",'Terrestrial Data QA'!H2)","v":""}]
[]
[]
[]
[{"$f":"'Sediment Data QA'!B11","v":"No."},{"$f":"'Sediment Data QA'!B13","v":1},{"$f":"'Sediment Data QA'!B16","v":2},{"$f":"'Sediment Data QA'!B19","v":3},{"$f":"'Sediment Data QA'!B21","v":4},{"$f":"'Sediment Data QA'!B23","v":5},{"$f":"'Sediment Data QA'!B26","v":6},{"$f":"'Sediment Data QA'!B29","v":7},{"$f":"'Sediment Data QA'!B32","v":8},{"$f":"'Sediment Data QA'!B35","v":9},{"$f":"'Sediment Data QA'!B39","v":10},{"$f":"'Sediment Data QA'!B42","v":11},{"$f":"'Sediment Data QA'!B45","v":12},{"$f":"'Sediment Data QA'!B48","v":13},{"$f":"'Sediment Data QA'!B51","v":14},{"$f":"'Sediment Data QA'!B53","v":15},{"$f":"'Sediment Data QA'!B58","v":16.100000000000001},{"$f":"'Sediment Data QA'!B62","v":16.2},{"$f":"'Sediment Data QA'!B66","v":16.3},{"$f":"'Sediment Data QA'!B70","v":16.399999999999999},{"$f":"'Sediment Data QA'!B74","v":16.5},{"$f":"'Sediment Data QA'!B78","v":16.600000000000001},{"$f":"'Sediment Data QA'!B82","v":17},{"$f":"'Sediment Data QA'!B85","v":18},{"$f":"'Sediment Data QA'!B88","v":19},{"$f":"'Sediment Data QA'!B90","v":20},{"$f":"'Sediment Data QA'!B92","v":21},{"$f":"'Sediment Data QA'!C95","v":"Total score"},{"$f":"'Sediment Data QA'!C97","v":"Quality Score"}]
[{"$f":"'Sediment Data QA'!C2","v":"Category"},{"$f":"'Sediment Data QA'!E2","v":"Sediment "},{"$f":"'Sediment Data QA'!C3","v":"Paper and data unique identifier(eg. 1-1,10-150)"},{"$f":"'Sediment Data QA'!E3","v":0}]
[{"$f":"'Sediment Data QA'!G11","v":"Scores"},{"$f":"'Sediment Data QA'!G12","v":0},{"$f":"'Sediment Data QA'!G15","v":0},{"$f":"'Sediment Data QA'!G18","v":0},{"$f":"'Sediment Data QA'!G21","v":0},{"$f":"'Sediment Data QA'!G23","v":0},{"$f":"'Sediment Data QA'!G26","v":0},{"$f":"'Sediment Data QA'!G29","v":0},{"$f":"'Sediment Data QA'!G32","v":0},{"$f":"'Sediment Data QA'!G35","v":0},{"$f":"'Sediment Data QA'!G38","v":0},{"$f":"'Sediment Data QA'!G41","v":0},{"$f":"'Sediment Data QA'!G44","v":0},{"$f":"'Sediment Data QA'!G47","v":0},{"$f":"'Sediment Data QA'!G50","v":0},{"$f":"'Sediment Data QA'!G53","v":0},{"$f":"'Sediment Data QA'!G57","v":0},{"$f":"'Sediment Data QA'!G61","v":0},{"$f":"'Sediment Data QA'!G65","v":0},{"$f":"'Sediment Data QA'!G69","v":0},{"$f":"'Sediment Data QA'!G73","v":0},{"$f":"'Sediment Data QA'!G77","v":0},{"$f":"'Sediment Data QA'!G81","v":0},{"$f":"'Sediment Data QA'!G84","v":0},{"$f":"'Sediment Data QA'!G88","v":0},{"$f":"'Sediment Data QA'!G90","v":0},{"$f":"'Sediment Data QA'!G92","v":0},{"$f":"'Sediment Data QA'!G95","v":""},{"$f":"'Sediment Data QA'!G97","v":{"$error":"#N/A"}}]
[{"$f":"'Sediment Data QA'!H11","v":"Answers"},{"$f":"IF('Sediment Data QA'!H12=\"\",\"\",'Sediment Data QA'!H12)","v":""},{"$f":"IF('Sediment Data QA'!H15=\"\",\"\",'Sediment Data QA'!H15)","v":""},{"$f":"IF('Sediment Data QA'!H18=\"\",\"\",'Sediment Data QA'!H18)","v":""},{"$f":"IF('Sediment Data QA'!H21=\"\",\"\",'Sediment Data QA'!H21)","v":""},{"$f":"IF('Sediment Data QA'!H23=\"\",\"\",'Sediment Data QA'!H23)","v":""},{"$f":"IF('Sediment Data QA'!H26=\"\",\"\",'Sediment Data QA'!H26)","v":""},{"$f":"IF('Sediment Data QA'!H29=\"\",\"\",'Sediment Data QA'!H29)","v":""},{"$f":"IF('Sediment Data QA'!H32=\"\",\"\",'Sediment Data QA'!H32)","v":""},{"$f":"IF('Sediment Data QA'!H35=\"\",\"\",'Sediment Data QA'!H35)","v":""},{"$f":"IF('Sediment Data QA'!H38=\"\",\"\",'Sediment Data QA'!H38)","v":""},{"$f":"IF('Sediment Data QA'!H41=\"\",\"\",'Sediment Data QA'!H41)","v":""},{"$f":"IF('Sediment Data QA'!H44=\"\",\"\",'Sediment Data QA'!H44)","v":""},{"$f":"IF('Sediment Data QA'!H47=\"\",\"\",'Sediment Data QA'!H47)","v":""},{"$f":"IF('Sediment Data QA'!H50=\"\",\"\",'Sediment Data QA'!H50)","v":""},{"$f":"IF('Sediment Data QA'!H53=\"\",\"\",'Sediment Data QA'!H53)","v":""},{"$f":"IF('Sediment Data QA'!H57=\"\",\"\",'Sediment Data QA'!H57)","v":""},{"$f":"IF('Sediment Data QA'!H61=\"\",\"\",'Sediment Data QA'!H61)","v":""},{"$f":"IF('Sediment Data QA'!H65=\"\",\"\",'Sediment Data QA'!H65)","v":""},{"$f":"IF('Sediment Data QA'!H69=\"\",\"\",'Sediment Data QA'!H69)","v":""},{"$f":"IF('Sediment Data QA'!H73=\"\",\"\",'Sediment Data QA'!H73)","v":""},{"$f":"IF('Sediment Data QA'!H77=\"\",\"\",'Sediment Data QA'!H77)","v":""},{"$f":"IF('Sediment Data QA'!H81=\"\",\"\",'Sediment Data QA'!H81)","v":""},{"$f":"IF('Sediment Data QA'!H84=\"\",\"\",'Sediment Data QA'!H84)","v":""},{"$f":"IF('Sediment Data QA'!H88=\"\",\"\",'Sediment Data QA'!H88)","v":""},{"$f":"IF('Sediment Data QA'!H90=\"\",\"\",'Sediment Data QA'!H90)","v":""},{"$f":"IF('Sediment Data QA'!H92=\"\",\"\",'Sediment Data QA'!H92)","v":""}]
[{"$f":"'Sediment Data QA'!G3","v":"Species (Scientific name)"},{"$f":"'Sediment Data QA'!G4","v":"Lifestage"},{"$f":"'Sediment Data QA'!G5","v":"Exposure duration"},{"$f":"'Sediment Data QA'!G6","v":"Measure of toxicity"},{"$f":"'Sediment Data QA'!G7","v":"Toxicity endpoint"},{"$f":"'Sediment Data QA'!G8","v":"Toxicity value"},{"$f":"'Sediment Data QA'!C4","v":"Citation"},{"$f":"'Sediment Data QA'!G2","v":"Citation No."}]
[{"$f":"'Sediment Data QA'!M3","v":""},{"$f":"'Sediment Data QA'!P3","v":""},{"$f":"'Sediment Data QA'!S3","v":""},{"$f":"'Sediment Data QA'!V3","v":""},{"$f":"'Sediment Data QA'!Y3","v":""},{"$f":"IF('Sediment Data QA'!H8=\"\",\"\",'Sediment Data QA'!H8)","v":""},{"$f":"IF('Sediment Data QA'!E4=\"\",\"\",'Sediment Data QA'!E4)","v":""},{"$f":"IF('Sediment Data QA'!H2=\"\",\"\",'Sediment Data QA'!H2)","v":""}]

{"sheet":"Fresh Quality","index":5,"n_rows":966,"n_cols":26,"rows_kept":966,"cut":false,"hidden":false,"merged":[]}
[]
["Question No.",1,2,3,4,5,6,7,8,9,10,11,12,13,14,15,16.100000000000001,16.2,16.3,16.399999999999999,16.5,16.600000000000001,17,18,"Total Score","Quality Score"]
["Short Questions","Duration of the exposure ","Biological endpoint","Biological effect stated or not","Biological effect quantified or not","Appropriate controls","Control & contaminant concentration","Test acceptability criteria","Characteristics of the test organism"," Type of test media","Type of exposure","Contaminant concentrations","Parallel reference toxicant toxicity tests","Concentration–response relationship","Determine the toxicity","NOEC/LOEC or LC/EC/BEC","pH","POC","Particle size","AVS & 1-M HCl extractable metals","Dissolved contaminants","Dissolved ammonia and sulfide","Temperature","Grade or purity"]
["Marks Awarded","10 or 0","10,5 or 0","5 or 0 ","5 or 0 ","5 or 0 ","5 or 0 ","5 or 0 ","5 or 0 ","5 or 0 ","4 or 0","4 or 0","4 or 0","4 or 0","4 or 0","4 or 0","3,1,or 0","3,1,or 0","3,1,or 0","3,1,or 0","3,1,or 0","3,1,or 0","3 or 0","3 or 0"]
["Max. Possible Score",10,10,5,5,5,5,5,5,5,4,4,4,4,4,4,3,3,3,3,3,3,3,3,{"$f":"SUM(B5:X5)","v":103}]
["Category","Freshwater","Paper and data unique identifier(eg. 1-1,10-150)","1-2"]
["Scores",10,10,5,5,5,5,5,0,5,4,0,0,0,4,4,3,3,3,3,1,1,3,3,82,0.79611650485436891]
["Answers","","","","","","","","","","","","","","","","","","","","","","",""]
["Category","Freshwater","Paper and data unique identifier(eg. 1-1,10-150)","869-1"]
["Scores",10,5,5,5,5,5,0,0,5,4,0,0,4,4,4,0,0,0,0,0,0,3,3,62,0.60194174757281549]
["Answers","72 hours","Population: Abundance (Cell Density)","EC50","","No-toxicant controls and blanks","Triplicated","","","","Shaken @ 100rpm","Nominal","","","","","","","","","","","24 degrees C",0.97499999999999998]
["Category","Freshwater","Paper and data unique identifier(eg. 1-1,10-150)","869-1"]
["Scores",10,5,5,5,5,5,0,0,5,4,0,0,4,4,4,0,0,0,0,0,0,3,3,62,0.60194174757281549]
["Answers","72 hours","Population: Abundance (Cell Density)","EC50","","No-toxicant controls and blanks","Triplicated","","","","Shaken @ 100rpm","Nominal","","","","","","","","","","","24 degrees C",0.97499999999999998]
["Category","Freshwater","Paper and data unique identifier(eg. 1-1,10-150)","869-2"]
["Scores",10,5,5,5,5,5,0,0,5,4,0,0,4,4,4,0,0,0,0,0,0,3,3,62,0.60194174757281549]
["Answers","72 hours","Population: Abundance (Cell Density)","EC50","","No-toxicant controls and blanks","Triplicated","","","","Shaken @ 100rpm","Nominal","","","","","","","","","","","24 degrees C",0.97499999999999998]
["Category","Freshwater","Paper and data unique identifier(eg. 1-1,10-150)","869-3"]
["Scores",10,5,5,5,5,5,0,0,5,4,0,0,4,4,4,0,0,0,0,0,0,3,3,62,0.60194174757281549]
["Answers","72 hours","Population: Abundance (Cell Density)","EC50","","No-toxicant controls and blanks","Triplicated","","","","Shaken @ 100rpm","Nominal","","","","","","","","","","","24 degrees C",0.97499999999999998]
["Category","Freshwater","Paper and data unique identifier(eg. 1-1,10-150)","869-4"]
["Scores",10,5,5,5,5,5,0,0,5,4,0,0,4,4,4,0,0,0,0,0,0,3,3,62,0.60194174757281549]
["Answers","72 hours","Population: Abundance (Cell Density)","EC50","","No-toxicant controls and blanks","Triplicated","","","","Shaken @ 100rpm","Nominal","","","","","","","","","","","24 degrees C",0.97499999999999998]
["Category","Freshwater","Paper and data unique identifier(eg. 1-1,10-150)","869-5"]
["Scores",10,5,5,5,5,5,0,0,5,4,0,0,4,4,4,0,0,0,0,0,0,3,3,62,0.60194174757281549]
["Answers","72 hours","Population: Abundance (Cell Density)","EC50","","No-toxicant controls and blanks","Triplicated","","","","Shaken @ 100rpm","Nominal","","","","","","","","","","","24 degrees C",0.97499999999999998]
["Category","Freshwater","Paper and data unique identifier(eg. 1-1,10-150)","869-6"]
["Scores",10,5,5,5,5,5,0,0,5,4,0,0,4,4,4,0,0,0,0,0,0,3,3,62,0.60194174757281549]
["Answers","72 hours","Population: Abundance (Cell Density)","EC50","","No-toxicant controls and blanks","Triplicated","","","","Shaken @ 100rpm","Nominal","","","","","","","","","","","24 degrees C",0.97499999999999998]
["Category","Freshwater","Paper and data unique identifier(eg. 1-1,10-150)","869-7"]
["Scores",10,5,5,5,5,5,0,0,5,4,0,0,4,4,4,0,0,0,0,0,0,3,3,62,0.60194174757281549]
["Answers","72 hours","Population: Abundance (Cell Density)","EC50","","No-toxicant controls and blanks","Triplicated","","","","Shaken @ 100rpm","Nominal","","","","","","","","","","","24 degrees C",0.97499999999999998]
["Category","Freshwater","Paper and data unique identifier(eg. 1-1,10-150)","869-8"]
["Scores",10,5,5,5,5,5,0,0,5,4,0,0,4,4,4,0,0,0,0,0,0,3,3,62,0.60194174757281549]
["Answers","72 hours","Population: Abundance (Cell Density)","EC50","","No-toxicant controls and blanks","Triplicated","","","","Shaken @ 100rpm","Nominal","","","","","","","","","","","24 degrees C",0.97499999999999998]
["Category","Freshwater","Paper and data unique identifier(eg. 1-1,10-150)","869-9"]
["Scores",10,5,5,5,5,5,0,0,5,4,0,0,4,4,4,0,0,0,0,0,0,3,3,62,0.60194174757281549]
["Answers","72 hours","Population: Abundance (Cell Density)","EC50","","No-toxicant controls and blanks","Triplicated","","","","Shaken @ 100rpm","Nominal","","","","","","","","","","","24 degrees C",0.97499999999999998]
["Category","Freshwater","Paper and data unique identifier(eg. 1-1,10-150)","869-10"]
["Scores",10,5,5,5,5,5,0,0,5,4,0,0,4,4,4,0,0,0,0,0,0,3,3,62,0.60194174757281549]
["Answers","72 hours","Population: Abundance (Cell Density)","EC50","","No-toxicant controls and blanks","Triplicated","","","","Shaken @ 100rpm","Nominal","","","","","","","","","","","24 degrees C",0.97499999999999998]
["Category","Freshwater","Paper and data unique identifier(eg. 1-1,10-150)","869-11"]
["Scores",10,5,5,5,5,5,0,0,5,4,0,0,4,4,4,0,0,0,0,0,0,3,3,62,0.60194174757281549]
["Answers","72 hours","Population: Abundance (Cell Density)","EC50","","No-toxicant controls and blanks","Triplicated","","","","Shaken @ 100rpm","Nominal","","","","","","","","","","","24 degrees C",0.97499999999999998]
["Category","Freshwater","Paper and data unique identifier(eg. 1-1,10-150)","869-12"]
["Scores",10,5,5,5,5,5,0,0,5,4,0,0,4,4,4,0,0,0,0,0,0,3,3,62,0.60194174757281549]
["Answers","72 hours","Population: Abundance (Cell Density)","EC50","","No-toxicant controls and blanks","Triplicated","","","","Shaken @ 100rpm","Nominal","","","","","","","","","","","24 degrees C",0.97499999999999998]
["Category","Freshwater","Paper and data unique identifier(eg. 1-1,10-150)","869-13"]
["Scores",10,5,5,5,5,5,0,0,5,4,0,0,4,4,4,0,0,0,0,0,0,3,3,62,0.60194174757281549]
["Answers","72 hours","Population: Growth Rate","EC50","","No-toxicant controls and blanks","Triplicated","","","","Shaken @ 100rpm","Nominal","","","","","","","","","","","24 degrees C",0.97499999999999998]
["Category","Freshwater","Paper and data unique identifier(eg. 1-1,10-150)","869-14"]
["Scores",10,5,5,5,5,5,0,0,5,4,0,0,4,4,4,0,0,0,0,0,0,3,3,62,0.60194174757281549]
["Answers","72 hours","Population: Growth Rate","EC50","","No-toxicant controls and blanks","Triplicated","","","","Shaken @ 100rpm","Nominal","","","","","","","","","","","24 degrees C",0.97499999999999998]
["Category","Freshwater","Paper and data unique identifier(eg. 1-1,10-150)","869-15"]
["Scores",10,5,5,5,5,5,0,0,5,4,0,0,4,4,4,0,0,0,0,0,0,3,3,62,0.60194174757281549]
["Answers","72 hours","Population: Growth Rate","EC50","","No-toxicant controls and blanks","Triplicated","","","","Shaken @ 100rpm","Nominal","","","","","","","","","","","24 degrees C",0.97499999999999998]
["Category","Freshwater","Paper and data unique identifier(eg. 1-1,10-150)","869-16"]
["Scores",10,5,5,5,5,5,0,0,5,4,0,0,4,4,4,0,0,0,0,0,0,3,3,62,0.60194174757281549]
["Answers","72 hours","Population: Growth Rate","EC50","","No-toxicant controls and blanks","Triplicated","","","","Shaken @ 100rpm","Nominal","","","","","","","","","","","24 degrees C",0.97499999999999998]
["Category","Freshwater","Paper and data unique identifier(eg. 1-1,10-150)","869-17"]
["Scores",10,5,5,5,5,5,0,0,5,4,0,0,4,4,4,0,0,0,0,0,0,3,3,62,0.60194174757281549]
["Answers","72 hours","Population: Growth Rate","EC50","","No-toxicant controls and blanks","Triplicated","","","","Shaken @ 100rpm","Nominal","","","","","","","","","","","24 degrees C",0.97499999999999998]
["Category","Freshwater","Paper and data unique identifier(eg. 1-1,10-150)","869-18"]
["Scores",10,5,5,5,5,5,0,0,5,4,0,0,4,4,4,0,0,0,0,0,0,3,3,62,0.60194174757281549]
["Answers","72 hours","Population: Growth Rate","EC50","","No-toxicant controls and blanks","Triplicated","","","","Shaken @ 100rpm","Nominal","","","","","","","","","","","24 degrees C",0.97499999999999998]
["Category","Freshwater","Paper and data unique identifier(eg. 1-1,10-150)","870-1"]
["Scores",10,5,0,5,5,5,0,0,5,0,0,0,0,4,4,0,0,0,0,0,0,3,0,46,0.44660194174757284]
["Answers","","","","","","Triplicated","","","CT Growth Media","","","","","","","","","","","","","24 degrees C",""]
["Category","Freshwater","Paper and data unique identifier(eg. 1-1,10-150)","870-2"]
["Scores",10,5,0,5,5,5,0,0,5,0,0,0,0,4,4,0,0,0,0,0,0,3,0,46,0.44660194174757284]
["Answers","","","","","","Triplicated","","","CT Growth Media","","","","","","","","","","","","","24 degrees C",""]
["Category","Freshwater","Paper and data unique identifier(eg. 1-1,10-150)","870-3"]
["Scores",10,5,0,5,5,5,0,0,5,0,0,0,0,4,4,0,0,0,0,0,0,3,0,46,0.44660194174757284]
["Answers","","","","","","Triplicated","","","CT Growth Media","","","","","","","","","","","","","24 degrees C",""]
["Category","Freshwater","Paper and data unique identifier(eg. 1-1,10-150)","871-1"]
["Scores",10,5,5,5,5,5,0,5,5,0,0,0,4,4,4,0,0,0,0,0,0,3,3,63,0.61165048543689315]
["Answers","21 days","","","","","Triplicate","","","","","","","","","95% CI","","","","","","","22 degrees C",""]
["Category","Freshwater","Paper and data unique identifier(eg. 1-1,10-150)","871-2"]
["Scores",10,5,5,5,5,5,0,5,5,0,0,0,4,4,4,0,0,0,0,0,0,3,3,63,0.61165048543689315]
["Answers","21 days","","","","","Triplicate","","","","","","","","","95% CI","","","","","","","22 degrees C",""]
["Category","Freshwater","Paper and data unique identifier(eg. 1-1,10-150)","871-3"]
["Scores",10,5,5,5,5,5,0,5,5,0,0,0,4,4,4,0,0,0,0,0,0,3,3,63,0.61165048543689315]
["Answers","21 days","","","","","Triplicate","","","","","","","","","95% CI","","","","","","","22 degrees C",""]
["Category","Freshwater","Paper and data unique identifier(eg. 1-1,10-150)","871-4"]
["Scores",10,5,5,5,5,5,0,5,5,0,0,0,4,4,4,0,0,0,0,0,0,3,3,63,0.61165048543689315]
["Answers","21 days","","","","","Triplicate","","","","","","","","","95% CI","","","","","","","22 degrees C",""]
["Category","Freshwater","Paper and data unique identifier(eg. 1-1,10-150)","871-5"]
["Scores",10,5,5,5,5,5,0,5,5,0,0,0,4,4,4,0,0,0,0,0,0,3,3,63,0.61165048543689315]
["Answers","21 days","","","","","Triplicate","","","","","","","","","95% CI","","","","","","","22 degrees C",""]
["Category","Freshwater","Paper and data unique identifier(eg. 1-1,10-150)","871-6"]
["Scores",10,5,5,5,5,5,0,5,5,0,0,0,4,4,4,0,0,0,0,0,0,3,3,63,0.61165048543689315]
["Answers","21 days","","","","","Triplicate","","","","","","","","","95% CI","","","","","","","22 degrees C",""]
["Category","Freshwater","Paper and data unique identifier(eg. 1-1,10-150)","871-7"]
["Scores",10,5,5,5,5,5,0,5,5,0,0,0,4,4,4,0,0,0,0,0,0,3,3,63,0.61165048543689315]
["Answers","21 days","","","","","Triplicate","","","","","","","","","95% CI","","","","","","","22 degrees C",""]
["Category","Freshwater","Paper and data unique identifier(eg. 1-1,10-150)","871-8"]
["Scores",10,5,5,5,5,5,0,5,5,0,0,0,4,4,4,0,0,0,0,0,0,3,3,63,0.61165048543689315]
["Answers","21 days","","","","","Triplicate","","","","","","","","","95% CI","","","","","","","22 degrees C",""]
["Category","Freshwater","Paper and data unique identifier(eg. 1-1,10-150)","871-9"]
["Scores",10,5,5,5,5,5,0,5,5,0,0,0,4,4,4,0,0,0,0,0,0,3,3,63,0.61165048543689315]
["Answers","21 days","","","","","Triplicate","","","","","","","","","95% CI","","","","","","","22 degrees C",""]
["Category","Freshwater","Paper and data unique identifier(eg. 1-1,10-150)","871-10"]
["Scores",10,5,5,5,5,5,0,5,5,0,0,0,4,4,4,0,0,0,0,0,0,3,3,63,0.61165048543689315]
["Answers","21 days","","","","","Triplicate","","","","","","","","","95% CI","","","","","","","22 degrees C",""]
["Category","Freshwater","Paper and data unique identifier(eg. 1-1,10-150)","871-11"]
["Scores",10,5,5,5,5,5,0,5,5,0,0,0,4,4,4,0,0,0,0,0,0,3,3,63,0.61165048543689315]
["Answers","21 days","","","","","Triplicate","","","","","","","","","95% CI","","","","","","","22 degrees C",""]
["Category","Freshwater","Paper and data unique identifier(eg. 1-1,10-150)","871-12"]
["Scores",10,5,5,5,5,5,0,5,5,0,0,0,4,4,4,0,0,0,0,0,0,3,3,63,0.61165048543689315]
["Answers","21 days","","","","","Triplicate","","","","","","","","","95% CI","","","","","","","22 degrees C",""]
["Category","Freshwater","Paper and data unique identifier(eg. 1-1,10-150)","871-13"]
["Scores",10,5,5,5,5,5,0,5,5,0,0,0,4,4,4,0,0,0,0,0,0,3,3,63,0.61165048543689315]
["Answers","21 days","","","","","Triplicate","","","","","","","","","95% CI","","","","","","","22 degrees C",""]
["Category","Freshwater","Paper and data unique identifier(eg. 1-1,10-150)","871-14"]
["Scores",10,5,5,5,5,5,0,5,5,0,0,0,4,4,4,0,0,0,0,0,0,3,3,63,0.61165048543689315]
["Answers","21 days","","","","","Triplicate","","","","","","","","","95% CI","","","","","","","22 degrees C",""]
["Category","Freshwater","Paper and data unique identifier(eg. 1-1,10-150)","871-15"]
["Scores",10,5,5,5,5,5,0,5,5,0,0,0,4,4,4,0,0,0,0,0,0,3,3,63,0.61165048543689315]
["Answers","21 days","","","","","Triplicate","","","","","","","","","95% CI","","","","","","","22 degrees C",""]
["Category","Freshwater","Paper and data unique identifier(eg. 1-1,10-150)","871-16"]
["Scores",10,5,5,5,5,5,0,5,5,0,0,0,4,4,4,0,0,0,0,0,0,3,3,63,0.61165048543689315]
["Answers","21 days","","","","","Triplicate","","","","","","","","","95% CI","","","","","","","22 degrees C",""]
["Category","Freshwater","Paper and data unique identifier(eg. 1-1,10-150)","871-17"]
["Scores",10,5,5,5,5,5,0,5,5,0,0,0,4,4,4,0,0,0,0,0,0,3,3,63,0.61165048543689315]
["Answers","21 days","","","","","Triplicate","","","","","","","","","95% CI","","","","","","","22 degrees C",""]
["Category","Freshwater","Paper and data unique identifier(eg. 1-1,10-150)","871-18"]
["Scores",10,5,5,5,5,5,0,5,5,0,0,0,4,4,4,0,0,0,0,0,0,3,3,63,0.61165048543689315]
["Answers","21 days","","","","","Triplicate","","","","","","","","","95% CI","","","","","","","22 degrees C",""]
["Category","Freshwater","Paper and data unique identifier(eg. 1-1,10-150)","871-19"]
["Scores",10,5,5,5,5,5,0,5,5,0,0,0,4,4,4,0,0,0,0,0,0,3,3,63,0.61165048543689315]
["Answers","21 days","","","","","Triplicate","","","","","","","","","95% CI","","","","","","","22 degrees C",""]
["Category","Freshwater","Paper and data unique identifier(eg. 1-1,10-150)","871-20"]
["Scores",10,5,5,5,5,5,0,5,5,0,0,0,4,4,4,0,0,0,0,0,0,3,3,63,0.61165048543689315]
["Answers","21 days","","","","","Triplicate","","","","","","","","","95% CI","","","","","","","22 degrees C",""]
["Category","Freshwater","Paper and data unique identifier(eg. 1-1,10-150)","871-21"]
["Scores",10,5,5,5,5,5,0,5,5,0,0,0,4,4,4,0,0,0,0,0,0,3,3,63,0.61165048543689315]
["Answers","21 days","","","","","Triplicate","","","","","","","","","95% CI","","","","","","","22 degrees C",""]
["Category","Freshwater","Paper and data unique identifier(eg. 1-1,10-150)","871-22"]
["Scores",10,5,5,5,5,5,0,5,5,0,0,0,4,4,4,0,0,0,0,0,0,3,3,63,0.61165048543689315]
["Answers","21 days","","","","","Triplicate","","","","","","","","","95% CI","","","","","","","22 degrees C",""]
["Category","Freshwater","Paper and data unique identifier(eg. 1-1,10-150)","871-23"]
["Scores",10,5,5,5,5,5,0,5,5,0,0,0,4,4,4,0,0,0,0,0,0,3,3,63,0.61165048543689315]
["Answers","21 days","","","","","Triplicate","","","","","","","","","95% CI","","","","","","","22 degrees C",""]
["Category","Freshwater","Paper and data unique identifier(eg. 1-1,10-150)","871-24"]
["Scores",10,5,5,5,5,5,0,5,5,0,0,0,4,4,4,0,0,0,0,0,0,3,3,63,0.61165048543689315]
["Answers","21 days","","","","","Triplicate","","","","","","","","","95% CI","","","","","","","22 degrees C",""]
["Category","Freshwater","Paper and data unique identifier(eg. 1-1,10-150)","872-1"]
["Scores",10,10,5,5,5,5,0,5,5,0,0,0,0,4,4,0,0,0,0,0,0,0,3,61,0.59223300970873782]
["Answers","96 hours","Population: Abundance (algal growth using flurometer)","EC",0.5,"","Triplicated","","Exponential Growth Phase","BG-11 medium","","","","","","","","","","","","","",""]
["Category","Freshwater","Paper and data unique identifier(eg. 1-1,10-150)","873-1"]
["Scores",10,5,0,5,5,0,0,5,0,0,4,0,4,4,4,3,3,3,0,3,3,3,3,67,0.65048543689320393]
["Answers","21 days","","","","","","","Juveniles: 3-8 weeks postmetomorphosis (early life stages)","","","Measured","","","","","8.22-8.76","114-128 CaCO3/L","114-128 CaCO3/L","","500-616uS/cm",">83% of saturation","21.1-21.8 degrees C",0.98]
["Category","Freshwater","Paper and data unique identifier(eg. 1-1,10-150)","873-2"]
["Scores",10,5,0,5,5,0,0,5,0,0,4,0,4,4,4,3,3,3,0,3,3,3,3,67,0.65048543689320393]
["Answers","21 days","","","","","","","Juveniles: 3-8 weeks postmetomorphosis (early life stages)","","","Measured","","","","","8.22-8.76","114-128 CaCO3/L","114-128 CaCO3/L","","500-616uS/cm",">83% of saturation","21.1-21.8 degrees C",0.98]
["Category","Freshwater","Paper and data unique identifier(eg. 1-1,10-150)","874-1"]
["Scores",10,10,5,5,5,5,0,0,5,4,0,0,4,4,4,3,0,0,0,0,0,3,3,70,0.67961165048543692]
["Answers","7 day - LEMNA MINOR                                    48 hr - P.SUBCAPITATA","The relative growth rate of the algae population was determined as the slope of the regression of the lntransformed chlorophyll fluorescence as a function of time, given in days.","","","","Test concentrations duplicated; 6x controls","","","TC-test plates = fresh nutrient media","Shaking table","","","","ANOVA & Tukey's Test","Standard Error","","","","","","","22 degrees C",""]
["Category","Freshwater","Paper and data unique identifier(eg. 1-1,10-150)","874-2"]
["Scores",10,10,5,5,5,5,0,0,5,4,0,0,4,4,4,3,0,0,0,0,0,3,3,70,0.67961165048543692]
["Answers","7 day - LEMNA MINOR                                    48 hr - P.SUBCAPITATA","The relative growth rate of the algae population was determined as the slope of the regression of the lntransformed chlorophyll fluorescence as a function of time, given in days.","","","","Test concentrations duplicated; 6x controls","","","TC-test plates = fresh nutrient media","Shaking table","","","","ANOVA & Tukey's Test","Standard Error","","","","","","","22 degrees C",""]
["Category","Freshwater","Paper and data unique identifier(eg. 1-1,10-150)","874-3"]
["Scores",10,10,5,5,5,5,0,0,5,4,0,0,4,4,4,3,0,0,0,0,0,3,3,70,0.67961165048543692]
["Answers","7 day - LEMNA MINOR                                    48 hr - P.SUBCAPITATA","The relative growth rate of the algae population was determined as the slope of the regression of the lntransformed chlorophyll fluorescence as a function of time, given in days.","","","","Test concentrations duplicated; 6x controls","","","TC-test plates = fresh nutrient media","Shaking table","","","","ANOVA & Tukey's Test","Standard Error","","","","","","","22 degrees C",""]
["Category","Freshwater","Paper and data unique identifier(eg. 1-1,10-150)","874-4"]
["Scores",10,10,5,5,5,5,0,0,5,4,0,0,4,4,4,3,0,0,0,0,0,3,3,70,0.67961165048543692]
["Answers","7 day - LEMNA MINOR                                    48 hr - P.SUBCAPITATA","The relative growth rate of the algae population was determined as the slope of the regression of the lntransformed chlorophyll fluorescence as a function of time, given in days.","","","","Test concentrations duplicated; 6x controls","","","TC-test plates = fresh nutrient media","Shaking table","","","","ANOVA & Tukey's Test","Standard Error","","","","","","","22 degrees C",""]
["Category","Freshwater","Paper and data unique identifier(eg. 1-1,10-150)","874-5"]
["Scores",10,10,5,5,5,5,0,0,5,4,0,0,4,4,4,3,0,0,0,0,0,3,3,70,0.67961165048543692]
["Answers","7 day - LEMNA MINOR                                    48 hr - P.SUBCAPITATA","The relative growth rate of the algae population was determined as the slope of the regression of the lntransformed chlorophyll fluorescence as a function of time, given in days.","","","","Test concentrations duplicated; 6x controls","","","TC-test plates = fresh nutrient media","Shaking table","","","","ANOVA & Tukey's Test","Standard Error","","","","","","","22 degrees C",""]
["Category","Freshwater","Paper and data unique identifier(eg. 1-1,10-150)","874-6"]
["Scores",10,10,5,5,5,5,0,0,5,4,0,0,4,4,4,3,0,0,0,0,0,3,3,70,0.67961165048543692]
["Answers","7 day - LEMNA MINOR                                    48 hr - P.SUBCAPITATA","The relative growth rate of the algae population was determined as the slope of the regression of the lntransformed chlorophyll fluorescence as a function of time, given in days.","","","","Test concentrations duplicated; 6x controls","","","TC-test plates = fresh nutrient media","Shaking table","","","","ANOVA & Tukey's Test","Standard Error","","","","","","","22 degrees C",""]
["Category","Freshwater","Paper and data unique identifier(eg. 1-1,10-150)","874-7"]
["Scores",10,10,5,5,5,5,0,0,5,4,0,0,4,4,4,3,0,0,0,0,0,3,3,70,0.67961165048543692]
["Answers","7 day - LEMNA MINOR                                    48 hr - P.SUBCAPITATA","The relative growth rate of the algae population was determined as the slope of the regression of the lntransformed chlorophyll fluorescence as a function of time, given in days.","","","","Test concentrations duplicated; 6x controls","","","TC-test plates = fresh nutrient media","Shaking table","","","","ANOVA & Tukey's Test","Standard Error","","","","","","","22 degrees C",""]
["Category","Freshwater","Paper and data unique identifier(eg. 1-1,10-150)","874-8"]
["Scores",10,10,5,5,5,5,0,0,5,4,0,0,4,4,4,3,0,0,0,0,0,3,3,70,0.67961165048543692]
["Answers","7 day - LEMNA MINOR                                    48 hr - P.SUBCAPITATA","The relative growth rate of the algae population was determined as the slope of the regression of the lntransformed chlorophyll fluorescence as a function of time, given in days.","","","","Test concentrations duplicated; 6x controls","","","TC-test plates = fresh nutrient media","Shaking table","","","","ANOVA & Tukey's Test","Standard Error","","","","","","","22 degrees C",""]
["Category","Freshwater","Paper and data unique identifier(eg. 1-1,10-150)","874-9"]
["Scores",10,10,5,5,5,5,0,0,5,4,0,0,4,4,4,3,0,0,0,0,0,3,3,70,0.67961165048543692]
["Answers","7 day - LEMNA MINOR                                    48 hr - P.SUBCAPITATA","The relative growth rate of the algae population was determined as the slope of the regression of the lntransformed chlorophyll fluorescence as a function of time, given in days.","","","","Test concentrations duplicated; 6x controls","","","TC-test plates = fresh nutrient media","Shaking table","","","","ANOVA & Tukey's Test","Standard Error","","","","","","","22 degrees C",""]
["Category","Freshwater","Paper and data unique identifier(eg. 1-1,10-150)","874-10"]
["Scores",10,10,5,5,5,5,0,0,5,4,0,0,4,4,4,3,0,0,0,0,0,3,3,70,0.67961165048543692]
["Answers","7 day - LEMNA MINOR                                    48 hr - P.SUBCAPITATA","The relative growth rate of the algae population was determined as the slope of the regression of the lntransformed chlorophyll fluorescence as a function of time, given in days.","","","","Test concentrations duplicated; 6x controls","","","TC-test plates = fresh nutrient media","Shaking table","","","","ANOVA & Tukey's Test","Standard Error","","","","","","","22 degrees C",""]
["Category","Freshwater","Paper and data unique identifier(eg. 1-1,10-150)","874-11"]
["Scores",10,10,5,5,5,5,0,0,5,4,0,0,4,4,4,3,0,0,0,0,0,3,3,70,0.67961165048543692]
["Answers","7 day - LEMNA MINOR                                    48 hr - P.SUBCAPITATA","The relative growth rate of the algae population was determined as the slope of the regression of the lntransformed chlorophyll fluorescence as a function of time, given in days.","","","","Test concentrations duplicated; 6x controls","","","TC-test plates = fresh nutrient media","Shaking table","","","","ANOVA & Tukey's Test","Standard Error","","","","","","","22 degrees C",""]
["Category","Freshwater","Paper and data unique identifier(eg. 1-1,10-150)","874-12"]
["Scores",10,10,5,5,5,5,0,0,5,4,0,0,4,4,4,3,0,0,0,0,0,3,3,70,0.67961165048543692]
["Answers","7 day - LEMNA MINOR                                    48 hr - P.SUBCAPITATA","The relative growth rate of the algae population was determined as the slope of the regression of the lntransformed chlorophyll fluorescence as a function of time, given in days.","","","","Test concentrations duplicated; 6x controls","","","TC-test plates = fresh nutrient media","Shaking table","","","","ANOVA & Tukey's Test","Standard Error","","","","","","","22 degrees C",""]
["Category","Freshwater","Paper and data unique identifier(eg. 1-1,10-150)","874-13"]
["Scores",10,10,5,5,5,5,0,0,5,4,0,0,4,4,4,3,0,0,0,0,0,3,3,70,0.67961165048543692]
["Answers","7 day - LEMNA MINOR                                    48 hr - P.SUBCAPITATA","The relative growth rate of the algae population was determined as the slope of the regression of the lntransformed chlorophyll fluorescence as a function of time, given in days.","","","","Test concentrations duplicated; 6x controls","","","TC-test plates = fresh nutrient media","Shaking table","","","","ANOVA & Tukey's Test","Standard Error","","","","","","","22 degrees C",""]
["Category","Freshwater","Paper and data unique identifier(eg. 1-1,10-150)","874-14"]
["Scores",10,10,5,5,5,5,0,0,5,4,0,0,4,4,4,3,0,0,0,0,0,3,3,70,0.67961165048543692]
["Answers","7 day - LEMNA MINOR                                    48 hr - P.SUBCAPITATA","The relative growth rate of the algae population was determined as the slope of the regression of the lntransformed chlorophyll fluorescence as a function of time, given in days.","","","","Test concentrations duplicated; 6x controls","","","TC-test plates = fresh nutrient media","Shaking table","","","","ANOVA & Tukey's Test","Standard Error","","","","","","","22 degrees C",""]
["Category","Freshwater","Paper and data unique identifier(eg. 1-1,10-150)","874-15"]
["Scores",10,10,5,5,5,5,0,0,5,4,0,0,4,4,4,3,0,0,0,0,0,3,3,70,0.67961165048543692]
["Answers","7 day - LEMNA MINOR                                    48 hr - P.SUBCAPITATA","The relative growth rate of the algae population was determined as the slope of the regression of the lntransformed chlorophyll fluorescence as a function of time, given in days.","","","","Test concentrations duplicated; 6x controls","","","TC-test plates = fresh nutrient media","Shaking table","","","","ANOVA & Tukey's Test","Standard Error","","","","","","","22 degrees C",""]
["Category","Freshwater","Paper and data unique identifier(eg. 1-1,10-150)","875-1"]
["Scores",10,10,5,5,5,5,2,5,5,0,0,0,4,0,4,0,0,0,0,0,0,0,0,60,0.58252427184466016]
["Answers","96 hours (4 Day) & 8 Day","","","","","TRIPLICATED","","Neonates","","","","","","","","","","","","","","",""]
["Category","Freshwater","Paper and data unique identifier(eg. 1-1,10-150)","875-2"]
["Scores",10,10,5,5,5,5,2,5,5,0,0,0,4,0,4,0,0,0,0,0,0,0,0,60,0.58252427184466016]
["Answers","96 hours (4 Day) & 8 Day","","","","","TRIPLICATED","","Neonates","","","","","","","","","","","","","","",""]
["Category","Freshwater","Paper and data unique identifier(eg. 1-1,10-150)","875-3"]
["Scores",10,10,5,5,5,5,2,5,5,0,0,0,4,0,4,0,0,0,0,0,0,0,0,60,0.58252427184466016]
["Answers","96 hours (4 Day) & 8 Day","","","","","TRIPLICATED","","Neonates","","","","","","","","","","","","","","",""]
["Category","Freshwater","Paper and data unique identifier(eg. 1-1,10-150)","875-4"]
["Scores",10,10,5,5,5,5,2,5,5,0,0,0,4,0,4,0,0,0,0,0,0,0,0,60,0.58252427184466016]
["Answers","96 hours (4 Day) & 8 Day","","","","","TRIPLICATED","","Neonates","","","","","","","","","","","","","","",""]
["Category","Freshwater","Paper and data unique identifier(eg. 1-1,10-150)","875-5"]
["Scores",10,10,5,5,5,5,2,5,5,0,0,0,4,0,4,0,0,0,0,0,0,0,0,60,0.58252427184466016]
["Answers","96 hours (4 Day) & 8 Day","","","","","TRIPLICATED","","Neonates","","","","","","","","","","","","","","",""]
["Category","Freshwater","Paper and data unique identifier(eg. 1-1,10-150)","876-1"]
["Scores",10,10,5,5,5,5,2,5,5,0,0,0,0,4,4,0,0,0,0,0,0,0,3,63,0.61165048543689315]
["Answers","48 hrs","Immobility defined as a lack of movement (as in USEPA guidelines)","","","","Duplicated or Triplicated","","Female Juveniles (<24 hours old)                        Subadult (7 days old)                                            Mature (19-23 days old)","ADaM Medium","","Nominal","","","Probit","95% CI","","","","","","","",""]
["Category","Freshwater","Paper and data unique identifier(eg. 1-1,10-150)","876-2"]
["Scores",10,10,5,5,5,5,2,5,5,0,0,0,0,4,4,0,0,0,0,0,0,0,3,63,0.61165048543689315]
["Answers","48 hrs","Immobility defined as a lack of movement (as in USEPA guidelines)","","","","Duplicated or Triplicated","","Female Juveniles (<24 hours old)                        Subadult (7 days old)                                            Mature (19-23 days old)","ADaM Medium","","Nominal","","","Probit","95% CI","","","","","","","",""]
["Category","Freshwater","Paper and data unique identifier(eg. 1-1,10-150)","876-3"]
["Scores",10,10,5,5,5,5,2,5,5,0,0,0,4,0,4,3,0,0,0,0,0,3,3,69,0.66990291262135926]
["Answers","55 days","Mortality: Survival = proportion of surviving animals throughout life cycle","","","","","","First Instar Juveniles","ADaM Medium","","Nominal","","","","Error bars denote 95% CI","6.5-8.5","","","","","","21 degrees C",""]
["Category","Freshwater","Paper and data unique identifier(eg. 1-1,10-150)","876-4"]
["Scores",10,10,5,5,5,5,2,5,5,0,0,0,4,0,4,3,0,0,0,0,0,3,3,69,0.66990291262135926]
["Answers","55 days","Mortality: Survival = proportion of surviving animals throughout life cycle","","","","","","First Instar Juveniles","ADaM Medium","","Nominal","","","","Error bars denote 95% CI","6.5-8.5","","","","","","21 degrees C",""]
["Category","Freshwater","Paper and data unique identifier(eg. 1-1,10-150)","876-5"]
["Scores",10,10,5,5,5,5,2,5,5,0,0,0,4,0,4,3,0,0,0,0,0,3,3,69,0.66990291262135926]
["Answers","55 days","Mortality: Survival = proportion of surviving animals throughout life cycle","","","","","","First Instar Juveniles","ADaM Medium","","Nominal","","","","Error bars denote 95% CI","6.5-8.5","","","","","","21 degrees C",""]
["Category","Freshwater","Paper and data unique identifier(eg. 1-1,10-150)","876-6"]
["Scores",10,10,5,5,5,5,2,5,5,0,0,0,4,0,4,3,0,0,0,0,0,3,3,69,0.66990291262135926]
["Answers","55 days","Mortality: Survival = proportion of surviving animals throughout life cycle","","","","","","First Instar Juveniles","ADaM Medium","","Nominal","","","","Error bars denote 95% CI","6.5-8.5","","","","","","21 degrees C",""]
["Category","Freshwater","Paper and data unique identifier(eg. 1-1,10-150)","876-7"]
["Scores",10,10,5,5,5,5,2,5,5,0,0,0,4,0,4,3,0,0,0,0,0,3,3,69,0.66990291262135926]
["Answers","6 days","Growth: Length = body size at 6, 12, 24 and 36 days.","","","","","","First Instar Juveniles","ADaM Medium","","Nominal","","","","Error bars denote 95% CI","6.5-8.5","","","","","","21 degrees C",""]
["Category","Freshwater","Paper and data unique identifier(eg. 1-1,10-150)","876-8"]
["Scores",10,10,5,5,5,5,2,5,5,0,0,0,4,0,4,3,0,0,0,0,0,3,3,69,0.66990291262135926]
["Answers","6 days","Growth: Length = body size at 6, 12, 24 and 36 days.","","","","","","First Instar Juveniles","ADaM Medium","","Nominal","","","","Error bars denote 95% CI","6.5-8.5","","","","","","21 degrees C",""]
["Category","Freshwater","Paper and data unique identifier(eg. 1-1,10-150)","876-9"]
["Scores",10,10,5,5,5,5,2,5,5,0,0,0,4,0,4,3,0,0,0,0,0,3,3,69,0.66990291262135926]
["Answers","6 days","Growth: Length = body size at 6, 12, 24 and 36 days.","","","","","","First Instar Juveniles","ADaM Medium","","Nominal","","","","Error bars denote 95% CI","6.5-8.5","","","","","","21 degrees C",""]
["Category","Freshwater","Paper and data unique identifier(eg. 1-1,10-150)","876-10"]
["Scores",10,10,5,5,5,5,2,5,5,0,0,0,4,0,4,3,0,0,0,0,0,3,3,69,0.66990291262135926]
["Answers","6 days","Growth: Length = body size at 6, 12, 24 and 36 days.","","","","","","First Instar Juveniles","ADaM Medium","","Nominal","","","","Error bars denote 95% CI","6.5-8.5","","","","","","21 degrees C",""]
["Category","Freshwater","Paper and data unique identifier(eg. 1-1,10-150)","876-11"]
["Scores",10,10,5,5,5,5,2,5,5,0,0,0,4,0,4,3,0,0,0,0,0,3,3,69,0.66990291262135926]
["Answers","6 days","Growth: Length = body size at 6, 12, 24 and 36 days.","","","","","","First Instar Juveniles","ADaM Medium","","Nominal","","","","Error bars denote 95% CI","6.5-8.5","","","","","","21 degrees C",""]
["Category","Freshwater","Paper and data unique identifier(eg. 1-1,10-150)","876-12"]
["Scores",10,10,5,5,5,5,2,5,5,0,0,0,4,0,4,3,0,0,0,0,0,3,3,69,0.66990291262135926]
["Answers","6 days","Growth: Length = body size at 6, 12, 24 and 36 days.","","","","","","First Instar Juveniles","ADaM Medium","","Nominal","","","","Error bars denote 95% CI","6.5-8.5","","","","","","21 degrees C",""]
["Category","Freshwater","Paper and data unique identifier(eg. 1-1,10-150)","876-13"]
["Scores",10,10,5,5,5,5,2,5,5,0,0,0,4,0,4,3,0,0,0,0,0,3,3,69,0.66990291262135926]
["Answers","24 days","Growth: Length = body size at 6, 12, 24 and 36 days.","","","","","","First Instar Juveniles","ADaM Medium","","Nominal","","","","Error bars denote 95% CI","6.5-8.5","","","","","","21 degrees C",""]
["Category","Freshwater","Paper and data unique identifier(eg. 1-1,10-150)","876-14"]
["Scores",10,10,5,5,5,5,2,5,5,0,0,0,4,0,4,3,0,0,0,0,0,3,3,69,0.66990291262135926]
["Answers","24 days","Growth: Length = body size at 6, 12, 24 and 36 days.","","","","","","First Instar Juveniles","ADaM Medium","","Nominal","","","","Error bars denote 95% CI","6.5-8.5","","","","","","21 degrees C",""]
["Category","Freshwater","Paper and data unique identifier(eg. 1-1,10-150)","876-15"]
["Scores",10,10,5,5,5,5,2,5,5,0,0,0,4,0,4,3,0,0,0,0,0,3,3,69,0.66990291262135926]
["Answers","36 days","Growth: Length = body size at 6, 12, 24 and 36 days.","","","","","","First Instar Juveniles","ADaM Medium","","Nominal","","","","Error bars denote 95% CI","6.5-8.5","","","","","","21 degrees C",""]
["Category","Freshwater","Paper and data unique identifier(eg. 1-1,10-150)","876-16"]
["Scores",10,10,5,5,5,5,2,5,5,0,0,0,4,0,4,3,0,0,0,0,0,3,3,69,0.66990291262135926]
["Answers","36 days","Growth: Length = body size at 6, 12, 24 and 36 days.","","","","","","First Instar Juveniles","ADaM Medium","","Nominal","","","","Error bars denote 95% CI","6.5-8.5","","","","","","21 degrees C",""]
["Category","Freshwater","Paper and data unique identifier(eg. 1-1,10-150)","876-17"]
["Scores",10,10,5,5,5,5,2,5,5,0,0,0,4,0,4,3,0,0,0,0,0,3,3,69,0.66990291262135926]
["Answers","36 days","Growth: Length = body size at 6, 12, 24 and 36 days.","","","","","","First Instar Juveniles","ADaM Medium","","Nominal","","","","Error bars denote 95% CI","6.5-8.5","","","","","","21 degrees C",""]
["Category","Freshwater","Paper and data unique identifier(eg. 1-1,10-150)","876-18"]
["Scores",10,10,5,5,5,5,2,5,5,0,0,0,4,0,4,3,0,0,0,0,0,3,3,69,0.66990291262135926]
["Answers","36 days","Growth: Length = body size at 6, 12, 24 and 36 days.","","","","","","First Instar Juveniles","ADaM Medium","","Nominal","","","","Error bars denote 95% CI","6.5-8.5","","","","","","21 degrees C",""]
["Category","Freshwater","Paper and data unique identifier(eg. 1-1,10-150)","876-19"]
["Scores",10,10,5,5,5,5,2,5,5,0,0,0,4,0,4,3,0,0,0,0,0,3,3,69,0.66990291262135926]
["Answers","5 days","Reproduction: Fercundity = number of live offspring/reproductive day (ie., in the period between 1st offspring and end of experiment)","","","","","","First Instar Juveniles","ADaM Medium","","Nominal","","","","Error bars denote 95% CI","6.5-8.5","","","","","","21 degrees C",""]
["Category","Freshwater","Paper and data unique identifier(eg. 1-1,10-150)","876-20"]
["Scores",10,10,5,5,5,5,2,5,5,0,0,0,4,0,4,3,0,0,0,0,0,3,3,69,0.66990291262135926]
["Answers","5 days","Reproduction: Fercundity = number of live offspring/reproductive day (ie., in the period between 1st offspring and end of experiment)","","","","","","First Instar Juveniles","ADaM Medium","","Nominal","","","","Error bars denote 95% CI","6.5-8.5","","","","","","21 degrees C",""]
["Category","Freshwater","Paper and data unique identifier(eg. 1-1,10-150)","876-21"]
["Scores",10,10,5,5,5,5,2,5,5,0,0,0,4,0,4,3,0,0,0,0,0,3,3,69,0.66990291262135926]
["Answers","5 days","Reproduction: Fercundity = number of live offspring/reproductive day (ie., in the period between 1st offspring and end of experiment)","","","","","","First Instar Juveniles","ADaM Medium","","Nominal","","","","Error bars denote 95% CI","6.5-8.5","","","","","","21 degrees C",""]
["Category","Freshwater","Paper and data unique identifier(eg. 1-1,10-150)","876-22"]
["Scores",10,10,5,5,5,5,2,5,5,0,0,0,4,0,4,3,0,0,0,0,0,3,3,69,0.66990291262135926]
["Answers","5 days","Reproduction: Fercundity = number of live offspring/reproductive day (ie., in the period between 1st offspring and end of experiment)","","","","","","First Instar Juveniles","ADaM Medium","","Nominal","","","","Error bars denote 95% CI","6.5-8.5","","","","","","21 degrees C",""]
["Category","Freshwater","Paper and data unique identifier(eg. 1-1,10-150)","876-23"]
["Scores",10,10,5,5,5,5,2,5,5,0,0,0,4,0,4,3,0,0,0,0,0,3,3,69,0.66990291262135926]
["Answers","55 days","Reproduction: Abortion Rate = number of visable aborted eggs divide dby the sum of juveniles born and the aborted eggs.","","","","","","First Instar Juveniles","ADaM Medium","","Nominal","","","","Error bars denote 95% CI","6.5-8.5","","","","","","21 degrees C",""]
["Category","Freshwater","Paper and data unique identifier(eg. 1-1,10-150)","876-24"]
["Scores",10,10,5,5,5,5,2,5,5,0,0,0,4,0,4,3,0,0,0,0,0,3,3,69,0.66990291262135926]
["Answers","55 days","Reproduction: Abortion Rate = number of visable aborted eggs divide dby the sum of juveniles born and the aborted eggs.","","","","","","First Instar Juveniles","ADaM Medium","","Nominal","","","","Error bars denote 95% CI","6.5-8.5","","","","","","21 degrees C",""]
["Category","Freshwater","Paper and data unique identifier(eg. 1-1,10-150)","876-25"]
["Scores",10,10,5,5,5,5,2,5,5,0,0,0,4,0,4,3,0,0,0,0,0,3,3,69,0.66990291262135926]
["Answers","55 days","Reproduction: Abortion Rate = number of visable aborted eggs divide dby the sum of juveniles born and the aborted eggs.","","","","","","First Instar Juveniles","ADaM Medium","","Nominal","","","","Error bars denote 95% CI","6.5-8.5","","","","","","21 degrees C",""]
["Category","Freshwater","Paper and data unique identifier(eg. 1-1,10-150)","876-26"]
["Scores",10,10,5,5,5,5,2,5,5,0,0,0,4,0,4,3,0,0,0,0,0,3,3,69,0.66990291262135926]
["Answers","55 days","Reproduction: Abortion Rate = number of visable aborted eggs divide dby the sum of juveniles born and the aborted eggs.","","","","","","First Instar Juveniles","ADaM Medium","","Nominal","","","","Error bars denote 95% CI","6.5-8.5","","","","","","21 degrees C",""]
["Category","Freshwater","Paper and data unique identifier(eg. 1-1,10-150)","876-27"]
["Scores",10,10,5,5,5,5,2,5,5,0,0,0,4,0,4,3,0,0,0,0,0,3,3,69,0.66990291262135926]
["Answers","55 days","Population: Growth Size = length of newborns measured within first 24 hours.","","","","","","First Instar Juveniles","ADaM Medium","","Nominal","","","","Error bars denote 95% CI","6.5-8.5","","","","","","21 degrees C",""]
["Category","Freshwater","Paper and data unique identifier(eg. 1-1,10-150)","876-27"]
["Scores",10,10,5,5,5,5,2,5,5,0,0,0,0,0,4,3,0,0,0,0,0,3,3,65,0.6310679611650486]
["Answers","55 days","Population: Growth Size = length of newborns measured within first 24 hours.","","","","","","First Instar Juveniles","ADaM Medium","","Nominal","","","","Error bars denote 95% CI","6.5-8.5","","","","","","21 degrees C",""]
["Category","Freshwater","Paper and data unique identifier(eg. 1-1,10-150)","876-28"]
["Scores",10,10,5,5,5,5,2,5,5,0,0,0,0,0,4,3,0,0,0,0,0,3,3,65,0.6310679611650486]
["Answers","55 days","Population: Growth Size = length of newborns measured within first 24 hours.","","","","","","First Instar Juveniles","ADaM Medium","","Nominal","","","","Error bars denote 95% CI","6.5-8.5","","","","","","21 degrees C",""]
["Category","Freshwater","Paper and data unique identifier(eg. 1-1,10-150)","877-1"]
["Scores",10,10,0,5,5,5,0,5,5,4,4,0,0,4,4,3,3,0,0,0,3,3,3,76,0.73786407766990292]
["Answers","50 days","Growth Rate: Weight Gain","","","","","","Freshwater Crayfish; advanced juveniles used for bioassays","","Semi-static","","","","","",8,0,"","","",">5 mg/L","27 degrees C",0.998]
["Category","Freshwater","Paper and data unique identifier(eg. 1-1,10-150)","877-2"]
["Scores",10,10,0,5,5,5,0,5,5,4,4,0,0,4,4,3,3,0,0,0,3,3,3,76,0.73786407766990292]
["Answers","50 days","Growth Rate: Weight Gain","","","","","","Freshwater Crayfish; advanced juveniles used for bioassays","","Semi-static","","","","","",8,0,"","","",">5 mg/L","27 degrees C",0.998]
["Category","Freshwater","Paper and data unique identifier(eg. 1-1,10-150)","877-3"]
["Scores",10,10,0,5,5,5,0,5,5,4,4,0,0,4,4,3,3,0,0,0,3,3,3,76,0.73786407766990292]
["Answers","50 days","Growth Rate: Weight Gain","","","","","","Freshwater Crayfish; advanced juveniles used for bioassays","","Semi-static","","","","","",8,0,"","","",">5 mg/L","27 degrees C",0.998]
["Category","Freshwater","Paper and data unique identifier(eg. 1-1,10-150)","878-1"]
["Scores",10,5,0,5,5,5,2,5,5,4,0,0,0,4,4,1,1,1,0,1,1,3,3,65,0.6310679611650486]
["Answers","8 days","Mortality","","","","","","Less than 24 hour old neonates","","Static","","","","","","","","","","","","25 degrees C","<98%"]
["Category","Freshwater","Paper and data unique identifier(eg. 1-1,10-150)","878-2"]
["Scores",10,5,0,5,5,5,2,5,5,4,0,0,0,4,4,1,1,1,0,1,1,3,3,65,0.6310679611650486]
["Answers","8 days","Mortality","","","","","","Less than 24 hour old neonates","","Static","","","","","","","","","","","","25 degrees C","<98%"]
["Category","Freshwater","Paper and data unique identifier(eg. 1-1,10-150)","878-3"]
["Scores",10,5,0,5,5,5,2,5,5,4,0,0,0,4,4,1,1,1,0,1,1,3,3,65,0.6310679611650486]
["Answers","8 days","Mortality","","","","","","Less than 24 hour old neonates","","Static","","","","","","","","","","","","25 degrees C","<98%"]
["Category","Freshwater","Paper and data unique identifier(eg. 1-1,10-150)","878-4"]
["Scores",10,5,0,5,5,5,2,5,5,4,0,0,0,4,4,1,1,1,0,1,1,3,3,65,0.6310679611650486]
["Answers","8 days","Mortality","","","","","","Less than 24 hour old neonates","","Static","","","","","","","","","","","","25 degrees C","<98%"]
["Category","Freshwater","Paper and data unique identifier(eg. 1-1,10-150)","878-5"]
["Scores",10,5,0,5,5,5,2,5,5,4,0,0,0,4,4,1,1,1,0,1,1,3,3,65,0.6310679611650486]
["Answers","8 days","Population: Abundance :Algal Growta via Cell Number","","","","","","","","Static","","","","","","","","","","","","25 degrees C","<98%"]
["Category","Freshwater","Paper and data unique identifier(eg. 1-1,10-150)","878-6"]
["Scores",10,5,0,5,5,5,2,5,5,4,0,0,0,4,4,1,1,1,0,1,1,3,3,65,0.6310679611650486]
["Answers","8 days","Population: Abundance :Algal Growta via Cell Number","","","","","","","","Static","","","","","","","","","","","","25 degrees C","<98%"]
["Category","Freshwater","Paper and data unique identifier(eg. 1-1,10-150)","878-6"]
["Scores",10,5,0,5,5,5,2,5,5,4,0,0,0,4,4,1,1,1,0,1,1,3,3,65,0.6310679611650486]
["Answers","8 days","Population: Abundance :Algal Growta via Cell Number","","","","","","","","Static","","","","","","","","","","","","25 degrees C","<98%"]
["Category","Freshwater","Paper and data unique identifier(eg. 1-1,10-150)","878-6"]
["Scores",10,5,0,5,5,5,2,5,5,4,0,0,0,4,4,1,1,1,0,1,1,3,3,65,0.6310679611650486]
["Answers","8 days","Population: Abundance :Algal Growta via Cell Number","","","","","","","","Static","","","","","","","","","","","","25 degrees C","<98%"]
["Category","Freshwater","Paper and data unique identifier(eg. 1-1,10-150)","878-7"]
["Scores",10,5,0,5,5,5,2,5,5,4,0,0,0,4,4,1,1,1,0,1,1,3,3,65,0.6310679611650486]
["Answers","8 days","Population: Abundance :Algal Growta via Cell Number","","","","","","","","Static","","","","","","","","","","","","25 degrees C","<98%"]
["Category","Freshwater","Paper and data unique identifier(eg. 1-1,10-150)","879-1"]
["Scores",10,10,0,5,5,5,0,5,5,0,0,0,0,4,4,0,0,0,0,0,0,3,0,56,0.5436893203883495]
["Answers","26 days","Percentage survival","","","","","","Juveniles","","","","","","","","","","","","","","12-14 degrees C",""]
["Category","Freshwater","Paper and data unique identifier(eg. 1-1,10-150)","879-2"]
["Scores",10,10,0,5,5,5,0,5,5,0,0,0,0,4,4,0,0,0,0,0,0,3,0,56,0.5436893203883495]
["Answers","26 days","Percentage survival","","","","","","Juveniles","","","","","","","","","","","","","","12-14 degrees C",""]
["Category","Freshwater","Paper and data unique identifier(eg. 1-1,10-150)","880-1"]
["Scores",10,10,0,5,5,5,0,0,5,0,4,0,4,4,4,0,0,0,0,0,0,3,3,62,0.60194174757281549]
["Answers","26 days","Reproduction: Egg Hatching Success (dead [no longer moving or responding to stimuli], embroyonated [when a distinct mass formed in the centre, surrounded by a transparent region] or hatched). ","","","","","","","","","","","","","","","","","","","","25 degrees C","Technical grade"]
["Category","Freshwater","Paper and data unique identifier(eg. 1-1,10-150)","880-2"]
["Scores",10,10,0,5,5,5,0,0,5,0,4,0,4,4,4,0,0,0,0,0,0,3,3,62,0.60194174757281549]
["Answers","26 days","Mortality: Miracium Survival","","","","","","","","","","","","","","","","","","","","25 degrees C","Technical grade"]
["Category","Freshwater","Paper and data unique identifier(eg. 1-1,10-150)","881-1"]
["Scores",10,10,5,5,5,5,0,5,5,0,4,0,4,4,4,3,0,0,0,0,0,0,3,72,0.69902912621359226]
["Answers","96 hours","Population: Growth (Biomass - Dry Weight)","","","","","","Exponential Growth Phase","BBM Medium","","","","","","",6.5,"","","","","","","Analytical Grade"]
["Category","Freshwater","Paper and data unique identifier(eg. 1-1,10-150)","881-2"]
["Scores",10,10,5,5,5,5,0,5,5,0,4,0,4,4,4,3,0,0,0,0,0,0,3,72,0.69902912621359226]
["Answers","96 hours","Population: Growth (Biomass - Dry Weight)","","","","","","Exponential Growth Phase","BBM Medium","","","","","","",6.5,"","","","","","","Analytical Grade"]
["Category","Freshwater","Paper and data unique identifier(eg. 1-1,10-150)","881-3"]
["Scores",10,10,5,5,5,5,0,5,5,0,4,0,4,4,4,3,0,0,0,0,0,0,3,72,0.69902912621359226]
["Answers","96 hours","Population: Growth (Biomass - Dry Weight)","","","","","","Exponential Growth Phase","BBM Medium","","","","","","",6.5,"","","","","","","Analytical Grade"]
["Category","Freshwater","Paper and data unique identifier(eg. 1-1,10-150)","881-4"]
["Scores",10,10,5,5,5,5,0,5,5,0,4,0,4,4,4,3,0,0,0,0,0,0,3,72,0.69902912621359226]
["Answers","96 hours","Population: Growth Inhibition (cell number)","","","","","","Exponential Growth Phase","BBM Medium","","","","","","",6.5,"","","","","","","Analytical Grade"]
["Category","Freshwater","Paper and data unique identifier(eg. 1-1,10-150)","881-5"]
["Scores",10,10,5,5,5,5,0,5,5,0,4,0,4,4,4,3,0,0,0,0,0,0,3,72,0.69902912621359226]
["Answers","96 hours","Population: Growth Inhibition (cell number)","","","","","","Exponential Growth Phase","BBM Medium","","","","","","",6.5,"","","","","","","Analytical Grade"]
["Category","Freshwater","Paper and data unique identifier(eg. 1-1,10-150)","881-6"]
["Scores",10,10,5,5,5,5,0,5,5,0,4,0,4,4,4,3,0,0,0,0,0,0,3,72,0.69902912621359226]
["Answers","96 hours","Population: Growth Inhibition (cell number)","","","","","","Exponential Growth Phase","BBM Medium","","","","","","",6.5,"","","","","","","Analytical Grade"]
["Category","Freshwater","Paper and data unique identifier(eg. 1-1,10-150)","881-7"]
["Scores",10,10,5,5,5,5,0,5,5,0,4,0,4,4,4,3,0,0,0,0,0,0,3,72,0.69902912621359226]
["Answers","96 hours","Population: Growth Inhibition (cell number)","","","","","","Exponential Growth Phase","BBM Medium","","","","","","",6.5,"","","","","","","Analytical Grade"]
["Category","Freshwater","Paper and data unique identifier(eg. 1-1,10-150)","882-1"]
["Scores",10,5,5,5,5,0,0,5,0,0,0,0,4,4,4,0,0,0,0,0,0,3,3,53,0.5145631067961165]
["Answers","","","","250 ug/L","Dechlorinated tap water control","","","5 day old post-hatch tadpoles. Gosner Stage 25-26.","","","","","","","","","","","","","","27 - 31 degrees C","Commercial grade"]
["Category","Freshwater","Paper and data unique identifier(eg. 1-1,10-150)","882-2"]
["Scores",10,5,5,5,5,0,0,5,0,0,0,0,4,4,4,0,0,0,0,0,0,3,3,53,0.5145631067961165]
["Answers","","","","750 ug/L","Dechlorinated tap water control","","","5 day old post-hatch tadpoles. Gosner Stage 25-26.","","","","","","","","","","","","","","27 - 31 degrees C","Commercial grade"]
["Category","Freshwater","Paper and data unique identifier(eg. 1-1,10-150)","882-3"]
["Scores",10,5,5,5,5,0,0,5,0,0,0,0,4,4,4,0,0,0,0,0,0,3,3,53,0.5145631067961165]
["Answers","","","","1000 ug/L","Dechlorinated tap water control","","","5 day old post-hatch tadpoles. Gosner Stage 25-26.","","","","","","","","","","","","","","27 - 31 degrees C","Commercial grade"]
["Category","Freshwater","Paper and data unique identifier(eg. 1-1,10-150)","883-1"]
["Scores",10,5,0,5,5,5,0,5,5,4,4,0,4,4,4,3,3,3,0,0,3,3,3,78,0.75728155339805825]
["Answers","30, 60 and 90 days","","","1000 ug/L","","Duplicated","","Authors provide weight and length of juveniles used before starting experiment.","Tap water?","Continuously aerated tanks with static system.","","","","","",7.4,"39.0 mg/L CaCO3","39.0 mg/L CaCO3","","","7.2 mg/L","22 degrees C","Commercial grade"]
["Category","Freshwater","Paper and data unique identifier(eg. 1-1,10-150)","883-2"]
["Scores",10,5,0,5,5,5,0,5,5,4,4,0,4,4,4,3,3,3,0,0,3,3,3,78,0.75728155339805825]
["Answers","30, 60 and 90 days","","","1000 ug/L","","Duplicated","","Authors provide weight and length of juveniles used before starting experiment.","Tap water?","Continuously aerated tanks with static system.","","","","","",7.4,"39.0 mg/L CaCO3","39.0 mg/L CaCO3","","","7.2 mg/L","22 degrees C","Commercial grade"]
["Category","Freshwater","Paper and data unique identifier(eg. 1-1,10-150)","883-3"]
["Scores",10,5,0,5,5,5,0,5,5,4,4,0,4,4,4,3,3,3,0,0,3,3,3,78,0.75728155339805825]
["Answers","30, 60 and 90 days","","","1000 ug/L","","Duplicated","","Authors provide weight and length of juveniles used before starting experiment.","Tap water?","Continuously aerated tanks with static system.","","","","","",7.4,"39.0 mg/L CaCO3","39.0 mg/L CaCO3","","","7.2 mg/L","22 degrees C","Commercial grade"]
["Category","Freshwater","Paper and data unique identifier(eg. 1-1,10-150)","883-4"]
["Scores",10,5,0,5,5,5,0,5,5,4,4,0,4,4,4,3,3,3,0,0,3,3,3,78,0.75728155339805825]
["Answers","30 and 90 days","","","1000 ug/L [ Length in cm ]","","Duplicated","","Authors provide weight and length of juveniles used before starting experiment.","Tap water?","Continuously aerated tanks with static system.","","","","","",7.4,"39.0 mg/L CaCO3","39.0 mg/L CaCO3","","","7.2 mg/L","22 degrees C","Commercial grade"]
["Category","Freshwater","Paper and data unique identifier(eg. 1-1,10-150)","883-5"]
["Scores",10,5,0,5,5,5,0,5,5,4,4,0,4,4,4,3,3,3,0,0,3,3,3,78,0.75728155339805825]
["Answers","30 and 90 days","","","1000 ug/L [ Length in cm ]","","Duplicated","","Authors provide weight and length of juveniles used before starting experiment.","Tap water?","Continuously aerated tanks with static system.","","","","","",7.4,"39.0 mg/L CaCO3","39.0 mg/L CaCO3","","","7.2 mg/L","22 degrees C","Commercial grade"]
["Category","Freshwater","Paper and data unique identifier(eg. 1-1,10-150)","884-1"]
["Scores",10,5,5,5,5,5,0,5,0,4,4,0,4,4,4,3,0,0,0,0,0,3,3,69,0.66990291262135926]
["Answers","10 days","","","","","4 replicates of test concentrations and controls","","6 fronds","","Static","","","","","",6.5,"","","","","","24 degrees C","Glyphosate = 95% w/w                                         RoundUp = 70.7% w/w a.i."]
["Category","Freshwater","Paper and data unique identifier(eg. 1-1,10-150)","884-2"]
["Scores",10,5,5,5,5,5,0,5,0,4,4,0,4,4,4,3,0,0,0,0,0,3,3,69,0.66990291262135926]
["Answers","10 days","","","","","4 replicates of test concentrations and controls","","6 fronds","","Static","","","","","",6.5,"","","","","","24 degrees C","Glyphosate = 95% w/w                                         RoundUp = 70.7% w/w a.i."]
["Category","Freshwater","Paper and data unique identifier(eg. 1-1,10-150)","884-3"]
["Scores",10,5,5,5,5,5,0,5,0,4,4,0,4,4,4,3,0,0,0,0,0,3,3,69,0.66990291262135926]
["Answers","7 days","","","","","4 replicates of test concentrations and controls","","6 fronds","","Static","","","","","",6.5,"","","","","","24 degrees C","Glyphosate = 95% w/w                                         RoundUp = 70.7% w/w a.i."]
["Category","Freshwater","Paper and data unique identifier(eg. 1-1,10-150)","884-4"]
["Scores",10,5,5,5,5,5,0,5,0,4,4,0,4,4,4,3,0,0,0,0,0,3,3,69,0.66990291262135926]
["Answers","10 days","","","","","4 replicates of test concentrations and controls","","6 fronds","","Static","","","","","",6.5,"","","","","","24 degrees C","Glyphosate = 95% w/w                                         RoundUp = 70.7% w/w a.i."]
["Category","Freshwater","Paper and data unique identifier(eg. 1-1,10-150)","884-5"]
["Scores",10,5,5,5,5,5,0,5,0,4,4,0,4,4,4,3,0,0,0,0,0,3,3,69,0.66990291262135926]
["Answers","7 days","","","","","4 replicates of test concentrations and controls","","6 fronds","","Static","","","","","",6.5,"","","","","","24 degrees C","Glyphosate = 95% w/w                                         RoundUp = 70.7% w/w a.i."]
["Category","Freshwater","Paper and data unique identifier(eg. 1-1,10-150)","884-6"]
["Scores",10,5,5,5,5,5,0,5,0,4,4,0,4,4,4,3,0,0,0,0,0,3,3,69,0.66990291262135926]
["Answers","10 days","","","","","4 replicates of test concentrations and controls","","6 fronds","","Static","","","","","",6.5,"","","","","","24 degrees C","Glyphosate = 95% w/w                                         RoundUp = 70.7% w/w a.i."]
["Category","Freshwater","Paper and data unique identifier(eg. 1-1,10-150)","884-7"]
["Scores",10,10,5,5,5,5,0,5,0,4,4,0,4,4,4,3,0,0,0,0,0,3,3,74,0.71844660194174759]
["Answers","10 days","The FROND GROWTH was estimated from a longitudinal and transversal frond axis measurement, differentiating mother fronds from daughter fronds (comprising buds), where a mother frond refers to a completely developed frond with a bud or daughter frond attached, while a daughter frond refers to those already developed that are without buds but still attached to the mother frond.","","","","4 replicates of test concentrations and controls","","6 fronds","","Static","","","","","",6.5,"","","","","","24 degrees C","Glyphosate = 95% w/w                                         RoundUp = 70.7% w/w a.i."]
["Category","Freshwater","Paper and data unique identifier(eg. 1-1,10-150)","884-8"]
["Scores",10,10,5,5,5,5,0,5,0,4,4,0,4,4,4,3,0,0,0,0,0,3,3,74,0.71844660194174759]
["Answers","10 days","The FROND GROWTH was estimated from a longitudinal and transversal frond axis measurement, differentiating mother fronds from daughter fronds (comprising buds), where a mother frond refers to a completely developed frond with a bud or daughter frond attached, while a daughter frond refers to those already developed that are without buds but still attached to the mother frond.","","","","4 replicates of test concentrations and controls","","6 fronds","","Static","","","","","",6.5,"","","","","","24 degrees C","Glyphosate = 95% w/w                                         RoundUp = 70.7% w/w a.i."]
["Category","Freshwater","Paper and data unique identifier(eg. 1-1,10-150)","884-9"]
["Scores",10,10,5,5,5,5,0,5,0,4,4,0,4,4,4,3,0,0,0,0,0,3,3,74,0.71844660194174759]
["Answers","10 days","The FROND GROWTH was estimated from a longitudinal and transversal frond axis measurement, differentiating mother fronds from daughter fronds (comprising buds), where a mother frond refers to a completely developed frond with a bud or daughter frond attached, while a daughter frond refers to those already developed that are without buds but still attached to the mother frond.","","","","4 replicates of test concentrations and controls","","6 fronds","","Static","","","","","",6.5,"","","","","","24 degrees C","Glyphosate = 95% w/w                                         RoundUp = 70.7% w/w a.i."]
["Category","Freshwater","Paper and data unique identifier(eg. 1-1,10-150)","884-10"]
["Scores",10,10,5,5,5,5,0,5,0,4,4,0,4,4,4,3,0,0,0,0,0,3,3,74,0.71844660194174759]
["Answers","10 days","The FROND GROWTH was estimated from a longitudinal and transversal frond axis measurement, differentiating mother fronds from daughter fronds (comprising buds), where a mother frond refers to a completely developed frond with a bud or daughter frond attached, while a daughter frond refers to those already developed that are without buds but still attached to the mother frond.","","","","4 replicates of test concentrations and controls","","6 fronds","","Static","","","","","",6.5,"","","","","","24 degrees C","Glyphosate = 95% w/w                                         RoundUp = 70.7% w/w a.i."]
["Category","Freshwater","Paper and data unique identifier(eg. 1-1,10-150)","884-11"]
["Scores",10,10,5,5,5,5,0,5,0,4,4,0,4,4,4,3,0,0,0,0,0,3,3,74,0.71844660194174759]
["Answers","7 days","The FROND GROWTH was estimated from a longitudinal and transversal frond axis measurement, differentiating mother fronds from daughter fronds (comprising buds), where a mother frond refers to a completely developed frond with a bud or daughter frond attached, while a daughter frond refers to those already developed that are without buds but still attached to the mother frond.","","","","4 replicates of test concentrations and controls","","6 fronds","","Static","","","","","",6.5,"","","","","","24 degrees C","Glyphosate = 95% w/w                                         RoundUp = 70.7% w/w a.i."]
["Category","Freshwater","Paper and data unique identifier(eg. 1-1,10-150)","884-12"]
["Scores",10,10,5,5,5,5,0,5,0,4,4,0,4,4,4,3,0,0,0,0,0,3,3,74,0.71844660194174759]
["Answers","7 days","The FROND GROWTH was estimated from a longitudinal and transversal frond axis measurement, differentiating mother fronds from daughter fronds (comprising buds), where a mother frond refers to a completely developed frond with a bud or daughter frond attached, while a daughter frond refers to those already developed that are without buds but still attached to the mother frond.","","","","4 replicates of test concentrations and controls","","6 fronds","","Static","","","","","",6.5,"","","","","","24 degrees C","Glyphosate = 95% w/w                                         RoundUp = 70.7% w/w a.i."]
["Category","Freshwater","Paper and data unique identifier(eg. 1-1,10-150)","884-13"]
["Scores",10,10,5,5,5,5,0,5,0,4,4,0,4,4,4,3,0,0,0,0,0,3,3,74,0.71844660194174759]
["Answers","10 days","The FROND GROWTH was estimated from a longitudinal and transversal frond axis measurement, differentiating mother fronds from daughter fronds (comprising buds), where a mother frond refers to a completely developed frond with a bud or daughter frond attached, while a daughter frond refers to those already developed that are without buds but still attached to the mother frond.","","","","4 replicates of test concentrations and controls","","6 fronds","","Static","","","","","",6.5,"","","","","","24 degrees C","Glyphosate = 95% w/w                                         RoundUp = 70.7% w/w a.i."]
["Category","Freshwater","Paper and data unique identifier(eg. 1-1,10-150)","884-14"]
["Scores",10,10,5,5,5,5,0,5,0,4,4,0,4,4,4,3,0,0,0,0,0,3,3,74,0.71844660194174759]
["Answers","10 days","The FROND GROWTH was estimated from a longitudinal and transversal frond axis measurement, differentiating mother fronds from daughter fronds (comprising buds), where a mother frond refers to a completely developed frond with a bud or daughter frond attached, while a daughter frond refers to those already developed that are without buds but still attached to the mother frond.","","","","4 replicates of test concentrations and controls","","6 fronds","","Static","","","","","",6.5,"","","","","","24 degrees C","Glyphosate = 95% w/w                                         RoundUp = 70.7% w/w a.i."]
["Category","Freshwater","Paper and data unique identifier(eg. 1-1,10-150)","884-15"]
["Scores",10,10,5,5,5,5,0,5,0,4,4,0,4,4,4,3,0,0,0,0,0,3,3,74,0.71844660194174759]
["Answers","10 days","The FROND GROWTH was estimated from a longitudinal and transversal frond axis measurement, differentiating mother fronds from daughter fronds (comprising buds), where a mother frond refers to a completely developed frond with a bud or daughter frond attached, while a daughter frond refers to those already developed that are without buds but still attached to the mother frond.","","","","4 replicates of test concentrations and controls","","6 fronds","","Static","","","","","",6.5,"","","","","","24 degrees C","Glyphosate = 95% w/w                                         RoundUp = 70.7% w/w a.i."]
["Category","Freshwater","Paper and data unique identifier(eg. 1-1,10-150)","884-16"]
["Scores",10,10,5,5,5,5,0,5,0,4,4,0,4,4,4,3,0,0,0,0,0,3,3,74,0.71844660194174759]
["Answers","10 days","The FROND GROWTH was estimated from a longitudinal and transversal frond axis measurement, differentiating mother fronds from daughter fronds (comprising buds), where a mother frond refers to a completely developed frond with a bud or daughter frond attached, while a daughter frond refers to those already developed that are without buds but still attached to the mother frond.","","","","4 replicates of test concentrations and controls","","6 fronds","","Static","","","","","",6.5,"","","","","","24 degrees C","Glyphosate = 95% w/w                                         RoundUp = 70.7% w/w a.i."]
["Category","Freshwater","Paper and data unique identifier(eg. 1-1,10-150)","885-1"]
["Scores",10,10,5,5,5,5,0,5,5,0,4,0,4,4,4,3,0,0,0,0,1,3,3,76,0.73786407766990292]
["Answers","57 days","","","","Negative control and vehicle control","","","initial mass § SE: gray tree frogs = 77 § 4 mg,\nleopard frogs = 134 § 12 mg).","","","","","","","","","","","","","","",0.98]
["Category","Freshwater","Paper and data unique identifier(eg. 1-1,10-150)","885-2"]
["Scores",10,10,5,5,5,5,0,5,5,0,4,0,4,4,4,3,0,0,0,0,1,3,3,76,0.73786407766990292]
["Answers","57 days","","","","Negative control and vehicle control","","","initial mass § SE: gray tree frogs = 77 § 4 mg,\nleopard frogs = 134 § 12 mg).","","","","","","","","","","","","","","",0.98]
["Category","Freshwater","Paper and data unique identifier(eg. 1-1,10-150)","885-3"]
["Scores",10,10,5,5,5,5,0,5,5,0,4,0,4,4,4,3,0,0,0,0,1,3,3,76,0.73786407766990292]
["Answers","26 days","","","","Negative control and vehicle control","","","initial mass § SE: gray tree frogs = 77 § 4 mg,\nleopard frogs = 134 § 12 mg).","","","","","","","","","","","","","","",0.98]
["Category","Freshwater","Paper and data unique identifier(eg. 1-1,10-150)","870-1-GD"]
["Scores",0,5,0,5,5,5,0,0,5,0,0,0,4,4,4,0,0,0,0,0,0,3,0,40,0.38834951456310679]
["Answers","","","","","","","","","","","","","","","","","","","","","","",""]
["Category","Freshwater","Paper and data unique identifier(eg. 1-1,10-150)","870-2-GD"]
["Scores",0,5,0,5,5,5,0,0,5,0,0,0,4,4,4,0,0,0,0,0,0,3,0,40,0.38834951456310679]
["Answers","","","","","","","","","","","","","","","","","","","","","","",""]
["Category","Freshwater","Paper and data unique identifier(eg. 1-1,10-150)","870-3-GD"]
["Scores",0,5,0,5,5,5,0,0,5,0,0,0,4,4,4,0,0,0,0,0,0,3,0,40,0.38834951456310679]
["Answers","","","","","","","","","","","","","","","","","","","","","","",""]
["Category","Freshwater","Paper and data unique identifier(eg. 1-1,10-150)","870-4-GD"]
["Scores",0,5,0,5,5,5,0,0,5,0,0,0,4,4,4,0,0,0,0,0,0,3,0,40,0.38834951456310679]
["Answers","","","","","","","","","","","","","","","","","","","","","","",""]
["Category","Freshwater","Paper and data unique identifier(eg. 1-1,10-150)","917-1"]
["Scores",10,10,5,5,5,5,5,5,5,4,4,4,4,4,4,3,0,0,0,0,0,3,3,88,0.85436893203883491]
["Answers","","","","","","","","","","","","","","","","","","","","","","",""]
["Category","Freshwater","Paper and data unique identifier(eg. 1-1,10-150)","917-2"]
["Scores",10,10,5,5,5,5,5,5,5,4,4,4,4,4,4,3,0,0,0,0,0,3,3,88,0.85436893203883491]
["Answers","","","","","","","","","","","","","","","","","","","","","","",""]
["Category","Freshwater","Paper and data unique identifier(eg. 1-1,10-150)","917-3"]
["Scores",10,10,5,5,5,5,5,5,5,4,4,4,4,4,4,3,0,0,0,0,0,3,3,88,0.85436893203883491]
["Answers","","","","","","","","","","","","","","","","","","","","","","",""]
["Category","Freshwater","Paper and data unique identifier(eg. 1-1,10-150)","917-4"]
["Scores",10,10,5,5,5,5,5,5,5,4,4,4,4,4,4,3,0,0,0,0,0,3,3,88,0.85436893203883491]
["Answers","","","","","","","","","","","","","","","","","","","","","","",""]
["Category","Freshwater","Paper and data unique identifier(eg. 1-1,10-150)","917-5"]
["Scores",10,10,5,5,5,5,5,5,5,4,4,4,4,4,4,3,0,0,0,0,0,3,3,88,0.85436893203883491]
["Answers","","","","","","","","","","","","","","","","","","","","","","",""]
["Category","Freshwater","Paper and data unique identifier(eg. 1-1,10-150)","917-6"]
["Scores",10,10,5,5,5,5,5,5,5,4,4,4,4,4,4,3,0,0,0,0,0,3,3,88,0.85436893203883491]
["Answers","","","","","","","","","","","","","","","","","","","","","","",""]
["Category","Freshwater","Paper and data unique identifier(eg. 1-1,10-150)","919-1"]
["Scores",10,10,0,0,5,5,0,5,5,0,0,0,4,4,0,0,0,0,0,0,0,3,0,51,0.49514563106796117]
["Answers","","","","","","","","","","","","","","","","","","","","","","",""]
["Category","Freshwater","Paper and data unique identifier(eg. 1-1,10-150)","919-2"]
["Scores",10,10,0,0,5,5,0,5,5,0,0,0,4,4,0,0,0,0,0,0,0,3,0,51,0.49514563106796117]
["Answers","","","","","","","","","","","","","","","","","","","","","","",""]
["Category","Freshwater","Paper and data unique identifier(eg. 1-1,10-150)","919-3"]
["Scores",10,10,0,0,5,5,0,5,5,0,0,0,4,4,0,0,0,0,0,0,0,3,0,51,0.49514563106796117]
["Answers","","","","","","","","","","","","","","","","","","","","","","",""]
["Category","Freshwater","Paper and data unique identifier(eg. 1-1,10-150)","919-4"]
["Scores",10,10,0,0,5,5,0,5,5,0,0,0,4,4,0,0,0,0,0,0,0,3,0,51,0.49514563106796117]
["Answers","","","","","","","","","","","","","","","","","","","","","","",""]
["Category","Freshwater","Paper and data unique identifier(eg. 1-1,10-150)","920-1"]
["Scores",10,10,5,5,5,5,5,5,5,0,0,0,0,4,4,3,0,0,0,0,0,3,3,72,0.69902912621359226]
["Answers","","","","","","","","","","","","","","","","","","","","","","",""]
["Category","Freshwater","Paper and data unique identifier(eg. 1-1,10-150)","921-1"]
["Scores",10,10,5,5,5,5,5,5,5,4,0,0,0,4,4,3,0,0,0,0,0,3,3,76,0.73786407766990292]
["Answers","","","","","","","","","","","","","","","","","","","","","","",""]
["Category","Freshwater","Paper and data unique identifier(eg. 1-1,10-150)","921-2"]
["Scores",10,10,5,5,5,5,5,5,5,4,0,0,0,4,4,3,0,0,0,0,0,3,3,76,0.73786407766990292]
["Answers","","","","","","","","","","","","","","","","","","","","","","",""]
["Category","Freshwater","Paper and data unique identifier(eg. 1-1,10-150)","922-1"]
["Scores",10,5,5,5,5,5,0,5,5,4,0,0,4,4,4,0,0,0,0,0,0,3,0,64,0.62135922330097082]
["Answers","","","","","","","","","","","","","","","","","","","","","","",""]
["Category","Freshwater","Paper and data unique identifier(eg. 1-1,10-150)","922-2"]
["Scores",10,5,5,5,5,5,0,5,5,4,0,0,4,4,4,0,0,0,0,0,0,3,0,64,0.62135922330097082]
["Answers","","","","","","","","","","","","","","","","","","","","","","",""]
["Category","Freshwater","Paper and data unique identifier(eg. 1-1,10-150)","922-3"]
["Scores",10,5,5,5,5,5,0,5,5,4,0,0,4,4,4,0,0,0,0,0,0,3,0,64,0.62135922330097082]
["Answers","","","","","","","","","","","","","","","","","","","","","","",""]
["Category","Freshwater","Paper and data unique identifier(eg. 1-1,10-150)","923-1"]
["Scores",10,5,5,5,5,5,0,5,5,0,0,0,4,4,4,0,0,0,0,0,0,3,"F923",63,0.61165048543689315]
["Answers","","","","","","","","","","","","","","","","","","","","","","",""]
["Category","Freshwater","Paper and data unique identifier(eg. 1-1,10-150)","924-1"]
["Scores",10,10,5,5,5,5,0,0,5,4,4,0,4,4,4,3,0,0,0,0,0,3,3,74,0.71844660194174759]
["Answers","","","","","","","","","","","","","","","","","","","","","","",""]
["Category","Freshwater","Paper and data unique identifier(eg. 1-1,10-150)","924-2"]
["Scores",10,10,5,5,5,5,0,0,5,4,4,0,4,4,4,3,0,0,0,0,0,3,3,74,0.71844660194174759]
["Answers","","","","","","","","","","","","","","","","","","","","","","",""]
["Category","Freshwater","Paper and data unique identifier(eg. 1-1,10-150)","924-3"]
["Scores",10,10,5,5,5,5,0,0,5,4,4,0,4,4,4,3,0,0,0,0,0,3,3,74,0.71844660194174759]
["Answers","","","","","","","","","","","","","","","","","","","","","","",""]
["Category","Freshwater","Paper and data unique identifier(eg. 1-1,10-150)","924-4"]
["Scores",10,10,5,5,5,5,0,0,5,4,4,0,4,4,4,3,0,0,0,0,0,3,3,74,0.71844660194174759]
["Answers","","","","","","","","","","","","","","","","","","","","","","",""]
["Category","Freshwater","Paper and data unique identifier(eg. 1-1,10-150)","924-5"]
["Scores",10,10,5,5,5,5,0,0,5,4,4,0,4,4,4,3,0,0,0,0,0,3,3,74,0.71844660194174759]
["Answers","","","","","","","","","","","","","","","","","","","","","","",""]
["Category","Freshwater","Paper and data unique identifier(eg. 1-1,10-150)","924-6"]
["Scores",10,10,5,5,5,5,0,0,5,4,4,0,4,4,4,3,0,0,0,0,0,3,3,74,0.71844660194174759]
["Answers","","","","","","","","","","","","","","","","","","","","","","",""]
["Category","Freshwater","Paper and data unique identifier(eg. 1-1,10-150)","924-6"]
["Scores",10,10,5,5,5,5,0,0,5,4,4,0,4,4,4,3,0,0,0,0,0,3,3,74,0.71844660194174759]
["Answers","","","","","","","","","","","","","","","","","","","","","","",""]
["Category","Freshwater","Paper and data unique identifier(eg. 1-1,10-150)","924-7"]
["Scores",10,10,5,5,5,5,0,0,5,4,4,0,4,4,4,3,0,0,0,0,0,3,3,74,0.71844660194174759]
["Answers","","","","","","","","","","","","","","","","","","","","","","",""]
["Category","Freshwater","Paper and data unique identifier(eg. 1-1,10-150)","924-8"]
["Scores",10,10,5,5,5,5,0,0,5,4,4,0,4,4,4,3,0,0,0,0,0,3,3,74,0.71844660194174759]
["Answers","","","","","","","","","","","","","","","","","","","","","","",""]
["Category","Freshwater","Paper and data unique identifier(eg. 1-1,10-150)","924-9"]
["Scores",10,10,5,5,5,5,0,0,5,4,4,0,4,4,4,3,0,0,0,0,0,3,3,74,0.71844660194174759]
["Answers","","","","","","","","","","","","","","","","","","","","","","",""]
["Category","Freshwater","Paper and data unique identifier(eg. 1-1,10-150)","924-10"]
["Scores",10,10,5,5,5,5,0,0,5,4,4,0,4,4,4,3,0,0,0,0,0,3,3,74,0.71844660194174759]
["Answers","","","","","","","","","","","","","","","","","","","","","","",""]
["Category","Freshwater","Paper and data unique identifier(eg. 1-1,10-150)","924-11"]
["Scores",10,10,5,5,5,5,0,0,5,4,4,0,4,4,4,3,0,0,0,0,0,3,3,74,0.71844660194174759]
["Answers","","","","","","","","","","","","","","","","","","","","","","",""]
["Category","Freshwater","Paper and data unique identifier(eg. 1-1,10-150)","924-12"]
["Scores",10,10,5,5,5,5,0,0,5,4,4,0,4,4,4,3,0,0,0,0,0,3,3,74,0.71844660194174759]
["Answers","","","","","","","","","","","","","","","","","","","","","","",""]
["Category","Freshwater","Paper and data unique identifier(eg. 1-1,10-150)","924-12"]
["Scores",10,10,5,5,5,5,0,0,5,4,4,0,4,4,4,3,0,0,0,0,0,3,3,74,0.71844660194174759]
["Answers","","","","","","","","","","","","","","","","","","","","","","",""]
["Category","Freshwater","Paper and data unique identifier(eg. 1-1,10-150)","924-13"]
["Scores",10,10,5,5,5,5,0,0,5,4,4,0,4,4,4,3,0,0,0,0,0,3,3,74,0.71844660194174759]
["Answers","","","","","","","","","","","","","","","","","","","","","","",""]
["Category","Freshwater","Paper and data unique identifier(eg. 1-1,10-150)","924-13"]
["Scores",10,10,5,5,5,5,0,0,5,4,4,0,4,4,4,3,0,0,0,0,0,3,3,74,0.71844660194174759]
["Answers","","","","","","","","","","","","","","","","","","","","","","",""]
["Category","Freshwater","Paper and data unique identifier(eg. 1-1,10-150)","924-14"]
["Scores",10,10,5,5,5,5,0,0,5,4,4,0,4,4,4,3,0,0,0,0,0,3,3,74,0.71844660194174759]
["Answers","","","","","","","","","","","","","","","","","","","","","","",""]
["Category","Freshwater","Paper and data unique identifier(eg. 1-1,10-150)","924-15"]
["Scores",10,10,5,5,5,5,0,0,5,4,4,0,4,4,4,3,0,0,0,0,0,3,3,74,0.71844660194174759]
["Answers","","","","","","","","","","","","","","","","","","","","","","",""]
["Category","Freshwater","Paper and data unique identifier(eg. 1-1,10-150)","924-16"]
["Scores",10,10,5,5,5,5,0,0,5,4,4,0,4,4,4,3,0,0,0,0,0,3,3,74,0.71844660194174759]
["Answers","","","","","","","","","","","","","","","","","","","","","","",""]
["Category","Freshwater","Paper and data unique identifier(eg. 1-1,10-150)","924-17"]
["Scores",10,10,5,5,5,5,0,0,5,4,4,0,4,4,4,3,0,0,0,0,0,3,3,74,0.71844660194174759]
["Answers","","","","","","","","","","","","","","","","","","","","","","",""]
["Category","Freshwater","Paper and data unique identifier(eg. 1-1,10-150)","924-18"]
["Scores",10,10,5,5,5,5,0,0,5,4,4,0,4,4,4,3,0,0,0,0,0,3,3,74,0.71844660194174759]
["Answers","","","","","","","","","","","","","","","","","","","","","","",""]
["Category","Freshwater","Paper and data unique identifier(eg. 1-1,10-150)","924-19"]
["Scores",10,10,5,5,5,5,0,0,5,4,4,0,4,4,4,3,0,0,0,0,0,3,3,74,0.71844660194174759]
["Answers","","","","","","","","","","","","","","","","","","","","","","",""]
["Category","Freshwater","Paper and data unique identifier(eg. 1-1,10-150)","924-20"]
["Scores",10,10,5,5,5,5,0,0,5,4,4,0,4,4,4,3,0,0,0,0,0,3,3,74,0.71844660194174759]
["Answers","","","","","","","","","","","","","","","","","","","","","","",""]
["Category","Freshwater","Paper and data unique identifier(eg. 1-1,10-150)","924-21"]
["Scores",10,10,5,5,5,5,0,0,5,4,4,0,4,4,4,3,0,0,0,0,0,3,3,74,0.71844660194174759]
["Answers","","","","","","","","","","","","","","","","","","","","","","",""]
["Category","Freshwater","Paper and data unique identifier(eg. 1-1,10-150)","924-22"]
["Scores",10,10,5,5,5,5,0,0,5,4,4,0,4,4,4,3,0,0,0,0,0,3,3,74,0.71844660194174759]
["Answers","","","","","","","","","","","","","","","","","","","","","","",""]
["Category","Freshwater","Paper and data unique identifier(eg. 1-1,10-150)","924-23"]
["Scores",10,10,5,5,5,5,0,0,5,4,4,0,4,4,4,3,0,0,0,0,0,3,3,74,0.71844660194174759]
["Answers","","","","","","","","","","","","","","","","","","","","","","",""]
["Category","Freshwater","Paper and data unique identifier(eg. 1-1,10-150)","924-24"]
["Scores",10,10,5,5,5,5,0,0,5,4,4,0,4,4,4,3,0,0,0,0,0,3,3,74,0.71844660194174759]
["Answers","","","","","","","","","","","","","","","","","","","","","","",""]
["Category","Freshwater","Paper and data unique identifier(eg. 1-1,10-150)","924-25"]
["Scores",10,10,5,5,5,5,0,0,5,4,4,0,4,4,4,3,0,0,0,0,0,3,3,74,0.71844660194174759]
["Answers","","","","","","","","","","","","","","","","","","","","","","",""]
["Category","Freshwater","Paper and data unique identifier(eg. 1-1,10-150)","924-26"]
["Scores",10,10,5,5,5,5,0,0,5,4,4,0,4,4,4,3,0,0,0,0,0,3,3,74,0.71844660194174759]
["Answers","","","","","","","","","","","","","","","","","","","","","","",""]
["Category","Freshwater","Paper and data unique identifier(eg. 1-1,10-150)","924-27"]
["Scores",10,10,5,5,5,5,0,0,5,4,4,0,4,4,4,3,0,0,0,0,0,3,3,74,0.71844660194174759]
["Answers","","","","","","","","","","","","","","","","","","","","","","",""]
["Category","Freshwater","Paper and data unique identifier(eg. 1-1,10-150)","924-28"]
["Scores",10,10,5,5,5,5,0,0,5,4,4,0,4,4,4,3,0,0,0,0,0,3,3,74,0.71844660194174759]
["Answers","","","","","","","","","","","","","","","","","","","","","","",""]
["Category","Freshwater","Paper and data unique identifier(eg. 1-1,10-150)","924-29"]
["Scores",10,10,5,5,5,5,0,0,5,4,4,0,4,4,4,3,0,0,0,0,0,3,3,74,0.71844660194174759]
["Answers","","","","","","","","","","","","","","","","","","","","","","",""]
["Category","Freshwater","Paper and data unique identifier(eg. 1-1,10-150)","925-1"]
["Scores",10,5,0,0,5,5,0,5,5,4,0,0,4,4,0,3,3,0,0,0,0,3,3,59,0.57281553398058249]
["Answers","","","","","","","","","","","","","","","","","","","","","","",""]
["Category","Freshwater","Paper and data unique identifier(eg. 1-1,10-150)","925-2"]
["Scores",10,5,0,0,5,5,0,5,5,4,0,0,4,4,0,3,3,0,0,0,0,3,3,59,0.57281553398058249]
["Answers","","","","","","","","","","","","","","","","","","","","","","",""]
[]
["Category","Freshwater","Paper and data unique identifier(eg. 1-1,10-150)","875-1-GD"]
["Scores",10,10,5,5,5,5,0,5,0,0,0,0,4,4,4,0,0,0,0,0,0,0,0,57,0.55339805825242716]
["Answers","","","","","","","","","","","","","","","","","","","","","","",""]
["Category","Freshwater","Paper and data unique identifier(eg. 1-1,10-150)","875-2-GD"]
["Scores",10,10,5,5,5,5,0,5,0,0,0,0,4,4,4,0,0,0,0,0,0,0,0,57,0.55339805825242716]
["Answers","","","","","","","","","","","","","","","","","","","","","","",""]
["Category","Freshwater","Paper and data unique identifier(eg. 1-1,10-150)","875-3-GD"]
["Scores",10,10,5,5,5,5,0,5,0,0,0,0,4,4,4,0,0,0,0,0,0,0,0,57,0.55339805825242716]
["Answers","","","","","","","","","","","","","","","","","","","","","","",""]
["Category","Freshwater","Paper and data unique identifier(eg. 1-1,10-150)","875-4-GD"]
["Scores",10,10,5,5,5,5,0,5,0,0,0,0,4,4,4,0,0,0,0,0,0,0,0,57,0.55339805825242716]
["Answers","","","","","","","","","","","","","","","","","","","","","","",""]
["Category","Freshwater","Paper and data unique identifier(eg. 1-1,10-150)","875-5-GD"]
["Scores",10,10,5,5,5,5,0,5,0,0,0,0,4,4,4,0,0,0,0,0,0,0,0,57,0.55339805825242716]
["Answers","","","","","","","","","","","","","","","","","","","","","","",""]
["Category","Freshwater","Paper and data unique identifier(eg. 1-1,10-150)","875-6-GD"]
["Scores",10,10,5,5,5,5,0,5,0,0,0,0,4,4,4,0,0,0,0,0,0,0,0,57,0.55339805825242716]
["Answers","","","","","","","","","","","","","","","","","","","","","","",""]
["Category","Freshwater","Paper and data unique identifier(eg. 1-1,10-150)","867-1-GD"]
["Scores",10,10,5,5,5,5,0,5,5,0,0,0,4,4,0,0,0,0,0,0,0,3,3,64,0.62135922330097082]
["Answers","","","","","","","","","","","","","","","","","","","","","","",""]
["Category","Freshwater","Paper and data unique identifier(eg. 1-1,10-150)","867-2-GD"]
["Scores",10,10,5,5,5,5,0,5,5,0,0,0,4,4,0,0,0,0,0,0,0,3,3,64,0.62135922330097082]
["Answers","","","","","","","","","","","","","","","","","","","","","","",""]
["Category","Freshwater","Paper and data unique identifier(eg. 1-1,10-150)","867-3-GD"]
["Scores",10,10,5,5,5,5,0,5,5,0,0,0,4,4,0,0,0,0,0,0,0,3,3,64,0.62135922330097082]
["Answers","","","","","","","","","","","","","","","","","","","","","","",""]
["Category","Freshwater","Paper and data unique identifier(eg. 1-1,10-150)","867-4-GD"]
["Scores",10,10,5,5,5,5,0,5,5,0,0,0,4,4,0,0,0,0,0,0,0,3,3,64,0.62135922330097082]
["Answers","","","","","","","","","","","","","","","","","","","","","","",""]
["Category","Freshwater","Paper and data unique identifier(eg. 1-1,10-150)","920-1-OK"]
["Scores",10,10,5,5,5,5,2,5,5,4,0,0,0,4,4,1,0,0,0,0,0,3,3,71,0.68932038834951459]
["Answers","72 hours","Growth inhibition measured by cell density (measured at start of test and end of test compared to controls).","","","Control (no toxicant control)","Triplicated","OECD methods","Strain and origin as well as life stage","Sterile inorganic test medium (OECD or AAP medium).","HT Infors shaker","Nominal","","","In OECD methods","Confidence Interval","Says in OECD methods to measure pH (therefore it's stated) but the actual pH was NOT measured.","","","","","","25 +/- 2 degrees C","99.2% purity"]
["Category","Freshwater","Paper and data unique identifier(eg. 1-1,10-150)","919-1-OK"]
["Scores",10,10,0,0,5,5,0,5,5,4,0,0,4,0,0,0,0,0,0,0,0,3,0,51,0.49514563106796117]
["Answers","7 days","Mortality (survival) - defined in paper","","","No toxicant controls","Triplicates","","Males and females - Adults","Freshwater","Aerated aquariums","","","","","","","","","","","","23 +/- 1 degrees C","Roundup formulation - unknown of % active ingredient of glyphosate"]
["Category","Freshwater","Paper and data unique identifier(eg. 1-1,10-150)","919-2-OK"]
["Scores",10,10,0,0,5,5,0,5,5,4,0,0,4,0,0,0,0,0,0,0,0,3,0,51,0.49514563106796117]
["Answers","7 days","Mortality (survival) - defined in paper","","","No toxicant controls","Triplicates","","Males and females - Adults","Freshwater","Aerated aquariums","","","","","","","","","","","","23 +/- 1 degrees C","Roundup formulation - unknown of % active ingredient of glyphosate"]
["Category","Freshwater","Paper and data unique identifier(eg. 1-1,10-150)","919-3-OK"]
["Scores",10,10,0,0,5,5,0,5,5,4,0,0,4,0,0,0,0,0,0,0,0,3,0,51,0.49514563106796117]
["Answers","7 days","Mortality (survival) - defined in paper","","","No toxicant controls","Triplicates","","Males and females - Adults","Freshwater","Aerated aquariums","","","","","","","","","","","","23 +/- 1 degrees C","Roundup formulation - unknown of % active ingredient of glyphosate"]
["Category","Freshwater","Paper and data unique identifier(eg. 1-1,10-150)","919-4-OK"]
["Scores",10,10,0,0,5,5,0,5,5,4,0,0,4,0,0,0,0,0,0,0,0,3,0,51,0.49514563106796117]
["Answers","7 days","Mortality (survival) - defined in paper","","","No toxicant controls","Triplicates","","Males and females - Adults","Freshwater","Aerated aquariums","","","","","","","","","","","","23 +/- 1 degrees C","Roundup formulation - unknown of % active ingredient of glyphosate"]
["Category","Freshwater","Paper and data unique identifier(eg. 1-1,10-150)","921-1-OK"]
["Scores",10,10,5,5,5,5,2,5,5,4,0,0,0,4,4,1,0,0,0,0,0,3,3,71,0.68932038834951459]
["Answers","96 hours","At the end of the assay, algal density was estimated using a Neubauer haemocytometer; growth inhibition (in %) was estimated by expressing the final cell density of each concentration to that of the control.","","","Negative control","Triplicates","OECD guidelines","5-7 days old","Woods Hole MBL medium","Static experimental conditions","nominal","","","Probit","95% CI","Stated to include pH, but the paper does not measure it. ","","","","","","20 +/- 2 degrees C","Technical grade (95% pure)"]
["Category","Freshwater","Paper and data unique identifier(eg. 1-1,10-150)","921-2-OK"]
["Scores",10,5,5,5,5,5,2,5,5,4,0,0,0,4,4,3,3,0,3,0,0,3,3,74,0.71844660194174759]
["Answers","48 hours","Immobility","","","Negative control","Four reps","OECD guidelines","Neonates <24 hours old, between the 3rd and 5th brood. ","ASTM hard water medium","Static experimental conditions","Nominal","","","Probit","95% CI","States in OECD: 6-9.",0,"","States in OECD < 2 mg/L","","","20 +/- 2 degrees C","Technical grade (95% pure)"]
["Category","Freshwater","Paper and data unique identifier(eg. 1-1,10-150)","922-1-OK"]
["Scores",10,5,5,5,5,5,2,5,5,4,0,4,4,4,4,0,0,0,0,0,0,3,0,70,0.67961165048543692]
["Answers","21 days","Fresh weight, Shoot length, Root length","IC",0.5,"Negative control","5x replicates","ASTM methods","3cm apical shoots at beginning of test","Andrews modified medium","Static","Nominal","Copper","Figure 4","","Confidence Intervals","","","","","","","25 degrees C",""]
["Category","Freshwater","Paper and data unique identifier(eg. 1-1,10-150)","922-2-OK"]
["Scores",10,5,5,5,5,5,2,5,5,4,0,4,4,4,4,0,0,0,0,0,0,3,0,70,0.67961165048543692]
["Answers","21 days","Fresh weight, Shoot length, Root length","IC",0.5,"Negative control","5x replicates","ASTM methods","3cm apical shoots at beginning of test","Andrews modified medium","Static","Nominal","Copper","Figure 4","","Confidence Intervals","","","","","","","25 degrees C",""]
["Category","Freshwater","Paper and data unique identifier(eg. 1-1,10-150)","922-3-OK"]
["Scores",10,5,5,5,5,5,2,5,5,4,0,4,4,4,4,0,0,0,0,0,0,3,0,70,0.67961165048543692]
["Answers","21 days","Fresh weight, Shoot length, Root length","IC",0.5,"Negative control","5x replicates","ASTM methods","3cm apical shoots at beginning of test","Andrews modified medium","Static","Nominal","Copper","Figure 4","","Confidence Intervals","","","","","","","25 degrees C",""]
["Category","Freshwater","Paper and data unique identifier(eg. 1-1,10-150)","925-1-OK"]
["Scores",10,10,0,5,5,5,0,5,5,4,4,0,4,4,4,3,3,0,0,0,3,0,3,77,0.74757281553398058]
["Answers","1 day, 3 days, 6 days, 9 days, 12 days.","Increases in growth: Increase in cell number and size of snails","","","No-toxicant control","Duplicates","","Embryos - and initial length measurements given","Artificial spring water","Aerated","Measured","","Figure 1","","p = <0.05","6.8-7.2",0,"","","","6-8 mg/L","States temperature for stock solution (25 +/- 2 degrees C), but not test coniditons.",0.97]
["Category","Freshwater","Paper and data unique identifier(eg. 1-1,10-150)","925-2-OK"]
["Scores",10,10,0,5,5,5,0,5,5,4,4,0,4,4,4,3,3,0,0,0,3,0,3,77,0.74757281553398058]
["Answers","1 day, 3 days, 6 days, 9 days, 12 days.","Increases in growth: Increase in cell number and size of snails","","","No-toxicant control","Duplicates","","Embryos - and initial length measurements given","Artificial spring water","Aerated","Measured","","Figure 1","","p = <0.05","6.8-7.2",0,"","","","6-8 mg/L","States temperature for stock solution (25 +/- 2 degrees C), but not test coniditons.",0.97]
["Category","Freshwater","Paper and data unique identifier(eg. 1-1,10-150)","925-3-OK"]
["Scores",10,10,0,5,5,5,0,5,5,4,4,0,4,4,4,3,3,0,0,0,3,0,3,77,0.74757281553398058]
["Answers","1 day, 3 days, 6 days, 9 days, 12 days.","Increases in growth: Increase in cell number and size of snails","","","No-toxicant control","Duplicates","","Embryos - and initial length measurements given","Artificial spring water","Aerated","Measured","","Figure 1","","p = <0.05","6.8-7.2",0,"","","","6-8 mg/L","States temperature for stock solution (25 +/- 2 degrees C), but not test coniditons.",0.97]
["Category","Freshwater","Paper and data unique identifier(eg. 1-1,10-150)","925-4-OK"]
["Scores",10,10,0,5,5,5,0,5,5,4,4,0,4,4,4,3,3,0,0,0,3,0,3,77,0.74757281553398058]
["Answers","1 day, 3 days, 6 days, 9 days, 12 days.","Increases in growth: Increase in cell number and size of snails","","","No-toxicant control","Duplicates","","Embryos - and initial length measurements given","Artificial spring water","Aerated","Measured","","Figure 1","","p = <0.05","6.8-7.2",0,"","","","6-8 mg/L","States temperature for stock solution (25 +/- 2 degrees C), but not test coniditons.",0.97]
["Category","Freshwater","Paper and data unique identifier(eg. 1-1,10-150)","925-5-OK"]
["Scores",10,10,0,5,5,5,0,5,5,4,4,0,4,4,4,3,3,0,0,0,3,0,3,77,0.74757281553398058]
["Answers","1 day, 3 days, 6 days, 9 days, 12 days.","Increases in growth: Increase in cell number and size of snails","","","No-toxicant control","Duplicates","","Embryos - and initial length measurements given","Artificial spring water","Aerated","Measured","","Figure 1","","p = <0.05","6.8-7.2",0,"","","","6-8 mg/L","States temperature for stock solution (25 +/- 2 degrees C), but not test coniditons.",0.97]
["Category","Freshwater","Paper and data unique identifier(eg. 1-1,10-150)","925-6-OK"]
["Scores",10,10,0,5,5,5,0,5,5,4,4,0,4,4,4,3,3,0,0,0,3,0,3,77,0.74757281553398058]
["Answers","1 day, 3 days, 6 days, 9 days, 12 days.","Increases in growth: Increase in cell number and size of snails","","","No-toxicant control","Duplicates","","Embryos - and initial length measurements given","Artificial spring water","Aerated","Measured","","Figure 1","","p = <0.05","6.8-7.2",0,"","","","6-8 mg/L","States temperature for stock solution (25 +/- 2 degrees C), but not test coniditons.",0.97]
["Category","Freshwater","Paper and data unique identifier(eg. 1-1,10-150)","925-7-OK"]
["Scores",10,10,0,5,5,5,0,5,5,4,4,0,4,4,4,3,3,0,0,0,3,0,3,77,0.74757281553398058]
["Answers","1 day, 3 days, 6 days, 9 days, 12 days.","Increases in growth: Increase in cell number and size of snails","","","No-toxicant control","Duplicates","","Embryos - and initial length measurements given","Artificial spring water","Aerated","Measured","","Figure 1","","p = <0.05","6.8-7.2",0,"","","","6-8 mg/L","States temperature for stock solution (25 +/- 2 degrees C), but not test coniditons.",0.97]
["Category","Freshwater","Paper and data unique identifier(eg. 1-1,10-150)","931-1"]
["Scores",10,0,0,5,5,5,5,5,0,4,4,0,0,4,0,0,0,0,0,0,0,0,0,47,0.4563106796116505]
["Answers","","","","","","","","","","","","","","","","","","","","","","",""]
["Category","Freshwater","Paper and data unique identifier(eg. 1-1,10-150)","931-2"]
["Scores",10,0,0,5,5,5,5,5,0,4,4,0,0,4,0,0,0,0,0,0,0,0,0,47,0.4563106796116505]
["Answers","","","","","","","","","","","","","","","","","","","","","","",""]
["Category","Freshwater","Paper and data unique identifier(eg. 1-1,10-150)","931-3"]
["Scores",10,5,0,5,5,5,5,5,0,4,4,0,0,4,4,0,0,0,0,0,0,0,0,56,0.5436893203883495]
["Answers","","","","","","","","","","","","","","","","","","","","","","",""]
["Category","Freshwater","Paper and data unique identifier(eg. 1-1,10-150)","931-4"]
["Scores",10,5,0,5,5,5,5,5,0,4,4,0,0,4,4,0,0,0,0,0,0,0,0,56,0.5436893203883495]
["Answers","","","","","","","","","","","","","","","","","","","","","","",""]
["Category","Freshwater","Paper and data unique identifier(eg. 1-1,10-150)","867-5-GD"]
["Scores",10,10,5,5,5,5,0,5,5,0,0,0,4,4,0,0,0,0,0,0,0,3,0,61,0.59223300970873782]
["Answers","","","","","","","","","","","","","","","","","","","","","","",""]
["Category","Freshwater","Paper and data unique identifier(eg. 1-1,10-150)","867-6-GD"]
["Scores",10,10,5,5,5,5,0,5,5,0,0,0,4,4,0,0,0,0,0,0,0,3,0,61,0.59223300970873782]
["Answers","","","","","","","","","","","","","","","","","","","","","","",""]
["Category","Freshwater","Paper and data unique identifier(eg. 1-1,10-150)","866-1-GD"]
["Scores",10,5,0,5,5,5,0,5,5,0,0,0,0,4,4,0,0,0,0,0,0,3,0,51,0.49514563106796117]
["Answers","","","","","","","","","","","","","","","","","","","","","","",""]
["Category","Freshwater","Paper and data unique identifier(eg. 1-1,10-150)","866-2-GD"]
["Scores",10,5,0,5,5,5,0,5,5,0,0,0,0,4,4,0,0,0,0,0,0,3,0,51,0.49514563106796117]
["Answers","","","","","","","","","","","","","","","","","","","","","","",""]
["Category","Freshwater","Paper and data unique identifier(eg. 1-1,10-150)","866-3-GD"]
["Scores",10,5,0,5,5,5,0,5,5,0,0,0,0,4,4,0,0,0,0,0,0,3,0,51,0.49514563106796117]
["Answers","","","","","","","","","","","","","","","","","","","","","","",""]
["Category","Freshwater","Paper and data unique identifier(eg. 1-1,10-150)","925-1"]
["Scores",10,5,0,5,5,5,0,5,5,4,0,0,0,4,4,3,3,0,0,0,0,0,3,61,0.59223300970873782]
["Answers","","","","","","","","","","","","","","","","","","","","","","",""]
["Category","Freshwater","Paper and data unique identifier(eg. 1-1,10-150)","925-2"]
["Scores",10,5,0,5,5,5,0,5,5,4,0,0,0,4,4,3,3,0,0,0,0,0,3,61,0.59223300970873782]
["Answers","","","","","","","","","","","","","","","","","","","","","","",""]
["Category","Freshwater","Paper and data unique identifier(eg. 1-1,10-150)","925-3"]
["Scores",10,5,0,5,5,5,0,5,5,4,0,0,0,4,0,3,3,0,0,0,0,0,3,57,0.55339805825242716]
["Answers","","","","","","","","","","","","","","","","","","","","","","",""]
["Category","Freshwater","Paper and data unique identifier(eg. 1-1,10-150)","925-4"]
["Scores",10,5,0,5,5,5,0,5,5,4,0,0,0,4,0,3,3,0,0,0,0,0,3,57,0.55339805825242716]
["Answers","","","","","","","","","","","","","","","","","","","","","","",""]
["Category","Freshwater","Paper and data unique identifier(eg. 1-1,10-150)","858-1-GD"]
["Scores",10,10,5,5,5,5,0,0,5,4,0,0,0,0,0,0,0,0,0,0,0,3,0,47,0.4563106796116505]
["Answers","","","","","","","","","","","","","","","","","","","","","","",""]
["Category","Freshwater","Paper and data unique identifier(eg. 1-1,10-150)","858-2-GD"]
["Scores",10,10,5,5,5,5,0,5,0,4,0,0,0,0,0,0,0,0,0,0,0,3,0,57,0.55339805825242716]
["Answers","","","","","","","","","","","","","","","","","","","","","","",""]
["Category","Freshwater","Paper and data unique identifier(eg. 1-1,10-150)","931-1-OK"]
["Scores",10,10,0,5,5,5,5,0,0,4,4,0,0,4,4,3,0,0,0,0,0,3,3,65,0.6310679611650486]
["Answers","21 days","\"Eggs displaying cellular necrosis = early stage mortality\"","","","Solvent controls and/or water controls (in OECD guidelines)","triplicates","OECD","","Freshwater (in OECD guidelines - whatever test water is preferred by the species). ","Flow through","Measured and compared to nominal for accuracy (in percentage form).","","","","p< 0.05 / p < 0.001","6.5 to 8.5 ± 0.5 pH units (in OECD guidelines)","","","","","","28 degrees C","Analytical grade"]
["Category","Freshwater","Paper and data unique identifier(eg. 1-1,10-150)","931-2-OK"]
["Scores",10,10,0,5,5,5,5,0,0,4,4,0,0,4,4,3,0,0,0,0,0,3,3,65,0.6310679611650486]
["Answers","21 days","\"Eggs displaying cellular necrosis = early stage mortality\"","","","Solvent controls and/or water controls (in OECD guidelines)","triplicates","OECD","","Freshwater (in OECD guidelines - whatever test water is preferred by the species). ","Flow through","Measured and compared to nominal for accuracy (in percentage form).","","","","p< 0.05 / p < 0.001","6.5 to 8.5 ± 0.5 pH units (in OECD guidelines)","","","","","","28 degrees C","Analytical grade"]
["Category","Freshwater","Paper and data unique identifier(eg. 1-1,10-150)","931-3-OK"]
["Scores",10,10,0,5,5,5,5,0,0,4,4,0,0,4,4,3,0,0,0,0,0,3,3,65,0.6310679611650486]
["Answers","21 days","\"Eggs displaying cellular necrosis = early stage mortality\"","","","Solvent controls and/or water controls (in OECD guidelines)","triplicates","OECD","","Freshwater (in OECD guidelines - whatever test water is preferred by the species). ","Flow through","Measured and compared to nominal for accuracy (in percentage form).","","","","p< 0.05 / p < 0.001","6.5 to 8.5 ± 0.5 pH units (in OECD guidelines)","","","","","","28 degrees C","Analytical grade"]
["Category","Freshwater","Paper and data unique identifier(eg. 1-1,10-150)","931-3-OK"]
["Scores",10,5,0,5,5,5,5,0,0,4,4,0,0,4,4,3,0,0,0,0,0,3,3,60,0.58252427184466016]
["Answers","21 days","","","","Solvent controls and/or water controls (in OECD guidelines)","triplicates","OECD","","Freshwater (in OECD guidelines - whatever test water is preferred by the species). ","Flow through","Measured and compared to nominal for accuracy (in percentage form).","","","","p< 0.05 / p < 0.001","6.5 to 8.5 ± 0.5 pH units (in OECD guidelines)","","","","","","28 degrees C","Analytical grade"]
["Category","Freshwater","Paper and data unique identifier(eg. 1-1,10-150)","931-4-OK"]
["Scores",10,5,0,5,5,5,5,5,0,4,4,0,0,4,4,3,0,0,0,0,0,3,3,65,0.6310679611650486]
["Answers","10 days","","","","Solvent controls and/or water controls (in OECD guidelines)","triplicates","OECD","Mass and length stated","Freshwater (in OECD guidelines - whatever test water is preferred by the species). ","Flow through","Measured and compared to nominal for accuracy (in percentage form).","","","","p< 0.05 / p < 0.001","6.5 to 8.5 ± 0.5 pH units (in OECD guidelines)","","","","","","28 degrees C","Analytical grade"]
["Category","Freshwater","Paper and data unique identifier(eg. 1-1,10-150)","931-5-OK"]
["Scores",10,5,0,5,5,5,5,5,0,4,4,0,0,4,4,3,0,0,0,0,0,3,3,65,0.6310679611650486]
["Answers","21 days","","","","Solvent controls and/or water controls (in OECD guidelines)","triplicates","OECD","Mass and length stated","Freshwater (in OECD guidelines - whatever test water is preferred by the species). ","Flow through","Measured and compared to nominal for accuracy (in percentage form).","","","","p< 0.05 / p < 0.001","6.5 to 8.5 ± 0.5 pH units (in OECD guidelines)","","","","","","28 degrees C","Analytical grade"]
["Category","Freshwater","Paper and data unique identifier(eg. 1-1,10-150)","925-1"]
["Scores",10,5,0,5,5,5,0,5,5,4,0,0,0,4,4,3,3,0,0,0,0,0,3,61,0.59223300970873782]
["Answers","","","","","","","","","","","","","","","","","","","","","","",""]
["Category","Freshwater","Paper and data unique identifier(eg. 1-1,10-150)","925-2"]
["Scores",10,5,0,5,5,5,0,5,5,4,0,0,0,4,4,3,3,0,0,0,0,0,3,61,0.59223300970873782]
["Answers","","","","","","","","","","","","","","","","","","","","","","",""]
["Category","Freshwater","Paper and data unique identifier(eg. 1-1,10-150)","925-3"]
["Scores",10,5,0,5,5,5,0,5,5,4,0,0,0,4,4,3,3,0,0,0,0,0,3,61,0.59223300970873782]
["Answers","","","","","","","","","","","","","","","","","","","","","","",""]
["Category","Freshwater","Paper and data unique identifier(eg. 1-1,10-150)","925-4"]
["Scores",10,5,0,5,5,5,0,5,5,4,0,0,0,4,4,3,3,0,0,0,0,0,3,61,0.59223300970873782]
["Answers","","","","","","","","","","","","","","","","","","","","","","",""]
["Category","Freshwater","Paper and data unique identifier(eg. 1-1,10-150)","925-5"]
["Scores",10,5,0,5,5,5,0,5,5,4,0,0,0,4,4,3,3,0,0,0,0,0,3,61,0.59223300970873782]
["Answers","","","","","","","","","","","","","","","","","","","","","","",""]
["Category","Freshwater","Paper and data unique identifier(eg. 1-1,10-150)","925-6"]
["Scores",10,5,0,5,5,5,0,5,5,4,0,0,0,4,4,3,3,0,0,0,0,0,3,61,0.59223300970873782]
["Answers","","","","","","","","","","","","","","","","","","","","","","",""]
["Category","Freshwater","Paper and data unique identifier(eg. 1-1,10-150)","925-7"]
["Scores",10,5,0,5,5,5,0,5,5,4,0,0,0,4,4,3,3,0,0,0,0,0,3,61,0.59223300970873782]
["Answers","","","","","","","","","","","","","","","","","","","","","","",""]
["Category","Freshwater","Paper and data unique identifier(eg. 1-1,10-150)","925-8"]
["Scores",10,5,0,5,5,5,0,5,5,4,0,0,0,4,4,3,3,0,0,0,0,0,3,61,0.59223300970873782]
["Answers","","","","","","","","","","","","","","","","","","","","","","",""]
["Category","Freshwater","Paper and data unique identifier(eg. 1-1,10-150)","925-9"]
["Scores",10,5,0,5,5,5,0,5,5,4,0,0,0,4,4,3,3,0,0,0,0,0,3,61,0.59223300970873782]
["Answers","","","","","","","","","","","","","","","","","","","","","","",""]
["Category","Freshwater","Paper and data unique identifier(eg. 1-1,10-150)","939-1"]
["Scores",10,5,5,5,5,5,0,5,5,0,0,4,0,4,4,0,0,0,0,0,0,3,0,60,0.58252427184466016]
["Answers","","","","","","","","","","","","","","","","","","","","","","",""]
["Category","Freshwater","Paper and data unique identifier(eg. 1-1,10-150)","873-1-GD"]
["Scores",10,10,5,5,5,5,5,5,5,4,4,0,0,4,4,3,3,3,0,3,3,3,3,92,0.89320388349514568]
["Answers","","","","","","","","","","","","","","","","","","","","","","",""]
["Category","Freshwater","Paper and data unique identifier(eg. 1-1,10-150)","873-2-GD"]
["Scores",10,10,5,5,5,5,5,5,5,4,4,0,0,4,4,3,3,3,0,3,3,3,3,92,0.89320388349514568]
["Answers","","","","","","","","","","","","","","","","","","","","","","",""]
["Category","Freshwater","Paper and data unique identifier(eg. 1-1,10-150)","873-3-GD"]
["Scores",10,10,5,5,5,5,5,5,5,4,4,0,0,4,4,3,3,3,0,3,3,3,3,92,0.89320388349514568]
["Answers","","","","","","","","","","","","","","","","","","","","","","",""]
["Category","Freshwater","Paper and data unique identifier(eg. 1-1,10-150)","873-4-GD"]
["Scores",10,10,5,5,5,5,5,5,5,4,4,0,0,4,4,3,3,3,0,3,3,3,3,92,0.89320388349514568]
["Answers","","","","","","","","","","","","","","","","","","","","","","",""]
["Category","Freshwater","Paper and data unique identifier(eg. 1-1,10-150)","873-5-GD"]
["Scores",10,10,5,5,5,5,5,5,5,4,4,0,0,4,4,3,3,3,0,3,3,3,3,92,0.89320388349514568]
["Answers","","","","","","","","","","","","","","","","","","","","","","",""]
["Category","Freshwater","Paper and data unique identifier(eg. 1-1,10-150)","873-6-GD"]
["Scores",10,10,5,5,5,5,5,5,5,4,4,0,0,4,4,3,3,3,0,3,3,3,3,92,0.89320388349514568]
["Answers","","","","","","","","","","","","","","","","","","","","","","",""]
["Category","Freshwater","Paper and data unique identifier(eg. 1-1,10-150)","873-7-GD"]
["Scores",10,10,5,5,5,5,5,5,5,4,4,0,0,4,4,3,3,3,0,3,3,3,3,92,0.89320388349514568]
["Answers","","","","","","","","","","","","","","","","","","","","","","",""]
["Category","Freshwater","Paper and data unique identifier(eg. 1-1,10-150)","873-8-GD"]
["Scores",10,10,5,5,5,5,5,5,5,4,4,0,0,4,4,3,3,3,0,3,3,3,3,92,0.89320388349514568]
["Answers","","","","","","","","","","","","","","","","","","","","","","",""]
["Category","Freshwater","Paper and data unique identifier(eg. 1-1,10-150)","873-9-GD"]
["Scores",10,10,5,5,5,5,5,5,5,4,4,0,0,4,4,3,3,3,0,3,3,3,3,92,0.89320388349514568]
["Answers","","","","","","","","","","","","","","","","","","","","","","",""]
["Category","Freshwater","Paper and data unique identifier(eg. 1-1,10-150)","873-10-GD"]
["Scores",10,10,5,5,5,5,5,5,5,4,4,0,0,4,4,3,3,3,0,3,3,3,3,92,0.89320388349514568]
["Answers","","","","","","","","","","","","","","","","","","","","","","",""]
["Category","Freshwater","Paper and data unique identifier(eg. 1-1,10-150)","872-1-GD"]
["Scores",10,10,5,5,5,5,0,5,5,0,0,0,0,4,0,0,0,0,0,0,0,3,3,60,0.58252427184466016]
["Answers","","","","","","","","","","","","","","","","","","","","","","",""]
["Category","Freshwater","Paper and data unique identifier(eg. 1-1,10-150)","618-1"]
["Scores",10,10,5,5,5,5,0,5,5,4,0,0,4,4,0,0,0,0,0,0,0,3,3,68,0.66019417475728159]
["Answers","","","","","","","","","","","","","","","","","","","","","","",""]
["Category","Freshwater","Paper and data unique identifier(eg. 1-1,10-150)","614-1"]
["Scores",10,10,5,5,5,5,0,5,5,4,0,0,4,4,0,0,0,0,0,0,0,3,3,68,0.66019417475728159]
["Answers","","","","","","","","","","","","","","","","","","","","","","",""]
["Category","Freshwater","Paper and data unique identifier(eg. 1-1,10-150)","858-1-GD"]
["Scores",10,10,5,5,5,5,0,0,5,4,0,0,0,0,0,0,0,0,0,0,0,3,0,52,0.50485436893203883]
["Answers","","","","","","","","","","","","","","","","","","","","","","",""]
["Category","Freshwater","Paper and data unique identifier(eg. 1-1,10-150)","858-2-GD"]
["Scores",10,10,5,5,5,5,0,5,0,4,0,0,0,0,0,0,0,0,0,0,0,3,0,52,0.50485436893203883]
["Answers","","","","","","","","","","","","","","","","","","","","","","",""]
["Category","Freshwater","Paper and data unique identifier(eg. 1-1,10-150)","923-1-GD"]
["Scores",10,10,5,5,5,5,0,5,5,0,0,0,4,4,4,0,0,0,0,0,0,3,3,68,0.66019417475728159]
["Answers","","","","","","","","","","","","","","","","","","","","","","",""]
["Category","Freshwater","Paper and data unique identifier(eg. 1-1,10-150)","869-1-GD"]
["Scores",10,10,0,5,5,5,0,5,5,0,0,0,0,4,4,0,0,0,0,0,0,3,3,59,0.57281553398058249]
["Answers","","","","","","","","","","","","","","","","","","","","","","",""]
["Category","Freshwater","Paper and data unique identifier(eg. 1-1,10-150)","869-2-GD"]
["Scores",10,10,0,5,5,5,0,5,5,0,0,0,0,4,4,0,0,0,0,0,0,3,3,59,0.57281553398058249]
["Answers","","","","","","","","","","","","","","","","","","","","","","",""]
["Category","Freshwater","Paper and data unique identifier(eg. 1-1,10-150)","869-3-GD"]
["Scores",10,10,5,5,5,5,0,5,5,0,0,0,0,4,4,0,0,0,0,0,0,3,3,64,0.62135922330097082]
["Answers","","","","","","","","","","","","","","","","","","","","","","",""]
["Category","Freshwater","Paper and data unique identifier(eg. 1-1,10-150)","869-4-GD"]
["Scores",10,10,5,5,5,5,0,5,5,0,0,0,0,4,4,0,0,0,0,0,0,3,3,64,0.62135922330097082]
["Answers","","","","","","","","","","","","","","","","","","","","","","",""]
["Category","Freshwater","Paper and data unique identifier(eg. 1-1,10-150)","869-5-GD"]
["Scores",10,10,0,5,5,5,0,5,5,0,0,0,0,4,4,0,0,0,0,0,0,3,3,59,0.57281553398058249]
["Answers","","","","","","","","","","","","","","","","","","","","","","",""]
["Category","Freshwater","Paper and data unique identifier(eg. 1-1,10-150)","869-6-GD"]
["Scores",10,10,5,5,5,5,0,5,5,0,0,0,0,4,4,0,0,0,0,0,0,3,3,64,0.62135922330097082]
["Answers","","","","","","","","","","","","","","","","","","","","","","",""]
["Category","Freshwater","Paper and data unique identifier(eg. 1-1,10-150)","869-8-GD"]
["Scores",10,10,5,5,5,5,0,5,5,0,0,0,0,4,4,0,0,0,0,0,0,3,3,64,0.62135922330097082]
["Answers","","","","","","","","","","","","","","","","","","","","","","",""]
["Category","Freshwater","Paper and data unique identifier(eg. 1-1,10-150)","869-7-GD"]
["Scores",10,10,0,5,5,5,0,5,5,0,0,0,0,4,4,0,0,0,0,0,0,3,3,59,0.57281553398058249]
["Answers","","","","","","","","","","","","","","","","","","","","","","",""]
["Category","Freshwater","Paper and data unique identifier(eg. 1-1,10-150)","869-9-GD"]
["Scores",10,10,0,5,5,5,0,5,5,0,0,0,0,4,4,0,0,0,0,0,0,3,3,59,0.57281553398058249]
["Answers","","","","","","","","","","","","","","","","","","","","","","",""]
["Category","Freshwater","Paper and data unique identifier(eg. 1-1,10-150)","869-10-GD"]
["Scores",10,10,0,5,5,5,0,5,5,0,0,0,0,4,4,0,0,0,0,0,0,3,3,59,0.57281553398058249]
["Answers","","","","","","","","","","","","","","","","","","","","","","",""]
["Category","Freshwater","Paper and data unique identifier(eg. 1-1,10-150)","869-11-GD"]
["Scores",10,10,5,5,5,5,0,5,5,0,0,0,0,4,4,0,0,0,0,0,0,3,3,64,0.62135922330097082]
["Answers","","","","","","","","","","","","","","","","","","","","","","",""]
["Category","Freshwater","Paper and data unique identifier(eg. 1-1,10-150)","869-12-GD"]
["Scores",10,10,5,5,5,5,0,5,5,0,0,0,0,4,4,0,0,0,0,0,0,3,3,64,0.62135922330097082]
["Answers","","","","","","","","","","","","","","","","","","","","","","",""]
["Category","Freshwater","Paper and data unique identifier(eg. 1-1,10-150)","880-1-GD"]
["Scores",10,10,0,0,5,5,0,5,5,4,4,0,0,4,0,0,0,0,0,0,0,3,3,58,0.56310679611650483]
["Answers","","","","","","","","","","","","","","","","","","","","","","",""]
["Category","Freshwater","Paper and data unique identifier(eg. 1-1,10-150)","880-2-GD"]
["Scores",10,10,0,0,5,5,0,5,5,4,4,0,0,4,0,0,0,0,0,0,0,3,3,58,0.56310679611650483]
["Answers","","","","","","","","","","","","","","","","","","","","","","",""]
["Category","Freshwater","Paper and data unique identifier(eg. 1-1,10-150)","880-3-GD"]
["Scores",10,10,0,0,5,5,0,5,5,4,4,0,0,4,0,0,0,0,0,0,0,3,3,58,0.56310679611650483]
["Answers","","","","","","","","","","","","","","","","","","","","","","",""]
["Category","Freshwater","Paper and data unique identifier(eg. 1-1,10-150)","880-4-GD"]
["Scores",10,10,0,0,5,5,0,5,5,4,4,0,0,4,0,0,0,0,0,0,0,3,3,58,0.56310679611650483]
["Answers","","","","","","","","","","","","","","","","","","","","","","",""]
["Category","Freshwater","Paper and data unique identifier(eg. 1-1,10-150)","Roshon et al. 1999_1"]
["Scores",10,5,5,5,5,5,0,5,5,4,0,0,4,4,0,3,0,0,0,0,0,3,3,66,0.64077669902912626]
["Answers","14 days","Shoot length, root number, and root length or root dry mass was determined","IC values","25, 50%","Low concentration/controls","Four to eight reps per test concentration","American Society for Testing and Materials (ASTM 1998)","3 cm apical segments without roots, axenically cultured.","Modified Andrews’ liquid nutrient medium supplemented with 3% sucros","Static","Nominal","","Stated","Non-linear regression techniques","Not stated","5.8±0.2","Not stated","Not stated","Not stated","Not stated","Not stated","25°C ","Technical product"]
["Category","Freshwater","Paper and data unique identifier(eg. 1-1,10-150)","Roshon et al. 1999_2"]
["Scores",10,5,5,5,5,5,0,5,5,4,0,0,4,4,0,3,0,0,0,0,0,3,3,66,0.64077669902912626]
["Answers","14 days","Shoot length, root number, and root length or root dry mass was determined","IC values","25, 50%","Low concentration/controls","Four to eight reps per test concentration","American Society for Testing and Materials (ASTM 1998)","3 cm apical segments without roots, axenically cultured.","Modified Andrews’ liquid nutrient medium supplemented with 3% sucros","Static","Nominal","","Stated","Non-linear regression techniques","Not stated","5.8±0.2","Not stated","Not stated","Not stated","Not stated","Not stated","25°C ","Technical product"]
["Category","Freshwater","Paper and data unique identifier(eg. 1-1,10-150)","Roshon et al. 1999_3"]
["Scores",10,5,5,5,5,5,0,5,5,4,0,0,4,4,0,3,0,0,0,0,0,3,3,66,0.64077669902912626]
["Answers","14 days","Shoot length, root number, and root length or root dry mass was determined","IC values","25, 50%","Low concentration/controls","Four to eight reps per test concentration","American Society for Testing and Materials (ASTM 1998)","3 cm apical segments without roots, axenically cultured.","Modified Andrews’ liquid nutrient medium supplemented with 3% sucros","Static","Nominal","","Stated","Non-linear regression techniques","Not stated","5.8±0.2","Not stated","Not stated","Not stated","Not stated","Not stated","25°C ","Technical product"]
["Category","Freshwater","Paper and data unique identifier(eg. 1-1,10-150)","Saenz et al. 1997_1"]
["Scores",10,10,5,5,5,5,2,5,5,4,0,0,0,4,4,3,3,0,0,3,3,3,3,82,0.79611650485436891]
["Answers","96 hours","Chlorophyll-a content (cell density). Cell counts were correlated to absorbance.","NOEC, LOEC and EC50","","","Duplicate","USEPA toxicity testing criteria","5-day old stock culture. Initial cell density of 5 x 104 cell/mL","Autoclaved modified Detmer’s nutrient medium","Static","Nominal","Not stated","Not stated","Yes","","pH: 7.5",0,"","","conductivity: 410 mμhos/cm","dissolved oxygen at saturation","22 °C ± 1°C,","Gly technical grade (isopropilamine salt with 99.5 % of purity)"]
["Category","Freshwater","Paper and data unique identifier(eg. 1-1,10-150)","Saenz et al. 1997_2"]
["Scores",10,10,5,5,5,5,2,5,5,4,0,0,0,4,4,3,3,0,0,3,3,3,3,82,0.79611650485436891]
["Answers","96 hours","Chlorophyll-a content (cell density). Cell counts were correlated to absorbance.","NOEC, LOEC and EC50","","","Duplicate","USEPA toxicity testing criteria","5-day old stock culture. Initial cell density of 5 x 104 cell/mL","Autoclaved modified Detmer’s nutrient medium","Static","Nominal","Not stated","Not stated","Yes","","pH: 7.5",0,"","","conductivity: 410 mμhos/cm","dissolved oxygen at saturation","22 °C ± 1°C,","Gly technical grade (isopropilamine salt with 99.5 % of purity)"]
["Category","Freshwater","Paper and data unique identifier(eg. 1-1,10-150)","Saenz et al. 1997_3"]
["Scores",10,10,5,5,5,5,2,5,5,4,0,0,0,4,4,3,3,0,0,3,3,3,3,82,0.79611650485436891]
["Answers","96 hours","Chlorophyll-a content (cell density). Cell counts were correlated to absorbance.","NOEC, LOEC and EC50","","","Duplicate","USEPA toxicity testing criteria","5-day old stock culture. Initial cell density of 5 x 104 cell/mL","Autoclaved modified Detmer’s nutrient medium","Static","Nominal","Not stated","Not stated","Yes","","pH: 7.5",0,"","","conductivity: 410 mμhos/cm","dissolved oxygen at saturation","22 °C ± 1°C,","Gly technical grade (isopropilamine salt with 99.5 % of purity)"]
["Category","Freshwater","Paper and data unique identifier(eg. 1-1,10-150)","Saenz et al. 1997_4"]
["Scores",10,10,5,5,5,5,2,5,5,4,0,0,0,4,4,3,3,0,0,3,3,3,3,82,0.79611650485436891]
["Answers","96 hours","Chlorophyll-a content (cell density). Cell counts were correlated to absorbance.","NOEC, LOEC and EC50","","","Duplicate","USEPA toxicity testing criteria","5-day old stock culture. Initial cell density of 5 x 104 cell/mL","Autoclaved modified Detmer’s nutrient medium","Static","Nominal","Not stated","Not stated","Yes","","pH: 7.5",0,"","","conductivity: 410 mμhos/cm","dissolved oxygen at saturation","22 °C ± 1°C,","Gly technical grade (isopropilamine salt with 99.5 % of purity)"]
["Category","Freshwater","Paper and data unique identifier(eg. 1-1,10-150)","Saenz et al. 1997_5"]
["Scores",10,10,5,5,5,5,2,5,5,4,0,0,0,4,4,3,3,0,0,3,3,3,3,82,0.79611650485436891]
["Answers","96 hours","Chlorophyll-a content (cell density). Cell counts were correlated to absorbance.","NOEC, LOEC and EC50","","","Duplicate","USEPA toxicity testing criteria","5-day old stock culture. Initial cell density of 5 x 104 cell/mL","Autoclaved modified Detmer’s nutrient medium","Static","Nominal","Not stated","Not stated","Yes","","pH: 7.5",0,"","","conductivity: 410 mμhos/cm","dissolved oxygen at saturation","22 °C ± 1°C,","Gly technical grade (isopropilamine salt with 99.5 % of purity)"]
["Category","Freshwater","Paper and data unique identifier(eg. 1-1,10-150)","Saenz et al. 1997_6"]
["Scores",10,10,5,5,5,5,2,5,5,4,0,0,0,4,4,3,3,0,0,3,3,3,3,82,0.79611650485436891]
["Answers","96 hours","Chlorophyll-a content (cell density). Cell counts were correlated to absorbance.","NOEC, LOEC and EC50","","","Duplicate","USEPA toxicity testing criteria","5-day old stock culture. Initial cell density of 5 x 104 cell/mL","Autoclaved modified Detmer’s nutrient medium","Static","Nominal","Not stated","Not stated","Yes","","pH: 7.5",0,"","","conductivity: 410 mμhos/cm","dissolved oxygen at saturation","22 °C ± 1°C,","Gly technical grade (isopropilamine salt with 99.5 % of purity)"]
["Category","Freshwater","Paper and data unique identifier(eg. 1-1,10-150)","Canadian Summit Report, 2007_1"]
["Scores",10,5,5,5,5,5,5,5,0,4,4,4,4,4,0,1,1,0,1,1,1,3,3,76,0.73786407766990292]
["Answers","7-day","Survival and reproduction (7 days) - chronic\nSurvival (48 hours) - acute","   ","","Laboratory control","The test used five concentrations and a laboratory control, with ten replicates per concentration","Daphnid survival must be ≥80%,\n≥60% of the daphnids must have produced three broods within 7±1 days,\nAND Surviving daphnids must produce an\naverage of ≥15 young in the control.","(<24 -hr old at initiation)","Not stated","Renewed daily, daphnids fed daily.","Measured concentrations of glyphosate were in good agreement with nominal concentrations in chronic toxicity tests using both Ceriodaphnia and Hyalella","Sodium chloride reference toxicant test was conducted","Table 3.4 and 3.5","","","",0,"","Only controls and dilution water had dissolved organic carbon measured.","","","25±1°C","98% purity"]
["Category","Freshwater","Paper and data unique identifier(eg. 1-1,10-150)","Canadian Summit Report, 2007_2"]
["Scores",10,5,5,5,5,5,5,5,0,4,4,4,4,4,0,1,1,0,1,1,1,3,3,76,0.73786407766990292]
["Answers","7-day","Survival and reproduction (7 days) - chronic\nSurvival (48 hours) - acute","   ","","Laboratory control","The test used five concentrations and a laboratory control, with ten replicates per concentration","Daphnid survival must be ≥80%,\n≥60% of the daphnids must have produced three broods within 7±1 days,\nAND Surviving daphnids must produce an\naverage of ≥15 young in the control.","(<24 -hr old at initiation)","Not stated","Renewed daily, daphnids fed daily.","Measured concentrations of glyphosate were in good agreement with nominal concentrations in chronic toxicity tests using both Ceriodaphnia and Hyalella","Sodium chloride reference toxicant test was conducted","Table 3.4 and 3.5","","","",0,"","Only controls and dilution water had dissolved organic carbon measured.","","","25±1°C","98% purity"]
["Category","Freshwater","Paper and data unique identifier(eg. 1-1,10-150)","Canadian Summit Report, 2007_3"]
["Scores",10,5,5,5,5,5,5,5,0,4,4,4,4,4,0,1,1,0,1,1,1,3,3,76,0.73786407766990292]
["Answers","7-day","Survival and reproduction (7 days) - chronic\nSurvival (48 hours) - acute","   ","","Laboratory control","The test used five concentrations and a laboratory control, with ten replicates per concentration","Daphnid survival must be ≥80%,\n≥60% of the daphnids must have produced three broods within 7±1 days,\nAND Surviving daphnids must produce an\naverage of ≥15 young in the control.","(<24 -hr old at initiation)","Not stated","Renewed daily, daphnids fed daily.","Measured concentrations of glyphosate were in good agreement with nominal concentrations in chronic toxicity tests using both Ceriodaphnia and Hyalella","Sodium chloride reference toxicant test was conducted","Table 3.4 and 3.5","","","",0,"","Only controls and dilution water had dissolved organic carbon measured.","","","25±1°C","98% purity"]
["Category","Freshwater","Paper and data unique identifier(eg. 1-1,10-150)","Canadian Summit Report, 2007_4"]
["Scores",10,5,5,5,5,5,5,5,0,4,4,4,4,4,0,1,1,0,1,1,1,3,3,76,0.73786407766990292]
["Answers","7-day","Survival and reproduction (7 days) - chronic\nSurvival (48 hours) - acute","   ","","Laboratory control","The test used five concentrations and a laboratory control, with ten replicates per concentration","Daphnid survival must be ≥80%,\n≥60% of the daphnids must have produced three broods within 7±1 days,\nAND Surviving daphnids must produce an\naverage of ≥15 young in the control.","(<24 -hr old at initiation)","Not stated","Renewed daily, daphnids fed daily.","Measured concentrations of glyphosate were in good agreement with nominal concentrations in chronic toxicity tests using both Ceriodaphnia and Hyalella","Sodium chloride reference toxicant test was conducted","Table 3.4 and 3.5","","","",0,"","Only controls and dilution water had dissolved organic carbon measured.","","","25±1°C","98% purity"]
["Category","Freshwater","Paper and data unique identifier(eg. 1-1,10-150)","Canadian Summit Report, 2007_5"]
["Scores",10,5,5,5,5,5,5,5,0,4,4,4,4,4,4,1,1,0,1,1,1,3,3,80,0.77669902912621358]
["Answers","7-day","Survival and reproduction (7 days) - chronic\nSurvival (48 hours) - acute","   ","","Laboratory control","The test used five concentrations and a laboratory control, with ten replicates per concentration","Daphnid survival must be ≥80%,\n≥60% of the daphnids must have produced three broods within 7±1 days,\nAND Surviving daphnids must produce an\naverage of ≥15 young in the control.","(<24 -hr old at initiation)","Not stated","Renewed daily, daphnids fed daily.","Measured concentrations of glyphosate were in good agreement with nominal concentrations in chronic toxicity tests using both Ceriodaphnia and Hyalella","Sodium chloride reference toxicant test was conducted","Table 3.4 and 3.5","","95% confidence limits","",0,"","Only controls and dilution water had dissolved organic carbon measured.","","","25±1°C","98% purity"]
["Category","Freshwater","Paper and data unique identifier(eg. 1-1,10-150)","Canadian Summit Report, 2007_6"]
["Scores",10,5,5,5,5,5,5,5,0,4,4,4,4,4,4,1,1,0,1,1,1,3,3,80,0.77669902912621358]
["Answers","7-day","Survival and reproduction (7 days) - chronic\nSurvival (48 hours) - acute","   ","","Laboratory control","The test used five concentrations and a laboratory control, with ten replicates per concentration","Daphnid survival must be ≥80%,\n≥60% of the daphnids must have produced three broods within 7±1 days,\nAND Surviving daphnids must produce an\naverage of ≥15 young in the control.","(<24 -hr old at initiation)","Not stated","Renewed daily, daphnids fed daily.","Measured concentrations of glyphosate were in good agreement with nominal concentrations in chronic toxicity tests using both Ceriodaphnia and Hyalella","Sodium chloride reference toxicant test was conducted","Table 3.4 and 3.5","","95% confidence limits","",0,"","Only controls and dilution water had dissolved organic carbon measured.","","","25±1°C","98% purity"]
["Category","Freshwater","Paper and data unique identifier(eg. 1-1,10-150)","Canadian Summit Report, 2007_7"]
["Scores",10,5,5,5,5,5,5,5,0,4,4,4,4,4,4,1,1,0,1,1,1,3,3,80,0.77669902912621358]
["Answers","7-day","Survival and reproduction (7 days) - chronic\nSurvival (48 hours) - acute","   ","","Laboratory control","The test used five concentrations and a laboratory control, with ten replicates per concentration","Daphnid survival must be ≥80%,\n≥60% of the daphnids must have produced three broods within 7±1 days,\nAND Surviving daphnids must produce an\naverage of ≥15 young in the control.","(<24 -hr old at initiation)","Not stated","Renewed daily, daphnids fed daily.","Measured concentrations of glyphosate were in good agreement with nominal concentrations in chronic toxicity tests using both Ceriodaphnia and Hyalella","Sodium chloride reference toxicant test was conducted","Table 3.4 and 3.5","","95% confidence limits","",0,"","Only controls and dilution water had dissolved organic carbon measured.","","","25±1°C","98% purity"]
["Category","Freshwater","Paper and data unique identifier(eg. 1-1,10-150)","Canadian Summit Report, 2007_8"]
["Scores",10,5,5,5,5,5,5,5,0,4,4,4,4,4,4,1,1,0,1,1,1,3,3,80,0.77669902912621358]
["Answers","48 hours","Survival and reproduction (7 days) - chronic\nSurvival (48 hours) - acute","   ","","Laboratory control","The test used five concentrations and a laboratory control, with ten replicates per concentration","Daphnid survival must be ≥80%,\n≥60% of the daphnids must have produced three broods within 7±1 days,\nAND Surviving daphnids must produce an\naverage of ≥15 young in the control.","(<24 -hr old at initiation)","Not stated","Renewed daily, daphnids fed daily.","Measured concentrations of glyphosate were in good agreement with nominal concentrations in chronic toxicity tests using both Ceriodaphnia and Hyalella","Sodium chloride reference toxicant test was conducted","Table 3.4 and 3.5","","95% confidence limits","",0,"","Only controls and dilution water had dissolved organic carbon measured.","","","25±1°C","98% purity"]
["Category","Freshwater","Paper and data unique identifier(eg. 1-1,10-150)","Canadian Summit Report, 2007_9"]
["Scores",10,5,5,5,5,5,5,5,5,4,4,4,4,4,4,1,1,0,1,1,1,3,3,85,0.82524271844660191]
["Answers","14-day - survival and dry weight (chronic)\n96-hour - survival (acute)","Survival and growth (measured as dry weight)","","","Laboratory control","Six glyphosate concentrations and a\nlaboratory control, with four replicates per concentration","Amphipod survival must be ≥80%.","Juvenile","Dechlorinated and activated carbon treated\nmunicipal tapwater","Renewed daily by removing approximately 80% of the overlying solution and replacing it with freshly prepared test solution","Measured daily in old and new solutions","A 96-hr acute toxicity test using sodium chloride","Table 3.6","","","",0,"","Measured for controls only","","","23±1°C","98% purity"]
["Category","Freshwater","Paper and data unique identifier(eg. 1-1,10-150)","Canadian Summit Report, 2007_10"]
["Scores",10,5,5,5,5,5,5,5,5,4,4,4,4,4,4,1,1,0,1,1,1,3,3,85,0.82524271844660191]
["Answers","14-day - survival and dry weight (chronic)\n96-hour - survival (acute)","Survival and growth (measured as dry weight)","","","Laboratory control","Six glyphosate concentrations and a\nlaboratory control, with four replicates per concentration","Amphipod survival must be ≥80%.","Juvenile","Dechlorinated and activated carbon treated\nmunicipal tapwater","Renewed daily by removing approximately 80% of the overlying solution and replacing it with freshly prepared test solution","Measured daily in old and new solutions","A 96-hr acute toxicity test using sodium chloride","Table 3.6","","","",0,"","Measured for controls only","","","23±1°C","98% purity"]
["Category","Freshwater","Paper and data unique identifier(eg. 1-1,10-150)","Canadian Summit Report, 2007_11"]
["Scores",10,5,5,5,5,5,5,5,5,4,4,4,4,4,4,1,1,0,1,1,1,3,3,85,0.82524271844660191]
["Answers","14-day - survival and dry weight (chronic)\n96-hour - survival (acute)","Survival and growth (measured as dry weight)","","","Laboratory control","Six glyphosate concentrations and a\nlaboratory control, with four replicates per concentration","Amphipod survival must be ≥80%.","Juvenile","Dechlorinated and activated carbon treated\nmunicipal tapwater","Renewed daily by removing approximately 80% of the overlying solution and replacing it with freshly prepared test solution","Measured daily in old and new solutions","A 96-hr acute toxicity test using sodium chloride","Table 3.6","","","",0,"","Measured for controls only","","","23±1°C","98% purity"]
["Category","Freshwater","Paper and data unique identifier(eg. 1-1,10-150)","Canadian Summit Report, 2007_12"]
["Scores",10,5,5,5,5,5,5,5,5,4,4,4,4,4,4,1,1,0,1,1,1,3,3,85,0.82524271844660191]
["Answers","14-day - survival and dry weight (chronic)\n96-hour - survival (acute)","Survival and growth (measured as dry weight)","","","Laboratory control","Six glyphosate concentrations and a\nlaboratory control, with four replicates per concentration","Amphipod survival must be ≥80%.","Juvenile","Dechlorinated and activated carbon treated\nmunicipal tapwater","Renewed daily by removing approximately 80% of the overlying solution and replacing it with freshly prepared test solution","Measured daily in old and new solutions","A 96-hr acute toxicity test using sodium chloride","Table 3.6","","","",0,"","Measured for controls only","","","23±1°C","98% purity"]
["Category","Freshwater","Paper and data unique identifier(eg. 1-1,10-150)","Canadian Summit Report, 2007_13"]
["Scores",10,5,5,0,5,5,5,5,5,4,4,4,4,4,0,1,1,0,1,1,1,3,3,80,{"$f":"80/103","v":0.77669902912621358}]
["Answers","14-day - survival and dry weight (chronic)\n96-hour - survival (acute)","Survival and growth (measured as dry weight)","","","Laboratory control","Six glyphosate concentrations and a\nlaboratory control, with four replicates per concentration","Amphipod survival must be ≥80%.","Juvenile","Dechlorinated and activated carbon treated\nmunicipal tapwater","Renewed daily by removing approximately 80% of the overlying solution and replacing it with freshly prepared test solution","Measured daily in old and new solutions","A 96-hr acute toxicity test using sodium chloride","Table 3.6","","Not for NOEC and LOECs","",0,"","Measured for controls only","","","23±1°C","98% purity"]
["Category","Freshwater","Paper and data unique identifier(eg. 1-1,10-150)","Canadian Summit Report, 2007_14"]
["Scores",10,5,5,0,5,5,5,5,5,4,4,4,4,4,0,1,1,0,1,1,1,3,3,80,{"$f":"80/103","v":0.77669902912621358}]
["Answers","14-day - survival and dry weight (chronic)\n96-hour - survival (acute)","Survival and growth (measured as dry weight)","","","Laboratory control","Six glyphosate concentrations and a\nlaboratory control, with four replicates per concentration","Amphipod survival must be ≥80%.","Juvenile","Dechlorinated and activated carbon treated\nmunicipal tapwater","Renewed daily by removing approximately 80% of the overlying solution and replacing it with freshly prepared test solution","Measured daily in old and new solutions","A 96-hr acute toxicity test using sodium chloride","Table 3.6","","Not for NOEC and LOECs","",0,"","Measured for controls only","","","23±1°C","98% purity"]
["Category","Freshwater","Paper and data unique identifier(eg. 1-1,10-150)","Canadian Summit Report, 2007_15"]
["Scores",10,5,5,0,5,5,5,5,5,4,4,4,4,4,0,1,1,0,1,1,1,3,3,80,{"$f":"80/103","v":0.77669902912621358}]
["Answers","14-day - survival and dry weight (chronic)\n96-hour - survival (acute)","Survival and growth (measured as dry weight)","","","Laboratory control","Six glyphosate concentrations and a\nlaboratory control, with four replicates per concentration","Amphipod survival must be ≥80%.","Juvenile","Dechlorinated and activated carbon treated\nmunicipal tapwater","Renewed daily by removing approximately 80% of the overlying solution and replacing it with freshly prepared test solution","Measured daily in old and new solutions","A 96-hr acute toxicity test using sodium chloride","Table 3.6","","Not for NOEC and LOECs","",0,"","Measured for controls only","","","23±1°C","98% purity"]
["Category","Freshwater","Paper and data unique identifier(eg. 1-1,10-150)","Canadian Summit Report, 2007_16"]
["Scores",10,5,5,0,5,5,5,5,5,4,4,4,4,4,0,1,1,0,1,1,1,3,3,80,{"$f":"80/103","v":0.77669902912621358}]
["Answers","14-day - survival and dry weight (chronic)\n96-hour - survival (acute)","Survival and growth (measured as dry weight)","","","Laboratory control","Six glyphosate concentrations and a\nlaboratory control, with four replicates per concentration","Amphipod survival must be ≥80%.","Juvenile","Dechlorinated and activated carbon treated\nmunicipal tapwater","Renewed daily by removing approximately 80% of the overlying solution and replacing it with freshly prepared test solution","Measured daily in old and new solutions","A 96-hr acute toxicity test using sodium chloride","Table 3.6","","Not for NOEC and LOECs","",0,"","Measured for controls only","","","23±1°C","98% purity"]
["Category","Freshwater","Paper and data unique identifier(eg. 1-1,10-150)","Canadian Summit Report, 2007_17"]
["Scores",10,5,5,5,5,5,5,5,5,4,4,4,4,4,4,1,1,0,1,1,1,3,3,85,0.82524271844660191]
["Answers","14-day - survival and dry weight (chronic)\n96-hour - survival (acute)","Survival and growth (measured as dry weight)","","","Laboratory control","Six glyphosate concentrations and a\nlaboratory control, with four replicates per concentration","Amphipod survival must be ≥90% in the control","Juvenile","Dechlorinated and activated carbon treated\nmunicipal tapwater","Renewed daily by removing approximately 80% of the overlying solution and replacing it with freshly prepared test solution","Measured daily in old and new solutions","A 96-hr acute toxicity test using sodium chloride","Table 3.6","","(95% CL, 150.3-171.6).","",0,"","Measured for controls only","","","23±1°C","98% purity"]

{"sheet":"Marine Data QA","index":6,"n_rows":98,"n_cols":25,"rows_kept":98,"cut":false,"hidden":false,"merged":[[87,7,88,7],[46,2,48,2],[31,2,33,2],[37,7,39,7],[83,7,86,7],[34,2,36,2],[37,2,39,2],[83,2,86,2],[64,2,67,2],[68,2,71,2],[72,2,75,2],[76,2,79,2],[80,2,82,2],[49,2,51,2],[52,2,54,2],[56,2,59,2],[28,7,30,7],[31,7,33,7],[11,2,13,2],[20,2,21,2],[22,2,24,2],[14,2,16,2],[60,2,63,2],[40,2,42,2],[17,2,19,2],[28,2,30,2],[43,2,45,2],[25,2,27,2],[80,7,82,7],[64,7,67,7],[68,7,71,7],[72,7,75,7],[76,7,79,7],[3,4,7,4],[56,7,59,7],[60,7,63,7],[40,7,42,7],[43,7,45,7],[46,7,48,7],[49,7,51,7],[34,7,36,7],[52,7,54,7],[14,7,16,7],[11,7,13,7],[17,7,19,7],[20,7,21,7],[22,7,24,7],[25,7,27,7],[9,2,9,4]]}
[null,1,"FILL IN BLANKS BELOW,PICK OPTIONS FROM DROPDOWN LIST",null,null,null,null,null,null,null,"* All the text in Blue are used for drop down list ,make changes with caution."]
[null,null,"Category",null,"Marine ",{"$f":"IF(M3=\"\",0,1)","v":1},"Citation No.",{"$f":"IF(E3=\"\",\"\",LEFT(E3,FIND(\"-\",E3) -1))","v":"971"},null,null,"Species",null,null,"Lifestage",null,null,"Exposure duration",null,null,"Measure of toxicity",null,null,"Toxicity endpoint"]
[null,null,"Paper and data unique identifier(eg. 1-1,10-150)",null,"971-3",{"$f":"IF(E3=\"\",0,1)","v":1},"Species (Scientific name)",null,null,null,"Australian Bass",15,{"$f":"IF(L3=0,\"\",INDEX(K3:K50,L3))","v":"Zostera marina"},"Log growth phase: Trophozoites",13,{"$f":"IF(O3=0,\"\",INDEX(N3:N50,O3))","v":"Not stated"},"1 hour ",11,{"$f":"IF(R3=0,\"\",INDEX(Q3:Q50,R3))","v":"3 Days"},"Growth inhibition: Cell proliferation",17,{"$f":"IF(U3=0,\"\",INDEX(T3:T50,U3))","v":"Chlorophyll-(a/b)"},0.01,12,{"$f":"IF(X3=0,\"\",INDEX(W3:W50,X3))","v":"NOEC"}]
[null,null,"Citation",null,"Nielsen, L. W. & Dahllof, I. 2007. Direct and indirect effects of the herbicides Glyphosate, Bentazone and MCPA on eelgrass (Zostera marina), vol. 82, pp. 47 - 54. ",{"$f":"IF(E4=\"\",0,1)","v":1},"Lifestage",null,null,null,"Bala Shark",null,null,"Ovigerous female adults",null,null,"2 hours",null,null,"Growth: Body weight",null,null,0.02]
[null,null,null,null,null,{"$f":"IF(S3=\"\",0,1)","v":1},"Exposure duration",null,null,null,"Basa",null,null,"Phase 1",null,null,"3 hours",null,null,"Method 1",null,null,0.03]
[null,null,null,null,null,{"$f":"IF(V3=\"\",0,1)","v":1},"Measure of toxicity",null,null,null,"Black Parinha",null,null,"phase 14",null,null,"4 hours",null,null,"Method 10",null,null,0.04]
[null,null,null,null,null,{"$f":"IF(Y3=\"\",0,1)","v":1},"Toxicity endpoint",null,null,null,"Catfish",null,null,"Phase 2",null,null,"5 hours",null,null,"Method 2",null,null,0.05]
[null,null,null,null,null,{"$f":"IF(H8=\"\",0,1)","v":1},"Toxicity value","100 ug/L",null,null,"Eel",null,null,"Phase 3",null,null,"6 hours",null,null,"Method 3",null,null,0.06]
[null,2,"CHOOSE ANSWER OPTIONS AND FILL IN ANSWERS IN ANSWER COLUMN",null,null,{"$f":"IF(M3=\"\",0,1)","v":1},null,null,null,null,"Lungfish",null,null,"Phase 4",null,null,"7 hours",null,null,"Method 4",null,null,7.0000000000000007E-2]
[null,"*","If had problem click on answer options,click on any  other cells first and then click back again.",null,null,{"$f":"IF(P3=\"\",0,1)","v":1},null,null,null,null,"Murray Cod",null,null,"Phase 5",null,null,"72 hours",null,null,"Method 5",null,null,0.08]
[null,"No.","Question","Marks Awarded","Answer Options","Option References","Scores","Answers",null,null,"Neohelice Granulata ",null,null,"Phase 6",null,null,"8 hours",null,null,"Method 6",null,null,0.09]
[null,null,"Was the duration of the exposure stated (e.g., 48 or 96 h)?",10,null,1,{"$f":"IF(F15=0,0,INDEX($D12:$D13,F12,1))","v":10},null,null,null,"Perkinsus olseni",null,null,"Phase 7 ",null,null,"9 hours",null,null,"Method 7",null,null,0.1]
[null,1,null,0,null,null,null,null,null,null,"Redclaw",null,null,"Phase 8",null,null,"3 Days",null,null,"Method 8",null,null,"IC50"]
[null,null,null,null,null,null,null,null,null,null,"Sea Mullet",null,null,"Phase 9",null,null,null,null,null,"Method 9",null,null,"NOEC"]
[null,null,"Was the biological endpoint (e.g., immobilization or population growth) stated and defined (10 marks)? Award 5 marks if the biological endpoint is only stated.",10,null,1,{"$f":"IF(F15=0,0,INDEX($D15:$D17,F15,1))","v":10},null,null,null,"SilverPerch",null,null,"Not stated",null,null,null,null,null,"Mortality"]
[null,2,null,5,null,null,null,null,null,null,"Whale",null,null,null,null,null,null,null,null,"Reproduction: Number of hatched larvae"]
[null,null,null,0,null,null,null,null,null,null,"Zostera marina",null,null,null,null,null,null,null,null,"Relative Growth Rate (Length)"]
[null,null,"Was the biological effect stated (e.g., LC or NOEC)?",5,null,2,{"$f":"IF(F18=0,0,INDEX($D18:$D19,F18,1))","v":0},null,null,null,null,null,null,null,null,null,null,null,null,"Relative Growth Rate (Weight)"]
[null,3,null,0,null,null,null,null,null,null,null,null,null,null,null,null,null,null,null,"Chlorophyll-(a/b)"]
[]
[null,4,"Was the biological effect quantified (e.g., 50% effect, 25% effect)? The effect for NOEC and LOEC data must be quantified.",5,null,2,{"$f":"IF(F21=0,0,INDEX($D21:$D22,F21,1))","v":0}]
[null,null,null,0]
[null,5,"Were appropriate controls (e.g., a no-toxicant control and/or solvent control) used?",5,null,1,{"$f":"IF(F23=0,0,INDEX($D23:$D24,F23,1))","v":5}]
[null,null,null,0]
[]
[null,6,"Was each control and contaminant concentration at least duplicated?",5,null,1,{"$f":"IF(F26=0,0,INDEX($D26:$D27,F26,1))","v":5}]
[null,null,null,0]
[]
[null,7,"Were test acceptability criteria stated (e.g., mortality in controls must not exceed a certain percentage) (5 marks)?\nOR\nWere test acceptability criteria inferred (e.g., test method used [USEPA, OECD, ASTM etc]) (award 2 marks). Note: Invalid data must no",5,null,3,{"$f":"IF(F29=0,0,INDEX($D29:$D31,F29,1))","v":0}]
[null,null,null,2]
[null,null,null,0]
[null,8,"Were the characteristics of the test organism (e.g., length, mass, age) stated?",5,null,1,{"$f":"IF(F32=0,0,INDEX($D32:$D34,F32,1))","v":5}]
[null,null,null,0]
[]
[null,9,"Was the type of test media used stated?",5,null,1,{"$f":"IF(F35=0,0,INDEX($D35:$D37,F35,1))","v":5}]
[null,null,null,0]
[]
[null,null,"Was the type of exposure (e.g. static, flow through) stated? ",4,null,2,{"$f":"IF(F38=0,0,INDEX($D38:$D40,F38,1))","v":0}]
[null,10,null,0]
[]
[null,null,"Were the contaminant concentrations measured?",4,null,2,{"$f":"IF(F41=0,0,INDEX($D41:$D43,F41,1))","v":0}]
[null,11,null,0]
[]
[null,null,"Were parallel reference toxicant toxicity tests conducted?",4,null,2,{"$f":"IF(F44=0,0,INDEX($D44:$D46,F44,1))","v":0}]
[null,12,null,0]
[]
[null,null,"Was there a concentration–response relationship either observable or stated",4,null,2,{"$f":"IF(F47=0,0,INDEX($D47:$D49,F47,1))","v":0}]
[null,13,null,0]
[]
[null,null,"Was an appropriate statistical method or model used to determine the toxicity?",4,null,1,{"$f":"IF(F50=0,0,INDEX($D50:$D52,F50,1))","v":4}]
[null,14,null,0]
[]
[null,15,"For LC/EC/BEC data values derived was an estimate of variability provided? Or                                         If NO EC/LOEC data, was the significance level 0.05 or less?\n\n",4,null,1,{"$f":"IF(F53=0,0,INDEX($D53:$D55,F53,1))","v":4}]
[null,null,null,0]
[]
[null,16,"Were the following parameters measured and stated? (3 marks if measured and stated, 1 if just measured)"]
[null,null,"pH",3,null,3,{"$f":"IF(F57=0,0,INDEX($D57:$D59,F57,1))","v":0}]
[null,16.100000000000001,null,1]
[null,null,null,0]
[]
[null,null,"Alkalinity",3,null,3,{"$f":"IF(F61=0,0,INDEX($D61:$D63,F61,1))","v":0}]
[null,16.2,null,1]
[null,null,null,0]
[]
[null,null,"Conductivity/Salinity",3,null,1,{"$f":"IF(F65=0,0,INDEX($D65:$D67,F65,1))","v":3}]
[null,16.3,null,1]
[null,null,null,0]
[]
[null,null,"Dissolved oxygen",3,null,3,{"$f":"IF(F69=0,0,INDEX($D69:$D71,F69,1))","v":0}]
[null,16.399999999999999,null,1]
[null,null,null,0]
[]
[null,null," ",3,null,3,{"$f":"IF(F73=0,0,INDEX($D73:$D75,F73,1))","v":0}]
[null,16.5,null,1]
[null,null,null,0]
[]
[null,null," ",3,null,3,{"$f":"IF(F77=0,0,INDEX($D77:$D79,F77,1))","v":0}]
[null,16.600000000000001,null,1]
[null,null,null,0]
[]
[null,null,"Was the temperature measured and stated?",3,null,2,{"$f":"IF(F81=0,0,INDEX($D81:$D83,F81,1))","v":0}]
[null,17,null,0]
[]
[null,null,"Was the grade or purity of the test contaminant stated?",3,null,2,{"$f":"IF(F84=0,0,INDEX($D84:$D85,F84,1))","v":0}]
[null,18,null,0]
[]
[]
[null,19," ",3,null,2,{"$f":"IF(F88=0,0,INDEX($D88:$D89,F84,1))","v":0}]
[null,null,null,0,null,null,null,null,{"$f":"(COUNTIF(F12:F89,\"=0\"))+COUNTIF(F2:F10,\"=0\")","v":0}]
[null,null,"Total score",null,null,null,{"$f":"IF(SUM(G12:G88)=0,\"\",SUM(G12:G88))","v":51}]
[null,null,"Total Max. possible score for the various types of data and contaminants ",null,{"$f":"D12+D15+D18+D21+D23+D26+D29+D32+D35+D38+D41+D44+D47+D50+D53+D57+D61+D65+D69+D81+D84","v":97}]
[null,null,"Quality Score",null,{"$f":"\"= [Total score / Total possible score] * 100 = \"","v":"= [Total score / Total possible score] * 100 = "},null,{"$f":"IF(ISERROR(G90/E91),#N/A,G90/E91)","v":0.52577319587628868}]
[]
[null,null,"H = high quality                           Quality score >=80%      "]
[null,null,"A = acceptable quality         80%>Quality score>50%      "]
[null,null,"U = unacceptable quality              Quality score <=50%  "]
[]
[3,null,"CLICK \"Save&Update\" BUTTON TO SAVE ANSWER TO SAMPLE FINALISED ASSESSMENT SHEET"]

{"sheet":"Marine Quality","index":7,"n_rows":29,"n_cols":27,"rows_kept":29,"cut":false,"hidden":false,"merged":[]}
[]
["Question No.",1,2,3,4,5,6,7,8,9,10,11,12,13,14,15,16.100000000000001,16.2,16.3,16.399999999999999,16.5,16.600000000000001,17,18,19,"Total Score","Quality Score"]
["Short Questions","duration of the exposure ","biological endpoint","biological effect stated or not","biological effect qualified or not","Appropriate controls","control and contaminant concentration","test acceptability criteria","characteristics of the test organism"," type of test media","type of exposure","contaminant concentrations","parallel reference toxicant toxicity tests","concentration–response relationship"," statistical method or model to determine the toxicity","LC/EC/BEC data values ","pH","POC","Particle size","AVS & 1-M HCl extractable metals","Dissolved contaminants","Dissolved ammonia and sulfide","Temperature","Grade or purity","salinity/conductivity measured and stated"]
["Marks Awarded","10 or 0","10,5 or 0","5 or 0 ","5 or 0 ","5 or 0 ","5 or 0 ","5 or 0 ","5 or 0 ","5 or 0 ","4 or 0","4 or 0","4 or 0","4 or 0","4 or 0","4 or 0","3,1,or 0","3,1,or 0","3,1,or 0","3,1,or 0","3,1,or 0","3,1,or 0","3 or 0","3 or 0","3 or 0"]
["Max. Possible Score",10,10,5,5,5,5,5,5,5,4,4,4,4,4,4,3,3,3,3,3,3,3,3,3,{"$f":"SUM(B5:Y5)","v":106}]
["Category","Marine ","Paper and data unique identifier(eg. 1-1,10-150)","2-2"]
["Scores",10,10,5,5,5,5,2,5,5,4,4,4,4,4,4,3,3,3,3,3,3,3,3,3,103,0.97169811320754718]
["Answers","","","","",null,"","","","","","","","","","","","","","","","","","",""]
["Category","Marine ","Paper and data unique identifier(eg. 1-1,10-150)","923-1-OK"]
["Scores",10,10,5,5,5,5,0,5,5,0,0,0,4,0,4,0,0,3,0,0,0,3,3,3,70,0.72164948453608246]
["Answers","72 hours","The percent viability obtained from cell proliferation tests is relative to that of the control (untreated cells). ","IC",0.5,null,"Triplicates","","Log growth phase - tropozoites","Ham's F12 (1:2) medium supplemented with 5% fetal bovine serum (FBS).","","Not stated","","","Didn't specify a model here (Rachel confirmed)","","","","30 ppt","","","","28 degrees C","Technical grade (in abstract)",""]
["Category","Marine ","Paper and data unique identifier(eg. 1-1,10-150)","971-1"]
["Scores",10,5,0,0,5,5,0,5,5,4,4,0,0,4,4,3,0,0,0,0,0,3,3,3,63,0.64948453608247425]
["Answers","","","","",null,"","","","","","","","","","","","","","","","","","",""]
["Category","Marine ","Paper and data unique identifier(eg. 1-1,10-150)","971-2"]
["Scores",10,5,0,0,5,5,0,5,5,4,4,0,0,4,4,3,0,0,0,0,0,3,3,3,63,0.64948453608247425]
["Answers","","","","",null,"","","","","","","","","","","","","","","","","","",""]
["Category","Marine ","Paper and data unique identifier(eg. 1-1,10-150)","971-3"]
["Scores",10,5,0,0,5,5,0,5,5,4,4,0,0,4,4,3,0,0,0,0,0,3,3,3,63,0.64948453608247425]
["Answers","","","","",null,"","","","","","","","","","","","","","","","","","",""]
["Category","Marine ","Paper and data unique identifier(eg. 1-1,10-150)","972-1"]
["Scores",10,10,0,0,5,5,0,5,5,0,0,0,0,4,4,0,0,3,0,0,0,0,0,0,51,0.52577319587628868]
["Answers","","","","",null,"","","","","","","","","","","","","","","","","","",""]
["Category","Marine ","Paper and data unique identifier(eg. 1-1,10-150)","972-2"]
["Scores",10,10,0,0,5,5,0,5,5,0,0,0,0,4,4,0,0,3,0,0,0,0,0,0,51,0.52577319587628868]
["Answers","","","","",null,"","","","","","","","","","","","","","","","","","",""]
["Category","Marine ","Paper and data unique identifier(eg. 1-1,10-150)","972-3"]
["Scores",10,10,0,0,5,5,0,5,5,0,0,0,0,4,4,0,0,3,0,0,0,0,0,0,51,0.52577319587628868]
["Answers","","","","",null,"","","","","","","","","","","","","","","","","","",""]

{"sheet":"Terrestrial Data QA","index":8,"n_rows":98,"n_cols":25,"rows_kept":98,"cut":false,"hidden":false,"merged":[[72,7,75,7],[34,2,36,2],[28,2,30,2],[57,2,60,2],[37,2,39,2],[40,2,42,2],[72,2,75,2],[43,2,45,2],[31,2,33,2],[69,2,71,2],[46,2,48,2],[49,2,51,2],[53,2,56,2],[61,2,64,2],[65,2,68,2],[69,7,71,7],[11,2,13,2],[20,2,21,2],[22,2,24,2],[25,2,27,2],[14,2,16,2],[17,2,19,2],[61,7,64,7],[65,7,68,7],[11,7,13,7],[49,7,51,7],[14,7,16,7],[22,7,24,7],[25,7,27,7],[17,7,19,7],[20,7,21,7],[3,4,7,4],[53,7,56,7],[57,7,60,7],[37,7,39,7],[40,7,42,7],[43,7,45,7],[46,7,48,7],[34,7,36,7],[28,7,30,7],[31,7,33,7],[80,2,82,2],[80,7,82,7],[83,2,86,2],[83,7,86,7],[76,2,79,2],[76,7,79,7]]}
[null,1,"FILL IN BLANKS BELOW,PICK OPTIONS FROM DROPDOWN LIST",null,null,null,null,null,null,null,"* All the text in Blue are used for drop down list ,make changes with caution."]
[null,null,"Category",null,"Terrestrial Quality",{"$f":"IF(M3=\"\",0,1)","v":0},"Citation No.",{"$f":"IF(E3=\"\",\"\",LEFT(E3,FIND(\"-\",E3) -1))","v":""},null,null,"Species",null,null,"Lifestage",null,null,"Exposure duration",null,null,"Measure of toxicity",null,null,"Toxicity endpoint"]
[null,null,"Paper and data unique identifier(eg. 1-1,10-150)",null,null,{"$f":"IF(E3=\"\",0,1)","v":0},"Species (Scientific name)",null,null,null,"Australian Bass",0,{"$f":"IF(L3=0,\"\",INDEX(K3:K47,L3))","v":""},"Phase 1",0,{"$f":"IF(O3=0,\"\",INDEX(N3:N47,O3))","v":""},"1 hour ",0,{"$f":"IF(R3=0,\"\",INDEX(Q3:Q47,R3))","v":""},"Method 1",0,{"$f":"IF(U3=0,\"\",INDEX(T3:T47,U3))","v":""},0.01,0,{"$f":"IF(X3=0,\"\",INDEX(W3:W47,X3))","v":""}]
[null,null,"Citation",null,null,{"$f":"IF(E4=\"\",0,1)","v":0},"Lifestage",null,null,null,"Bala Shark",null,null,"Phase 2",null,null,"2 hours",null,null,"Method 2",null,null,0.02]
[null,null,null,null,null,{"$f":"IF(S3=\"\",0,1)","v":0},"Exposure duration",null,null,null,"Basa",null,null,"Phase 3",null,null,"3 hours",null,null,"Method 3",null,null,0.03]
[null,null,null,null,null,{"$f":"IF(V3=\"\",0,1)","v":0},"Measure of toxicity",null,null,null,"Black Parinha",null,null,"Phase 4",null,null,"4 hours",null,null,"Method 4",null,null,0.04]
[null,null,null,null,null,{"$f":"IF(Y3=\"\",0,1)","v":0},"Toxicity endpoint",null,null,null,"Catfish",null,null,"Phase 5",null,null,"5 Hours",null,null,"Method 5",null,null,0.05]
[null,null,null,null,null,{"$f":"IF(H8=\"\",0,1)","v":0},"Toxicity value",null,null,null,null,null,null,"phase 6"]
[null,2,"CHOOSE ANSWER OPTIONS AND FILL IN ANSWERS IN ANSWER COLUMN",null,null,{"$f":"IF(M3=\"\",0,1)","v":0}]
[null,"*","If had problem click on answer options,click on any  other cells first and then click back again",null,null,{"$f":"IF(P3=\"\",0,1)","v":0}]
[null,"No.","Question","Marks Awarded","Answer Options","Option References","Scores","Answers"]
[null,null,"Was the duration of the exposure stated (e.g., 48 or 96 h)?",10,null,0,{"$f":"IF(F15=0,0,INDEX($D12:$D13,F12,1))","v":0}]
[null,1,null,0]
[]
[null,null,"Was the biological endpoint (e.g., immobilization or population growth) stated and defined (10 marks)? Award 5 marks if the biological endpoint is only stated.",10,null,0,{"$f":"IF(F15=0,0,INDEX($D15:$D17,F15,1))","v":0}]
[null,2,null,5]
[null,null,null,0]
[null,null,"Was the biological effect stated (e.g., LC or NOEC)?",5,null,0,{"$f":"IF(F18=0,0,INDEX($D18:$D19,F18,1))","v":0}]
[null,3,null,0]
[]
[null,4,"Was the biological effect quantified (e.g., 50% effect, 25% effect)? The effect for NOEC and LOEC data must be quantified.",5,null,0,{"$f":"IF(F21=0,0,INDEX($D21:$D22,F21,1))","v":0}]
[null,null,null,0]
[null,5,"Were appropriate controls (e.g., a no-toxicant control and/or solvent control) used?",5,null,0,{"$f":"IF(F23=0,0,INDEX($D23:$D24,F23,1))","v":0}]
[null,null,null,0]
[]
[null,6,"Was each control and contaminant concentration at least duplicated?",5,null,0,{"$f":"IF(F26=0,0,INDEX($D26:$D27,F26,1))","v":0}]
[null,null,null,0]
[]
[null,7,"Were test acceptability criteria stated (e.g., mortality in controls must not exceed a certain percentage) (5 marks)?\nOR\nWere test acceptability criteria inferred (e.g., test method used [USEPA, OECD, ASTM etc]) (award 2 marks). Note: Invalid data must no",5,null,0,{"$f":"IF(F29=0,0,INDEX($D29:$D31,F29,1))","v":0}]
[null,null,null,2]
[null,null,null,0]
[null,8,"Were the characteristics of the test organism (e.g., length, mass, age) stated?",5,null,0,{"$f":"IF(F32=0,0,INDEX($D32:$D34,F32,1))","v":0}]
[null,null,null,0]
[]
[null,9,"Was the type of test media used stated?",5,null,0,{"$f":"IF(F35=0,0,INDEX($D35:$D37,F35,1))","v":0}]
[null,null,null,0]
[]
[null,null,"Were the contaminant concentrations measured?",4,null,0,{"$f":"IF(F38=0,0,INDEX($D38:$D40,F38,1))","v":0}]
[null,10,null,0]
[]
[null,null,"Were parallel reference toxicant toxicity tests conducted?",4,null,0,{"$f":"IF(F41=0,0,INDEX($D41:$D43,F41,1))","v":0}]
[null,11,null,0]
[]
[null,null,"Was there a concentration–response relationship either observable or stated",4,null,0,{"$f":"IF(F44=0,0,INDEX($D44:$D46,F44,1))","v":0}]
[null,12,null,0]
[]
[null,null,"Was an appropriate statistical method or model used to determine the toxicity?",4,null,0,{"$f":"IF(F47=0,0,INDEX($D47:$D49,F47,1))","v":0}]
[null,13,null,0]
[]
[null,14,"For NOEC/LOEC data was the significance level 0.05 or less?   Or                                         For LC/EC/BEC data was an estimate of variability provided?\n\n",4,null,0,{"$f":"IF(F50=0,0,INDEX($D50:$D52,F50,1))","v":0}]
[null,null,null,0]
[]
[null,15,"Were the following parameters measured and stated? (3 marks if measured and stated, 1 if just measured)"]
[null,null,"pH",3,null,0,{"$f":"IF(F54=0,0,INDEX($D54:$D56,F54,1))","v":0}]
[null,15.1,null,1]
[null,null,null,0]
[]
[null,null,"OM or OC content",3,null,0,{"$f":"IF(F58=0,0,INDEX($D58:$D60,F58,1))","v":0}]
[null,15.2,null,1]
[null,null,null,0]
[]
[null,null,"Clay Contect",3,null,0,{"$f":"IF(F62=0,0,INDEX($D62:$D64,F62,1))","v":0}]
[null,15.3,null,1]
[null,null,null,0]
[]
[null,null,"CEC",3,null,0,{"$f":"IF(F66=0,0,INDEX($D66:$D68,F66,1))","v":0}]
[null,15.4,null,1]
[null,null,null,0]
[]
[null,null,"Was the temperature measured and stated?",3,null,0,{"$f":"IF(F70=0,0,INDEX($D70:$D72,F70,1))","v":0}]
[null,16,null,0]
[]
[null,null,"Was the grade or purity of the test contaminant stated?",3,null,0,{"$f":"IF(F73=0,0,INDEX($D73:$D74,F73,1))","v":0}]
[null,17,null,0]
[]
[]
[null,null,"Were other cations and or major soil elements measured?                                                  Or                                                                                                                             Were known interacting elements on bioavailability measured (e.g. Mo for Cu and Cl for Cd)?",3,null,0,{"$f":"IF(F77=0,0,INDEX($D77:$D78,F77,1))","v":0}]
[null,18,null,0]
[]
[]
[null,null,"For spiked soils with metal salts: Were the soils leached after spiking?",3,null,0,{"$f":"IF(F81=0,0,INDEX($D81:$D83,F81,1))","v":0}]
[null,19,null,0]
[]
[null,null,"Were the incubation conditions and duration stated?",3,null,0,{"$f":"IF(F84=0,0,INDEX($D84:$D87,F84,1))","v":0}]
[null,20,null,1]
[null,null,null,0]
[null,null,null,null,null,null,null,null,{"$f":"(COUNTIF(F12:F87,\"=0\"))+COUNTIF(F2:F10,\"=0\")","v":32}]
[]
[]
[null,null,"Total Score",null,null,null,{"$f":"IF(SUM(G12:G84)=0,\"\",SUM(G12:G84))","v":""}]
[null,null,"Total Max. possible score for the various types of data and contaminants ",null,{"$f":"D12+D15+D18+D21+D23+D26+D29+D32+D35+D38+D41+D44+D47+D50+D54+D58+D62+D66+D70+D73+D77+D81+D84","v":102}]
[null,null,"Quality Score",null,{"$f":"\"= [Total score / Total possible score] * 100 = \"","v":"= [Total score / Total possible score] * 100 = "},null,{"$f":"IF(ISERROR(G90/E91),#N/A,G90/E91)","v":{"$error":"#N/A"}}]
[]
[null,null,"H = high quality                           Quality score >=80%      "]
[null,null,"A = acceptable quality         80%>Quality score>50%      "]
[null,null,"U = unacceptable quality              Quality score <=50%  "]
[]
[3,null,"CLICK \"Save&Update\" BUTTON TO SAVE ANSWER TO SAMPLE FINALISED ASSESSMENT SHEET"]

{"sheet":"Terrestrial Quality","index":9,"n_rows":11,"n_cols":26,"rows_kept":11,"cut":false,"hidden":false,"merged":[]}
[]
["Question No.",1,2,3,4,5,6,7,8,9,10,11,12,13,14,15.1,15.2,15.3,15.4,16,17,18,19,20,"Total Score","Quality Score"]
["Short Questions","duration of the exposure  ","biological endpoint","biological effect stated or not","biological effect qualified or not","appropriate controls","control & contaminant concentration","test acceptability criteria ","characteristics of the test organism"," type of test media"," contaminant concentrations "," parallel reference toxicant toxicity","concentration–response relationship"," statistical method or model to determine the toxicity","LC/EC/BEC data","pH","OM or OC content","Clay content","CEC","Temperature","Grade or purity","cations and or major soil elements measured or  interacting elements on bioavailability measured ","soils leached after spiking","incubation conditions and duration"]
["Marks Awarded","10 or 0","10,5 or 0","5 or 0 ","5 or 0 ","5 or 0 ","5 or 0 ","5 ,2 or 0 ","5 or 0 ","5 or 0 ","4 or 0","4 or 0","4 or 0","4 or 0","4 or 0","3,1,or 0","3,1,or 0","3,1,or 0","3,1,or 0","3 or 0","3 or 0","3 or 0","3 or 0","3 or 0"]
["Max. Possible Score",10,10,5,5,5,5,5,5,5,4,4,4,4,4,3,3,3,3,3,3,3,3,3,{"$f":"SUM(B5:X5)","v":102}]
["Category","Terrestrial Quality","Paper and data unique identifier(eg. 1-1,10-150)","3-1"]
["Scores",0,0,5,0,5,5,5,5,0,0,4,4,0,0,3,3,0,0,3,3,3,0,0,48,0.47058823529411764]
["Answers","","","","","","","","","","","","","","","","","","","","","","",""]
["Category","Terrestrial Quality","Paper and data unique identifier(eg. 1-1,10-150)","3-2"]
["Scores",0,5,0,0,0,0,2,0,5,4,4,4,4,4,3,3,3,3,3,3,3,3,3,59,0.57843137254901966]
["Answers","","","","","","","","","","","","","","","","","","","","","","",""]

{"sheet":"Sediment Data QA","index":10,"n_rows":103,"n_cols":25,"rows_kept":103,"cut":false,"hidden":false,"merged":[[3,4,7,4],[56,7,59,7],[60,7,63,7],[40,7,42,7],[43,7,45,7],[46,7,48,7],[11,7,13,7],[17,7,19,7],[49,7,51,7],[34,7,36,7],[14,7,16,7],[20,7,21,7],[28,7,30,7],[31,7,33,7],[11,2,13,2],[20,2,21,2],[22,2,24,2],[25,2,27,2],[14,2,16,2],[17,2,19,2],[28,2,30,2],[22,7,24,7],[25,7,27,7],[31,2,33,2],[37,7,39,7],[34,2,36,2],[37,2,39,2],[40,2,42,2],[46,2,48,2],[49,2,51,2],[52,2,54,2],[43,2,45,2],[91,2,92,2],[89,7,90,7],[91,7,92,7],[87,7,88,7],[83,7,86,7],[83,2,86,2],[72,7,75,7],[76,7,79,7],[52,7,54,7],[89,2,90,2],[68,2,71,2],[80,2,82,2],[72,2,75,2],[76,2,79,2],[80,7,82,7],[64,2,67,2],[64,7,67,7],[68,7,71,7],[60,2,63,2],[56,2,59,2]]}
[null,1,"FILL IN BLANKS BELOW,PICK OPTIONS FROM DROPDOWN LIST",null,null,null,null,null,null,null,"* All the text in Blue are used for drop down list ,make changes with caution."]
[null,null,"Category",null,"Sediment ",{"$f":"IF(M3=\"\",0,1)","v":0},"Citation No.",{"$f":"IF(E3=\"\",\"\",LEFT(E3,FIND(\"-\",E3) -1))","v":""},null,null,"Species",null,null,"Lifestage",null,null,"Exposure duration",null,null,"Measure of toxicity",null,null,"Toxicity endpoint"]
[null,null,"Paper and data unique identifier(eg. 1-1,10-150)",null,null,{"$f":"IF(E3=\"\",0,1)","v":0},"Species (Scientific name)",null,null,null,"Australian Bass",0,{"$f":"IF(L3=0,\"\",INDEX(K3:K50,L3))","v":""},"Phase 1",0,{"$f":"IF(O3=0,\"\",INDEX(N3:N50,O3))","v":""},"1 hour ",0,{"$f":"IF(R3=0,\"\",INDEX(Q3:Q50,R3))","v":""},"Method 1",0,{"$f":"IF(U3=0,\"\",INDEX(T3:T50,U3))","v":""},0.01,0,{"$f":"IF(X3=0,\"\",INDEX(W3:W50,X3))","v":""}]
[null,null,"Citation",null,null,{"$f":"IF(E4=\"\",0,1)","v":0},"Lifestage",null,null,null,"Bala Shark",null,null,"Phase 10",null,null,"2 hours",null,null,"Method 10",null,null,0.02]
[null,null,null,null,null,{"$f":"IF(S3=\"\",0,1)","v":0},"Exposure duration",null,null,null,"Basa",null,null,"phase 14",null,null,"3 hours",null,null,"Method 2",null,null,0.03]
[null,null,null,null,null,{"$f":"IF(V3=\"\",0,1)","v":0},"Measure of toxicity",null,null,null,"Black Parinha",null,null,"Phase 2",null,null,"4 hours",null,null,"Method 3",null,null,0.04]
[null,null,null,null,null,{"$f":"IF(Y3=\"\",0,1)","v":0},"Toxicity endpoint",null,null,null,"Catfish",null,null,"Phase 3",null,null,"5 hours",null,null,"Method 4",null,null,0.05]
[null,null,null,null,null,{"$f":"IF(H8=\"\",0,1)","v":0},"Toxicity value",null,null,null,"Eel",null,null,"Phase 4",null,null,"6 hours",null,null,"Method 5",null,null,0.06]
[null,2,"CHOOSE ANSWER OPTIONS AND FILL IN ANSWERS IN ANSWER COLUMN",null,null,{"$f":"IF(M3=\"\",0,1)","v":0},null,null,null,null,"Lungfish",null,null,"Phase 5",null,null,"7 hours",null,null,"Method 6",null,null,7.0000000000000007E-2]
[null,"*","If had problem click on answer options,click on any  other cells first and then click back again",null,null,{"$f":"IF(P3=\"\",0,1)","v":0},null,null,null,null,"Murray Cod",null,null,"Phase 6",null,null,"8 hours",null,null,"Method 7",null,null,0.08]
[null,"No.","Question","Marks Awarded","Answer Options","Option References","Scores","Answers",null,null,"Nemo",null,null,"Phase 7 ",null,null,"9 hours",null,null,"Method 8",null,null,0.09]
[null,null,"Was the duration of the exposure stated (e.g., 48 or 96 h)?",10,null,0,{"$f":"IF(F15=0,0,INDEX($D12:$D13,F12,1))","v":0},null,null,null,"Redclaw",null,null,"Phase 8",null,null,null,null,null,null,null,null,0.1]
[null,1,null,0,null,null,null,null,null,null,"Sea Mullet",null,null,"Phase 9"]
[null,null,null,null,null,null,null,null,null,null,"SilverPerch"]
[null,null,"Was the biological endpoint (e.g., immobilization or population growth) stated and defined (10 marks)? Award 5 marks if the biological endpoint is only stated.",10,null,0,{"$f":"IF(F15=0,0,INDEX($D15:$D17,F15,1))","v":0},null,null,null,"Whale"]
[null,2,null,5]
[null,null,null,0]
[null,null,"Was the biological effect stated (e.g., LC or NOEC)?",5,null,0,{"$f":"IF(F18=0,0,INDEX($D18:$D19,F18,1))","v":0}]
[null,3,null,0]
[]
[null,4,"Was the biological effect quantified (e.g., 50% effect, 25% effect)? The effect for NOEC and LOEC data must be quantified.",5,null,0,{"$f":"IF(F21=0,0,INDEX($D21:$D22,F21,1))","v":0}]
[null,null,null,0]
[null,5,"Were appropriate controls (e.g., a no-toxicant control and/or solvent control) used?",5,null,0,{"$f":"IF(F23=0,0,INDEX($D23:$D24,F23,1))","v":0}]
[null,null,null,0]
[]
[null,6,"Was each control and contaminant concentration at least duplicated?",5,null,0,{"$f":"IF(F26=0,0,INDEX($D26:$D27,F26,1))","v":0}]
[null,null,null,0]
[]
[null,7,"Were test acceptability criteria stated (e.g., mortality in controls must not exceed a certain percentage) (5 marks)?\nOR\nWere test acceptability criteria inferred (e.g., test method used [USEPA, OECD, ASTM etc]) (award 2 marks). Note: Invalid data must no",5,null,0,{"$f":"IF(F29=0,0,INDEX($D29:$D31,F29,1))","v":0}]
[null,null,null,2]
[null,null,null,0]
[null,8,"Were the characteristics of the test organism (e.g., length, mass, age) stated?",5,null,0,{"$f":"IF(F32=0,0,INDEX($D32:$D34,F32,1))","v":0}]
[null,null,null,0]
[]
[null,9,"Was the type of test media used stated?",5,null,0,{"$f":"IF(F35=0,0,INDEX($D35:$D37,F35,1))","v":0}]
[null,null,null,0]
[]
[null,null,"Was the type of exposure (e.g. static, flow through) stated? ",4,null,0,{"$f":"IF(F38=0,0,INDEX($D38:$D40,F38,1))","v":0}]
[null,10,null,0]
[]
[null,null,"Were the contaminant concentrations measured?",4,null,0,{"$f":"IF(F41=0,0,INDEX($D41:$D43,F41,1))","v":0}]
[null,11,null,0]
[]
[null,null,"Were parallel reference toxicant toxicity tests conducted?",4,null,0,{"$f":"IF(F44=0,0,INDEX($D44:$D46,F44,1))","v":0}]
[null,12,null,0]
[]
[null,null,"Was there a concentration–response relationship either observable or stated",4,null,0,{"$f":"IF(F47=0,0,INDEX($D47:$D49,F47,1))","v":0}]
[null,13,null,0]
[]
[null,null,"Was an appropriate statistical method or model used to determine the toxicity?",4,null,0,{"$f":"IF(F50=0,0,INDEX($D50:$D52,F50,1))","v":0}]
[null,14,null,0]
[]
[null,15,"For LC/EC/BEC data values derived was an estimate of variability provided? (10/20 effects data desirable)\nOR If NO EC/LOEC data, was the significance level 0.05 or less?                                                 \n\n",4,null,0,{"$f":"IF(F53=0,0,INDEX($D53:$D55,F53,1))","v":0}]
[null,null,null,0]
[]
[null,16,"Were the following parameters measured and stated? (3 marks if measured and stated, 1 if just measured)"]
[null,null,"pH",3,null,0,{"$f":"IF(F57=0,0,INDEX($D57:$D59,F57,1))","v":0}]
[null,16.100000000000001,null,1]
[null,null,null,0]
[]
[null,null,"Particulate organic carbon (POC)",3,null,0,{"$f":"IF(F61=0,0,INDEX($D61:$D63,F61,1))","v":0}]
[null,16.2,null,1]
[null,null,null,0]
[]
[null,null,"Particle size (e.g. <63 µm or silt/clay)",3,null,0,{"$f":"IF(F65=0,0,INDEX($D65:$D67,F65,1))","v":0}]
[null,16.3,null,1]
[null,null,null,0]
[]
[null,null,"Acid-volatile sulfide (AVS) and 1-M HCl extractable metals",3,null,0,{"$f":"IF(F69=0,0,INDEX($D69:$D71,F69,1))","v":0}]
[null,16.399999999999999,null,1]
[null,null,null,0]
[]
[null,null,"Dissolved contaminants (e.g. metals) in porewater or overlying water",3,null,0,{"$f":"IF(F73=0,0,INDEX($D73:$D75,F73,1))","v":0}]
[null,16.5,null,1]
[null,null,null,0]
[]
[null,null,"Dissolved ammonia and sulfide in porewater or overlying water",3,null,0,{"$f":"IF(F77=0,0,INDEX($D77:$D79,F77,1))","v":0}]
[null,16.600000000000001,null,1]
[null,null,null,0]
[]
[null,null,"Was the temperature measured and stated?",3,null,0,{"$f":"IF(F81=0,0,INDEX($D81:$D83,F81,1))","v":0}]
[null,17,null,0]
[]
[null,null,"Was the grade or purity of the test contaminant stated?",3,null,0,{"$f":"IF(F84=0,0,INDEX($D84:$D85,F84,1))","v":0}]
[null,18,null,0]
[]
[]
[null,19,"Was the salinity/conductivity measured and stated?",3,null,0,{"$f":"IF(F88=0,0,INDEX($D88:$D89,F88,1))","v":0}]
[null,null,null,0]
[null,20,"Was the alkalinity, hardness, or concentrations of Ca and Mg measured in the overlying water?Were known interacting elements on bioavailability measured (e.g. Cl for Cd)?",3,null,0,{"$f":"IF(F90=0,0,INDEX($D90:$D91,F90,1))","v":0}]
[null,null,null,0]
[null,21,"For sediments spiked with metal salts were the equilibration conditions adequate?",3,null,0,{"$f":"IF(F92=0,0,INDEX($D92:$D93,F92,1))","v":0}]
[null,null,null,0,null,null,null,null,{"$f":"(COUNTIF(F12:F93,\"=0\"))+COUNTIF(F2:F10,\"=0\")","v":35}]
[]
[null,null,"Total score",null,null,null,{"$f":"IF(SUM(G12:G92)=0,\"\",SUM(G12:G92))","v":""}]
[null,null,"Total Max. possible score for the various types of data and contaminants ",null,{"$f":"D12+D15+D18+D21+D23+D26+D29+D32+D35+D38+D41+D44+D47+D50+D53+D57+D61+D65+D69+D73+D77+D81+D84+D88+D90+D92","v":112}]
[null,null,"Quality Score",null,{"$f":"\"= [Total score / Total possible score] * 100 = \"","v":"= [Total score / Total possible score] * 100 = "},null,{"$f":"IF(ISERROR(G95/E96),#N/A,G95/E96)","v":{"$error":"#N/A"}}]
[]
[null,null,"H = high quality                           Quality score >=80%      "]
[null,null,"A = acceptable quality         80%>Quality score>50%      "]
[null,null,"U = unacceptable quality              Quality score <=50%  "]
[]
[3,null,"CLICK \"Save&Update\" BUTTON TO SAVE ANSWER TO SAMPLE FINALISED ASSESSMENT SHEET"]

{"sheet":"Sediment Quality","index":11,"n_rows":8,"n_cols":29,"rows_kept":8,"cut":false,"hidden":false,"merged":[]}
[]
["Question No.",1,2,3,4,5,6,7,8,9,10,11,12,13,14,15,16.100000000000001,16.2,16.3,16.399999999999999,16.5,16.600000000000001,17,18,19,20,21,"Total Score","Quality Score"]
["Short Questions","duration of the exposure ","biological endpoint","biological effect stated ornot","biological effect quantified or not","appropriate controls","control & contaminant concentration","test acceptability criteria","characteristics of the test organism"," type of test media","type of exposure","contaminant concentrations","parallel reference toxicant toxicity tests","concentration–response relationship","determine the toxicity","LC/EC/BEC ","pH","POC","Particle size","AVS & 1-M HCl extractable metals","Dissolved contaminants","Dissolved ammonia and sulfide","Temperature","Grade or purity"," salinity/conductivity","alkalinity, hardness, or concentrations of Ca and Mg","equilibration conditions "]
["Marks Awarded","10 or 0","10,5 or 0","5 or 0 ","5 or 0 ","5 or 0 ","5 or 0 ","5 or 0 ","5 or 0 ","5 or 0 ","4 or 0","4 or 0","4 or 0","4 or 0","4 or 0","4 or 0","3,1,or 0","3,1,or 0","3,1,or 0","3,1,or 0","3,1,or 0","3,1,or 0","3 or 0","3 or 0","3 or 0","3 or 0"]
["Max. Possible Score",10,10,5,5,5,5,5,5,5,4,4,4,4,4,4,3,3,3,3,3,3,3,3,3,3,3,{"$f":"SUM(B5:AA5)","v":112}]
["Category","Sediment ","Paper and data unique identifier(eg. 1-1,10-150)","4-1"]
["Scores",0,0,5,5,5,0,5,5,5,4,0,0,4,0,0,3,3,3,0,0,3,3,3,3,3,3,65,0.5803571428571429]
["Answers","","","","","","","","","","","","","","","","","","","","","","","","","",""]

{"sheet":"All Result","index":12,"n_rows":487,"n_cols":29,"rows_kept":487,"cut":false,"hidden":false,"merged":[[327,0,327,11]]}
[{"$f":"'Fresh Data QA'!C2","v":"Category"},{"$f":"'Fresh Data QA'!C3","v":"Paper and data unique identifier(eg. 1-1,10-150)"},{"$f":"'Fresh Data QA'!C90","v":"Total score"},{"$f":"'Fresh Data QA'!C92","v":"Quality Score"},{"$f":"'Fresh Data QA'!G3","v":"Species (Scientific name)"},{"$f":"'Fresh Data QA'!G4","v":"Lifestage"},{"$f":"'Fresh Data QA'!G5","v":"Exposure duration"},{"$f":"'Fresh Data QA'!G6","v":"Measure of toxicity"},{"$f":"'Fresh Data QA'!G7","v":"Toxicity endpoint"},{"$f":"'Fresh Data QA'!G8","v":"Toxicity value"},{"$f":"'Fresh Data QA'!C4","v":"Citation"},{"$f":"'Fresh Data QA'!G2","v":"Citation No."},"Formulation / Data Check"]
["Freshwater","869-1",62,0.60194174757281549,"Scenedesmus subspicatus","Exponential Growth Phase","72 hours","Population: Abundance","EC50","26 mg/L","Vendrell,E., D.G.B. Ferraz, C. Sabater, and J.M. Carrasco, 2009. Effect of Glyphosate on Growth of Four Freshwater Species of Phytoplankton: A Microplate Bioassay, Bull. Environ. Contam. Toxicol.82(5): 538-542. ","869","Phosphonomethyl "]
["Freshwater","869-2",62,0.60194174757281549,"Scenedesmus subspicatus","Exponential Growth Phase","72 hours","Population: Abundance","EC10","1.6 mg/L","Vendrell,E., D.G.B. Ferraz, C. Sabater, and J.M. Carrasco, 2009. Effect of Glyphosate on Growth of Four Freshwater Species of Phytoplankton: A Microplate Bioassay, Bull. Environ. Contam. Toxicol.82(5): 538-542. ","869","Phosphonomethyl "]
["Freshwater","869-3",62,0.60194174757281549,"Scenedesmus subspicatus","Exponential Growth Phase","72 hours","Population: Abundance","NOEC","0.1 mg/L","Vendrell,E., D.G.B. Ferraz, C. Sabater, and J.M. Carrasco, 2009. Effect of Glyphosate on Growth of Four Freshwater Species of Phytoplankton: A Microplate Bioassay, Bull. Environ. Contam. Toxicol.82(5): 538-542. ","869","Phosphonomethyl "]
["Freshwater","869-4",62,0.60194174757281549,"Scenedesmus subspicatus","Exponential Growth Phase","72 hours","Population: Abundance","LOEC","0.39 mg/L","Vendrell,E., D.G.B. Ferraz, C. Sabater, and J.M. Carrasco, 2009. Effect of Glyphosate on Growth of Four Freshwater Species of Phytoplankton: A Microplate Bioassay, Bull. Environ. Contam. Toxicol.82(5): 538-542. ","869","Phosphonomethyl "]
["Freshwater","869-5",62,0.60194174757281549,"Scenedesmus acutus","Exponential Growth Phase","72 hours","Population: Abundance","EC50","24.5 mg/L","Vendrell,E., D.G.B. Ferraz, C. Sabater, and J.M. Carrasco, 2009. Effect of Glyphosate on Growth of Four Freshwater Species of Phytoplankton: A Microplate Bioassay, Bull. Environ. Contam. Toxicol.82(5): 538-542. ","869","Phosphonomethyl "]
["Freshwater","869-6",62,0.60194174757281549,"Scenedesmus acutus","Exponential Growth Phase","72 hours","Population: Abundance","LOEC","0.1 mg/L","Vendrell,E., D.G.B. Ferraz, C. Sabater, and J.M. Carrasco, 2009. Effect of Glyphosate on Growth of Four Freshwater Species of Phytoplankton: A Microplate Bioassay, Bull. Environ. Contam. Toxicol.82(5): 538-542. ","869","Phosphonomethyl "]
["Freshwater","869-7",62,0.60194174757281549,"Chlorella vulgaris","Exponential Growth Phase","72 hours","Population: Abundance","EC50","41.7 mg/L","Vendrell,E., D.G.B. Ferraz, C. Sabater, and J.M. Carrasco, 2009. Effect of Glyphosate on Growth of Four Freshwater Species of Phytoplankton: A Microplate Bioassay, Bull. Environ. Contam. Toxicol.82(5): 538-542. ","869","Phosphonomethyl "]
["Freshwater","869-8",62,0.60194174757281549,"Chlorella vulgaris","Exponential Growth Phase","72 hours","Population: Abundance","LOEC","0.1 mg/L","Vendrell,E., D.G.B. Ferraz, C. Sabater, and J.M. Carrasco, 2009. Effect of Glyphosate on Growth of Four Freshwater Species of Phytoplankton: A Microplate Bioassay, Bull. Environ. Contam. Toxicol.82(5): 538-542. ","869","Phosphonomethyl "]
["Freshwater","869-9",62,0.60194174757281549,"Chlorella saccharophila","Exponential Growth Phase","72 hours","Population: Abundance","EC50","40.6 mg/L","Vendrell,E., D.G.B. Ferraz, C. Sabater, and J.M. Carrasco, 2009. Effect of Glyphosate on Growth of Four Freshwater Species of Phytoplankton: A Microplate Bioassay, Bull. Environ. Contam. Toxicol.82(5): 538-542. ","869","Phosphonomethyl "]
["Freshwater","869-10",62,0.60194174757281549,"Chlorella saccharophila","Exponential Growth Phase","72 hours","Population: Abundance","EC10","3.0 mg/L","Vendrell,E., D.G.B. Ferraz, C. Sabater, and J.M. Carrasco, 2009. Effect of Glyphosate on Growth of Four Freshwater Species of Phytoplankton: A Microplate Bioassay, Bull. Environ. Contam. Toxicol.82(5): 538-542. ","869","Phosphonomethyl "]
["Freshwater","869-11",62,0.60194174757281549,"Chlorella saccharophila","Exponential Growth Phase","72 hours","Population: Abundance","NOEC","0.1 mg/L","Vendrell,E., D.G.B. Ferraz, C. Sabater, and J.M. Carrasco, 2009. Effect of Glyphosate on Growth of Four Freshwater Species of Phytoplankton: A Microplate Bioassay, Bull. Environ. Contam. Toxicol.82(5): 538-542. ","869","Phosphonomethyl "]
["Freshwater","869-12",62,0.60194174757281549,"Chlorella saccharophila","Exponential Growth Phase","72 hours","Population: Abundance","LOEC","0.39 mg/L","Vendrell,E., D.G.B. Ferraz, C. Sabater, and J.M. Carrasco, 2009. Effect of Glyphosate on Growth of Four Freshwater Species of Phytoplankton: A Microplate Bioassay, Bull. Environ. Contam. Toxicol.82(5): 538-542. ","869","Phosphonomethyl "]
["Freshwater","869-13",62,0.60194174757281549,"Scenedesmus subspicatus","Exponential Growth Phase","72 hours","Population: Growth Rate","LOEC","0.39 mg/L","Vendrell,E., D.G.B. Ferraz, C. Sabater, and J.M. Carrasco, 2009. Effect of Glyphosate on Growth of Four Freshwater Species of Phytoplankton: A Microplate Bioassay, Bull. Environ. Contam. Toxicol.82(5): 538-542. ","869","Phosphonomethyl "]
["Freshwater","869-14",62,0.60194174757281549,"Scenedesmus acutus","Exponential Growth Phase","72 hours","Population: Growth Rate","LOEC","0.1 mg/L","Vendrell,E., D.G.B. Ferraz, C. Sabater, and J.M. Carrasco, 2009. Effect of Glyphosate on Growth of Four Freshwater Species of Phytoplankton: A Microplate Bioassay, Bull. Environ. Contam. Toxicol.82(5): 538-542. ","869","Phosphonomethyl "]
["Freshwater","869-15",62,0.60194174757281549,"Chlorella vulgaris","Exponential Growth Phase","72 hours","Population: Growth Rate","LOEC","0.1 mg/L","Vendrell,E., D.G.B. Ferraz, C. Sabater, and J.M. Carrasco, 2009. Effect of Glyphosate on Growth of Four Freshwater Species of Phytoplankton: A Microplate Bioassay, Bull. Environ. Contam. Toxicol.82(5): 538-542. ","869","Phosphonomethyl "]
["Freshwater","869-16",62,0.60194174757281549,"Chlorella saccharophila","Exponential Growth Phase","72 hours","Population: Growth Rate","LOEC","1.56 mg/L","Vendrell,E., D.G.B. Ferraz, C. Sabater, and J.M. Carrasco, 2009. Effect of Glyphosate on Growth of Four Freshwater Species of Phytoplankton: A Microplate Bioassay, Bull. Environ. Contam. Toxicol.82(5): 538-542. ","869","Phosphonomethyl "]
["Freshwater","869-17",62,0.60194174757281549,"Scenedesmus subspicatus","Exponential Growth Phase","72 hours","Population: Growth Rate","NOEC","0.1 mg/L","Vendrell,E., D.G.B. Ferraz, C. Sabater, and J.M. Carrasco, 2009. Effect of Glyphosate on Growth of Four Freshwater Species of Phytoplankton: A Microplate Bioassay, Bull. Environ. Contam. Toxicol.82(5): 538-542. ","869","Phosphonomethyl "]
["Freshwater","869-18",62,0.60194174757281549,"Scenedesmus subspicatus","Exponential Growth Phase","72 hours","Population: Growth Rate","NOEC","0.39 mg/L","Vendrell,E., D.G.B. Ferraz, C. Sabater, and J.M. Carrasco, 2009. Effect of Glyphosate on Growth of Four Freshwater Species of Phytoplankton: A Microplate Bioassay, Bull. Environ. Contam. Toxicol.82(5): 538-542. ","869","Phosphonomethyl "]
["Freshwater","870-1",46,0.44660194174757284,"Microcystis aeruginosa","not-stated","48 hours","Population: Abundance","LOEC","1 uM","Saxton,M.A., E.A. Morrow, R.A. Bourbonniere, and S.W. Wilhelm, 2011. Glyphosate Influence on Phytoplankton Community Structure in Lake Erie, J. Gt. Lakes Res.37(4): 683-690.  ","870","Do Not Use - Purity not mentioned "]
["Freshwater","870-2",46,0.44660194174757284,"Planktothrix agardhii","not-stated","48 hours","Population: Abundance","LOEC","1 uM","Saxton,M.A., E.A. Morrow, R.A. Bourbonniere, and S.W. Wilhelm, 2011. Glyphosate Influence on Phytoplankton Community Structure in Lake Erie, J. Gt. Lakes Res.37(4): 683-690.  ","870","Do Not Use - Purity not mentioned "]
["Freshwater","870-3",46,0.44660194174757284,"Aulacoseira sp. ","not-stated","48 hours","Population: Abundance","NOEC","1 uM","Saxton,M.A., E.A. Morrow, R.A. Bourbonniere, and S.W. Wilhelm, 2011. Glyphosate Influence on Phytoplankton Community Structure in Lake Erie, J. Gt. Lakes Res.37(4): 683-690.  ","870","Do Not Use - Purity not mentioned "]
["Freshwater","871-1",63,0.61165048543689315,"Chlorella vulgaris","Log-Growth Stage","21 days","Population: Growth","EC50","292.3 mg/L","Lipok,J., H. Studnik, and S. Gruyaert, 2010. The Toxicity of Roundup 360 SL Formulation and Its Main Constituents: Glyphosate and Isopropylamine Towards Non-Target Water Photoautotrophs, Ecotoxicol. Environ. Saf.73(7): 1681-1688. ","871","Pure N-phosphonomethylglycine"]
["Freshwater","871-2",63,0.61165048543689315,"Spirulina platensis","Log-Growth Stage","21 days","Population: Growth","EC50",">169000 mg/L","Lipok,J., H. Studnik, and S. Gruyaert, 2010. The Toxicity of Roundup 360 SL Formulation and Its Main Constituents: Glyphosate and Isopropylamine Towards Non-Target Water Photoautotrophs, Ecotoxicol. Environ. Saf.73(7): 1681-1688. ","871","Pure N-phosphonomethylglycine"]
["Freshwater","871-3",63,0.61165048543689315,"Arthrospira fusiformis","Log-Growth Stage","21 days","Population: Growth","EC50",">169000 mg/L","Lipok,J., H. Studnik, and S. Gruyaert, 2010. The Toxicity of Roundup 360 SL Formulation and Its Main Constituents: Glyphosate and Isopropylamine Towards Non-Target Water Photoautotrophs, Ecotoxicol. Environ. Saf.73(7): 1681-1688. ","871","Pure N-phosphonomethylglycine"]
["Freshwater","871-4",63,0.61165048543689315,"Nostoc punctiforme","Log-Growth Stage","21 days","Population: Growth","EC50","598.4 mg/L","Lipok,J., H. Studnik, and S. Gruyaert, 2010. The Toxicity of Roundup 360 SL Formulation and Its Main Constituents: Glyphosate and Isopropylamine Towards Non-Target Water Photoautotrophs, Ecotoxicol. Environ. Saf.73(7): 1681-1688. ","871","Pure N-phosphonomethylglycine"]
["Freshwater","871-5",63,0.61165048543689315,"Anabaena catenula","Log-Growth Stage","21 days","Population: Growth","EC50","256.5 mg/L","Lipok,J., H. Studnik, and S. Gruyaert, 2010. The Toxicity of Roundup 360 SL Formulation and Its Main Constituents: Glyphosate and Isopropylamine Towards Non-Target Water Photoautotrophs, Ecotoxicol. Environ. Saf.73(7): 1681-1688. ","871","Pure N-phosphonomethylglycine"]
["Freshwater","871-6",63,0.61165048543689315,"Synechocystis aquatilis","Log-Growth Stage","21 days","Population: Growth","EC50","164.9 mg/L","Lipok,J., H. Studnik, and S. Gruyaert, 2010. The Toxicity of Roundup 360 SL Formulation and Its Main Constituents: Glyphosate and Isopropylamine Towards Non-Target Water Photoautotrophs, Ecotoxicol. Environ. Saf.73(7): 1681-1688. ","871","Pure N-phosphonomethylglycine"]
["Freshwater","871-7",63,0.61165048543689315,"Microcystis aeruginosa","Log-Growth Stage","21 days","Population: Growth","EC50","251.4 mg/L","Lipok,J., H. Studnik, and S. Gruyaert, 2010. The Toxicity of Roundup 360 SL Formulation and Its Main Constituents: Glyphosate and Isopropylamine Towards Non-Target Water Photoautotrophs, Ecotoxicol. Environ. Saf.73(7): 1681-1688. ","871","Pure N-phosphonomethylglycine"]
["Freshwater","871-8",63,0.61165048543689315,"Leptolynbya boryana","Log-Growth Stage","21 days","Population: Growth","EC50","246.6 mg/L","Lipok,J., H. Studnik, and S. Gruyaert, 2010. The Toxicity of Roundup 360 SL Formulation and Its Main Constituents: Glyphosate and Isopropylamine Towards Non-Target Water Photoautotrophs, Ecotoxicol. Environ. Saf.73(7): 1681-1688. ","871","Pure N-phosphonomethylglycine"]
["Freshwater","871-9",63,0.61165048543689315,"Chlorella vulgaris","Log-Growth Stage","21 days","Population: Growth","EC50","118.1 mg/L","Lipok,J., H. Studnik, and S. Gruyaert, 2010. The Toxicity of Roundup 360 SL Formulation and Its Main Constituents: Glyphosate and Isopropylamine Towards Non-Target Water Photoautotrophs, Ecotoxicol. Environ. Saf.73(7): 1681-1688. ","871","Isopropylamine (IPA)"]
["Freshwater","871-10",63,0.61165048543689315,"Spirulina platensis","Log-Growth Stage","21 days","Population: Growth","EC50","33.1 mg/L","Lipok,J., H. Studnik, and S. Gruyaert, 2010. The Toxicity of Roundup 360 SL Formulation and Its Main Constituents: Glyphosate and Isopropylamine Towards Non-Target Water Photoautotrophs, Ecotoxicol. Environ. Saf.73(7): 1681-1688. ","871","Isopropylamine (IPA)"]
["Freshwater","871-11",63,0.61165048543689315,"Arthrospira fusiformis","Log-Growth Stage","21 days","Population: Growth","EC50","28.2 mg/L","Lipok,J., H. Studnik, and S. Gruyaert, 2010. The Toxicity of Roundup 360 SL Formulation and Its Main Constituents: Glyphosate and Isopropylamine Towards Non-Target Water Photoautotrophs, Ecotoxicol. Environ. Saf.73(7): 1681-1688. ","871","Isopropylamine (IPA)"]
["Freshwater","871-12",63,0.61165048543689315,"Nostoc punctiforme","Log-Growth Stage","21 days","Population: Growth","EC50","42.3 mg/L","Lipok,J., H. Studnik, and S. Gruyaert, 2010. The Toxicity of Roundup 360 SL Formulation and Its Main Constituents: Glyphosate and Isopropylamine Towards Non-Target Water Photoautotrophs, Ecotoxicol. Environ. Saf.73(7): 1681-1688. ","871","Isopropylamine (IPA)"]
["Freshwater","871-13",63,0.61165048543689315,"Anabaena catenula","Log-Growth Stage","21 days","Population: Growth","EC50","2.9 mg/L","Lipok,J., H. Studnik, and S. Gruyaert, 2010. The Toxicity of Roundup 360 SL Formulation and Its Main Constituents: Glyphosate and Isopropylamine Towards Non-Target Water Photoautotrophs, Ecotoxicol. Environ. Saf.73(7): 1681-1688. ","871","Isopropylamine (IPA)"]
["Freshwater","871-14",63,0.61165048543689315,"Synechocystis aquatilis","Log-Growth Stage","21 days","Population: Growth","EC50","89.8 mg/L","Lipok,J., H. Studnik, and S. Gruyaert, 2010. The Toxicity of Roundup 360 SL Formulation and Its Main Constituents: Glyphosate and Isopropylamine Towards Non-Target Water Photoautotrophs, Ecotoxicol. Environ. Saf.73(7): 1681-1688. ","871","Isopropylamine (IPA)"]
["Freshwater","871-15",63,0.61165048543689315,"Microcystis aeruginosa","Log-Growth Stage","21 days","Population: Growth","EC50","6.7 mg/L","Lipok,J., H. Studnik, and S. Gruyaert, 2010. The Toxicity of Roundup 360 SL Formulation and Its Main Constituents: Glyphosate and Isopropylamine Towards Non-Target Water Photoautotrophs, Ecotoxicol. Environ. Saf.73(7): 1681-1688. ","871","Isopropylamine (IPA)"]
["Freshwater","871-16",63,0.61165048543689315,"Leptolynbya boryana","Log-Growth Stage","21 days","Population: Growth","EC50","4.1 mg/L","Lipok,J., H. Studnik, and S. Gruyaert, 2010. The Toxicity of Roundup 360 SL Formulation and Its Main Constituents: Glyphosate and Isopropylamine Towards Non-Target Water Photoautotrophs, Ecotoxicol. Environ. Saf.73(7): 1681-1688. ","871","Isopropylamine (IPA)"]
["Freshwater","871-17",63,0.61165048543689315,"Chlorella vulgaris","Log-Growth Stage","21 days","Population: Growth","EC50","83.1 mg/L","Lipok,J., H. Studnik, and S. Gruyaert, 2010. The Toxicity of Roundup 360 SL Formulation and Its Main Constituents: Glyphosate and Isopropylamine Towards Non-Target Water Photoautotrophs, Ecotoxicol. Environ. Saf.73(7): 1681-1688. ","871","Isopropylamine (IPA)"]
["Freshwater","871-18",63,0.61165048543689315,"Spirulina platensis","Log-Growth Stage","21 days","Population: Growth","EC50","134.9 mg/L","Lipok,J., H. Studnik, and S. Gruyaert, 2010. The Toxicity of Roundup 360 SL Formulation and Its Main Constituents: Glyphosate and Isopropylamine Towards Non-Target Water Photoautotrophs, Ecotoxicol. Environ. Saf.73(7): 1681-1688. ","871","Isopropylamine (IPA)"]
["Freshwater","871-19",63,0.61165048543689315,"Arthrospira fusiformis","Log-Growth Stage","21 days","Population: Growth","EC50","82.4 mg/L","Lipok,J., H. Studnik, and S. Gruyaert, 2010. The Toxicity of Roundup 360 SL Formulation and Its Main Constituents: Glyphosate and Isopropylamine Towards Non-Target Water Photoautotrophs, Ecotoxicol. Environ. Saf.73(7): 1681-1688. ","871","Isopropylamine (IPA)"]
["Freshwater","871-20",63,0.61165048543689315,"Nostoc punctiforme","Log-Growth Stage","21 days","Population: Growth","EC50","59.3 mg/L","Lipok,J., H. Studnik, and S. Gruyaert, 2010. The Toxicity of Roundup 360 SL Formulation and Its Main Constituents: Glyphosate and Isopropylamine Towards Non-Target Water Photoautotrophs, Ecotoxicol. Environ. Saf.73(7): 1681-1688. ","871","Isopropylamine (IPA)"]
["Freshwater","871-21",63,0.61165048543689315,"Anabaena catenula","Log-Growth Stage","21 days","Population: Growth","EC50","7.1 mg/L","Lipok,J., H. Studnik, and S. Gruyaert, 2010. The Toxicity of Roundup 360 SL Formulation and Its Main Constituents: Glyphosate and Isopropylamine Towards Non-Target Water Photoautotrophs, Ecotoxicol. Environ. Saf.73(7): 1681-1688. ","871","Isopropylamine (IPA)"]
["Freshwater","871-22",63,0.61165048543689315,"Synechocystis aquatilis","Log-Growth Stage","21 days","Population: Growth","EC50","233 mg/L","Lipok,J., H. Studnik, and S. Gruyaert, 2010. The Toxicity of Roundup 360 SL Formulation and Its Main Constituents: Glyphosate and Isopropylamine Towards Non-Target Water Photoautotrophs, Ecotoxicol. Environ. Saf.73(7): 1681-1688. ","871","Isopropylamine (IPA)"]
["Freshwater","871-23",63,0.61165048543689315,"Microcystis aeruginosa","Log-Growth Stage","21 days","Population: Growth","EC50","10.7 mg/L","Lipok,J., H. Studnik, and S. Gruyaert, 2010. The Toxicity of Roundup 360 SL Formulation and Its Main Constituents: Glyphosate and Isopropylamine Towards Non-Target Water Photoautotrophs, Ecotoxicol. Environ. Saf.73(7): 1681-1688. ","871","Isopropylamine (IPA)"]
["Freshwater","871-24",63,0.61165048543689315,"Leptolynbya boryana","Log-Growth Stage","21 days","Population: Growth","EC50","8.9 mg/L","Lipok,J., H. Studnik, and S. Gruyaert, 2010. The Toxicity of Roundup 360 SL Formulation and Its Main Constituents: Glyphosate and Isopropylamine Towards Non-Target Water Photoautotrophs, Ecotoxicol. Environ. Saf.73(7): 1681-1688. ","871","Isopropylamine (IPA)"]
["Freshwater","872-1",61,0.59223300970873782,"Microcystis wesenbergii","Exponential Growth Phase","96 hours","Population: Abundance","EC50","6.84 umol/L","Sun,K., W. Liu, L. Liu, N. Wang, and S. Duan, 2013. Ecological Risks Assessment of Organophosphorus Pesticides on Bloom of Microcystis wesenbergii, Int. Biodeterior. Biodegrad.77:98-105. ","872","41% round-up"]
["Freshwater","873-1",67,0.65048543689320393,"Lampsilis siliquoidea","Juveniles","21 days","Growth: Length","NOEC","12.5 mg/L","Bringolf,R.B., W.G. Cope, S. Mosher, M.C. Barnhart, and D. Shea, 2007. Acute and Chronic Toxicity of Glyphosate Compounds to Glochidia and Juveniles of Lampsilis siliquoidea (Unionidae), Environ. Toxicol. Chem.26(10): 2094-2100.","873","USE 873 ENTRIES BELOW"]
["Freshwater","873-2",67,0.65048543689320393,"Lampsilis siliquoidea","Juveniles","21 days","Growth: Length","LOEC","25 mg/L","Bringolf,R.B., W.G. Cope, S. Mosher, M.C. Barnhart, and D. Shea, 2007. Acute and Chronic Toxicity of Glyphosate Compounds to Glochidia and Juveniles of Lampsilis siliquoidea (Unionidae), Environ. Toxicol. Chem.26(10): 2094-2100.","873","USE 873 ENTRIES BELOW"]
["Freshwater","874-1",70,0.67961165048543692,"Lemna minor","not-stated","7 days","Population: Relative Growth Rate","EC10","3780 ug/L","Cedergreen,N., and J.C. Streibig, 2005. The Toxicity of Herbicides to Non-Target Aquatic Plants and Algae: Assessment of Predictive Factors and Hazard, Pest Manag. Sci.61(12): 1152-1160. ","874","Technical purity (min. 95%)"]
["Freshwater","874-2",70,0.67961165048543692,"Lemna minor","not-stated","7 days","Population: Relative Growth Rate","EC50","46900 ug/L","Cedergreen,N., and J.C. Streibig, 2005. The Toxicity of Herbicides to Non-Target Aquatic Plants and Algae: Assessment of Predictive Factors and Hazard, Pest Manag. Sci.61(12): 1152-1160. ","874","Technical purity (min. 95%)"]
["Freshwater","874-9",70,0.67961165048543692,"Pseudokirchneriella subcapitata","not-stated","48 hours","Population: Relative Growth Rate","EC10","92500 ug/L","Cedergreen,N., and J.C. Streibig, 2005. The Toxicity of Herbicides to Non-Target Aquatic Plants and Algae: Assessment of Predictive Factors and Hazard, Pest Manag. Sci.61(12): 1152-1160. ","874","Technical purity (min. 95%)"]
["Freshwater","874-10",70,0.67961165048543692,"Pseudokirchneriella subcapitata","not-stated","48 hours","Population: Relative Growth Rate","EC50","270000 ug/L","Cedergreen,N., and J.C. Streibig, 2005. The Toxicity of Herbicides to Non-Target Aquatic Plants and Algae: Assessment of Predictive Factors and Hazard, Pest Manag. Sci.61(12): 1152-1160. ","874","Technical purity (min. 95%)"]
["Freshwater","875-1",60,0.58252427184466016,"Pomacea lineata","Neonate","96 hours","Population: Growth (Weight Gain)","LOEC","0.5 mg/L","Coler,R.A., R.R. Coler, E.K.G. Felizardo, and T. Watanabe, 2005. Applying Weight Gain in Pomacea lineata (Spix 1824) (Mollusca: Prosobranchia) as a Measure of Herbicide Toxicity, Braz. J. Biol.65(4): 617-623. ","875","Round-up"]
["Freshwater","875-2",60,0.58252427184466016,"Pomacea lineata","Neonate","96 hours","Population: Growth (Weight Gain)","NOEC","0.25 mg/L","Coler,R.A., R.R. Coler, E.K.G. Felizardo, and T. Watanabe, 2005. Applying Weight Gain in Pomacea lineata (Spix 1824) (Mollusca: Prosobranchia) as a Measure of Herbicide Toxicity, Braz. J. Biol.65(4): 617-623. ","875","Round-up"]
["Freshwater","875-5",60,0.58252427184466016,"Pomacea lineata","Neonate","8 days","Population: Growth (Weight Gain)","LOEC","0.12 mg/L","Coler,R.A., R.R. Coler, E.K.G. Felizardo, and T. Watanabe, 2005. Applying Weight Gain in Pomacea lineata (Spix 1824) (Mollusca: Prosobranchia) as a Measure of Herbicide Toxicity, Braz. J. Biol.65(4): 617-623. ","875","Round-up"]
["Freshwater","876-1",63,0.61165048543689315,"Daphnia magna","Adult","48 hours","Mortality: Immobility","EC50","22 mg/L","Cuhra,M., T. Traavik, and T. Bohn, 2013. Clone- and Age-Dependent Toxicity of a Glyphosate Commercial Formulation and Its Active Ingredient in Daphnia magna, Ecotoxicology22:251-262. ","876","Round-up"]
["Freshwater","876-2",63,0.61165048543689315,"Daphnia magna","Adult","48 hours","Mortality: Immobility","EC50","31 mg/L","Cuhra,M., T. Traavik, and T. Bohn, 2013. Clone- and Age-Dependent Toxicity of a Glyphosate Commercial Formulation and Its Active Ingredient in Daphnia magna, Ecotoxicology22:251-262. ","876","N-(phosphonomethyl) glycine-monoisopropylamine "]
["Freshwater","876-3",69,0.66990291262135926,"Daphnia magna","Juveniles","55 days","Mortality: Immobility","NOEC","1.35 mg/L","Cuhra,M., T. Traavik, and T. Bohn, 2013. Clone- and Age-Dependent Toxicity of a Glyphosate Commercial Formulation and Its Active Ingredient in Daphnia magna, Ecotoxicology22:251-262. ","876","N-(phosphonomethyl) glycine-monoisopropylamine "]
["Freshwater","876-4",69,0.66990291262135926,"Daphnia magna","Juveniles","55 days","Mortality: Immobility","LOEC","4.05 mg/L","Cuhra,M., T. Traavik, and T. Bohn, 2013. Clone- and Age-Dependent Toxicity of a Glyphosate Commercial Formulation and Its Active Ingredient in Daphnia magna, Ecotoxicology22:251-262. ","876","N-(phosphonomethyl) glycine-monoisopropylamine "]
["Freshwater","876-5",69,0.66990291262135926,"Daphnia magna","Juveniles","55 days","Mortality: Immobility","NOEC","0.45 mg/L","Cuhra,M., T. Traavik, and T. Bohn, 2013. Clone- and Age-Dependent Toxicity of a Glyphosate Commercial Formulation and Its Active Ingredient in Daphnia magna, Ecotoxicology22:251-262. ","876","Round-up"]
["Freshwater","876-6",69,0.66990291262135926,"Daphnia magna","Juveniles","55 days","Mortality: Immobility","LOEC","1.35 mg/L","Cuhra,M., T. Traavik, and T. Bohn, 2013. Clone- and Age-Dependent Toxicity of a Glyphosate Commercial Formulation and Its Active Ingredient in Daphnia magna, Ecotoxicology22:251-262. ","876","Round-up"]
["Freshwater","876-7",69,0.66990291262135926,"Daphnia magna","Juveniles","6 days","Population: Growth Length","NOEC","4.05 mg/L","Cuhra,M., T. Traavik, and T. Bohn, 2013. Clone- and Age-Dependent Toxicity of a Glyphosate Commercial Formulation and Its Active Ingredient in Daphnia magna, Ecotoxicology22:251-262. ","876","N-(phosphonomethyl) glycine-monoisopropylamine "]
["Freshwater","876-8",69,0.66990291262135926,"Daphnia magna","Juveniles","6 days","Population: Growth Length","LOEC","4.05 mg/L","Cuhra,M., T. Traavik, and T. Bohn, 2013. Clone- and Age-Dependent Toxicity of a Glyphosate Commercial Formulation and Its Active Ingredient in Daphnia magna, Ecotoxicology22:251-262. ","876","Round-up"]
["Freshwater","876-9",69,0.66990291262135926,"Daphnia magna","Juveniles","6 days","Population: Growth Length","NOEC","1.35 mg/L","Cuhra,M., T. Traavik, and T. Bohn, 2013. Clone- and Age-Dependent Toxicity of a Glyphosate Commercial Formulation and Its Active Ingredient in Daphnia magna, Ecotoxicology22:251-262. ","876","Round-up"]
["Freshwater","876-10",69,0.66990291262135926,"Daphnia magna","Juveniles","12 days","Population: Growth Length","NOEC","4.05 mg/L","Cuhra,M., T. Traavik, and T. Bohn, 2013. Clone- and Age-Dependent Toxicity of a Glyphosate Commercial Formulation and Its Active Ingredient in Daphnia magna, Ecotoxicology22:251-262. ","876","N-(phosphonomethyl) glycine-monoisopropylamine "]
["Freshwater","876-11",69,0.66990291262135926,"Daphnia magna","Juveniles","12 days","Population: Growth Length","LOEC","4.05 mg/L","Cuhra,M., T. Traavik, and T. Bohn, 2013. Clone- and Age-Dependent Toxicity of a Glyphosate Commercial Formulation and Its Active Ingredient in Daphnia magna, Ecotoxicology22:251-262. ","876","Round-up"]
["Freshwater","876-12",69,0.66990291262135926,"Daphnia magna","Juveniles","12 days","Population: Growth Length","NOEC","1.35 mg/L","Cuhra,M., T. Traavik, and T. Bohn, 2013. Clone- and Age-Dependent Toxicity of a Glyphosate Commercial Formulation and Its Active Ingredient in Daphnia magna, Ecotoxicology22:251-262. ","876","Round-up"]
["Freshwater","876-13",69,0.66990291262135926,"Daphnia magna","Juveniles","24 days","Population: Growth Length","LOEC","4.05 mg/L","Cuhra,M., T. Traavik, and T. Bohn, 2013. Clone- and Age-Dependent Toxicity of a Glyphosate Commercial Formulation and Its Active Ingredient in Daphnia magna, Ecotoxicology22:251-262. ","876","N-(phosphonomethyl) glycine-monoisopropylamine "]
["Freshwater","876-14",69,0.66990291262135926,"Daphnia magna","Juveniles","24 days","Population: Growth Length","NOEC","1.35 mg/L","Cuhra,M., T. Traavik, and T. Bohn, 2013. Clone- and Age-Dependent Toxicity of a Glyphosate Commercial Formulation and Its Active Ingredient in Daphnia magna, Ecotoxicology22:251-262. ","876","N-(phosphonomethyl) glycine-monoisopropylamine "]
["Freshwater","876-15",69,0.66990291262135926,"Daphnia magna","Juveniles","36 days","Population: Growth Length","LOEC","1.35 mg/L","Cuhra,M., T. Traavik, and T. Bohn, 2013. Clone- and Age-Dependent Toxicity of a Glyphosate Commercial Formulation and Its Active Ingredient in Daphnia magna, Ecotoxicology22:251-262. ","876","N-(phosphonomethyl) glycine-monoisopropylamine "]
["Freshwater","876-16",69,0.66990291262135926,"Daphnia magna","Juveniles","36 days","Population: Growth Length","NOEC","0.45 mg/L","Cuhra,M., T. Traavik, and T. Bohn, 2013. Clone- and Age-Dependent Toxicity of a Glyphosate Commercial Formulation and Its Active Ingredient in Daphnia magna, Ecotoxicology22:251-262. ","876","N-(phosphonomethyl) glycine-monoisopropylamine "]
["Freshwater","876-17",69,0.66990291262135926,"Daphnia magna","Juveniles","36 days","Population: Growth Length","LOEC","1.35 mg/L","Cuhra,M., T. Traavik, and T. Bohn, 2013. Clone- and Age-Dependent Toxicity of a Glyphosate Commercial Formulation and Its Active Ingredient in Daphnia magna, Ecotoxicology22:251-262. ","876","Round-up"]
["Freshwater","876-18",69,0.66990291262135926,"Daphnia magna","Juveniles","36 days","Population: Growth Length","NOEC","0.45 mg/L","Cuhra,M., T. Traavik, and T. Bohn, 2013. Clone- and Age-Dependent Toxicity of a Glyphosate Commercial Formulation and Its Active Ingredient in Daphnia magna, Ecotoxicology22:251-262. ","876","Round-up"]
["Freshwater","876-19",69,0.66990291262135926,"Daphnia magna","Juveniles","55 days","Reproduction: Fercundity","LOEC","1.35 mg/L","Cuhra,M., T. Traavik, and T. Bohn, 2013. Clone- and Age-Dependent Toxicity of a Glyphosate Commercial Formulation and Its Active Ingredient in Daphnia magna, Ecotoxicology22:251-262. ","876","N-(phosphonomethyl) glycine-monoisopropylamine "]
["Freshwater","876-20",69,0.66990291262135926,"Daphnia magna","Juveniles","55 days","Reproduction: Fercundity","NOEC","0.45 mg/L","Cuhra,M., T. Traavik, and T. Bohn, 2013. Clone- and Age-Dependent Toxicity of a Glyphosate Commercial Formulation and Its Active Ingredient in Daphnia magna, Ecotoxicology22:251-262. ","876","N-(phosphonomethyl) glycine-monoisopropylamine "]
["Freshwater","876-21",69,0.66990291262135926,"Daphnia magna","Juveniles","55 days","Reproduction: Fercundity","LOEC","0.45 mg/L","Cuhra,M., T. Traavik, and T. Bohn, 2013. Clone- and Age-Dependent Toxicity of a Glyphosate Commercial Formulation and Its Active Ingredient in Daphnia magna, Ecotoxicology22:251-262. ","876","Round-up"]
["Freshwater","876-22",69,0.66990291262135926,"Daphnia magna","Juveniles","55 days","Reproduction: Fercundity","NOEC","0.15 mg/L","Cuhra,M., T. Traavik, and T. Bohn, 2013. Clone- and Age-Dependent Toxicity of a Glyphosate Commercial Formulation and Its Active Ingredient in Daphnia magna, Ecotoxicology22:251-262. ","876","Round-up"]
["Freshwater","876-23",69,0.66990291262135926,"Daphnia magna","Juveniles","55 days","Reproduction: Abortion Rate","LOEC","1.35 mg/L","Cuhra,M., T. Traavik, and T. Bohn, 2013. Clone- and Age-Dependent Toxicity of a Glyphosate Commercial Formulation and Its Active Ingredient in Daphnia magna, Ecotoxicology22:251-262. ","876","N-(phosphonomethyl) glycine-monoisopropylamine "]
["Freshwater","876-24",69,0.66990291262135926,"Daphnia magna","Juveniles","55 days","Reproduction: Abortion Rate","NOEC","0.45 mg/L","Cuhra,M., T. Traavik, and T. Bohn, 2013. Clone- and Age-Dependent Toxicity of a Glyphosate Commercial Formulation and Its Active Ingredient in Daphnia magna, Ecotoxicology22:251-262. ","876","N-(phosphonomethyl) glycine-monoisopropylamine "]
["Freshwater","876-25",69,0.66990291262135926,"Daphnia magna","Juveniles","55 days","Reproduction: Abortion Rate","LOEC","1.35 mg/L","Cuhra,M., T. Traavik, and T. Bohn, 2013. Clone- and Age-Dependent Toxicity of a Glyphosate Commercial Formulation and Its Active Ingredient in Daphnia magna, Ecotoxicology22:251-262. ","876","Round-up"]
["Freshwater","876-26",69,0.66990291262135926,"Daphnia magna","Juveniles","55 days","Reproduction: Abortion Rate","NOEC","0.45 mg/L","Cuhra,M., T. Traavik, and T. Bohn, 2013. Clone- and Age-Dependent Toxicity of a Glyphosate Commercial Formulation and Its Active Ingredient in Daphnia magna, Ecotoxicology22:251-262. ","876","Round-up"]
["Freshwater","876-27",65,0.6310679611650486,"Daphnia magna","Juveniles","55 days","Population: Growth Size (second clutch)","NOEC","1.35 mg/L","Cuhra,M., T. Traavik, and T. Bohn, 2013. Clone- and Age-Dependent Toxicity of a Glyphosate Commercial Formulation and Its Active Ingredient in Daphnia magna, Ecotoxicology22:251-262. ","876","N-(phosphonomethyl) glycine-monoisopropylamine "]
["Freshwater","876-28",65,0.6310679611650486,"Daphnia magna","Juveniles","55 days","Population: Growth Size (second clutch)","LOEC","4.05 mg/L","Cuhra,M., T. Traavik, and T. Bohn, 2013. Clone- and Age-Dependent Toxicity of a Glyphosate Commercial Formulation and Its Active Ingredient in Daphnia magna, Ecotoxicology22:251-262. ","876","N-(phosphonomethyl) glycine-monoisopropylamine "]
["Freshwater","877-1",76,0.73786407766990292,"Cherax quadricarinatus","Advanced Juveniles","50 days","Growth Rate: Weight Gain","NOEC","22500 ug/L","Frontera,J.L., I. Vatnick, A. Chaulet, and E.M. Rodriguez, 2011. Effects of Glyphosate and Polyoxyethylenamine on Growth and Energetic Reserves in the Freshwater Crayfish Cherax quadricarinatus (Decapoda, Parastacidae), Arch. Environ. Contam. Toxicol.61(4): 590-598. ","877","98% purity"]
["Freshwater","877-2",76,0.73786407766990292,"Cherax quadricarinatus","Advanced Juveniles","50 days","Growth Rate: Weight Gain","LOEC","11250 ug/L","Frontera,J.L., I. Vatnick, A. Chaulet, and E.M. Rodriguez, 2011. Effects of Glyphosate and Polyoxyethylenamine on Growth and Energetic Reserves in the Freshwater Crayfish Cherax quadricarinatus (Decapoda, Parastacidae), Arch. Environ. Contam. Toxicol.61(4): 590-598. ","877","Mixture (Glyphosate & POEA)"]
["Freshwater","877-3",76,0.73786407766990292,"Cherax quadricarinatus","Advanced Juveniles","50 days","Growth Rate: Weight Gain","LOEC","22500 ug/L","Frontera,J.L., I. Vatnick, A. Chaulet, and E.M. Rodriguez, 2011. Effects of Glyphosate and Polyoxyethylenamine on Growth and Energetic Reserves in the Freshwater Crayfish Cherax quadricarinatus (Decapoda, Parastacidae), Arch. Environ. Contam. Toxicol.61(4): 590-598. ","877","Mixture (Glyphosate & POEA)"]
["Freshwater","878-1",65,0.6310679611650486,"Ceriodaphnia dubia","Neonates: <24 hrs old","8 days","Mortality","NOEC","10 ug/L","Huang,X., S. Fong, L. Deanovic, and T.M. Young, 2005. Toxicity of Herbicides in Highway Runoff, Environ. Toxicol. Chem.24(9): 2336-2340. ","878","Runoff sample spiked with Glyphosate (purity not stated)"]
["Freshwater","878-2",65,0.6310679611650486,"Ceriodaphnia dubia","Neonates: <24 hrs old","8 days","Reproduction: Progeny","NOEC","10 ug/L","Huang,X., S. Fong, L. Deanovic, and T.M. Young, 2005. Toxicity of Herbicides in Highway Runoff, Environ. Toxicol. Chem.24(9): 2336-2340. ","878","Runoff sample spiked with Glyphosate (purity not stated)"]
["Freshwater","878-3",65,0.6310679611650486,"Pimephales promelas","Larval: <48 hrs old","7 days","Growth: Biomass","NOEC","10 ug/L","Huang,X., S. Fong, L. Deanovic, and T.M. Young, 2005. Toxicity of Herbicides in Highway Runoff, Environ. Toxicol. Chem.24(9): 2336-2340. ","878","Runoff sample spiked with Glyphosate (purity not stated)"]
["Freshwater","878-4",65,0.6310679611650486,"Pimephales promelas","Larval: <48 hrs old","7 days","Mortality","NOEC","10 ug/L","Huang,X., S. Fong, L. Deanovic, and T.M. Young, 2005. Toxicity of Herbicides in Highway Runoff, Environ. Toxicol. Chem.24(9): 2336-2340. ","878","Runoff sample spiked with Glyphosate (purity not stated)"]
["Freshwater","878-5",65,0.6310679611650486,"Selenastrum capricornutum","Exponential Growth Phase","96 hours","Population: Abundance","NOEC","10 ug/L","Huang,X., S. Fong, L. Deanovic, and T.M. Young, 2005. Toxicity of Herbicides in Highway Runoff, Environ. Toxicol. Chem.24(9): 2336-2340. ","878","Runoff sample spiked with Glyphosate (purity not stated)"]
["Freshwater","879-1",56,0.5436893203883495,"Galaxias anomalus","Juveniles","26 days","Mortality: Survival","NOEC","360 ug/L","Kelly,D.W., R. Poulin, D.M. Tompkins, and C.R. Townsend, 2010. Synergistic Effects of Glyphosate Formulation and Parasite Infection on Fish Malformations and Survival, J. Appl. Ecol.47(2): 498-504. ","879","Glyphosate formulation"]
["Freshwater","879-2",56,0.5436893203883495,"Galaxias anomalus","Juveniles","26 days","Mortality: Survival","LOEC","3600 ug/L","Kelly,D.W., R. Poulin, D.M. Tompkins, and C.R. Townsend, 2010. Synergistic Effects of Glyphosate Formulation and Parasite Infection on Fish Malformations and Survival, J. Appl. Ecol.47(2): 498-504. ","879","Glyphosate formulation"]
["Freshwater","880-1",62,0.60194174757281549,"Echinostoma trivolvis","not-stated","26 days","Reproduction: Egg Hatching Success","NOEC","3685.3 ug/L","Raffel,T.R., J.L. Sheingold, and J.R. Rohr, 2009. Lack of Pesticide Toxicity to Echinostoma trivolvis Eggs and Miracidia, J. Parasitol.95(6): 1548-1551. ","880","Technical grade (>98%)"]
["Freshwater","880-2",62,0.60194174757281549,"Echinostoma trivolvis","not-stated","26 days","Mortality: Survival","NOEC","3685.3 ug/L","Raffel,T.R., J.L. Sheingold, and J.R. Rohr, 2009. Lack of Pesticide Toxicity to Echinostoma trivolvis Eggs and Miracidia, J. Parasitol.95(6): 1548-1551. ","880","Technical grade (>98%)"]
["Freshwater","881-1",72,0.69902912621359226,"Chlorella kessleri","Exponential Growth Phase","96 hours","Growth: Biomass","EC50","55620 ug/L","Romero,D.M., M.C. Rios de Molina, and A.B. Juarez, 2011. Oxidative Stress Induced by a Commercial Glyphosate Formulation in a Tolerant Strain of Chlorella kessleri, Ecotoxicol. Environ. Saf.74(4): 741-747. ","881","Isopropylamine salt of N-phosphonomethyl glycine (48%)"]
["Freshwater","881-2",72,0.69902912621359226,"Chlorella kessleri","Exponential Growth Phase","96 hours","Growth: Biomass","LOEC","60000 ug/L","Romero,D.M., M.C. Rios de Molina, and A.B. Juarez, 2011. Oxidative Stress Induced by a Commercial Glyphosate Formulation in a Tolerant Strain of Chlorella kessleri, Ecotoxicol. Environ. Saf.74(4): 741-747. ","881","Isopropylamine salt of N-phosphonomethyl glycine (48%)"]
["Freshwater","881-3",72,0.69902912621359226,"Chlorella kessleri","Exponential Growth Phase","96 hours","Growth: Biomass","NOEC","50000 ug/L","Romero,D.M., M.C. Rios de Molina, and A.B. Juarez, 2011. Oxidative Stress Induced by a Commercial Glyphosate Formulation in a Tolerant Strain of Chlorella kessleri, Ecotoxicol. Environ. Saf.74(4): 741-747. ","881","Isopropylamine salt of N-phosphonomethyl glycine (48%)"]
["Freshwater","881-4",72,0.69902912621359226,"Chlorella kessleri","Exponential Growth Phase","96 hours","Population: Growth Inhibition","LOEC","60000 ug/L","Romero,D.M., M.C. Rios de Molina, and A.B. Juarez, 2011. Oxidative Stress Induced by a Commercial Glyphosate Formulation in a Tolerant Strain of Chlorella kessleri, Ecotoxicol. Environ. Saf.74(4): 741-747. ","881","Isopropylamine salt of N-phosphonomethyl glycine (48%)"]
["Freshwater","881-5",72,0.69902912621359226,"Chlorella kessleri","Exponential Growth Phase","96 hours","Population: Growth Inhibition","NOEC","50000 ug/L","Romero,D.M., M.C. Rios de Molina, and A.B. Juarez, 2011. Oxidative Stress Induced by a Commercial Glyphosate Formulation in a Tolerant Strain of Chlorella kessleri, Ecotoxicol. Environ. Saf.74(4): 741-747. ","881","Isopropylamine salt of N-phosphonomethyl glycine (48%)"]
["Freshwater","881-6",72,0.69902912621359226,"Chlorella kessleri","Exponential Growth Phase","96 hours","Population: Growth Rate","LOEC","60000 ug/L","Romero,D.M., M.C. Rios de Molina, and A.B. Juarez, 2011. Oxidative Stress Induced by a Commercial Glyphosate Formulation in a Tolerant Strain of Chlorella kessleri, Ecotoxicol. Environ. Saf.74(4): 741-747. ","881","Isopropylamine salt of N-phosphonomethyl glycine (48%)"]
["Freshwater","881-7",72,0.69902912621359226,"Chlorella kessleri","Exponential Growth Phase","96 hours","Population: Growth Rate","NOEC","50000 ug/L","Romero,D.M., M.C. Rios de Molina, and A.B. Juarez, 2011. Oxidative Stress Induced by a Commercial Glyphosate Formulation in a Tolerant Strain of Chlorella kessleri, Ecotoxicol. Environ. Saf.74(4): 741-747. ","881","Isopropylamine salt of N-phosphonomethyl glycine (48%)"]
["Freshwater","882-1",53,0.5145631067961165,"Polypedates cruciger","Tadpoles: 5 day old post-hatch","25 days","Growth: Body Weight","LOEC","0.25 ppm","Jayawardena,U.A., R.S. Rajakaruna, A.N. Navaratne, and P.H. Amerasinghe, 2010. Toxicity of Agrochemicals to Common Hourglass Tree Frog (Polypedates cruciger) in Acute and Chronic Exposure, Int. J. Agric. Biol.12(5): 641-648.  ","882","Commercial formulation"]
["Freshwater","882-2",53,0.5145631067961165,"Polypedates cruciger","Tadpoles: 5 day old post-hatch","25 days","Mortality: Survival","NOEC","0.75 ppm","Jayawardena,U.A., R.S. Rajakaruna, A.N. Navaratne, and P.H. Amerasinghe, 2010. Toxicity of Agrochemicals to Common Hourglass Tree Frog (Polypedates cruciger) in Acute and Chronic Exposure, Int. J. Agric. Biol.12(5): 641-648.  ","882","Commercial formulation"]
["Freshwater","882-3",53,0.5145631067961165,"Polypedates cruciger","Tadpoles: 5 day old post-hatch","25 days","Mortality: Survival","LOEC","1 ppm","Jayawardena,U.A., R.S. Rajakaruna, A.N. Navaratne, and P.H. Amerasinghe, 2010. Toxicity of Agrochemicals to Common Hourglass Tree Frog (Polypedates cruciger) in Acute and Chronic Exposure, Int. J. Agric. Biol.12(5): 641-648.  ","882","Commercial formulation"]
["Freshwater","883-1",78,0.75728155339805825,"Leporinus obtusidens","Juveniles","30 days","Growth Rate: Weight Gain","LOEC","1 mg/L","Salbego,J., A. Pretto, C.R. Gioda, C.C. De Menezes, R. Lazzari, J.R. Neto, B. Baldisserotto, and V.L. Loro, 2010. Herbicide Formulation with Glyphosate Affects Growth, Acetylcholinesterase Activity, and Metabolic and Hematological Parameters in Piava (Leporinus obtusidens), Arch. Environ. Contam. Toxicol.58(3): 740-745. ","883","Round-up (48% a.e. isopropylamine salt)"]
["Freshwater","883-2",78,0.75728155339805825,"Leporinus obtusidens","Juveniles","60 days","Growth Rate: Weight Gain","LOEC","1 mg/L","Salbego,J., A. Pretto, C.R. Gioda, C.C. De Menezes, R. Lazzari, J.R. Neto, B. Baldisserotto, and V.L. Loro, 2010. Herbicide Formulation with Glyphosate Affects Growth, Acetylcholinesterase Activity, and Metabolic and Hematological Parameters in Piava (Leporinus obtusidens), Arch. Environ. Contam. Toxicol.58(3): 740-745. ","883","Round-up (48% a.e. isopropylamine salt)"]
["Freshwater","883-3",78,0.75728155339805825,"Leporinus obtusidens","Juveniles","90 days","Growth Rate: Weight Gain","LOEC","1 mg/L","Salbego,J., A. Pretto, C.R. Gioda, C.C. De Menezes, R. Lazzari, J.R. Neto, B. Baldisserotto, and V.L. Loro, 2010. Herbicide Formulation with Glyphosate Affects Growth, Acetylcholinesterase Activity, and Metabolic and Hematological Parameters in Piava (Leporinus obtusidens), Arch. Environ. Contam. Toxicol.58(3): 740-745. ","883","Round-up (48% a.e. isopropylamine salt)"]
["Freshwater","883-4",78,0.75728155339805825,"Leporinus obtusidens","Juveniles","30 days","Growth: Length","LOEC","1 mg/L","Salbego,J., A. Pretto, C.R. Gioda, C.C. De Menezes, R. Lazzari, J.R. Neto, B. Baldisserotto, and V.L. Loro, 2010. Herbicide Formulation with Glyphosate Affects Growth, Acetylcholinesterase Activity, and Metabolic and Hematological Parameters in Piava (Leporinus obtusidens), Arch. Environ. Contam. Toxicol.58(3): 740-745. ","883","Round-up (48% a.e. isopropylamine salt)"]
["Freshwater","883-5",78,0.75728155339805825,"Leporinus obtusidens","Juveniles","90 days","Growth: Length","LOEC","1 mg/L","Salbego,J., A. Pretto, C.R. Gioda, C.C. De Menezes, R. Lazzari, J.R. Neto, B. Baldisserotto, and V.L. Loro, 2010. Herbicide Formulation with Glyphosate Affects Growth, Acetylcholinesterase Activity, and Metabolic and Hematological Parameters in Piava (Leporinus obtusidens), Arch. Environ. Contam. Toxicol.58(3): 740-745. ","883","Round-up (48% a.e. isopropylamine salt)"]
["Freshwater","884-1",69,0.66990291262135926,"Lemna gibba","6 fronds","10 days","Population: Growth Rate","IC10","4.6 mg/L","Sobrero,M.C., F. Rimoldi, and A.E. Ronco, 2007. Effects of the Glyphosate Active Ingredient and a Formulation on Lemna gibba L. at Different Exposure Levels and Assessment End-Points,Bull. Environ. Contam. Toxicol.79(5): 537-543. ","884","USE 924 ENTRIES BELOW"]
["Freshwater","884-2",69,0.66990291262135926,"Lemna gibba","6 fronds","10 days","Population: Growth Rate","IC10","2.5 mg/L","Sobrero,M.C., F. Rimoldi, and A.E. Ronco, 2007. Effects of the Glyphosate Active Ingredient and a Formulation on Lemna gibba L. at Different Exposure Levels and Assessment End-Points,Bull. Environ. Contam. Toxicol.79(5): 537-543. ","884","Round-up"]
["Freshwater","884-3",69,0.66990291262135926,"Lemna gibba","6 fronds","7 days","Population: Growth Rate","NOEC","0.5 mg/L","Sobrero,M.C., F. Rimoldi, and A.E. Ronco, 2007. Effects of the Glyphosate Active Ingredient and a Formulation on Lemna gibba L. at Different Exposure Levels and Assessment End-Points,Bull. Environ. Contam. Toxicol.79(5): 537-543. ","884","USE 924 ENTRIES BELOW"]
["Freshwater","884-4",69,0.66990291262135926,"Lemna gibba","6 fronds","10 days","Population: Growth Rate","NOEC","0.5 mg/L","Sobrero,M.C., F. Rimoldi, and A.E. Ronco, 2007. Effects of the Glyphosate Active Ingredient and a Formulation on Lemna gibba L. at Different Exposure Levels and Assessment End-Points,Bull. Environ. Contam. Toxicol.79(5): 537-543. ","884","USE 924 ENTRIES BELOW"]
["Freshwater","884-5",69,0.66990291262135926,"Lemna gibba","6 fronds","7 days","Population: Growth Rate","NOEC","0.5 mg/L","Sobrero,M.C., F. Rimoldi, and A.E. Ronco, 2007. Effects of the Glyphosate Active Ingredient and a Formulation on Lemna gibba L. at Different Exposure Levels and Assessment End-Points,Bull. Environ. Contam. Toxicol.79(5): 537-543. ","884","USE 924 ENTRIES BELOW"]
["Freshwater","884-6",69,0.66990291262135926,"Lemna gibba","6 fronds","10 days","Population: Growth Rate","NOEC","0.5 mg/L","Sobrero,M.C., F. Rimoldi, and A.E. Ronco, 2007. Effects of the Glyphosate Active Ingredient and a Formulation on Lemna gibba L. at Different Exposure Levels and Assessment End-Points,Bull. Environ. Contam. Toxicol.79(5): 537-543. ","884","USE 924 ENTRIES BELOW"]
["Freshwater","866-3",55,0.56299999999999994,"Myriophyllum aquaticum","not specified","14 days","Population: Abundance: ChlA","LOEC","474 ug/L","Turgut,C., 2007. The Impact of Pesticides Toward Parrotfeather when Applied at the Predicted Environmental Concentration, Chemosphere66(3): 469-473. ","866","35.6% Emulsible concentrate"]
["Freshwater","884-7",74,0.71844660194174759,"Lemna gibba","6 fronds","10 days","Growth: Biomass","LOEC","15 mg/L","Sobrero,M.C., F. Rimoldi, and A.E. Ronco, 2007. Effects of the Glyphosate Active Ingredient and a Formulation on Lemna gibba L. at Different Exposure Levels and Assessment End-Points,Bull. Environ. Contam. Toxicol.79(5): 537-543. ","884","USE 924 ENTRIES BELOW"]
["Freshwater","884-8",74,0.71844660194174759,"Lemna gibba","6 fronds","10 days","Growth: Biomass","NOEC","7.5 mg/L","Sobrero,M.C., F. Rimoldi, and A.E. Ronco, 2007. Effects of the Glyphosate Active Ingredient and a Formulation on Lemna gibba L. at Different Exposure Levels and Assessment End-Points,Bull. Environ. Contam. Toxicol.79(5): 537-543. ","884","USE 924 ENTRIES BELOW"]
["Freshwater","884-9",74,0.71844660194174759,"Lemna gibba","6 fronds","10 days","Growth: Biomass","LOEC","15 mg/L","Sobrero,M.C., F. Rimoldi, and A.E. Ronco, 2007. Effects of the Glyphosate Active Ingredient and a Formulation on Lemna gibba L. at Different Exposure Levels and Assessment End-Points,Bull. Environ. Contam. Toxicol.79(5): 537-543. ","884","USE 924 ENTRIES BELOW"]
["Freshwater","884-10",74,0.71844660194174759,"Lemna gibba","6 fronds","10 days","Growth: Biomass","NOEC","7.5 mg/L","Sobrero,M.C., F. Rimoldi, and A.E. Ronco, 2007. Effects of the Glyphosate Active Ingredient and a Formulation on Lemna gibba L. at Different Exposure Levels and Assessment End-Points,Bull. Environ. Contam. Toxicol.79(5): 537-543. ","884","USE 924 ENTRIES BELOW"]
["Freshwater","884-11",74,0.71844660194174759,"Lemna gibba","6 fronds","7 days","Growth: Biomass","IC10","14.1 mg/L","Sobrero,M.C., F. Rimoldi, and A.E. Ronco, 2007. Effects of the Glyphosate Active Ingredient and a Formulation on Lemna gibba L. at Different Exposure Levels and Assessment End-Points,Bull. Environ. Contam. Toxicol.79(5): 537-543. ","884","USE 924 ENTRIES BELOW"]
["Freshwater","884-12",74,0.71844660194174759,"Lemna gibba","6 fronds","7 days","Growth: Biomass","IC10","11.2 mg/L","Sobrero,M.C., F. Rimoldi, and A.E. Ronco, 2007. Effects of the Glyphosate Active Ingredient and a Formulation on Lemna gibba L. at Different Exposure Levels and Assessment End-Points,Bull. Environ. Contam. Toxicol.79(5): 537-543. ","884","USE 924 ENTRIES BELOW"]
["Freshwater","884-13",74,0.71844660194174759,"Lemna gibba","6 fronds","10 days","Growth: Biomass","IC10","10.2 mg/L","Sobrero,M.C., F. Rimoldi, and A.E. Ronco, 2007. Effects of the Glyphosate Active Ingredient and a Formulation on Lemna gibba L. at Different Exposure Levels and Assessment End-Points,Bull. Environ. Contam. Toxicol.79(5): 537-543. ","884","USE 924 ENTRIES BELOW"]
["Freshwater","884-14",74,0.71844660194174759,"Lemna gibba","6 fronds","10 days","Growth: Biomass","IC10","10.1 mg/L","Sobrero,M.C., F. Rimoldi, and A.E. Ronco, 2007. Effects of the Glyphosate Active Ingredient and a Formulation on Lemna gibba L. at Different Exposure Levels and Assessment End-Points,Bull. Environ. Contam. Toxicol.79(5): 537-543. ","884","USE 924 ENTRIES BELOW"]
["Freshwater","884-15",74,0.71844660194174759,"Lemna gibba","6 fronds","10 days","Growth: Biomass","IC10","8.5 mg/L","Sobrero,M.C., F. Rimoldi, and A.E. Ronco, 2007. Effects of the Glyphosate Active Ingredient and a Formulation on Lemna gibba L. at Different Exposure Levels and Assessment End-Points,Bull. Environ. Contam. Toxicol.79(5): 537-543. ","884","USE 924 ENTRIES BELOW"]
["Freshwater","884-16",74,0.71844660194174759,"Lemna gibba","6 fronds","10 days","Growth: Biomass","IC10","6.3 mg/L","Sobrero,M.C., F. Rimoldi, and A.E. Ronco, 2007. Effects of the Glyphosate Active Ingredient and a Formulation on Lemna gibba L. at Different Exposure Levels and Assessment End-Points,Bull. Environ. Contam. Toxicol.79(5): 537-543. ","884","USE 924 ENTRIES BELOW"]
["Freshwater","867-3",59,0.57281553398058249,"Myriophyllum aquaticum","not specified","14 days","Population: Abundance: ChlA","EC50","222 ug/L","Turgut,C., and A. Fomin, 2002. Sensitivity of the Rooted Macrophyte Myriophyllum aquaticum (Vell.) Verdcourt to Seventeen Pesticides Determined on the Basis of EC50, Bull. Environ. Contam. Toxicol.69:601-608.  ","867","35.6% Emulsible concentrate"]
["Freshwater","867-6",59,0.57281553398058249,"Myriophyllum aquaticum","not specified","14 days","Population: Growth: Total Shoot Length","EC50","1998 ug/L","Turgut,C., and A. Fomin, 2002. Sensitivity of the Rooted Macrophyte Myriophyllum aquaticum (Vell.) Verdcourt to Seventeen Pesticides Determined on the Basis of EC50, Bull. Environ. Contam. Toxicol.69:601-608.  ","867","35.6% Emulsible concentrate"]
["Freshwater","867-7",59,0.57281553398058249,"Myriophyllum aquaticum","not specified","14 days","Population: Biomass: Wet Weight","EC50","1999 ug/L","Turgut,C., and A. Fomin, 2002. Sensitivity of the Rooted Macrophyte Myriophyllum aquaticum (Vell.) Verdcourt to Seventeen Pesticides Determined on the Basis of EC50, Bull. Environ. Contam. Toxicol.69:601-608.  ","867","35.6% Emulsible concentrate"]
["Freshwater","868-4",56,0.5436893203883495,"Scenedesmus quadricauda","Log growth phase","not-stated","Population: Abundance: ChlA","NOEC","200 ug/L","Wong,P.K., 2002. Effects of 2,4-D, Glyphosate and Paraquat on Growth, Photosynthesis and Chlorophyll-a Synthesis of Scenedesmus quadricauda Berb 614, Chemosphere41(1-2): 177-182. ","868","N-(phosphonomethyl) glycine, active ingredient 35.6%"]
["Freshwater","868-5",56,0.5436893203883495,"Scenedesmus quadricauda","Log growth phase","not-stated","Population: Abundance: ChlA","NOEC","2000 ug/L","Wong,P.K., 2002. Effects of 2,4-D, Glyphosate and Paraquat on Growth, Photosynthesis and Chlorophyll-a Synthesis of Scenedesmus quadricauda Berb 614, Chemosphere41(1-2): 177-182. ","868","N-(phosphonomethyl) glycine, active ingredient 35.6%"]
["Freshwater","868-8",56,0.5436893203883495,"Scenedesmus quadricauda","Stationary Growth Phase","not-stated","Population: Growth Rate: Cell Density (inhibition)","LOEC","20 ug/L","Wong,P.K., 2002. Effects of 2,4-D, Glyphosate and Paraquat on Growth, Photosynthesis and Chlorophyll-a Synthesis of Scenedesmus quadricauda Berb 614, Chemosphere41(1-2): 177-182. ","868","N-(phosphonomethyl) glycine, active ingredient 35.6%"]
["Freshwater","885-1",76,0.73786407766990292,"Hyla versicolor","Tadpoles","26 days","Development: Metamorphosis","NOEC","6.9 ug/L","Relyea,R.A., 2009. A Cocktail of Contaminants: How Mixtures of Pesticides at Low Concentrations Affect Aquatic Communities, Oceanologia (Wroc.)159:363-376. ","885","Technical grade purity (98%)"]
["Freshwater","885-2",76,0.73786407766990292,"Rana pipiens","Tadpoles","57 days","Development: Metamorphosis","NOEC","6.9 ug/L","Relyea,R.A., 2009. A Cocktail of Contaminants: How Mixtures of Pesticides at Low Concentrations Affect Aquatic Communities, Oceanologia (Wroc.)159:363-376. ","885","Technical grade purity (98%)"]
["Freshwater","885-3",76,0.73786407766990292,"Hyla versicolor","Tadpoles","26 days","Mortality: Survival","NOEC","6.9 ug/L","Relyea,R.A., 2009. A Cocktail of Contaminants: How Mixtures of Pesticides at Low Concentrations Affect Aquatic Communities, Oceanologia (Wroc.)159:363-376. ","885","Technical grade purity (98%)"]
["Freshwater","618-1",68,0.66019417475728159,"Chlorella pyrenoidosa","not-stated","96 hours","Growth: Inhibition","EC50","3.530 mg/L","Ma,J., W. Liang, L. Xu, S. Wang, Y. Wei, and J. Lu. 2001. Acute Toxicity of 33 Herbicides to the Green Alga Chlorella pyrenoidosa, Bull. Environ. Contam. Toxicol.66(4): 536-541.","618","Technical grade (95%)"]
["Freshwater","614-1",68,0.66019417475728159,"Scenedesmus obliquus","not-stated","96 hours","Growth: Inhibition","EC50","55.8585 mg/L","Ma, J. 2002. Differential Sensitivity to 30 Herbicides Among Populations of Two Green Algae Scenedesmus obliquus and Chlorella pyrenoidosa, Bull. Environ. Contam. Toxicol.68(2): 275-281. ","614","Technical grade (95%)"]
["Freshwater","870-1-GD",40,0.38834951456310679,"Microcystis aeruginosa","not-stated","Not stated","Population: Relative Growth Rate","EC5","50 uM","Saxton,M.A., E.A. Morrow, R.A. Bourbonniere, and S.W. Wilhelm, 2011. Glyphosate Influence on Phytoplankton Community Structure in Lake Erie, J. Gt. Lakes Res.37(4): 683-690.  ","870","Purity not mentioned "]
["Freshwater","870-2-GD",40,0.38834951456310679,"Microcystis aeruginosa","not-stated","Not stated","Population: Relative Growth Rate","EC60","100 uM","Saxton,M.A., E.A. Morrow, R.A. Bourbonniere, and S.W. Wilhelm, 2011. Glyphosate Influence on Phytoplankton Community Structure in Lake Erie, J. Gt. Lakes Res.37(4): 683-690.  ","870","Purity not mentioned "]
["Freshwater","870-23GD",40,0.38834951456310679,"Planktothrix agardhii","not-stated","Not stated","Population: Relative Growth Rate","EC10","100 uM","Saxton,M.A., E.A. Morrow, R.A. Bourbonniere, and S.W. Wilhelm, 2011. Glyphosate Influence on Phytoplankton Community Structure in Lake Erie, J. Gt. Lakes Res.37(4): 683-690.  ","870","Purity not mentioned "]
["Freshwater","870-23GD",40,0.38834951456310679,"Planktothrix agardhii","not-stated","Not stated","Population: Relative Growth Rate","EC100","350 uM","Saxton,M.A., E.A. Morrow, R.A. Bourbonniere, and S.W. Wilhelm, 2011. Glyphosate Influence on Phytoplankton Community Structure in Lake Erie, J. Gt. Lakes Res.37(4): 683-690.  ","870","Purity not mentioned "]
["Freshwater","875-3-GD",57,0.55339805825242716,"Pomacea lineata","Neonate","96 hours","Population: Growth (Weight Gain)","NOEC","250 ug/L","Coler,R.A., R.R. Coler, E.K.G. Felizardo, and T. Watanabe, 2005. Applying Weight Gain in Pomacea lineata (Spix 1824) (Mollusca: Prosobranchia) as a Measure of Herbicide Toxicity, Braz. J. Biol.65(4): 617-623. ","875","Round-up"]
["Freshwater","875-4-GD",57,0.55339805825242716,"Pomacea lineata","Neonate","96 hours","Population: Growth (Weight Gain)","LOEC","500 ug/L","Coler,R.A., R.R. Coler, E.K.G. Felizardo, and T. Watanabe, 2005. Applying Weight Gain in Pomacea lineata (Spix 1824) (Mollusca: Prosobranchia) as a Measure of Herbicide Toxicity, Braz. J. Biol.65(4): 617-623. ","875","Round-up"]
["Freshwater","875-5-GD",57,0.55339805825242716,"Pomacea lineata","Neonate","8 days","Population: Growth (Weight Gain)","NOEC","0.00 ug/L","Coler,R.A., R.R. Coler, E.K.G. Felizardo, and T. Watanabe, 2005. Applying Weight Gain in Pomacea lineata (Spix 1824) (Mollusca: Prosobranchia) as a Measure of Herbicide Toxicity, Braz. J. Biol.65(4): 617-623. ","875","Round-up"]
["Freshwater","875-6-GD",57,0.55339805825242716,"Pomacea lineata","Neonate","8 days","Population: Growth (Weight Gain)","LOEC","120 ug/L","Coler,R.A., R.R. Coler, E.K.G. Felizardo, and T. Watanabe, 2005. Applying Weight Gain in Pomacea lineata (Spix 1824) (Mollusca: Prosobranchia) as a Measure of Herbicide Toxicity, Braz. J. Biol.65(4): 617-623. ","875","Round-up"]
["Freshwater","867-4-GD",64,0.62135922330097082,"Myriophyllum aquaticum","not-stated","14 days","Growth: Total Root Length","EC50","1998 ug/L","Turgut,C., and A. Fomin, 2002. Sensitivity of the Rooted Macrophyte Myriophyllum aquaticum (Vell.) Verdcourt to Seventeen Pesticides Determined on the Basis of EC50, Bull. Environ. Contam. Toxicol.69:601-608.  ","867","35.6% Emulsible concentrate"]
["Freshwater","867-5-GD",61,0.59223300970873782,"Myriophyllum aquaticum","not-stated","14 days","Population: Biomass (chlorophyll-a)","EC50","0.222 mg/L","Turgut,C., and A. Fomin, 2002. Sensitivity of the Rooted Macrophyte Myriophyllum aquaticum (Vell.) Verdcourt to Seventeen Pesticides Determined on the Basis of EC50, Bull. Environ. Contam. Toxicol.69:601-608.  ","867","35.6% Emulsible concentrate"]
["Freshwater","867-6-GD",61,0.59223300970873782,"Myriophyllum aquaticum","not-stated","14 days","Population: Biomass (chlorophyll-b)","EC50","0.222 mg/L","Turgut,C., and A. Fomin, 2002. Sensitivity of the Rooted Macrophyte Myriophyllum aquaticum (Vell.) Verdcourt to Seventeen Pesticides Determined on the Basis of EC50, Bull. Environ. Contam. Toxicol.69:601-608.  ","867","35.6% Emulsible concentrate"]
["Freshwater","873-1-GD",92,0.89320388349514568,"Lampsilis siliquoidea","Glochidia","24 hours","Mortality: Immobility","EC50",">200 mg/L","Bringolf,R.B., W.G. Cope, S. Mosher, M.C. Barnhart, and D. Shea, 2007. Acute and Chronic Toxicity of Glyphosate Compounds to Glochidia and Juveniles of Lampsilis siliquoidea (Unionidae), Environ. Toxicol. Chem.26(10): 2094-2100.","873","Technical purity (98%)","Do Not  Use - '>' data is unnecessary to use here as there is already a lot of data for this species that can be used and is more accurate"]
["Freshwater","873-2-GD",92,0.89320388349514568,"Lampsilis siliquoidea","Glochidia","48 hours","Mortality: Immobility","EC50",">200 mg/L","Bringolf,R.B., W.G. Cope, S. Mosher, M.C. Barnhart, and D. Shea, 2007. Acute and Chronic Toxicity of Glyphosate Compounds to Glochidia and Juveniles of Lampsilis siliquoidea (Unionidae), Environ. Toxicol. Chem.26(10): 2094-2100.","873","Technical purity (98%)","Do Not  Use - '>' data is unnecessary to use here as there is already a lot of data for this species that can be used and is more accurate"]
["Freshwater","873-3-GD",92,0.89320388349514568,"Lampsilis siliquoidea","Juveniles","48 hours","Mortality: Immobility","EC50",">200 mg/L","Bringolf,R.B., W.G. Cope, S. Mosher, M.C. Barnhart, and D. Shea, 2007. Acute and Chronic Toxicity of Glyphosate Compounds to Glochidia and Juveniles of Lampsilis siliquoidea (Unionidae), Environ. Toxicol. Chem.26(10): 2094-2100.","873","Technical purity (98%)","Do Not  Use - '>' data is unnecessary to use here as there is already a lot of data for this species that can be used and is more accurate"]
["Freshwater","873-4-GD",92,0.89320388349514568,"Lampsilis siliquoidea","Juveniles","96 hours","Mortality: Immobility","EC50",">200 mg/L","Bringolf,R.B., W.G. Cope, S. Mosher, M.C. Barnhart, and D. Shea, 2007. Acute and Chronic Toxicity of Glyphosate Compounds to Glochidia and Juveniles of Lampsilis siliquoidea (Unionidae), Environ. Toxicol. Chem.26(10): 2094-2100.","873","Technical purity (98%)","Do Not  Use - '>' data is unnecessary to use here as there is already a lot of data for this species that can be used and is more accurate"]
["Freshwater","873-5-GD",92,0.89320388349514568,"Lampsilis siliquoidea","Juveniles","7 days","Mortality: Immobility","EC50",">200 mg/L","Bringolf,R.B., W.G. Cope, S. Mosher, M.C. Barnhart, and D. Shea, 2007. Acute and Chronic Toxicity of Glyphosate Compounds to Glochidia and Juveniles of Lampsilis siliquoidea (Unionidae), Environ. Toxicol. Chem.26(10): 2094-2100.","873","Technical purity (98%)","Do Not  Use - '>' data is unnecessary to use here as there is already a lot of data for this species that can be used and is more accurate"]
["Freshwater","873-6-GD",92,0.89320388349514568,"Lampsilis siliquoidea","Juveniles","14 days","Mortality: Immobility","EC50",">200 mg/L","Bringolf,R.B., W.G. Cope, S. Mosher, M.C. Barnhart, and D. Shea, 2007. Acute and Chronic Toxicity of Glyphosate Compounds to Glochidia and Juveniles of Lampsilis siliquoidea (Unionidae), Environ. Toxicol. Chem.26(10): 2094-2100.","873","Technical purity (98%)","Do Not  Use - '>' data is unnecessary to use here as there is already a lot of data for this species that can be used and is more accurate"]
["Freshwater","873-7-GD",92,0.89320388349514568,"Lampsilis siliquoidea","Juveniles","21 days","Mortality: Immobility","EC50",">200 mg/L","Bringolf,R.B., W.G. Cope, S. Mosher, M.C. Barnhart, and D. Shea, 2007. Acute and Chronic Toxicity of Glyphosate Compounds to Glochidia and Juveniles of Lampsilis siliquoidea (Unionidae), Environ. Toxicol. Chem.26(10): 2094-2100.","873","Technical purity (98%)","Do Not  Use - '>' data is unnecessary to use here as there is already a lot of data for this species that can be used and is more accurate"]
["Freshwater","873-8-GD",92,0.89320388349514568,"Lampsilis siliquoidea","Juveniles","28 days","Mortality: Immobility","EC50",">200 mg/L","Bringolf,R.B., W.G. Cope, S. Mosher, M.C. Barnhart, and D. Shea, 2007. Acute and Chronic Toxicity of Glyphosate Compounds to Glochidia and Juveniles of Lampsilis siliquoidea (Unionidae), Environ. Toxicol. Chem.26(10): 2094-2100.","873","Technical purity (98%)","Do Not  Use - '>' data is unnecessary to use here as there is already a lot of data for this species that can be used and is more accurate"]
["Freshwater","873-9-GD",92,0.89320388349514568,"Lampsilis siliquoidea","Juveniles","21 days","Population: Growth","NOEC","12.5 mg/L","Bringolf,R.B., W.G. Cope, S. Mosher, M.C. Barnhart, and D. Shea, 2007. Acute and Chronic Toxicity of Glyphosate Compounds to Glochidia and Juveniles of Lampsilis siliquoidea (Unionidae), Environ. Toxicol. Chem.26(10): 2094-2100.","873","Technical purity (98%)","USE THIS VERSION OF ENTRY"]
["Freshwater","873-10-GD",92,0.89320388349514568,"Lampsilis siliquoidea","Juveniles","21 days","Population: Growth","LOEC","25 mg/L","Bringolf,R.B., W.G. Cope, S. Mosher, M.C. Barnhart, and D. Shea, 2007. Acute and Chronic Toxicity of Glyphosate Compounds to Glochidia and Juveniles of Lampsilis siliquoidea (Unionidae), Environ. Toxicol. Chem.26(10): 2094-2100.","873","Technical purity (98%)","USE THIS VERSION OF ENTRY"]
["Freshwater","868-1-GD",46,0.44660194174757284,"Scenedesmus quadricauda","Log growth phase","not-stated","Population: Growth Rate","NOEC","200 ug/L","Wong,P.K., 2002. Effects of 2,4-D, Glyphosate and Paraquat on Growth, Photosynthesis and Chlorophyll-a Synthesis of Scenedesmus quadricauda Berb 614, Chemosphere41(1-2): 177-182.\n","868","N-(phosphonomethyl) glycine, active ingredient 35.6%"]
["Freshwater","868-2-GD",46,0.44660194174757284,"Scenedesmus quadricauda","Log growth phase","not-stated","Population: Growth Rate","LOEC","2000 ug/L","Wong,P.K., 2002. Effects of 2,4-D, Glyphosate and Paraquat on Growth, Photosynthesis and Chlorophyll-a Synthesis of Scenedesmus quadricauda Berb 614, Chemosphere41(1-2): 177-182.\n","868","N-(phosphonomethyl) glycine, active ingredient 35.6%"]
["Freshwater","868-3-GD",46,0.44660194174757284,"Scenedesmus quadricauda","Log growth phase","not-stated","Growth - chlorophyll-a","NOEC","2000 ug/L","Wong,P.K., 2002. Effects of 2,4-D, Glyphosate and Paraquat on Growth, Photosynthesis and Chlorophyll-a Synthesis of Scenedesmus quadricauda Berb 614, Chemosphere41(1-2): 177-182.\n","868","N-(phosphonomethyl) glycine, active ingredient 35.6%"]
["Freshwater","868-4-GD",46,0.44660194174757284,"Scenedesmus quadricauda","Log growth phase","not-stated","Growth - chlorophyll-a","LOEC","20000 ug/L","Wong,P.K., 2002. Effects of 2,4-D, Glyphosate and Paraquat on Growth, Photosynthesis and Chlorophyll-a Synthesis of Scenedesmus quadricauda Berb 614, Chemosphere41(1-2): 177-182.\n","868","N-(phosphonomethyl) glycine, active ingredient 35.6%"]
["Freshwater","868-5-GD",46,0.44660194174757284,"Scenedesmus quadricauda","Stationary Growth Phase","not-stated","Growth - chlorophyll-a","NOEC","2000 ug/L","Wong,P.K., 2002. Effects of 2,4-D, Glyphosate and Paraquat on Growth, Photosynthesis and Chlorophyll-a Synthesis of Scenedesmus quadricauda Berb 614, Chemosphere41(1-2): 177-182.\n","868","N-(phosphonomethyl) glycine, active ingredient 35.6%"]
["Freshwater","868-6-GD",46,0.44660194174757284,"Scenedesmus quadricauda","Stationary Growth Phase","not-stated","Growth - chlorophyll-a","LOEC","20000 ug/L","Wong,P.K., 2002. Effects of 2,4-D, Glyphosate and Paraquat on Growth, Photosynthesis and Chlorophyll-a Synthesis of Scenedesmus quadricauda Berb 614, Chemosphere41(1-2): 177-182.\n","868","N-(phosphonomethyl) glycine, active ingredient 35.6%"]
["Freshwater","866-1-GD",51,0.49514563106796117,"Myriophyllum aquaticum","not-stated","14 days","Population: Biomass (chlorophyll-a)","EC15.6","474 ug/L","Turgut,C., 2007. The Impact of Pesticides Toward Parrotfeather when Applied at the Predicted Environmental Concentration, Chemosphere66(3): 469-473. ","866","35.6% Emulsible concentrate"]
["Freshwater","866-2-GD",51,0.49514563106796117,"Myriophyllum aquaticum","not-stated","14 days","Population: Biomass (chlorophyll-b)","EC17.2","474 ug/L","Turgut,C., 2007. The Impact of Pesticides Toward Parrotfeather when Applied at the Predicted Environmental Concentration, Chemosphere66(3): 469-473. ","866","35.6% Emulsible concentrate"]
["Freshwater","866-3-GD",51,0.49514563106796117,"Myriophyllum aquaticum","not-stated","14 days","Population: Growth (increase in shoot length)","EC14.4","474 ug/L","Turgut,C., 2007. The Impact of Pesticides Toward Parrotfeather when Applied at the Predicted Environmental Concentration, Chemosphere66(3): 469-473. ","866","35.6% Emulsible concentrate"]
["Freshwater","866-4-GD",55,0.53398058252427183,"Myriophyllum aquaticum","not specified","14 days","Growth - Shoot Length","NOEC","474 ug/L","Turgut,C., 2007. The Impact of Pesticides Toward Parrotfeather when Applied at the Predicted Environmental Concentration, Chemosphere66(3): 469-473. ","866","35.6% Emulsible concentrate"]
["Freshwater","872-1-GD",60,0.58252427184466016,"Microcystis wesenbergii","Exponential Growth Phase","96 hours","Population: Growth (Chlorophyll a)","EC50","6.84 uM/L","Sun,K., W. Liu, L. Liu, N. Wang, and S. Duan, 2013. Ecological Risks Assessment of Organophosphorus Pesticides on Bloom of Microcystis wesenbergii, Int. Biodeterior. Biodegrad.77:98-105. ","872","41% round-up"]
["Freshwater","858-1-GD",52,0.50485436893203883,"Scenedesmus acutus","not-stated","24 hours","Population: Abundance","IC50",6.2000000000000003E-5,"Grossmann,K., R. Berghaus, and G. Retzlaff, 1992. Heterotrophic Plant Cell Suspension Cultures for Monitoring Biological Activity in Agrochemical Research. Comparison with Screens Using Algae, Germinating Seeds and Whole Plants, Pestic. Sci.35(3): 283-289.","585","USE 858-8 ENTRY BELOW"]
["Freshwater","858-2-GD",52,0.50485436893203883,"Lemna paucicostata","not-stated","48 hours","Growth: Frond area","IC50",2.3E-5,"Grossmann,K., R. Berghaus, and G. Retzlaff, 1992. Heterotrophic Plant Cell Suspension Cultures for Monitoring Biological Activity in Agrochemical Research. Comparison with Screens Using Algae, Germinating Seeds and Whole Plants, Pestic. Sci.35(3): 283-289.","585","USE 858-15 ENTRY BELOW"]
["Freshwater","866-3",55,0.56299999999999994,"Myriophyllum aquaticum","not specified","14 days","Population: Abundance","LOEC","474 ug/L","Turgut,C., 2007. The Impact of Pesticides Toward Parrotfeather when Applied at the Predicted Environmental Concentration, Chemosphere66(3): 469-473. ","866","35.6% Emulsible concentrate"]
["Freshwater","867-3",59,0.57281553398058249,"Myriophyllum aquaticum","not specified","14 days","Population: Abundance","EC50","222 ug/L","Turgut,C., and A. Fomin, 2002. Sensitivity of the Rooted Macrophyte Myriophyllum aquaticum (Vell.) Verdcourt to Seventeen Pesticides Determined on the Basis of EC50, Bull. Environ. Contam. Toxicol.69:601-608.  ","867","35.6% Emulsible concentrate"]
["Freshwater","867-6",59,0.57281553398058249,"Myriophyllum aquaticum","not specified","14 days","Growth: Length","EC50","1998 ug/L","Turgut,C., and A. Fomin, 2002. Sensitivity of the Rooted Macrophyte Myriophyllum aquaticum (Vell.) Verdcourt to Seventeen Pesticides Determined on the Basis of EC50, Bull. Environ. Contam. Toxicol.69:601-608.  ","867","35.6% Emulsible concentrate"]
["Freshwater","867-7",59,0.57281553398058249,"Myriophyllum aquaticum","not specified","14 days","Population: Biomass","EC50","1999 ug/L","Turgut,C., and A. Fomin, 2002. Sensitivity of the Rooted Macrophyte Myriophyllum aquaticum (Vell.) Verdcourt to Seventeen Pesticides Determined on the Basis of EC50, Bull. Environ. Contam. Toxicol.69:601-608.  ","867","35.6% Emulsible concentrate"]
["Freshwater","834-2",72,0.69902912621359226,"Chlorella pyrenoidosa","non-stated","96 hours","EC50","Population Abundance","3514 ug/L","Ma, J., Xu, L. and Wang, S., 2002. A Quick, Simple, and Accurate Method of Screening Herbicide Activity Using Green Algae Cell Suspension Cultures, Weed Sci.50(5): 555-559. ","834","Technical product (95%)","From Metolachlor Spreadsheet"]
["Freshwater","837-10",68,0.66019417475728159,"Raphidocelis subcapitata","non-stated","96 hours","EC50","Population Abundance","5555.4 ug/L","Ma, J., Wang, S., Wang, P., Ma, L., Chen, X. and Xu, R., 2006. Toxicity Assessment of 40 Herbicides to the Green Alga Raphidocelis subcapitata, Ecotoxicol. Environ. Saf.63(3): 456-462. ","837","Technical product (95%)","From Metolachlor Spreadsheet"]
["Freshwater","835-8",59,0.57281553398058249,"Scenedesmus quadricauda","non-stated","96 hours","EC50","Population Abundance","70500 ug/L","Ma, J., Lin, F., Wang, S. and Xu, L., 2003. Toxicity of 21 Herbicides to the Green Alga Scenedesmus quadricauda, Bull. Environ. Contam. Toxicol.71(3): 594-601. ","835","Technical product (95%)","From Metolachlor Spreadsheet"]
["Freshwater","836-7",67,0.65048543689320393,"Chlorella vulgaris","non-stated","96 hours","EC50","Population Abundance","4696.1 ug/L","Ma, J., Xu, L., Wang, S., Zheng, R., Jin, S., Huang, S. and Huang, Y., 2002. Toxicity of 40 Herbicides to the Green Alga Chlorella vulgaris, Ecotoxicol. Environ. Saf.51(2): 128-132. ","836","Technical product (95%)","From Metolachlor Spreadsheet"]
["Freshwater","850-1",75,0.72815533980582525,"Pseudacris triseriata","Tadpole - Gosner Stage 25","not stated","NOEC","Mortality - Survival","0.6 ug/L","Williams,B.K., and R.D. Semlitsch, 2010. Larval Responses of Three Midwestern Anurans to Chronic, Low-Dose Exposures of Four Herbicides, Arch. Environ. Contam. Toxicol.58(3): 819-827.  ","850","Roundup Original Max (48.7% glyphosate potassium salt) or Roundup WeatherMax (48.8% glyphosate potassium salt)","From Metolachlor Spreadsheet"]
["Freshwater","850-2",75,0.72815533980582525,"Pseudacris triseriata","Tadpole - Gosner Stage 25","not stated","LOEC","Mortality - Survival","700 ug/L","Williams,B.K., and R.D. Semlitsch, 2010. Larval Responses of Three Midwestern Anurans to Chronic, Low-Dose Exposures of Four Herbicides, Arch. Environ. Contam. Toxicol.58(3): 819-827.  ","850","Roundup Original Max (48.7% glyphosate potassium salt) or Roundup WeatherMax (48.8% glyphosate potassium salt)","From Metolachlor Spreadsheet"]
["Freshwater","850-3",75,0.72815533980582525,"Pseudacris triseriata","Tadpole - Gosner Stage 25","not stated","NOEC","Development","0.6 ug/L","Williams,B.K., and R.D. Semlitsch, 2010. Larval Responses of Three Midwestern Anurans to Chronic, Low-Dose Exposures of Four Herbicides, Arch. Environ. Contam. Toxicol.58(3): 819-827.  ","850","Roundup Original Max (48.7% glyphosate potassium salt) or Roundup WeatherMax (48.8% glyphosate potassium salt)","From Metolachlor Spreadsheet"]
["Freshwater","850-4",75,0.72815533980582525,"Pseudacris triseriata","Tadpole - Gosner Stage 25","not stated","LOEC","Development","700 ug/L","Williams,B.K., and R.D. Semlitsch, 2010. Larval Responses of Three Midwestern Anurans to Chronic, Low-Dose Exposures of Four Herbicides, Arch. Environ. Contam. Toxicol.58(3): 819-827.  ","850","Roundup Original Max (48.7% glyphosate potassium salt) or Roundup WeatherMax (48.8% glyphosate potassium salt)","From Metolachlor Spreadsheet"]
["Freshwater","858-8",53,0.5145631067961165,"Scenedesmus acutus","not stated","24 hours","IC50","Population Abundance","0.000062 M","Grossmann,K., R. Berghaus, and G. Retzlaff, 1992. Heterotrophic Plant Cell Suspension Cultures for Monitoring Biological Activity in Agrochemical Research. Comparison with Screens Using Algae, Germinating Seeds and Whole Plants, Pestic. Sci.35(3): 283-289.","858","Purity not mentioned ","From Metribuzin Spreadsheet"]
["Freshwater","858-15",53,0.5145631067961165,"Lemna paucicostata","not stated","8 days","IC50","Population Abundance","0.000023 M","Grossmann,K., R. Berghaus, and G. Retzlaff, 1992. Heterotrophic Plant Cell Suspension Cultures for Monitoring Biological Activity in Agrochemical Research. Comparison with Screens Using Algae, Germinating Seeds and Whole Plants, Pestic. Sci.35(3): 283-289.","858","Purity not mentioned ","From Metribuzin Spreadsheet"]
["Freshwater","886-4",75,0.72815533980582525,"Rhinella arenarum","Tadpoles","48 hours","Mortality: Survival","LC50","13.2 mg/L","Lajmanovich,R.C., C.M. Junges, A.M. Attademo, P.M. Peltzer, M.C. Cabagna-Zenklusen, and A. Basso, 2013. Individual and Mixture Toxicity of Commercial Formulations Containing Glyphosate, Metsulfuron-Methyl, Bispyribac-Sodium, and Picloram on Rhinella arenarum Tadpoles, Water Air Soil Pollut.224(3): 1-13. ","886","Commercial formulation (74.7%)","From Metsulfuron-methyl Spreadsheet"]
["Freshwater","886-5",75,0.72815533980582525,"Rhinella arenarum","Tadpoles","48 hours","Mortality: Survival","NOEC","10 mg/L","Lajmanovich,R.C., C.M. Junges, A.M. Attademo, P.M. Peltzer, M.C. Cabagna-Zenklusen, and A. Basso, 2013. Individual and Mixture Toxicity of Commercial Formulations Containing Glyphosate, Metsulfuron-Methyl, Bispyribac-Sodium, and Picloram on Rhinella arenarum Tadpoles, Water Air Soil Pollut.224(3): 1-13. ","886","Commercial formulation (74.7%)","From Metsulfuron-methyl Spreadsheet"]
["Freshwater","886-6",75,0.72815533980582525,"Rhinella arenarum","Tadpoles","48 hours","Mortality: Survival","LOEC","20 mg/L","Lajmanovich,R.C., C.M. Junges, A.M. Attademo, P.M. Peltzer, M.C. Cabagna-Zenklusen, and A. Basso, 2013. Individual and Mixture Toxicity of Commercial Formulations Containing Glyphosate, Metsulfuron-Methyl, Bispyribac-Sodium, and Picloram on Rhinella arenarum Tadpoles, Water Air Soil Pollut.224(3): 1-13. ","886","Commercial formulation (74.7%)","From Metsulfuron-methyl Spreadsheet"]
["Freshwater","917-1",88,0.85436893203883491,"Hydra attenuata","not-stated","96 hours","Mortality","LC1","14800 ug/L","Demetrio P.M., Bulus Rossini G.D., Bonetto C.A., Ronco A.E. 2012. Effects of pesticide formulations and active ingredients on the coelenterate hydra attenuata (Pallas, 1766) (88), 1: 15 - 19.","917","Technical grade"]
["Freshwater","917-2",88,0.85436893203883491,"Hydra attenuata","not-stated","96 hours","Mortality","LC5","15700 ug/L","Demetrio P.M., Bulus Rossini G.D., Bonetto C.A., Ronco A.E. 2012. Effects of pesticide formulations and active ingredients on the coelenterate hydra attenuata (Pallas, 1766) (88), 1: 15 - 19.","917","Technical grade"]
["Freshwater","917-3",88,0.85436893203883491,"Hydra attenuata","not-stated","96 hours","Mortality","LC10","16200 ug/L","Demetrio P.M., Bulus Rossini G.D., Bonetto C.A., Ronco A.E. 2012. Effects of pesticide formulations and active ingredients on the coelenterate hydra attenuata (Pallas, 1766) (88), 1: 15 - 19.","917","Technical grade"]
["Freshwater","917-4",88,0.85436893203883491,"Hydra attenuata","not-stated","96 hours","Mortality","LC15","16600 ug/L","Demetrio P.M., Bulus Rossini G.D., Bonetto C.A., Ronco A.E. 2012. Effects of pesticide formulations and active ingredients on the coelenterate hydra attenuata (Pallas, 1766) (88), 1: 15 - 19.","917","Technical grade"]
["Freshwater","917-5",88,0.85436893203883491,"Hydra attenuata","not-stated","96 hours","Mortality","LC50","18200 ug/L","Demetrio P.M., Bulus Rossini G.D., Bonetto C.A., Ronco A.E. 2012. Effects of pesticide formulations and active ingredients on the coelenterate hydra attenuata (Pallas, 1766) (88), 1: 15 - 19.","917","Technical grade"]
["Freshwater","917-6",88,0.85436893203883491,"Hydra attenuata","not-stated","96 hours","Mortality","LC85","20000 ug/L","Demetrio P.M., Bulus Rossini G.D., Bonetto C.A., Ronco A.E. 2012. Effects of pesticide formulations and active ingredients on the coelenterate hydra attenuata (Pallas, 1766) (88), 1: 15 - 19.","917","Technical grade"]
["Freshwater","919-1",51,0.49514563106796117,"Hyalella castrol","Adult","7 days","Mortality","LC26.08","360 ug/L","Dutra B.K., Fernandes F.A., Failace D.M., Oliveira G.T. 2011. Effect of roundup® (glyphosate formulation) in the energy metabolism and reproductive traits of Hyalella castroi (Crustacea, Amphipoda, Dogielinotidae), 20 (1): 255 - 263.","919","Round-up"]
["Freshwater","919-2",51,0.49514563106796117,"Hyalella castrol","Adult","7 days","Mortality","LC38.88","520 ug/L","Dutra B.K., Fernandes F.A., Failace D.M., Oliveira G.T. 2011. Effect of roundup® (glyphosate formulation) in the energy metabolism and reproductive traits of Hyalella castroi (Crustacea, Amphipoda, Dogielinotidae), 20 (1): 255 - 263.","919","Round-up"]
["Freshwater","919-3",51,0.49514563106796117,"Hyalella castrol","Adult","7 days","Mortality","LC44.68","1080 ug/L","Dutra B.K., Fernandes F.A., Failace D.M., Oliveira G.T. 2011. Effect of roundup® (glyphosate formulation) in the energy metabolism and reproductive traits of Hyalella castroi (Crustacea, Amphipoda, Dogielinotidae), 20 (1): 255 - 263.","919","Round-up"]
["Freshwater","919-4",51,0.49514563106796117,"Hyalella castrol","Adult","7 days","Mortality","LC52.28","2160 ug/L","Dutra B.K., Fernandes F.A., Failace D.M., Oliveira G.T. 2011. Effect of roundup® (glyphosate formulation) in the energy metabolism and reproductive traits of Hyalella castroi (Crustacea, Amphipoda, Dogielinotidae), 20 (1): 255 - 263.","919","Round-up"]
["Freshwater","920-1",72,0.69902912621359226,"Scenedesmus vacuolatus","Exponential Growth Phase","72 hours","Population: Abundance","EC50","43361 ug/L","Daouk, S., Copin, P.-J., Rossi, L., Chèvre, N., Pfeifer, H.-R. 2013. Dynamics and environmental risk assessment of the herbicide glyphosate and its metabolite AMPA in a small vineyard river of the Lake Geneva catchment, Environmental Toxicology and Chemistry, 32 (9): 2035 - 2044. ","920","USE 920-1-OK ENTRY BELOW"]
["Freshwater","921-1",76,0.73786407766990292,"Pseudokircheriella subcapitata","Exponential Growth Phase","96 hours","Population: Abundance","EC50","129000 ug/L","Pereira, J.L., Antunes, S.C., Castro, B.B., Marques, C.R., Gonçalves, A.M.M., Gonçalves, F., Pereira, R. 2009. Toxicity evaluation of three pesticides on non-target aquatic and soil organisms: Commercial formulation versus active ingredient, Ecotoxicology, 18(4): 455 - 463. ","921","Commercial formulation"]
["Freshwater","921-2",76,0.73786407766990292,"Daphnia magna","Neonate","48 hours","Mortality: Immobility","EC50","2000000 ug/L","Pereira, J.L., Antunes, S.C., Castro, B.B., Marques, C.R., Gonçalves, A.M.M., Gonçalves, F., Pereira, R. 2009. Toxicity evaluation of three pesticides on non-target aquatic and soil organisms: Commercial formulation versus active ingredient, Ecotoxicology, 18(4): 455 - 463. ","921","Commercial formulation"]
["Freshwater","922-1",64,0.62135922330097082,"Myriophyllum spicatum","3cm apical segments","21 days","Growth: Shoot Length","IC50","2860 ug/L","Sánchez, D., Graça, M.A.S., Canhoto, J. 2007. Testing the use of the water milfoil (Myriophyllum spicatum L.) in laboratory toxicity assays, Bulletin of Environmental Contamination and Toxicology, 78 (6): 421 - 426.","922","Isopropylamine salt (Round-up)"]
["Freshwater","922-2",64,0.62135922330097082,"Myriophyllum spicatum","3cm apical segments","21 days","Growth: Root Length","IC50","330 ug/L","Sánchez, D., Graça, M.A.S., Canhoto, J. 2007. Testing the use of the water milfoil (Myriophyllum spicatum L.) in laboratory toxicity assays, Bulletin of Environmental Contamination and Toxicology, 78 (6): 421 - 426.","922","Isopropylamine salt (Round-up)"]
["Freshwater","922-3",64,0.62135922330097082,"Myriophyllum spicatum","3cm apical segments","21 days","Growth: Fresh Weight","IC50","1000 ug/L","Sánchez, D., Graça, M.A.S., Canhoto, J. 2007. Testing the use of the water milfoil (Myriophyllum spicatum L.) in laboratory toxicity assays, Bulletin of Environmental Contamination and Toxicology, 78 (6): 421 - 426.","922","Isopropylamine salt (Round-up)"]
["Marine ","923-1-GD",68,0.66019417475728159,"Perkinsus olseni","Log-Growth Stage","72 hours","Growth: Cell proliferation","IC50","3.4 uM","Elandalloussi L.M., Leite R.B., Rodrigues P.M., Afonso R., Cancela M.L. 2008. Effect of the herbicide Roundup® on Perkinsus olseni in vitro proliferation and in vivo survival when infecting a permissive host, the clam Ruditapes decussatus, Bulletin of Environmental Contamination and Toxicology, (80) 6: 512 - 515. ","923","Round-up"]
["Freshwater","924-1",74,0.71844660194174759,"Lemna gibba","not-stated","2 Days","Growth rate: Frond number","NOEC","500 ug/L","Sobrero M.C., Rimoldi F., Ronco A.E. 2007. Effects of the glyphosate active ingredient and a formulation on Lemna gibba L. at different exposure levels and assessment end-points, Bulletin of Environmental Contamination and Toxicology, 79 (5): 537 - 543. ","924","Technicl grade (95% w/w)","USE THIS VERSION OF ENTRY"]
["Freshwater","924-2",74,0.71844660194174759,"Lemna gibba","not-stated","2 Days","Growth rate: Frond number","LOEC","1000 ug/L","Sobrero M.C., Rimoldi F., Ronco A.E. 2007. Effects of the glyphosate active ingredient and a formulation on Lemna gibba L. at different exposure levels and assessment end-points, Bulletin of Environmental Contamination and Toxicology, 79 (5): 537 - 543. ","924","Technicl grade (95% w/w)","USE THIS VERSION OF ENTRY"]
["Freshwater","924-3",74,0.71844660194174759,"Lemna gibba","not-stated","2 Days","Growth rate: Frond number","IC25","15100 ug/L","Sobrero M.C., Rimoldi F., Ronco A.E. 2007. Effects of the glyphosate active ingredient and a formulation on Lemna gibba L. at different exposure levels and assessment end-points, Bulletin of Environmental Contamination and Toxicology, 79 (5): 537 - 543. ","924","Technicl grade (95% w/w)","USE THIS VERSION OF ENTRY"]
["Freshwater","924-4",74,0.71844660194174759,"Lemna gibba","not-stated","2 Days","Growth rate: Frond number","IC50","33100 ug/L","Sobrero M.C., Rimoldi F., Ronco A.E. 2007. Effects of the glyphosate active ingredient and a formulation on Lemna gibba L. at different exposure levels and assessment end-points, Bulletin of Environmental Contamination and Toxicology, 79 (5): 537 - 543. ","924","Technicl grade (95% w/w)","USE THIS VERSION OF ENTRY"]
["Freshwater","924-5",74,0.71844660194174759,"Lemna gibba","not-stated","5 days","Growth rate: Frond number","NOEC","500 ug/L","Sobrero M.C., Rimoldi F., Ronco A.E. 2007. Effects of the glyphosate active ingredient and a formulation on Lemna gibba L. at different exposure levels and assessment end-points, Bulletin of Environmental Contamination and Toxicology, 79 (5): 537 - 543. ","924","Technicl grade (95% w/w)","USE THIS VERSION OF ENTRY"]
["Freshwater","924-6",74,0.71844660194174759,"Lemna gibba","not-stated","5 days","Growth rate: Frond number","LOEC","1000 ug/L","Sobrero M.C., Rimoldi F., Ronco A.E. 2007. Effects of the glyphosate active ingredient and a formulation on Lemna gibba L. at different exposure levels and assessment end-points, Bulletin of Environmental Contamination and Toxicology, 79 (5): 537 - 543. ","924","Technicl grade (95% w/w)","USE THIS VERSION OF ENTRY"]
["Freshwater","924-6",74,0.71844660194174759,"Lemna gibba","not-stated","5 days","Growth rate: Frond number","IC25","11400 ug/L","Sobrero M.C., Rimoldi F., Ronco A.E. 2007. Effects of the glyphosate active ingredient and a formulation on Lemna gibba L. at different exposure levels and assessment end-points, Bulletin of Environmental Contamination and Toxicology, 79 (5): 537 - 543. ","924","Technicl grade (95% w/w)","USE THIS VERSION OF ENTRY"]
["Freshwater","924-7",74,0.71844660194174759,"Lemna gibba","not-stated","5 days","Growth rate: Frond number","IC50","22600 ug/L","Sobrero M.C., Rimoldi F., Ronco A.E. 2007. Effects of the glyphosate active ingredient and a formulation on Lemna gibba L. at different exposure levels and assessment end-points, Bulletin of Environmental Contamination and Toxicology, 79 (5): 537 - 543. ","924","Technicl grade (95% w/w)","USE THIS VERSION OF ENTRY"]
["Freshwater","924-8",74,0.71844660194174759,"Lemna gibba","not-stated","10 days","Growth rate: Frond number","IC10","4600 ug/L","Sobrero M.C., Rimoldi F., Ronco A.E. 2007. Effects of the glyphosate active ingredient and a formulation on Lemna gibba L. at different exposure levels and assessment end-points, Bulletin of Environmental Contamination and Toxicology, 79 (5): 537 - 543. ","924","Technicl grade (95% w/w)","USE THIS VERSION OF ENTRY"]
["Freshwater","924-9",74,0.71844660194174759,"Lemna gibba","not-stated","10 days","Growth rate: Frond number","IC25","10700 ug/L","Sobrero M.C., Rimoldi F., Ronco A.E. 2007. Effects of the glyphosate active ingredient and a formulation on Lemna gibba L. at different exposure levels and assessment end-points, Bulletin of Environmental Contamination and Toxicology, 79 (5): 537 - 543. ","924","Technicl grade (95% w/w)","USE THIS VERSION OF ENTRY"]
["Freshwater","924-10",74,0.71844660194174759,"Lemna gibba","not-stated","10 days","Growth rate: Frond number","IC50","20500 ug/L","Sobrero M.C., Rimoldi F., Ronco A.E. 2007. Effects of the glyphosate active ingredient and a formulation on Lemna gibba L. at different exposure levels and assessment end-points, Bulletin of Environmental Contamination and Toxicology, 79 (5): 537 - 543. ","924","Technicl grade (95% w/w)","USE THIS VERSION OF ENTRY"]
["Freshwater","924-11",74,0.71844660194174759,"Lemna gibba","Mother frond","7 days","Growth: Frond (Longitudinal axis)","IC10","14100 ug/L","Sobrero M.C., Rimoldi F., Ronco A.E. 2007. Effects of the glyphosate active ingredient and a formulation on Lemna gibba L. at different exposure levels and assessment end-points, Bulletin of Environmental Contamination and Toxicology, 79 (5): 537 - 543. ","924","Technicl grade (95% w/w)","USE THIS VERSION OF ENTRY"]
["Freshwater","924-12",74,0.71844660194174759,"Lemna gibba","Mother frond","7 days","Growth: Frond (Longitudinal axis)","IC25",">25000 ug/L","Sobrero M.C., Rimoldi F., Ronco A.E. 2007. Effects of the glyphosate active ingredient and a formulation on Lemna gibba L. at different exposure levels and assessment end-points, Bulletin of Environmental Contamination and Toxicology, 79 (5): 537 - 543. ","924","Technical grade (95% w/w)","Do Not  Use - '>' data is unnecessary to use here as there is already a lot of data for this species that can be used and is more accurate"]
["Freshwater","924-12",74,0.71844660194174759,"Lemna gibba","Mother frond","7 days","Growth: Frond (Longitudinal axis)","IC50",">25000 ug/L","Sobrero M.C., Rimoldi F., Ronco A.E. 2007. Effects of the glyphosate active ingredient and a formulation on Lemna gibba L. at different exposure levels and assessment end-points, Bulletin of Environmental Contamination and Toxicology, 79 (5): 537 - 543. ","924","Technical grade (95% w/w)","Do Not  Use - '>' data is unnecessary to use here as there is already a lot of data for this species that can be used and is more accurate"]
["Freshwater","924-13",74,0.71844660194174759,"Lemna gibba","Mother frond","10 days","Growth: Frond (Longitudinal axis)","IC10","10200 ug/L","Sobrero M.C., Rimoldi F., Ronco A.E. 2007. Effects of the glyphosate active ingredient and a formulation on Lemna gibba L. at different exposure levels and assessment end-points, Bulletin of Environmental Contamination and Toxicology, 79 (5): 537 - 543. ","924","Technicl grade (95% w/w)","USE THIS VERSION OF ENTRY"]
["Freshwater","924-13",74,0.71844660194174759,"Lemna gibba","Mother frond","10 days","Growth: Frond (Longitudinal axis)","IC25","15800 ug/L","Sobrero M.C., Rimoldi F., Ronco A.E. 2007. Effects of the glyphosate active ingredient and a formulation on Lemna gibba L. at different exposure levels and assessment end-points, Bulletin of Environmental Contamination and Toxicology, 79 (5): 537 - 543. ","924","Technicl grade (95% w/w)","USE THIS VERSION OF ENTRY"]
["Freshwater","924-14",74,0.71844660194174759,"Lemna gibba","Mother frond","7 days","Growth: Frond (Transversal axis)","IC10","11200 ug/L","Sobrero M.C., Rimoldi F., Ronco A.E. 2007. Effects of the glyphosate active ingredient and a formulation on Lemna gibba L. at different exposure levels and assessment end-points, Bulletin of Environmental Contamination and Toxicology, 79 (5): 537 - 543. ","924","Technicl grade (95% w/w)","USE THIS VERSION OF ENTRY"]
["Freshwater","924-15",74,0.71844660194174759,"Lemna gibba","Mother frond","7 days","Growth: Frond (Transversal axis)","IC25","16000 ug/L","Sobrero M.C., Rimoldi F., Ronco A.E. 2007. Effects of the glyphosate active ingredient and a formulation on Lemna gibba L. at different exposure levels and assessment end-points, Bulletin of Environmental Contamination and Toxicology, 79 (5): 537 - 543. ","924","Technicl grade (95% w/w)","USE THIS VERSION OF ENTRY"]
["Freshwater","924-16",74,0.71844660194174759,"Lemna gibba","Mother frond","10 days","Growth: Frond (Transversal axis)","IC10","10100 ug/L","Sobrero M.C., Rimoldi F., Ronco A.E. 2007. Effects of the glyphosate active ingredient and a formulation on Lemna gibba L. at different exposure levels and assessment end-points, Bulletin of Environmental Contamination and Toxicology, 79 (5): 537 - 543. ","924","Technicl grade (95% w/w)","USE THIS VERSION OF ENTRY"]
["Freshwater","924-17",74,0.71844660194174759,"Lemna gibba","Mother frond","10 days","Growth: Frond (Transversal axis)","IC25","14500 ug/L","Sobrero M.C., Rimoldi F., Ronco A.E. 2007. Effects of the glyphosate active ingredient and a formulation on Lemna gibba L. at different exposure levels and assessment end-points, Bulletin of Environmental Contamination and Toxicology, 79 (5): 537 - 543. ","924","Technicl grade (95% w/w)","USE THIS VERSION OF ENTRY"]
["Freshwater","924-18",74,0.71844660194174759,"Lemna gibba","Daughter frond","7 days","Growth: Frond (longitudinal axis)","NOEC","<500 ug/L","Sobrero M.C., Rimoldi F., Ronco A.E. 2007. Effects of the glyphosate active ingredient and a formulation on Lemna gibba L. at different exposure levels and assessment end-points, Bulletin of Environmental Contamination and Toxicology, 79 (5): 537 - 543. ","924","Technicl grade (95% w/w)","USE THIS VERSION OF ENTRY"]
["Freshwater","924-19",74,0.71844660194174759,"Lemna gibba","Daughter frond","7 days","Growth: Frond (longitudinal axis)","IC25","16200 ug/L","Sobrero M.C., Rimoldi F., Ronco A.E. 2007. Effects of the glyphosate active ingredient and a formulation on Lemna gibba L. at different exposure levels and assessment end-points, Bulletin of Environmental Contamination and Toxicology, 79 (5): 537 - 543. ","924","Technicl grade (95% w/w)","USE THIS VERSION OF ENTRY"]
["Freshwater","924-20",74,0.71844660194174759,"Lemna gibba","Daughter frond","7 days","Growth: Frond (Longitudinal axis)","IC50",">25000 ug/L","Sobrero M.C., Rimoldi F., Ronco A.E. 2007. Effects of the glyphosate active ingredient and a formulation on Lemna gibba L. at different exposure levels and assessment end-points, Bulletin of Environmental Contamination and Toxicology, 79 (5): 537 - 543. ","924","Technicl grade (95% w/w)","Do Not  Use - '>' data is unnecessary to use here as there is already a lot of data for this species that can be used and is more accurate"]
["Freshwater","924-21",74,0.71844660194174759,"Lemna gibba","Daughter frond","10 days","Growth: Frond (Longitudinal axis)","IC10","8500 ug/L","Sobrero M.C., Rimoldi F., Ronco A.E. 2007. Effects of the glyphosate active ingredient and a formulation on Lemna gibba L. at different exposure levels and assessment end-points, Bulletin of Environmental Contamination and Toxicology, 79 (5): 537 - 543. ","924","Technicl grade (95% w/w)","USE THIS VERSION OF ENTRY"]
["Freshwater","924-22",74,0.71844660194174759,"Lemna gibba","Daughter frond","10 days","Growth: Frond (Longitudinal axis)","IC25","11900 ug/L","Sobrero M.C., Rimoldi F., Ronco A.E. 2007. Effects of the glyphosate active ingredient and a formulation on Lemna gibba L. at different exposure levels and assessment end-points, Bulletin of Environmental Contamination and Toxicology, 79 (5): 537 - 543. ","924","Technicl grade (95% w/w)","USE THIS VERSION OF ENTRY"]
["Freshwater","924-23",74,0.71844660194174759,"Lemna gibba","Daughter frond","10 days","Growth: Frond (Longitudinal axis)","IC50","22100 ug/L","Sobrero M.C., Rimoldi F., Ronco A.E. 2007. Effects of the glyphosate active ingredient and a formulation on Lemna gibba L. at different exposure levels and assessment end-points, Bulletin of Environmental Contamination and Toxicology, 79 (5): 537 - 543. ","924","Technicl grade (95% w/w)","USE THIS VERSION OF ENTRY"]
["Freshwater","924-24",74,0.71844660194174759,"Lemna gibba","Daughter frond","7 days","Growth: Frond (Transversal axis)","NOEC","<500 ug/L","Sobrero M.C., Rimoldi F., Ronco A.E. 2007. Effects of the glyphosate active ingredient and a formulation on Lemna gibba L. at different exposure levels and assessment end-points, Bulletin of Environmental Contamination and Toxicology, 79 (5): 537 - 543. ","924","Technicl grade (95% w/w)","USE THIS VERSION OF ENTRY"]
["Freshwater","924-25",74,0.71844660194174759,"Lemna gibba","Daughter frond","7 days","Growth: Frond (Transversal axis)","IC25","7300 ug/L","Sobrero M.C., Rimoldi F., Ronco A.E. 2007. Effects of the glyphosate active ingredient and a formulation on Lemna gibba L. at different exposure levels and assessment end-points, Bulletin of Environmental Contamination and Toxicology, 79 (5): 537 - 543. ","924","Technicl grade (95% w/w)","USE THIS VERSION OF ENTRY"]
["Freshwater","924-26",74,0.71844660194174759,"Lemna gibba","Daughter frond","7 days","Growth: Frond (Transversal axis)","IC50",">25000 ug/L","Sobrero M.C., Rimoldi F., Ronco A.E. 2007. Effects of the glyphosate active ingredient and a formulation on Lemna gibba L. at different exposure levels and assessment end-points, Bulletin of Environmental Contamination and Toxicology, 79 (5): 537 - 543. ","924","Technicl grade (95% w/w)","Do Not  Use - '>' data is unnecessary to use here as there is already a lot of data for this species that can be used and is more accurate"]
["Freshwater","924-27",74,0.71844660194174759,"Lemna gibba","Daughter frond","10 days","Growth: Frond (Transversal axis)","IC10","6300 ug/L","Sobrero M.C., Rimoldi F., Ronco A.E. 2007. Effects of the glyphosate active ingredient and a formulation on Lemna gibba L. at different exposure levels and assessment end-points, Bulletin of Environmental Contamination and Toxicology, 79 (5): 537 - 543. ","924","Technicl grade (95% w/w)","USE THIS VERSION OF ENTRY"]
["Freshwater","924-28",74,0.71844660194174759,"Lemna gibba","Daughter frond","10 days","Growth: Frond (Transversal axis)","IC25","10200 ug/L","Sobrero M.C., Rimoldi F., Ronco A.E. 2007. Effects of the glyphosate active ingredient and a formulation on Lemna gibba L. at different exposure levels and assessment end-points, Bulletin of Environmental Contamination and Toxicology, 79 (5): 537 - 543. ","924","Technicl grade (95% w/w)","USE THIS VERSION OF ENTRY"]
["Freshwater","924-29",74,0.71844660194174759,"Lemna gibba","Daughter frond","10 days","Growth: Frond (Transversal axis)","IC50","18300 ug/L","Sobrero M.C., Rimoldi F., Ronco A.E. 2007. Effects of the glyphosate active ingredient and a formulation on Lemna gibba L. at different exposure levels and assessment end-points, Bulletin of Environmental Contamination and Toxicology, 79 (5): 537 - 543. ","924","Technicl grade (95% w/w)","USE THIS VERSION OF ENTRY"]
["Freshwater","925-1",59,0.57281553398058249,"Pseudosuccinea columella","Embryo","12 days","Reproduction: Egg Hatching Success","IC66","10000 ug/L","Tate, T.M., Spurlock, J.O., Christian, F.A. 1997. Effect of glyphosate on the development of Pseudosuccinea columella snails, Archives of Environmental Contamination and Toxicology, 33 (3): 286 - 289. ","925","Glyphosate (97%)"]
["Freshwater","925-2",59,0.57281553398058249,"Pseudosuccinea columella","Embryo","12 days","Reproduction: Egg Hatching Success","IC7","100 ug/L","Tate, T.M., Spurlock, J.O., Christian, F.A. 1997. Effect of glyphosate on the development of Pseudosuccinea columella snails, Archives of Environmental Contamination and Toxicology, 33 (3): 286 - 289. ","925","Glyphosate (97%)"]
["Freshwater","920-1-OK",71,0.68932038834951459,"Scenedesmus vacuolatus","Exponential Growth Phase","72 hours","Population: Abundance","EC50","43361 ug/L","Daouk, S., Copin, P.-J., Rossi, L., Chèvre, N., Pfeifer, H.-R. 2013. Dynamics and environmental risk assessment of the herbicide glyphosate and its metabolite AMPA in a small vineyard river of the Lake Geneva catchment, Environmental Toxicology and Chemistry, 32 (9): 2035 - 2044. ","920","Glyphosate 99.2%"]
["Freshwater","919-1-OK",51,0.49514563106796117,"Hyalella castrol","Adult","7 days","Mortality: Survival","LC26.08","0.36 mg/L","Dutra B.K., Fernandes F.A., Failace D.M., Oliveira G.T. 2011. Effect of roundup® (glyphosate formulation) in the energy metabolism and reproductive traits of Hyalella castroi (Crustacea, Amphipoda, Dogielinotidae), 20 (1): 255 - 263.","919","Round-up"]
["Freshwater","919-2-OK",51,0.49514563106796117,"Hyalella castrol","Adult","7 days","Mortality: Survival","LC38.88","0.52 mg/L","Dutra B.K., Fernandes F.A., Failace D.M., Oliveira G.T. 2011. Effect of roundup® (glyphosate formulation) in the energy metabolism and reproductive traits of Hyalella castroi (Crustacea, Amphipoda, Dogielinotidae), 20 (1): 255 - 263.","919","Round-up"]
["Freshwater","919-3-OK",51,0.49514563106796117,"Hyalella castrol","Adult","7 days","Mortality: Survival","LC44.68","1.08 mg/L","Dutra B.K., Fernandes F.A., Failace D.M., Oliveira G.T. 2011. Effect of roundup® (glyphosate formulation) in the energy metabolism and reproductive traits of Hyalella castroi (Crustacea, Amphipoda, Dogielinotidae), 20 (1): 255 - 263.","919","Round-up"]
["Freshwater","919-4-OK",51,0.49514563106796117,"Hyalella castrol","Adult","7 days","Mortality: Survival","LC52.28","2.16 mg/L","Dutra B.K., Fernandes F.A., Failace D.M., Oliveira G.T. 2011. Effect of roundup® (glyphosate formulation) in the energy metabolism and reproductive traits of Hyalella castroi (Crustacea, Amphipoda, Dogielinotidae), 20 (1): 255 - 263.","919","Round-up"]
["Freshwater","921-1-OK",71,0.68932038834951459,"Pseudokirecheriella subcapitata","Exponential Growth Phase","96 hours","Population: Abundance","EC50","129 mg/L","Pereira, J.L., Antunes, S.C., Castro, B.B., Marques, C.R., Gonçalves, A.M.M., Gonçalves, F., Pereira, R. 2009. Toxicity evaluation of three pesticides on non-target aquatic and soil organisms: Commercial formulation versus active ingredient, Ecotoxicology, 18(4): 455 - 463. ","921","Commercial formulation"]
["Freshwater","921-2-OK",74,0.71844660194174759,"Daphnia magna","Neonates: <24 hrs old","48 hours","Immobility","EC50",">2000 mg/L","Pereira, J.L., Antunes, S.C., Castro, B.B., Marques, C.R., Gonçalves, A.M.M., Gonçalves, F., Pereira, R. 2009. Toxicity evaluation of three pesticides on non-target aquatic and soil organisms: Commercial formulation versus active ingredient, Ecotoxicology, 18(4): 455 - 463. ","921","Commercial formulation"]
["Freshwater","922-1-OK",70,0.67961165048543692,"Myriophyllum spicatum","3cm apical segments","21 days","Growth: Fresh Weight","IC50","1.00 mg/L","Sánchez, D., Graça, M.A.S., Canhoto, J. 2007. Testing the use of the water milfoil (Myriophyllum spicatum L.) in laboratory toxicity assays, Bulletin of Environmental Contamination and Toxicology, 78 (6): 421 - 426.","922","Isopropylamine salt (Round-up)"]
["Freshwater","922-2-OK",70,0.67961165048543692,"Myriophyllum spicatum","3cm apical segments","21 days","Growth: Shoot Length","IC50","2.86 mg/L","Sánchez, D., Graça, M.A.S., Canhoto, J. 2007. Testing the use of the water milfoil (Myriophyllum spicatum L.) in laboratory toxicity assays, Bulletin of Environmental Contamination and Toxicology, 78 (6): 421 - 426.","922","Isopropylamine salt (Round-up)"]
["Freshwater","922-3-OK",70,0.67961165048543692,"Myriophyllum spicatum","3cm apical segments","21 days","Growth: Root Length","IC50","0.33 mg/L","Sánchez, D., Graça, M.A.S., Canhoto, J. 2007. Testing the use of the water milfoil (Myriophyllum spicatum L.) in laboratory toxicity assays, Bulletin of Environmental Contamination and Toxicology, 78 (6): 421 - 426.","922","Isopropylamine salt (Round-up)"]
["Marine ","923-1-OK",70,0.72164948453608246,"Perkinsus olseni","Log growth phase: Trophozoites","72 hours","Growth inhibition: Cell proliferation","IC50","3.4 mM","Elandalloussi L.M., Leite R.B., Rodrigues P.M., Afonso R., Cancela M.L. 2008. Effect of the herbicide Roundup® on Perkinsus olseni in vitro proliferation and in vivo survival when infecting a permissive host, the clam Ruditapes decussatus, Bulletin of Environmental Contamination and Toxicology, (80) 6: 512 - 515. ","923","N-phosphomethyl glycine"]
["Freshwater","925-1-OK",77,0.74757281553398058,"Pseudosuccinea columella","Embryo","1 day","Increases in growth: Cell number and size","NOEC","10 mg/L","Tate, T.M., Spurlock, J.O., Christian, F.A. 1997. Effect of glyphosate on the development of Pseudosuccinea columella snails, Archives of Environmental Contamination and Toxicology, 33 (3): 286 - 289. ","925","Glyphosate (97%)","Do not use (checked EP with MW) "]
["Freshwater","925-2-OK",77,0.74757281553398058,"Pseudosuccinea columella","Embryo","3 days","Increases in growth: Cell number and size","NOEC","0.1 mg/L","Tate, T.M., Spurlock, J.O., Christian, F.A. 1997. Effect of glyphosate on the development of Pseudosuccinea columella snails, Archives of Environmental Contamination and Toxicology, 33 (3): 286 - 289. ","925","Glyphosate (97%)","Do not use (checked EP with MW) "]
["Freshwater","925-3-OK",77,0.74757281553398058,"Pseudosuccinea columella","Embryo","3 days","Increases in growth: Cell number and size","LOEC","1.0 mg/L","Tate, T.M., Spurlock, J.O., Christian, F.A. 1997. Effect of glyphosate on the development of Pseudosuccinea columella snails, Archives of Environmental Contamination and Toxicology, 33 (3): 286 - 289. ","925","Glyphosate (97%)","Do not use (checked EP with MW) "]
["Freshwater","925-4-OK",77,0.74757281553398058,"Pseudosuccinea columella","Embryo","6 days","Increases in growth: Cell number and size","NOEC","10 mg/L","Tate, T.M., Spurlock, J.O., Christian, F.A. 1997. Effect of glyphosate on the development of Pseudosuccinea columella snails, Archives of Environmental Contamination and Toxicology, 33 (3): 286 - 289. ","925","Glyphosate (97%)","Do not use (checked EP with MW) "]
["Freshwater","925-5-OK",77,0.74757281553398058,"Pseudosuccinea columella","Embryo","9 days","Increases in growth: Cell number and size","NOEC","0.1 mg/L","Tate, T.M., Spurlock, J.O., Christian, F.A. 1997. Effect of glyphosate on the development of Pseudosuccinea columella snails, Archives of Environmental Contamination and Toxicology, 33 (3): 286 - 289. ","925","Glyphosate (97%)","Do not use (checked EP with MW) "]
["Freshwater","925-6-OK",77,0.74757281553398058,"Pseudosuccinea columella","Embryo","9 days","Increases in growth: Cell number and size","LOEC","1.0 mg/L","Tate, T.M., Spurlock, J.O., Christian, F.A. 1997. Effect of glyphosate on the development of Pseudosuccinea columella snails, Archives of Environmental Contamination and Toxicology, 33 (3): 286 - 289. ","925","Glyphosate (97%)","Do not use (checked EP with MW) "]
["Freshwater","925-7-OK",77,0.74757281553398058,"Pseudosuccinea columella","Embryo","12 days","Increases in growth: Cell number and size","NOEC","10 mg/L","Tate, T.M., Spurlock, J.O., Christian, F.A. 1997. Effect of glyphosate on the development of Pseudosuccinea columella snails, Archives of Environmental Contamination and Toxicology, 33 (3): 286 - 289. ","925","Glyphosate (97%)","Do not use (checked EP with MW) "]
["Freshwater","931-1",47,0.4563106796116505,"Danio rerio","Reproductive status: 20 week old","21 days","Growth: Body length ","NOEC","10 mg/L","Uren Webster, T.M., Laing, L.V., Florance, H., Santos, E.M. 2014. Effects of glyphosate and its formulation, roundup, on reproduction in zebrafish (Danio rerio), Environmental Science and Technology, 48 (2): 1271 - 1279.","931","Analytical grade"]
["Freshwater","931-2",47,0.4563106796116505,"Danio rerio","Reproductive status: 20 week old","21 days","Growth: Body mass","NOEC","10 mg/L","Uren Webster, T.M., Laing, L.V., Florance, H., Santos, E.M. 2014. Effects of glyphosate and its formulation, roundup, on reproduction in zebrafish (Danio rerio), Environmental Science and Technology, 48 (2): 1271 - 1279.","931","Analytical grade"]
["Freshwater","931-3",56,0.5436893203883495,"Danio rerio","Reproductive status: 20 week old","21 days","Reproduction: Number of eggs/female/day ","LOEC","10 mg/L","Uren Webster, T.M., Laing, L.V., Florance, H., Santos, E.M. 2014. Effects of glyphosate and its formulation, roundup, on reproduction in zebrafish (Danio rerio), Environmental Science and Technology, 48 (2): 1271 - 1279.","931","Analytical grade"]
["Freshwater","931-4",56,0.5436893203883495,"Danio rerio","Reproductive status: 20 week old","21 days","Reproduction: Cumulative eggs layed/female","LOEC","10 mg/L","Uren Webster, T.M., Laing, L.V., Florance, H., Santos, E.M. 2014. Effects of glyphosate and its formulation, roundup, on reproduction in zebrafish (Danio rerio), Environmental Science and Technology, 48 (2): 1271 - 1279.","931","Analytical grade"]
["Freshwater","925-1",61,0.59223300970873782,"Pseudosuccinea columella","Embryo","1 day","Growth: Length (mm)","NOEC",">10 mg/L","Tate, T.M., Spurlock, J.O., Christian, F.A. 1997. Effect of glyphosate on the development of Pseudosuccinea columella snails, Archives of Environmental Contamination and Toxicology, 33 (3): 286 - 289. ","925","Glyphosate (97%)","USE THIS VERSION OF ENTRY"]
["Freshwater","925-2",61,0.59223300970873782,"Pseudosuccinea columella","Embryo","3 days","Growth: Length (mm)","NOEC",">10 mg/L","Tate, T.M., Spurlock, J.O., Christian, F.A. 1997. Effect of glyphosate on the development of Pseudosuccinea columella snails, Archives of Environmental Contamination and Toxicology, 33 (3): 286 - 289. ","925","Glyphosate (97%)","USE THIS VERSION OF ENTRY"]
["Freshwater","925-3",61,0.59223300970873782,"Pseudosuccinea columella","Embryo","6 days","Growth: Length (mm)","NOEC",">10 mg/L","Tate, T.M., Spurlock, J.O., Christian, F.A. 1997. Effect of glyphosate on the development of Pseudosuccinea columella snails, Archives of Environmental Contamination and Toxicology, 33 (3): 286 - 289. ","925","Glyphosate (97%)","USE THIS VERSION OF ENTRY"]
["Freshwater","925-4",61,0.59223300970873782,"Pseudosuccinea columella","Embryo","9 days","Growth: Length (mm)","NOEC",">10 mg/L","Tate, T.M., Spurlock, J.O., Christian, F.A. 1997. Effect of glyphosate on the development of Pseudosuccinea columella snails, Archives of Environmental Contamination and Toxicology, 33 (3): 286 - 289. ","925","Glyphosate (97%)","USE THIS VERSION OF ENTRY"]
["Freshwater","925-5",61,0.59223300970873782,"Pseudosuccinea columella","Embryo","12 days","Growth: Length (mm)","NOEC",">10 mg/L","Tate, T.M., Spurlock, J.O., Christian, F.A. 1997. Effect of glyphosate on the development of Pseudosuccinea columella snails, Archives of Environmental Contamination and Toxicology, 33 (3): 286 - 289. ","925","Glyphosate (97%)","USE THIS VERSION OF ENTRY"]
["Freshwater","925-6",61,0.59223300970873782,"Pseudosuccinea columella","Embryo","12 days","Reproduction: Egg Hatching Success","NOEC","1 mg/L","Tate, T.M., Spurlock, J.O., Christian, F.A. 1997. Effect of glyphosate on the development of Pseudosuccinea columella snails, Archives of Environmental Contamination and Toxicology, 33 (3): 286 - 289. ","925","Glyphosate (97%)","USE THIS VERSION OF ENTRY"]
["Freshwater","925-7",61,0.59223300970873782,"Pseudosuccinea columella","Embryo","12 days","Reproduction: Egg Hatching Success","LOEC","10 mg/L","Tate, T.M., Spurlock, J.O., Christian, F.A. 1997. Effect of glyphosate on the development of Pseudosuccinea columella snails, Archives of Environmental Contamination and Toxicology, 33 (3): 286 - 289. ","925","Glyphosate (97%)","USE THIS VERSION OF ENTRY"]
["Freshwater","925-8",61,0.59223300970873782,"Pseudosuccinea columella","Embryo","12 days","Reproduction: Egg Hatching Success","IC7","0.1 mg/L","Tate, T.M., Spurlock, J.O., Christian, F.A. 1997. Effect of glyphosate on the development of Pseudosuccinea columella snails, Archives of Environmental Contamination and Toxicology, 33 (3): 286 - 289. ","925","Glyphosate (97%)","USE THIS VERSION OF ENTRY"]
["Freshwater","925-9",61,0.59223300970873782,"Pseudosuccinea columella","Embryo","12 days","Reproduction: Egg Hatching Success","IC66","10 mg/L","Tate, T.M., Spurlock, J.O., Christian, F.A. 1997. Effect of glyphosate on the development of Pseudosuccinea columella snails, Archives of Environmental Contamination and Toxicology, 33 (3): 286 - 289. ","925","Glyphosate (97%)","USE THIS VERSION OF ENTRY"]
["Freshwater","931-1-OK",65,0.6310679611650486,"Danio rerio","Embryo (3.5 hours past fertilization)","21 days","Mortality: Survival","LOEC","10 mg/L","Uren Webster, T.M., Laing, L.V., Florance, H., Santos, E.M. 2014. Effects of glyphosate and its formulation, roundup, on reproduction in zebrafish (Danio rerio), Environmental Science and Technology, 48 (2): 1271 - 1279.","931","Analytical grade","USE THIS VERSION OF ENTRY"]
["Freshwater","931-2-OK",65,0.6310679611650486,"Danio rerio","Embryo (24 hours post fertilization)","21 days","Mortality: Survival","NOEC","10 mg/L","Uren Webster, T.M., Laing, L.V., Florance, H., Santos, E.M. 2014. Effects of glyphosate and its formulation, roundup, on reproduction in zebrafish (Danio rerio), Environmental Science and Technology, 48 (2): 1271 - 1279.","931","Analytical grade","USE THIS VERSION OF ENTRY"]
["Freshwater","931-3-OK",60,0.58252427184466016,"Danio rerio","Embryo (54 hours post fertilisation)","21 days","Reproduction: Egg Hatching Success","LOEC","10 mg/L","Uren Webster, T.M., Laing, L.V., Florance, H., Santos, E.M. 2014. Effects of glyphosate and its formulation, roundup, on reproduction in zebrafish (Danio rerio), Environmental Science and Technology, 48 (2): 1271 - 1279.","931","Analytical grade","USE THIS VERSION OF ENTRY"]
["Freshwater","931-4-OK",65,0.6310679611650486,"Danio rerio","Adults (20 weeks old)","10 days","Reproduction: Cumulative eggs layed/female","LOEC","10 mg/L","Uren Webster, T.M., Laing, L.V., Florance, H., Santos, E.M. 2014. Effects of glyphosate and its formulation, roundup, on reproduction in zebrafish (Danio rerio), Environmental Science and Technology, 48 (2): 1271 - 1279.","931","Analytical grade","USE THIS VERSION OF ENTRY"]
["Freshwater","931-5-OK",65,0.6310679611650486,"Danio rerio","Adults (20 weeks old)","21 days","Reproduction: Number eggs/female/day","LOEC","10 mg/L","Uren Webster, T.M., Laing, L.V., Florance, H., Santos, E.M. 2014. Effects of glyphosate and its formulation, roundup, on reproduction in zebrafish (Danio rerio), Environmental Science and Technology, 48 (2): 1271 - 1279.","931","Analytical grade","USE THIS VERSION OF ENTRY"]
["Freshwater","869-1-GD",59,0.57281553398058249,"Chlorella saccharophila","Exponential Growth Phase","72 hours","Growth: Inhibition","NOEC","0.39 mg/L","Vendrell,E., D.G.B. Ferraz, C. Sabater, and J.M. Carrasco, 2009. Effect of Glyphosate on Growth of Four Freshwater Species of Phytoplankton: A Microplate Bioassay, Bull. Environ. Contam. Toxicol.82(5): 538-542. ","869","Glyphosate (97.5% analytical standard)"]
["Freshwater","869-2-GD",59,0.57281553398058249,"Chlorella saccharophila","Exponential Growth Phase","72 hours","Growth: Inhibition","LOEC","1.56 mg/L","Vendrell,E., D.G.B. Ferraz, C. Sabater, and J.M. Carrasco, 2009. Effect of Glyphosate on Growth of Four Freshwater Species of Phytoplankton: A Microplate Bioassay, Bull. Environ. Contam. Toxicol.82(5): 538-542. ","869","Glyphosate (97.5% analytical standard)"]
["Freshwater","869-3-GD",64,0.62135922330097082,"Chlorella saccharophila","Exponential Growth Phase","72 hours","Growth: Inhibition","EC10","3.0 mg/L","Vendrell,E., D.G.B. Ferraz, C. Sabater, and J.M. Carrasco, 2009. Effect of Glyphosate on Growth of Four Freshwater Species of Phytoplankton: A Microplate Bioassay, Bull. Environ. Contam. Toxicol.82(5): 538-542. ","869","Glyphosate (97.5% analytical standard)"]
["Freshwater","869-4-GD",64,0.62135922330097082,"Chlorella saccharophila","Exponential Growth Phase","72 hours","Growth: Inhibition","EC50","40.6 mg/L","Vendrell,E., D.G.B. Ferraz, C. Sabater, and J.M. Carrasco, 2009. Effect of Glyphosate on Growth of Four Freshwater Species of Phytoplankton: A Microplate Bioassay, Bull. Environ. Contam. Toxicol.82(5): 538-542. ","869","Glyphosate (97.5% analytical standard)"]
["Freshwater","869-5-GD",59,0.57281553398058249,"Chlorella vulgaris","Exponential Growth Phase","72 hours","Growth: Inhibition","LOEC","0.1 mg/L","Vendrell,E., D.G.B. Ferraz, C. Sabater, and J.M. Carrasco, 2009. Effect of Glyphosate on Growth of Four Freshwater Species of Phytoplankton: A Microplate Bioassay, Bull. Environ. Contam. Toxicol.82(5): 538-542. ","869","Glyphosate (97.5% analytical standard)"]
["Freshwater","869-6-GD",64,0.62135922330097082,"Chlorella vulgaris","Exponential Growth Phase","72 hours","Growth: Inhibition","EC50","41.7 mg/L","Vendrell,E., D.G.B. Ferraz, C. Sabater, and J.M. Carrasco, 2009. Effect of Glyphosate on Growth of Four Freshwater Species of Phytoplankton: A Microplate Bioassay, Bull. Environ. Contam. Toxicol.82(5): 538-542. ","869","Glyphosate (97.5% analytical standard)"]
["Freshwater","869-8-GD",64,0.62135922330097082,"Scenedesmus acutus","Exponential Growth Phase","72 hours","Growth: Inhibition","EC50","24.5 mg/L","Vendrell,E., D.G.B. Ferraz, C. Sabater, and J.M. Carrasco, 2009. Effect of Glyphosate on Growth of Four Freshwater Species of Phytoplankton: A Microplate Bioassay, Bull. Environ. Contam. Toxicol.82(5): 538-542. ","869","Glyphosate (97.5% analytical standard)"]
["Freshwater","869-7-GD",59,0.57281553398058249,"Scenedesmus acutus","Exponential Growth Phase","72 hours","Growth: Inhibition","LOEC","0.1 mg/L","Vendrell,E., D.G.B. Ferraz, C. Sabater, and J.M. Carrasco, 2009. Effect of Glyphosate on Growth of Four Freshwater Species of Phytoplankton: A Microplate Bioassay, Bull. Environ. Contam. Toxicol.82(5): 538-542. ","869","Glyphosate (97.5% analytical standard)"]
["Freshwater","869-9-GD",59,0.57281553398058249,"Scenedesmus subspicatus","Exponential Growth Phase","72 hours","Growth: Inhibition","NOEC","0.1 mg/L","Vendrell,E., D.G.B. Ferraz, C. Sabater, and J.M. Carrasco, 2009. Effect of Glyphosate on Growth of Four Freshwater Species of Phytoplankton: A Microplate Bioassay, Bull. Environ. Contam. Toxicol.82(5): 538-542. ","869","Glyphosate (97.5% analytical standard)"]
["Freshwater","869-10-GD",59,0.57281553398058249,"Scenedesmus subspicatus","Exponential Growth Phase","72 hours","Growth: Inhibition","LOEC","0.39 mg/L","Vendrell,E., D.G.B. Ferraz, C. Sabater, and J.M. Carrasco, 2009. Effect of Glyphosate on Growth of Four Freshwater Species of Phytoplankton: A Microplate Bioassay, Bull. Environ. Contam. Toxicol.82(5): 538-542. ","869","Glyphosate (97.5% analytical standard)"]
["Freshwater","869-11-GD",64,0.62135922330097082,"Scenedesmus subspicatus","Exponential Growth Phase","72 hours","Growth: Inhibition","EC10","1.6 mg/L","Vendrell,E., D.G.B. Ferraz, C. Sabater, and J.M. Carrasco, 2009. Effect of Glyphosate on Growth of Four Freshwater Species of Phytoplankton: A Microplate Bioassay, Bull. Environ. Contam. Toxicol.82(5): 538-542. ","869","Glyphosate (97.5% analytical standard)"]
["Freshwater","869-12-GD",64,0.62135922330097082,"Scenedesmus subspicatus","Exponential Growth Phase","72 hours","Growth: Inhibition","EC50","26.0 mg/L","Vendrell,E., D.G.B. Ferraz, C. Sabater, and J.M. Carrasco, 2009. Effect of Glyphosate on Growth of Four Freshwater Species of Phytoplankton: A Microplate Bioassay, Bull. Environ. Contam. Toxicol.82(5): 538-542. ","869","Glyphosate (97.5% analytical standard)"]
["Freshwater","880-1-GD",58,0.56310679611650483,"Echinostoma trivolvis","Egg","26 days","Development: Eggs hatched","NOEC","3685.3 ug/L","Raffel,T.R., J.L. Sheingold, and J.R. Rohr, 2009. Lack of Pesticide Toxicity to Echinostoma trivolvis Eggs and Miracidia, J. Parasitol.95(6): 1548-1551. ","880","Used technical grade (>98% purity) to avoid comfounding effects of 'inactive' ingredients","Do not use - Indirect exposure"]
["Freshwater","880-2-GD",58,0.56310679611650483,"Echinostoma trivolvis","Egg","26 days","Development: Eggs embryonated","NOEC","3685.3 ug/L","Raffel,T.R., J.L. Sheingold, and J.R. Rohr, 2009. Lack of Pesticide Toxicity to Echinostoma trivolvis Eggs and Miracidia, J. Parasitol.95(6): 1548-1551. ","880","Used technical grade (>98% purity) to avoid comfounding effects of 'inactive' ingredients","Do not use - Indirect exposure"]
["Freshwater","880-3-GD",58,0.56310679611650483,"Echinostoma trivolvis","Egg","26 days","Development: Embryos hatched","NOEC","3685.3 ug/L","Raffel,T.R., J.L. Sheingold, and J.R. Rohr, 2009. Lack of Pesticide Toxicity to Echinostoma trivolvis Eggs and Miracidia, J. Parasitol.95(6): 1548-1551. ","880","Used technical grade (>98% purity) to avoid comfounding effects of 'inactive' ingredients","Do not use - Indirect exposure"]
["Freshwater","880-4-GD",58,0.56310679611650483,"Echinostoma trivolvis","Egg","26 days","Mortality","NOEC","3685.3 ug/L","Raffel,T.R., J.L. Sheingold, and J.R. Rohr, 2009. Lack of Pesticide Toxicity to Echinostoma trivolvis Eggs and Miracidia, J. Parasitol.95(6): 1548-1551. ","880","Used technical grade (>98% purity) to avoid comfounding effects of 'inactive' ingredients","Do not use - Indirect exposure"]
["Marine ","971-1",63,0.64948453608247425,"Neohelice Granulata ","Ovigerous female adults","72 hours","Mortality","NOEC","5 mg/L","Avigliano, L., Alvarez, N., Mac Loughlin, C. & Rodriguez, M. 2014. Effects of Glyphosate on Egg Incubation, Larvae Hatching, and Ovarian Rematuration in the Estuarine Crab Neohelice Granulata, Environmental Toxicology and Chemistry, vol. 33, no. 8, pp. 1879 - 1884. ","971","99.8% purity"]
["Marine ","971-2",63,0.64948453608247425,"Neohelice Granulata ","Ovigerous female adults","72 hours","Growth: Body weight","NOEC","5 mg/L","Avigliano, L., Alvarez, N., Mac Loughlin, C. & Rodriguez, M. 2014. Effects of Glyphosate on Egg Incubation, Larvae Hatching, and Ovarian Rematuration in the Estuarine Crab Neohelice Granulata, Environmental Toxicology and Chemistry, vol. 33, no. 8, pp. 1879 - 1884. ","971","99.8% purity"]
["Marine ","971-3",63,0.64948453608247425,"Neohelice Granulata ","Ovigerous female adults","72 hours","Reproduction: Number of hatched larvae","NOEC","5 mg/L","Avigliano, L., Alvarez, N., Mac Loughlin, C. & Rodriguez, M. 2014. Effects of Glyphosate on Egg Incubation, Larvae Hatching, and Ovarian Rematuration in the Estuarine Crab Neohelice Granulata, Environmental Toxicology and Chemistry, vol. 33, no. 8, pp. 1879 - 1884. ","971","99.8% purity"]
["Marine ","972-1",51,0.52577319587628868,"Zostera marina","Not stated","3 Days","Relative Growth Rate (Length)","NOEC","100 ug/L","Nielsen, L. W. & Dahllof, I. 2007. Direct and indirect effects of the herbicides Glyphosate, Bentazone and MCPA on eelgrass (Zostera marina), vol. 82, pp. 47 - 54. ",972,"Do Not Use - Purity not mentioned "]
["Marine ","972-2",51,0.52577319587628868,"Zostera marina","Not stated","3 Days","Relative Growth Rate (Weight)","NOEC","100 ug/L","Nielsen, L. W. & Dahllof, I. 2007. Direct and indirect effects of the herbicides Glyphosate, Bentazone and MCPA on eelgrass (Zostera marina), vol. 82, pp. 47 - 54. ",972,"Do Not Use - Purity not mentioned "]
["Marine ","972-3",51,0.52577319587628868,"Zostera marina","Not stated","3 Days","Chlorophyll-(a/b)","NOEC","100 ug/L","Nielsen, L. W. & Dahllof, I. 2007. Direct and indirect effects of the herbicides Glyphosate, Bentazone and MCPA on eelgrass (Zostera marina), vol. 82, pp. 47 - 54. ",972,"Do Not Use - Purity not mentioned "]
["Freshwater","Roshon et al. 1999_1",66,0.64077669902912626,"Myriophyllum sibiricum","not-stated","14 days","Growth: Shoot growth","IC50",">2.99 mg/L","Roshon RD, McCann JH, Thompson DG and Stephenson GR (1999). Effects of seven forestry management herbicides on Myriophyllum sibiricum, as compared with other nontarget aquatic organisms, Canadian Journal of Forestry Research, 29, 1158-1169.",{"$error":"#VALUE!"},"Technical grade"]
["Freshwater","Roshon et al. 1999_2",66,0.64077669902912626,"Myriophyllum sibiricum","not-stated","14 days","Growth: Root number","IC50","2.798 mg/L","Roshon RD, McCann JH, Thompson DG and Stephenson GR (1999). Effects of seven forestry management herbicides on Myriophyllum sibiricum, as compared with other nontarget aquatic organisms, Canadian Journal of Forestry Research, 29, 1158-1169.",{"$error":"#VALUE!"},"Technical grade"]
["Freshwater","Roshon et al. 1999_3",66,0.64077669902912626,"Myriophyllum sibiricum","not-stated","14 days","Growth: Root length","IC50","0.844 mg/L","Roshon RD, McCann JH, Thompson DG and Stephenson GR (1999). Effects of seven forestry management herbicides on Myriophyllum sibiricum, as compared with other nontarget aquatic organisms, Canadian Journal of Forestry Research, 29, 1158-1169.",{"$error":"#VALUE!"},"Technical grade"]
["Freshwater","Saenz et al. 1997_1",82,0.79611650485436891,"Scenedesmus acutus","Not stated","96 hours","Growth inhibition: Chlorophyll-a content","NOEC","2 mg/L","Saenz ME, Di Marzio WD, Alberdi JL and del Carmen Tortorelli M (1997). Effects of Technical Grade and a Commercial\nFormulation of Glyphosate on Algal Population Growth, Environmental Contamination and Toxicology, 59, 638-644.",{"$error":"#VALUE!"},"Technical grade (isopropilamine salt with 99.5 % of purity)"]
["Freshwater","Saenz et al. 1997_2",82,0.79611650485436891,"Scenedesmus acutus","Not stated","96 hours","Growth inhibition: Chlorophyll-a content","LOEC","4 mg/L","Saenz ME, Di Marzio WD, Alberdi JL and del Carmen Tortorelli M (1997). Effects of Technical Grade and a Commercial\nFormulation of Glyphosate on Algal Population Growth, Environmental Contamination and Toxicology, 59, 638-644.",{"$error":"#VALUE!"},"Technical grade (isopropilamine salt with 99.5 % of purity)"]
["Freshwater","Saenz et al. 1997_3",82,0.79611650485436891,"Scenedesmus acutus","Not stated","96 hours","Growth inhibition: Chlorophyll-a content","EC50","10.2 mg/L","Saenz ME, Di Marzio WD, Alberdi JL and del Carmen Tortorelli M (1997). Effects of Technical Grade and a Commercial\nFormulation of Glyphosate on Algal Population Growth, Environmental Contamination and Toxicology, 59, 638-644.",{"$error":"#VALUE!"},"Technical grade (isopropilamine salt with 99.5 % of purity)"]
["Freshwater","Saenz et al. 1997_4",82,0.79611650485436891,"Scenedesmus quadricauda ","Not stated","96 hours","Growth inhibition: Chlorophyll-a content","NOEC","0.77 mg/L","Saenz ME, Di Marzio WD, Alberdi JL and del Carmen Tortorelli M (1997). Effects of Technical Grade and a Commercial\nFormulation of Glyphosate on Algal Population Growth, Environmental Contamination and Toxicology, 59, 638-644.",{"$error":"#VALUE!"},"Technical grade (isopropilamine salt with 99.5 % of purity)"]
["Freshwater","Saenz et al. 1997_5",82,0.79611650485436891,"Scenedesmus quadricauda ","Not stated","96 hours","Growth inhibition: Chlorophyll-a content","LOEC","1.55 mg/L","Saenz ME, Di Marzio WD, Alberdi JL and del Carmen Tortorelli M (1997). Effects of Technical Grade and a Commercial\nFormulation of Glyphosate on Algal Population Growth, Environmental Contamination and Toxicology, 59, 638-644.",{"$error":"#VALUE!"},"Technical grade (isopropilamine salt with 99.5 % of purity)"]
["Freshwater","Saenz et al. 1997_6",82,0.79611650485436891,"Scenedesmus quadricauda ","Not stated","96 hours","Growth inhibition: Chlorophyll-a content","EC50","7.2 mg/L","Saenz ME, Di Marzio WD, Alberdi JL and del Carmen Tortorelli M (1997). Effects of Technical Grade and a Commercial\nFormulation of Glyphosate on Algal Population Growth, Environmental Contamination and Toxicology, 59, 638-644.",{"$error":"#VALUE!"},"Technical grade (isopropilamine salt with 99.5 % of purity)"]
["Freshwater","Canadian Summit Report, 2007_1",76,0.73786407766990292,"Ceriodaphnia dubia","<24-hour old","7 days","Mortality: Survival","NOEC","65 mg/L","SEC (2007). Toxicity of glyphosate and thiram to aquatic invertebrates, Final Report 551-04.01, Prepared for Environment Canada, Summit Environmental Consultants, British Columbia.",{"$error":"#VALUE!"},"98% purity"]
["Freshwater","Canadian Summit Report, 2007_2",76,0.73786407766990292,"Ceriodaphnia dubia","<24-hour old","7 days","Mortality: Survival","LOEC","110 mg/L","SEC (2007). Toxicity of glyphosate and thiram to aquatic invertebrates, Final Report 551-04.01, Prepared for Environment Canada, Summit Environmental Consultants, British Columbia.",{"$error":"#VALUE!"},"98% purity"]
["Freshwater","Canadian Summit Report, 2007_3",76,0.73786407766990292,"Ceriodaphnia dubia","<24-hour old","7 days","Reproduction: Number of young per female","NOEC","65 mg/L","SEC (2007). Toxicity of glyphosate and thiram to aquatic invertebrates, Final Report 551-04.01, Prepared for Environment Canada, Summit Environmental Consultants, British Columbia.",{"$error":"#VALUE!"},"98% purity"]
["Freshwater","Canadian Summit Report, 2007_4",76,0.73786407766990292,"Ceriodaphnia dubia","<24-hour old","7 days","Reproduction: Number of young per female","LOEC","110 mg/L","SEC (2007). Toxicity of glyphosate and thiram to aquatic invertebrates, Final Report 551-04.01, Prepared for Environment Canada, Summit Environmental Consultants, British Columbia.",{"$error":"#VALUE!"},"98% purity"]
["Freshwater","Canadian Summit Report, 2007_5",80,0.77669902912621358,"Ceriodaphnia dubia","<24-hour old","7 days","Survival","EC50","84.6 mg/L","SEC (2007). Toxicity of glyphosate and thiram to aquatic invertebrates, Final Report 551-04.01, Prepared for Environment Canada, Summit Environmental Consultants, British Columbia.",{"$error":"#VALUE!"},"98% purity"]
["Freshwater","Canadian Summit Report, 2007_6",80,0.77669902912621358,"Ceriodaphnia dubia","<24-hour old","7 days","Reproduction: Number of young per female","IC50","83.9 mg/L","SEC (2007). Toxicity of glyphosate and thiram to aquatic invertebrates, Final Report 551-04.01, Prepared for Environment Canada, Summit Environmental Consultants, British Columbia.",{"$error":"#VALUE!"},"98% purity"]
["Freshwater","Canadian Summit Report, 2007_7",80,0.77669902912621358,"Ceriodaphnia dubia","<24-hour old","7 days","Reproduction: Number of young per female","IC10","65.6 mg/L","SEC (2007). Toxicity of glyphosate and thiram to aquatic invertebrates, Final Report 551-04.01, Prepared for Environment Canada, Summit Environmental Consultants, British Columbia.",{"$error":"#VALUE!"},"98% purity"]
["Freshwater","Canadian Summit Report, 2007_8",80,0.77669902912621358,"Ceriodaphnia dubia","<24-hour old","48 hours","Reproduction: Number of young per female","LC50",">280 mg/L","SEC (2007). Toxicity of glyphosate and thiram to aquatic invertebrates, Final Report 551-04.01, Prepared for Environment Canada, Summit Environmental Consultants, British Columbia.",{"$error":"#VALUE!"},"98% purity"]
["Freshwater","Canadian Summit Report, 2007_9",85,0.82524271844660191,"Hyalella azteca","Juveniles","14 days","Mortality: Survival","EC50","144.1 mg/L","SEC (2007). Toxicity of glyphosate and thiram to aquatic invertebrates, Final Report 551-04.01, Prepared for Environment Canada, Summit Environmental Consultants, British Columbia.",{"$error":"#VALUE!"},"98% purity"]
["Freshwater","Canadian Summit Report, 2007_10",85,0.82524271844660191,"Hyalella azteca","Juveniles","14 days","Growth: Dry weight","EC50","135.5 mg/L","SEC (2007). Toxicity of glyphosate and thiram to aquatic invertebrates, Final Report 551-04.01, Prepared for Environment Canada, Summit Environmental Consultants, British Columbia.",{"$error":"#VALUE!"},"98% purity"]
["Freshwater","Canadian Summit Report, 2007_11",85,0.82524271844660191,"Hyalella azteca","Juveniles","14 days","Growth: Dry weight","EC10","20.5 mg/L","SEC (2007). Toxicity of glyphosate and thiram to aquatic invertebrates, Final Report 551-04.01, Prepared for Environment Canada, Summit Environmental Consultants, British Columbia.",{"$error":"#VALUE!"},"98% purity"]
["Freshwater","Canadian Summit Report, 2007_12",85,0.82524271844660191,"Hyalella azteca","Juveniles","14 days","Mortality: Survival","EC10","53.9 mg/L","SEC (2007). Toxicity of glyphosate and thiram to aquatic invertebrates, Final Report 551-04.01, Prepared for Environment Canada, Summit Environmental Consultants, British Columbia.",{"$error":"#VALUE!"},"98% purity"]
["Freshwater","Canadian Summit Report, 2007_13",81,0.78640776699029125,"Hyalella azteca","Juveniles","14 days","Mortality: Survival","NOEC","6.8 mg/L","SEC (2007). Toxicity of glyphosate and thiram to aquatic invertebrates, Final Report 551-04.01, Prepared for Environment Canada, Summit Environmental Consultants, British Columbia.",{"$error":"#VALUE!"},"98% purity"]
["Freshwater","Canadian Summit Report, 2007_14",81,0.78640776699029125,"Hyalella azteca","Juveniles","14 days","Mortality: Survival","LOEC","16.5 mg/L","SEC (2007). Toxicity of glyphosate and thiram to aquatic invertebrates, Final Report 551-04.01, Prepared for Environment Canada, Summit Environmental Consultants, British Columbia.",{"$error":"#VALUE!"},"98% purity"]
["Freshwater","Canadian Summit Report, 2007_15",81,0.78640776699029125,"Hyalella azteca","Juveniles","14 days","Growth: Dry weight","NOEC","115 mg/L","SEC (2007). Toxicity of glyphosate and thiram to aquatic invertebrates, Final Report 551-04.01, Prepared for Environment Canada, Summit Environmental Consultants, British Columbia.",{"$error":"#VALUE!"},"98% purity"]
["Freshwater","Canadian Summit Report, 2007_16",81,0.78640776699029125,"Hyalella azteca","Juveniles","14 days","Growth: Dry weight","LOEC","355 mg/L","SEC (2007). Toxicity of glyphosate and thiram to aquatic invertebrates, Final Report 551-04.01, Prepared for Environment Canada, Summit Environmental Consultants, British Columbia.",{"$error":"#VALUE!"},"98% purity"]
["Freshwater","Canadian Summit Report, 2007_17",85,0.82524271844660191,"Hyalella azteca","Juveniles","96-hour","Growth: Dry weight","LC50","160.6 mg/L","SEC (2007). Toxicity of glyphosate and thiram to aquatic invertebrates, Final Report 551-04.01, Prepared for Environment Canada, Summit Environmental Consultants, British Columbia.",{"$error":"#VALUE!"},"98% purity"]
[]
[]
["ANZECC / ARMCANZ Data"]
["Animal Type","Latein Name","Test Media","Test Type","EndPoint","Effect","Method","Conc","Unit","ReferenceNo","Duration(d)","Common Name","Citation"]
["Fish","Carassius auratus","Freshwater","Acute","LC50","MORT","NR",9217000,"ug/L",204070,96,"Goldfish","Anton,F.A., E.Laborda, and M.De Ariz (1994). Acute Toxicity of the Herbicide Glyphosate to Fish Chemosphere 28 (4) 745-753"]
["Fish","Carassius auratus","Freshwater","Acute","LC50","MORT","NR",950000,"ug/L",204070,96,"Goldfish","Anton,F.A., E.Laborda, and M.De Ariz (1994). Acute Toxicity of the Herbicide Glyphosate to Fish Chemosphere 28 (4) 745-753"]
["Fish","Carassius auratus","Freshwater","Acute","LC50","MORT","NR",4183620,"ug/L",204070,96,"Goldfish","Anton,F.A., E.Laborda, and M.De Ariz (1994). Acute Toxicity of the Herbicide Glyphosate to Fish Chemosphere 28 (4) 745-753"]
["Crustaceans","Ceriodaphnia dubia","Freshwater","Acute","LC50","MORT","NR",7990,"ug/L",300100,48,"Water flea","Korth, W.,Thomas, M.,Foster, S., McCorkelle, G., Bowmer, K. (1995). Toxicity of Rice and Maize Pesticides to Ceriodaphnia sp: Implications for Management\nof Irrigation Drainage Water in Australia Australasian Journal of Ecotoxicology 1 (1) 55-62"]
["Insects","Chironomus plumosus ","Freshwater","Acute","EC50","MORT","NR",55000,"ug/L",205752,48,"Midge","Folmar,L.C., H.O.Sanders, and A.M.Julin (1979). Toxicity of the Herbicide Glyphosate and Several of its   Formulations to Fish and Aquatic\n Invertebrates Arch. Environ. Contam. Toxicol. 8 (3) 269-278.",null,null,null,null,null,null,null,"Formulation data"]
["Insects","Chironomus plumosus ","Freshwater","Acute","LC50","MORT","NR",34000,"ug/L",205752,48,"Midge","Folmar,L.C., H.O.Sanders, and A.M.Julin (1979). Toxicity of the Herbicide Glyphosate and Several of its   Formulations to Fish and Aquatic\n Invertebrates Arch. Environ. Contam. Toxicol. 8 (3) 269-278.",null,null,null,null,null,null,null,"Formulation data"]
["Insects","Chironomus plumosus ","Freshwater","Acute","LC50","MORT","NR",34000,"ug/L",205752,48,"Midge","Folmar,L.C., H.O.Sanders, and A.M.Julin (1979). Toxicity of the Herbicide Glyphosate and Several of its   Formulations to Fish and Aquatic\n Invertebrates Arch. Environ. Contam. Toxicol. 8 (3) 269-278.",null,null,null,null,null,null,null,"Formulation data"]
["Insects","Chironomus plumosus ","Freshwater","Acute","LC50","MORT","NR",43000,"ug/L",205752,48,"Midge","Folmar,L.C., H.O.Sanders, and A.M.Julin (1979). Toxicity of the Herbicide Glyphosate and Several of its   Formulations to Fish and Aquatic\n Invertebrates Arch. Environ. Contam. Toxicol. 8 (3) 269-278.",null,null,null,null,null,null,null,"Formulation data"]
["Insects","Chironomus plumosus ","Freshwater","Acute","LC50","MORT","NR",30000,"ug/L",205752,48,"Midge","Folmar,L.C., H.O.Sanders, and A.M.Julin (1979). Toxicity of the Herbicide Glyphosate and Several of its   Formulations to Fish and Aquatic\n Invertebrates Arch. Environ. Contam. Toxicol. 8 (3) 269-278.",null,null,null,null,null,null,null,"Formulation data"]
["Green algae","Chlorella pyrenoidosa","Freshwater","Acute","EC50","MORT","NR",1082050,"ug/L",204338,96,"Green algae","Anton,F.A., M.Ariz, and M.Alia (1993). Ecotoxic Effects of Four Herbicides (Glyphosate, Alachlor, Chlortoluron and Isoproturon)\non the Algae Chlorella pyrenoidosa Chick Sci. Total Environ. (Suppl.)   845-851."]
["Green algae","Chlorella pyrenoidosa","Freshwater","Acute","EC50","MORT","NR",380000,"ug/L",204338,96,"Green algae","Anton,F.A., M.Ariz, and M.Alia (1993). Ecotoxic Effects of Four Herbicides (Glyphosate, Alachlor, Chlortoluron and Isoproturon)\non the Algae Chlorella pyrenoidosa Chick Sci. Total Environ. (Suppl.)   845-851."]
["Amphibians","Crinia insignifera","Freshwater","Acute","LC50","MORT","NR",83600,"ug/L",300016,48,"Frog","Bidwell, J.R. and Gorrie,J.R. (1995). Acute toxicity of a herbicide to selected frog species. Report prepared for Western\nAustralian Department of Environmental Protection. Perth. WA.",null,null,null,null,null,null,null,null,null,"These values were as a result of low pH, not the toxicity, Tests were done on this acid alone and no results, whereas with the low pH the tadpoles started to die. Therefore, this data was not used. SEE REINIER FOR DETAILS."]
["Amphibians","Crinia insignifera","Freshwater","Acute","LC50","MORT","NR",72000,"ug/L",300016,72,"Frog","Bidwell, J.R. and Gorrie,J.R. (1995). Acute toxicity of a herbicide to selected frog species. Report prepared for Western\nAustralian Department of Environmental Protection. Perth. WA.",null,null,null,null,null,null,null,null,null,"These values were as a result of low pH, not the toxicity, Tests were done on this acid alone and no results, whereas with the low pH the tadpoles started to die. Therefore, this data was not used. SEE REINIER FOR DETAILS."]
["Amphibians","Crinia insignifera","Freshwater","Acute","LC50","MORT","NR",78000,"ug/L",300016,96,"Frog","Bidwell, J.R. and Gorrie,J.R. (1995). Acute toxicity of a herbicide to selected frog species. Report prepared for Western\nAustralian Department of Environmental Protection. Perth. WA.",null,null,null,null,null,null,null,null,null,"These values were as a result of low pH, not the toxicity, Tests were done on this acid alone and no results, whereas with the low pH the tadpoles started to die. Therefore, this data was not used. SEE REINIER FOR DETAILS."]
["Fish","Cyprinus carpio","Freshwater","Acute","LC50","MORT","NR",115000,"ug/L",205345,48,"Common carp","Li,G.C. and C.Y.Chen (1981). Study on the Acute Toxicities of Commonly Used Pesticides to  Two Kinds of Fish K'O\nHsueh Fa Chan Yueh K'an 9 (2) 146-152."]
["Fish","Cyprinus carpio","Freshwater","Acute","LC50","MORT","NR",645000,"ug/L",216438,48,"Common carp","Neskovic,N.K., V.Poleksic, I.Elezovic, V.Karan, and   M.Budimir (1996). Biochemical and Histopathological Effects of Glyphosate on  Carp, Cyprinus carpio L.\nBull. Environ. Contam. Toxicol. 56 (2) 295-302."]
["Fish","Cyprinus carpio","Freshwater","Acute","LC50","MORT","NR",13000,"ug/L",213451,48,"Common carp","Sun,F. (1987). Evaluating Acute Toxicity of Pesticides to Aquatic Organisms: Carp, Mosquito Fish and\nDaphnids Plant Prot. Bull. /Chih Wu Pao Hu Hsueh Hui Hui K'an 29 (4) 385-396."]
["Fish","Cyprinus carpio","Freshwater","Acute","LC50","MORT","NR",620000,"ug/L",216438,96,"Common carp","Neskovic,N.K., V.Poleksic, I.Elezovic, V.Karan, and   M.Budimir (1996). Biochemical and Histopathological Effects of Glyphosate on  Carp, Cyprinus carpio L.\nBull. Environ. Contam. Toxicol. 56 (2) 295-302."]
["Fish","Cyprinus carpio","Freshwater","Acute","LC50","MORT","NR",11000,"ug/L",213451,96,"Common carp","Sun,F. (1987). Evaluating Acute Toxicity of Pesticides to Aquatic Organisms: Carp, Mosquito Fish and\nDaphnids Plant Prot. Bull. /Chih Wu Pao Hu Hsueh Hui Hui K'an 29 (4) 385-396."]
["Crustaceans","Daphnia magna","Freshwater","Acute","EC50","MORT","NR",3000,"ug/L",205752,48,"Water flea","Folmar,L.C., H.O.Sanders, and A.M.Julin (1979). Toxicity of the Herbicide Glyphosate and Several of its   Formulations to Fish and Aquatic\n Invertebrates Arch. Environ. Contam. Toxicol. 8 (3) 269-278."]
["Crustaceans","Gammarus pseudolimnaeus ","Freshwater","Acute","LC50","MORT","NR",62000,"ug/L",200344,48,"Scud","Office of Pesticide Programs (1995). Environmental Effects Database (EEDB) Environmental Fate and Effects Division, U.S.\nEPA, Washington, D.C."]
["Crustaceans","Gammarus pseudolimnaeus ","Freshwater","Acute","LC50","MORT","NR",42000,"ug/L",200344,48,"Scud","Office of Pesticide Programs (1995). Environmental Effects Database (EEDB) Environmental Fate and Effects Division, U.S.\nEPA, Washington, D.C."]
["Fish","Ictalurus punctatus","Freshwater","Acute","LC50","MORT","NR",130000,"ug/L",200666,96,"Channel catfish","Johnson,W.W. and M.T.Finley (1980). Handbook of Acute Toxicity of Chemicals to Fish and Aquatic Invertebrates Resour. Publ.\n137, Fish Wildl. Serv., U.S.D.I., Washington,  D.C.   1-98."]
["Fish","Ictalurus punctatus","Freshwater","Acute","LC50","MORT","NR",130000,"ug/L",200344,96,"Channel catfish","Office of Pesticide Programs (1995). Environmental Effects Database (EEDB) Environmental Fate and Effects Division, U.S.\nEPA, Washington, D.C."]
["Fish","Ictalurus punctatus","Freshwater","Acute","LC50","MORT","NR",130000,"ug/L",205752,96,"Channel catfish","Folmar,L.C., H.O.Sanders, and A.M.Julin (1979). Toxicity of the Herbicide Glyphosate and Several of its   Formulations to Fish and Aquatic\n Invertebrates Arch. Environ. Contam. Toxicol. 8 (3) 269-278."]
["Fish","Lepomis macrochirus","Freshwater","Acute","LC50","MORT","NR",135000,"ug/L",200666,96,"Bluegill ","Johnson,W.W. and M.T.Finley (1980). Handbook of Acute Toxicity of Chemicals to Fish and Aquatic Invertebrates Resour. Publ.\n137, Fish Wildl. Serv., U.S.D.I., Washington,  D.C.   1-98."]
["Fish","Lepomis macrochirus","Freshwater","Acute","LC50","MORT","NR",140000,"ug/L",205752,96,"Bluegill ","Folmar,L.C., H.O.Sanders, and A.M.Julin (1979). Toxicity of the Herbicide Glyphosate and Several of its   Formulations to Fish and Aquatic\n Invertebrates Arch. Environ. Contam. Toxicol. 8 (3) 269-278."]
["Fish","Lepomis macrochirus","Freshwater","Acute","LC50","MORT","NR",140000,"ug/L",205752,96,"Bluegill ","Folmar,L.C., H.O.Sanders, and A.M.Julin (1979). Toxicity of the Herbicide Glyphosate and Several of its   Formulations to Fish and Aquatic\n Invertebrates Arch. Environ. Contam. Toxicol. 8 (3) 269-278."]
["Fish","Lepomis macrochirus","Freshwater","Acute","LC50","MORT","NR",220000,"ug/L",205752,96,"Bluegill ","Folmar,L.C., H.O.Sanders, and A.M.Julin (1979). Toxicity of the Herbicide Glyphosate and Several of its   Formulations to Fish and Aquatic\n Invertebrates Arch. Environ. Contam. Toxicol. 8 (3) 269-278."]
["Fish","Lepomis macrochirus","Freshwater","Acute","LC50","MORT","NR",120000,"ug/L",200344,96,"Bluegill ","Office of Pesticide Programs (1995). Environmental Effects Database (EEDB) Environmental Fate and Effects Division, U.S.\nEPA, Washington, D.C."]
["Fish","Lepomis macrochirus","Freshwater","Acute","LC50","MORT","NR",830800,"ug/L",200344,96,"Bluegill ","Office of Pesticide Programs (1995). Environmental Effects Database (EEDB) Environmental Fate and Effects Division, U.S.\nEPA, Washington, D.C."]
["Fish","Lepomis macrochirus","Freshwater","Acute","LC50","MORT","NR",140000,"ug/L",200344,96,"Bluegill ","Office of Pesticide Programs (1995). Environmental Effects Database (EEDB) Environmental Fate and Effects Division, U.S.\nEPA, Washington, D.C."]
["Fish","Lepomis macrochirus","Freshwater","Acute","LC50","MORT","NR",230000,"ug/L",200344,96,"Bluegill ","Office of Pesticide Programs (1995). Environmental Effects Database (EEDB) Environmental Fate and Effects Division, U.S.\nEPA, Washington, D.C."]
["Fish","Lepomis macrochirus","Freshwater","Acute","LC50","MORT","NR",134000,"ug/L",200344,96,"Bluegill ","Office of Pesticide Programs (1995). Environmental Effects Database (EEDB) Environmental Fate and Effects Division, U.S.\nEPA, Washington, D.C."]
["Amphibians","Litoria adelaidensis","Freshwater","Acute","LC50","MORT","NR",121500,"ug/L",300016,48,"Frog","Bidwell, J.R. and Gorrie,J.R. (1995). Acute toxicity of a herbicide to selected frog species. Report prepared for Western\nAustralian Department of Environmental Protection. Perth. WA.",null,null,null,null,null,null,null,null,null,"These values were as a result of low pH, not the toxicity, Tests were done on this acid alone and no results, whereas with the low pH the tadpoles started to die. Therefore, this data was not used. SEE REINIER FOR DETAILS."]
["Amphibians","Litoria adelaidensis","Freshwater","Acute","LC50","MORT","NR",116000,"ug/L",300016,72,"Frog","Bidwell, J.R. and Gorrie,J.R. (1995). Acute toxicity of a herbicide to selected frog species. Report prepared for Western\nAustralian Department of Environmental Protection. Perth. WA.",null,null,null,null,null,null,null,null,null,"These values were as a result of low pH, not the toxicity, Tests were done on this acid alone and no results, whereas with the low pH the tadpoles started to die. Therefore, this data was not used. SEE REINIER FOR DETAILS."]
["Amphibians","Litoria adelaidensis","Freshwater","Acute","LC50","MORT","NR",110800,"ug/L",300016,96,"Frog","Bidwell, J.R. and Gorrie,J.R. (1995). Acute toxicity of a herbicide to selected frog species. Report prepared for Western\nAustralian Department of Environmental Protection. Perth. WA.",null,null,null,null,null,null,null,null,null,"These values were as a result of low pH, not the toxicity, Tests were done on this acid alone and no results, whereas with the low pH the tadpoles started to die. Therefore, this data was not used. SEE REINIER FOR DETAILS."]
["Fish","Oncorhynchus gorbuscha","Freshwater","Acute","LC50","MORT","NR",102000,"ug/L",200924,48,"Pink salmon","Wan,W.T., R.G.Watts, and D.J.Moul (1989). Effects of Different Dilution Water Types on the Acute Toxicity to Juvenile Pacific\nSalmonids and Rainbow Trout of   Glyphosate and Its Formulated Products Bull. Environ.\nContam. Toxicol 43 (3) 378-385."]
["Fish","Oncorhynchus gorbuscha","Freshwater","Acute","LC50","MORT","NR",94000,"ug/L",200924,48,"Pink salmon","Wan,W.T., R.G.Watts, and D.J.Moul (1989). Effects of Different Dilution Water Types on the Acute Toxicity to Juvenile Pacific\nSalmonids and Rainbow Trout of   Glyphosate and Its Formulated Products Bull. Environ.\nContam. Toxicol 43 (3) 378-385."]
["Fish","Oncorhynchus gorbuscha","Freshwater","Acute","LC50","MORT","NR",94000,"ug/L",200924,72,"Pink salmon","Wan,W.T., R.G.Watts, and D.J.Moul (1989). Effects of Different Dilution Water Types on the Acute Toxicity to Juvenile Pacific\nSalmonids and Rainbow Trout of   Glyphosate and Its Formulated Products Bull. Environ.\nContam. Toxicol 43 (3) 378-385."]
["Fish","Oncorhynchus gorbuscha","Freshwater","Acute","LC50","MORT","NR",102000,"ug/L",200924,72,"Pink salmon","Wan,W.T., R.G.Watts, and D.J.Moul (1989). Effects of Different Dilution Water Types on the Acute Toxicity to Juvenile Pacific\nSalmonids and Rainbow Trout of   Glyphosate and Its Formulated Products Bull. Environ.\nContam. Toxicol 43 (3) 378-385."]
["Fish","Oncorhynchus gorbuscha","Freshwater","Acute","LC50","MORT","NR",94000,"ug/L",200924,96,"Pink salmon","Wan,W.T., R.G.Watts, and D.J.Moul (1989). Effects of Different Dilution Water Types on the Acute Toxicity to Juvenile Pacific\nSalmonids and Rainbow Trout of   Glyphosate and Its Formulated Products Bull. Environ.\nContam. Toxicol 43 (3) 378-385."]
["Fish","Oncorhynchus gorbuscha","Freshwater","Acute","LC50","MORT","NR",102000,"ug/L",200924,96,"Pink salmon","Wan,W.T., R.G.Watts, and D.J.Moul (1989). Effects of Different Dilution Water Types on the Acute Toxicity to Juvenile Pacific\nSalmonids and Rainbow Trout of   Glyphosate and Its Formulated Products Bull. Environ.\nContam. Toxicol 43 (3) 378-385."]
["Fish","Oncorhynchus keta ","Freshwater","Acute","LC50","MORT","NR",101000,"ug/L",200924,48,"Chum salmon","Wan,W.T., R.G.Watts, and D.J.Moul (1989). Effects of Different Dilution Water Types on the Acute Toxicity to Juvenile Pacific\nSalmonids and Rainbow Trout of   Glyphosate and Its Formulated Products Bull. Environ.\nContam. Toxicol 43 (3) 378-385."]
["Fish","Oncorhynchus keta ","Freshwater","Acute","LC50","MORT","NR",101000,"ug/L",200924,72,"Chum salmon","Wan,W.T., R.G.Watts, and D.J.Moul (1989). Effects of Different Dilution Water Types on the Acute Toxicity to Juvenile Pacific\nSalmonids and Rainbow Trout of   Glyphosate and Its Formulated Products Bull. Environ.\nContam. Toxicol 43 (3) 378-385."]
["Fish","Oncorhynchus keta ","Freshwater","Acute","LC50","MORT","NR",99000,"ug/L",200924,96,"Chum salmon","Wan,W.T., R.G.Watts, and D.J.Moul (1989). Effects of Different Dilution Water Types on the Acute Toxicity to Juvenile Pacific\nSalmonids and Rainbow Trout of   Glyphosate and Its Formulated Products Bull. Environ.\nContam. Toxicol 43 (3) 378-385."]
["Fish","Oncorhynchus kisutch ","Freshwater","Acute","LC50","MORT","NR",122000,"ug/L",200924,48,"Coho salmon,silver salmon","Wan,W.T., R.G.Watts, and D.J.Moul (1989). Effects of Different Dilution Water Types on the Acute Toxicity to Juvenile Pacific\nSalmonids and Rainbow Trout of   Glyphosate and Its Formulated Products Bull. Environ.\nContam. Toxicol 43 (3) 378-385."]
["Fish","Oncorhynchus kisutch ","Freshwater","Acute","LC50","MORT","NR",121000,"ug/L",200924,48,"Coho salmon,silver salmon","Wan,W.T., R.G.Watts, and D.J.Moul (1989). Effects of Different Dilution Water Types on the Acute Toxicity to Juvenile Pacific\nSalmonids and Rainbow Trout of   Glyphosate and Its Formulated Products Bull. Environ.\nContam. Toxicol 43 (3) 378-385."]
["Fish","Oncorhynchus kisutch ","Freshwater","Acute","LC50","MORT","NR",117000,"ug/L",200924,72,"Coho salmon,silver salmon","Wan,W.T., R.G.Watts, and D.J.Moul (1989). Effects of Different Dilution Water Types on the Acute Toxicity to Juvenile Pacific\nSalmonids and Rainbow Trout of   Glyphosate and Its Formulated Products Bull. Environ.\nContam. Toxicol 43 (3) 378-385."]
["Fish","Oncorhynchus kisutch ","Freshwater","Acute","LC50","MORT","NR",115000,"ug/L",200924,72,"Coho salmon,silver salmon","Wan,W.T., R.G.Watts, and D.J.Moul (1989). Effects of Different Dilution Water Types on the Acute Toxicity to Juvenile Pacific\nSalmonids and Rainbow Trout of   Glyphosate and Its Formulated Products Bull. Environ.\nContam. Toxicol 43 (3) 378-385."]
["Fish","Oncorhynchus kisutch ","Freshwater","Acute","LC50","MORT","NR",112000,"ug/L",200924,96,"Coho salmon,silver salmon","Wan,W.T., R.G.Watts, and D.J.Moul (1989). Effects of Different Dilution Water Types on the Acute Toxicity to Juvenile Pacific\nSalmonids and Rainbow Trout of   Glyphosate and Its Formulated Products Bull. Environ.\nContam. Toxicol 43 (3) 378-385."]
["Fish","Oncorhynchus kisutch ","Freshwater","Acute","LC50","MORT","NR",111000,"ug/L",200924,96,"Coho salmon,silver salmon","Wan,W.T., R.G.Watts, and D.J.Moul (1989). Effects of Different Dilution Water Types on the Acute Toxicity to Juvenile Pacific\nSalmonids and Rainbow Trout of   Glyphosate and Its Formulated Products Bull. Environ.\nContam. Toxicol 43 (3) 378-385."]
["Fish","Oncorhynchus mykiss","Freshwater","Acute","LC50","MORT","NR",107000,"ug/L",200924,48,"Rainbow trout","Wan,W.T., R.G.Watts, and D.J.Moul (1989). Effects of Different Dilution Water Types on the Acute Toxicity to Juvenile Pacific\nSalmonids and Rainbow Trout of   Glyphosate and Its Formulated Products Bull. Environ.\nContam. Toxicol 43 (3) 378-385."]
["Fish","Oncorhynchus mykiss","Freshwater","Acute","LC50","MORT","NR",108000,"ug/L",200924,48,"Rainbow trout","Wan,W.T., R.G.Watts, and D.J.Moul (1989). Effects of Different Dilution Water Types on the Acute Toxicity to Juvenile Pacific\nSalmonids and Rainbow Trout of   Glyphosate and Its Formulated Products Bull. Environ.\nContam. Toxicol 43 (3) 378-385."]
["Fish","Oncorhynchus mykiss","Freshwater","Acute","LC50","MORT","NR",103000,"ug/L",200924,72,"Rainbow trout","Wan,W.T., R.G.Watts, and D.J.Moul (1989). Effects of Different Dilution Water Types on the Acute Toxicity to Juvenile Pacific\nSalmonids and Rainbow Trout of   Glyphosate and Its Formulated Products Bull. Environ.\nContam. Toxicol 43 (3) 378-385."]
["Fish","Oncorhynchus mykiss","Freshwater","Acute","LC50","MORT","NR",108000,"ug/L",200924,72,"Rainbow trout","Wan,W.T., R.G.Watts, and D.J.Moul (1989). Effects of Different Dilution Water Types on the Acute Toxicity to Juvenile Pacific\nSalmonids and Rainbow Trout of   Glyphosate and Its Formulated Products Bull. Environ.\nContam. Toxicol 43 (3) 378-385."]
["Fish","Oncorhynchus mykiss","Freshwater","Acute","LC50","MORT","NR",99000,"ug/L",200924,96,"Rainbow trout","Wan,W.T., R.G.Watts, and D.J.Moul (1989). Effects of Different Dilution Water Types on the Acute Toxicity to Juvenile Pacific\nSalmonids and Rainbow Trout of   Glyphosate and Its Formulated Products Bull. Environ.\nContam. Toxicol 43 (3) 378-385."]
["Fish","Oncorhynchus mykiss","Freshwater","Acute","LC50","MORT","NR",52000,"ug/L",210471,96,"Rainbow trout","Hildebrand,L.D., D.S.Sullivan, and T.P.Sullivan (1982). Experimental Studies of Rainbow Trout Populations Exposed to  Field Applications of Roundup Herbicide Arch. Environ. Contam. Toxicol. 11 (1) 93-98.",null,null,null,null,null,null,null,"Formulation data"]
["Fish","Oncorhynchus mykiss","Freshwater","Acute","LC50","MORT","NR",150000,"ug/L",200344,96,"Rainbow trout","Office of Pesticide Programs (1995). Environmental Effects Database (EEDB) Environmental Fate and Effects Division, U.S.\nEPA, Washington, D.C."]
["Fish","Oncorhynchus mykiss","Freshwater","Acute","LC50","MORT","NR",93000,"ug/L",200924,96,"Rainbow trout","Wan,W.T., R.G.Watts, and D.J.Moul (1989). Effects of Different Dilution Water Types on the Acute Toxicity to Juvenile Pacific Salmonids and Rainbow Trout of   Glyphosate and Its Formulated Products Bull. Environ. Contam. Toxicol 43 (3) 378-385."]
["Fish","Oncorhynchus mykiss","Freshwater","Acute","LC50","MORT","NR",140000,"ug/L",200344,96,"Rainbow trout","Office of Pesticide Programs (1995). Environmental Effects Database (EEDB) Environmental Fate and Effects Division, U.S.\nEPA, Washington, D.C."]
["Fish","Oncorhynchus mykiss","Freshwater","Acute","LC50","MORT","NR",54800,"ug/L",210471,96,"Rainbow trout","Hildebrand,L.D., D.S.Sullivan, and T.P.Sullivan (1982). Experimental Studies of Rainbow Trout Populations Exposed to  Field Applications of\nRoundup Herbicide Arch. Environ. Contam. Toxicol. 11 (1) 93-98.",null,null,null,null,null,null,null,"Formulation data"]
["Fish","Oncorhynchus mykiss","Freshwater","Acute","LC50","MORT","NR",240000,"ug/L",205752,96,"Rainbow trout","Folmar,L.C., H.O.Sanders, and A.M.Julin (1979). Toxicity of the Herbicide Glyphosate and Several of its   Formulations to Fish and Aquatic\n Invertebrates Arch. Environ. Contam. Toxicol. 8 (3) 269-278."]
["Fish","Oncorhynchus mykiss","Freshwater","Acute","LC50","MORT","NR",140000,"ug/L",205752,96,"Rainbow trout","Folmar,L.C., H.O.Sanders, and A.M.Julin (1979). Toxicity of the Herbicide Glyphosate and Several of its   Formulations to Fish and Aquatic\n Invertebrates Arch. Environ. Contam. Toxicol. 8 (3) 269-278."]
["Fish","Oncorhynchus mykiss","Freshwater","Acute","LC50","MORT","NR",140000,"ug/L",205752,96,"Rainbow trout","Folmar,L.C., H.O.Sanders, and A.M.Julin (1979). Toxicity of the Herbicide Glyphosate and Several of its   Formulations to Fish and Aquatic\n Invertebrates Arch. Environ. Contam. Toxicol. 8 (3) 269-278."]
["Fish","Oncorhynchus mykiss","Freshwater","Acute","LC50","MORT","NR",4290800,"ug/L",204070,96,"Rainbow trout","Anton,F.A., E.Laborda, and M.De Ariz (1994). Acute Toxicity of the Herbicide Glyphosate to Fish Chemosphere 28 (4) 745-753",null,null,null,null,null,null,null,"Formulation data"]
["Fish","Oncorhynchus mykiss","Freshwater","Acute","LC50","MORT","NR",86000,"ug/L",200344,96,"Rainbow trout","Office of Pesticide Programs (1995). Environmental Effects Database (EEDB) Environmental Fate and Effects Division, U.S.\nEPA, Washington, D.C."]
["Fish","Oncorhynchus mykiss","Freshwater","Acute","LC50","MORT","NR",130000,"ug/L",200666,96,"Rainbow trout","Johnson,W.W. and M.T.Finley (1980). Handbook of Acute Toxicity of Chemicals to Fish and Aquatic Invertebrates Resour. Publ.\n137, Fish Wildl. Serv., U.S.D.I., Washington,  D.C.   1-98."]
["Fish","Oncorhynchus mykiss","Freshwater","Acute","LC50","MORT","NR",240000,"ug/L",205752,96,"Rainbow trout","Folmar,L.C., H.O.Sanders, and A.M.Julin (1979). Toxicity of the Herbicide Glyphosate and Several of its   Formulations to Fish and Aquatic\n Invertebrates Arch. Environ. Contam. Toxicol. 8 (3) 269-278."]
["Fish","Oncorhynchus mykiss","Freshwater","Acute","LC50","MORT","NR",240000,"ug/L",200344,96,"Rainbow trout","Office of Pesticide Programs (1995). Environmental Effects Database (EEDB) Environmental Fate and Effects Division, U.S.\nEPA, Washington, D.C."]
["Fish","Oncorhynchus mykiss","Freshwater","Acute","LC50","MORT","NR",120000,"ug/L",200344,96,"Rainbow trout","Office of Pesticide Programs (1995). Environmental Effects Database (EEDB) Environmental Fate and Effects Division, U.S.\nEPA, Washington, D.C."]
["Fish","Oncorhynchus nerka","Freshwater","Acute","LC50","MORT","NR",26700,"ug/L",212591,96,"Sockeye Salmons","Servizi,J.A., R.W.Gordon, and D.W.Martens (1987). Acute Toxicity of Garlon 4 and Roundup Herbicides to Salmon,  Daphnia, and Trout Bull.\n Environ. Contam. Toxicol. 39 (1) 15-22."]
["Fish","Oncorhynchus tshawytscha","Freshwater","Acute","LC50","MORT","NR",108000,"ug/L",200924,48,"Chinook salmon ","Wan,W.T., R.G.Watts, and D.J.Moul (1989). Effects of Different Dilution Water Types on the Acute Toxicity to Juvenile Pacific\nSalmonids and Rainbow Trout of   Glyphosate and Its Formulated Products Bull. Environ.\nContam. Toxicol 43 (3) 378-385."]
["Fish","Oncorhynchus tshawytscha","Freshwater","Acute","LC50","MORT","NR",109000,"ug/L",200924,48,"Chinook salmon ","Wan,W.T., R.G.Watts, and D.J.Moul (1989). Effects of Different Dilution Water Types on the Acute Toxicity to Juvenile Pacific\nSalmonids and Rainbow Trout of   Glyphosate and Its Formulated Products Bull. Environ.\nContam. Toxicol 43 (3) 378-385."]
["Fish","Oncorhynchus tshawytscha","Freshwater","Acute","LC50","MORT","NR",102000,"ug/L",200924,72,"Chinook salmon ","Wan,W.T., R.G.Watts, and D.J.Moul (1989). Effects of Different Dilution Water Types on the Acute Toxicity to Juvenile Pacific\nSalmonids and Rainbow Trout of   Glyphosate and Its Formulated Products Bull. Environ.\nContam. Toxicol 43 (3) 378-385."]
["Fish","Oncorhynchus tshawytscha","Freshwater","Acute","LC50","MORT","NR",108000,"ug/L",200924,72,"Chinook salmon ","Wan,W.T., R.G.Watts, and D.J.Moul (1989). Effects of Different Dilution Water Types on the Acute Toxicity to Juvenile Pacific\nSalmonids and Rainbow Trout of   Glyphosate and Its Formulated Products Bull. Environ.\nContam. Toxicol 43 (3) 378-385."]
["Fish","Oncorhynchus tshawytscha","Freshwater","Acute","LC50","MORT","NR",102000,"ug/L",200924,96,"Chinook salmon ","Wan,W.T., R.G.Watts, and D.J.Moul (1989). Effects of Different Dilution Water Types on the Acute Toxicity to Juvenile Pacific\nSalmonids and Rainbow Trout of   Glyphosate and Its Formulated Products Bull. Environ.\nContam. Toxicol 43 (3) 378-385."]
["Fish","Oncorhynchus tshawytscha","Freshwater","Acute","LC50","MORT","NR",108000,"ug/L",200924,96,"Chinook salmon ","Wan,W.T., R.G.Watts, and D.J.Moul (1989). Effects of Different Dilution Water Types on the Acute Toxicity to Juvenile Pacific\nSalmonids and Rainbow Trout of   Glyphosate and Its Formulated Products Bull. Environ.\nContam. Toxicol 43 (3) 378-385."]
["Fish","Pimephales promelas","Freshwater","Acute","LC50","MORT","NR",97000,"ug/L",205752,96,"Fathead minnow","Folmar,L.C., H.O.Sanders, and A.M.Julin (1979). Toxicity of the Herbicide Glyphosate and Several of its   Formulations to Fish and Aquatic\n Invertebrates Arch. Environ. Contam. Toxicol. 8 (3) 269-278."]
["Green algae","Selenastrum capricornutum","Freshwater","Acute","EC50","GRO","NR",1050,"ug/L",107115,96,"Green algae","AbdelHamid, M.I. (1996). Development and application of a simple procedure for toxicity testing using immobilized\n algae Water Science and Technology 33 (6) 129-138."]
["Green algae","Selenastrum capricornutum","Freshwater","Acute","EC50","GRO","NR",1050,"ug/L",107115,96,"Green algae","AbdelHamid, M.I. (1996). Development and application of a simple procedure for toxicity testing using immobilized\n algae Water Science and Technology 33 (6) 129-138."]
["Green algae","Selenastrum capricornutum","Freshwater","Acute","EC50","GRO","NR",1100,"ug/L",107115,96,"Green algae","AbdelHamid, M.I. (1996). Development and application of a simple procedure for toxicity testing using immobilized\n algae Water Science and Technology 33 (6) 129-138."]
[]
["USEPA Pesticides Database Data"]
["RecordID","TAXA","COMMONNAME","TAXONOMIC","AGE","AI","STUDYTIME","TGL","TOXICITY","TOXLEVEL","NGL","NOEL","STUDYDATE"]
[18378,"Aquatic Plant","Duckweed","Lemna gibba","NR","96.8","7 D","","24","PPM","","7.56","2002"]
[2017,"Aquatic Plant","Bluegreen algae","Anabaena flos-aquae","N.R.","96.6","4 D","","11.75","PPM","","N.R.","1987"]
[2014,"Aquatic Plant","Green algae","Selenastrum capricornutum","N.R.","96.6","4 D","","12.54","PPM","","N.R.","1987"]
[2016,"Aquatic Plant","Marine diatom","Skeletonema costatum","N.R.","96.6","7 D","","0.77","PPM","<","0.24","1987"]
[2015,"Aquatic Plant","Freshwater diatom","Navicula pelliculosa","N.R.","96.6","7 D","","38.6","PPM","","19.1","1987"]
[2018,"Aquatic Plant","Duckweed","Lemna gibba","N.R.","96.6","14 D","","21.5","PPM","<","1.8.","1987"]
[13720,"Aquatic Plant","Duckweed","Lemna gibba","N.R.","95.6","14 D","","12.4","PPM","","1.4","1996"]
[13706,"Crustacea","Mysid","Americamysis bahia","<24 hr","95.6","96 hr","","40","PPM","","32","1996"]
[13702,"Fishes","Bluegill sunfish","Lepomis macrochirus","0.54 g","95.6","96 hr","","45","PPM","","32","1995"]
[13719,"Aquatic Plant","Green algae","Selenastrum capricornutum","N.R.","95.6","5 D","","14","PPM","","10","1995","Also the data that is from 974, QAQC'd in the Metribuzin spreadsheet (row 121)"]
[13721,"Aquatic Plant","Bluegreen algae","Anabaena flos-aquae","N.R.","95.6","5 D","","15","PPM","","12","1996"]
[13722,"Aquatic Plant","Marine diatom","Skeletonema costatum","N.R.","95.6","5 D","","12","PPM","","1.8","1996"]
[13723,"Aquatic Plant","Freshwater diatom","Navicula pelliculosa","N.R.","95.6","5 D","","17.0","PPM","","1.8","1996"]
[13705,"Crustacea","Mysid","Americamysis bahia","<24 hr","95.6","96 hr","","79","PPM","","32","1996"]
[13704,"Fishes","Sheepshead minnow","Cyprinodon variegatus","0.855g","95.6","96 hr","","240","PPM","","100","1996"]
[13703,"Crustacea","Water flea","Daphnia magna","<24 hr","95.6","48 hr","","134","PPM","","100","1995"]
[13701,"Fishes","Rainbow trout","Oncorhynchus mykiss","2.68 g","95.6","96 hr","","134","PPM","","32","1995"]
[]
[]
["RecordID","CHEMICAL","CAS_NO","USEPATTERN","EPAIDENT","DOC_NUMBER","TAXA","COMMONNAME","TAXONOMIC","AGE","GUIDELINE","TYPE","AI","STUDYTIME","DOSETYPE","TGL","TOXICITY","TOXLEVEL","NGL","NOEL","STUDYDATE","REVIEWDATE","CATEGORY","LABCODE","REVIEWER","BATCH_NO","GROWTH"]
[17270,"Glyphosate isopropylamine salt","38641-94-0","Herbicide","45666704","2001007","Aquatic Plant","Duckweed","Lemna gibba","NR","123-2","S","31.0","7 D","EC50","","25","PPM","","0.94","2001","2002","C","WLI","S. Carey","111004","1.9","Do Not Use - % Active Ingredient not >80%"]
[17269,"Glyphosate isopropylamine salt","38641-94-0","Herbicide","45666703","2001006","Aquatic Plant","Marine diatom","Skeletonema costatum","NR","123-2","S","31.0","96 Hr","EC50","","340","PPB","","57","2001","2002","C","WLI","S. Carey","111004","#cells"]
[17268,"Glyphosate isopropylamine salt","38641-94-0","Herbicide","45666702","2001005","Aquatic Plant","Green algae","Selenastrum capricornutum","NR","123-2","S","31.0","96 Hr","EC50","","2.2","PPM","","1.4","2001","2002","C","WLI","S. Carey","111004",""]
[17267,"Glyphosate isopropylamine salt","38641-94-0","Herbicide","45666701","2001004","Aquatic Plant","Freshwater diatom","Navicula pelliculosa","NR","123-2","S","31.0","96 Hr","EC50","","390","PPB","","270","2001","2002","C","WLI","S. Carey","111004","#cells"]
[1984,"Glyphosate isopropylamine salt","38641-94-0","Herbicide","00162296","2009151","Fishes","Fathead minnow","Pimephales promelas","N.R.","72-1","S","41.8","96 hr","LC50","","2.3","PPM","","N.R.","1979","1985","","FWS","D. McLane","",""]
[7622,"Glyphosate isopropylamine salt","38641-94-0","Herbicide","00108109","2008935","Crustacea","Water flea","Daphnia pulex","<24 hr","72-2","S","41","48 hr","EC50","","242","PPM","<","60","1973","1985","S","HRC","D. McLane","","","NOEL changed to LOEL due to the 'less than' sign."]
[7625,"Glyphosate isopropylamine salt","38641-94-0","Herbicide","00078657","2008935","Crustacea","Water flea","Daphnia magna","<24 hr","72-2","S","40.7","48 hr","EC50","","72","PPM","","N.R.","1980","1985","C","ABL","D. McLane","",""]
[1985,"Glyphosate isopropylamine salt","38641-94-0","Herbicide","00162296","2009151","Fishes","Channel catfish","Ictalurus punctatus","0.6 g","72-1","S","41.8","96 hr","LC50","","13","PPM","","N.R.","1979","1985","C","FWS","Johnson & Finley","",""]
[7617,"Glyphosate isopropylamine salt","38641-94-0","Herbicide","00070897","2009139","Fishes","Bluegill sunfish","Lepomis macrochirus","0.2 g","72-1","S","41.2","96 hr","LC50","","230","PPM","","100","1980","1985","C","ABL","D. McLane","",""]
[7623,"Glyphosate isopropylamine salt","38641-94-0","Herbicide","00070893","2008935","Crustacea","Water flea","Daphnia magna","<24 hr","72-2","S","41.4","48 hr","EC50","","5.3","PPM","","1.9","1980","1985","C","BIO","D. McLane","",""]
[7618,"Glyphosate isopropylamine salt","38641-94-0","Herbicide","00078656","2008935","Fishes","Bluegill sunfish","Lepomis macrochirus","0.11 g","72-1","S","40.7","96 hr","LC50","","134","PPM","<","100","1980","1985","S","ABL","D. McLane","","","NOEL changed to LOEL due to the 'less than' sign."]
[7619,"Glyphosate isopropylamine salt","38641-94-0","Herbicide","00070894","2008935","Fishes","Channel catfish","Ictalurus punctatus","3.0 g","72-1","S","41.4","96 hr","LC50","","16","PPM","","9.4","1980","1981","S","BIO","M. Rexrode","",""]
[1983,"Glyphosate isopropylamine salt","38641-94-0","Herbicide","00124760","2009138","Fishes","Bluegill sunfish","Lepomis macrochirus","0.25g","72-1","S","41.8","96 hr","LC50","","5.8","PPM","","2.2.","1982","1985","C","ABL","D. Mclane","",""]
[7621,"Glyphosate isopropylamine salt","38641-94-0","Herbicide","00162296","2009151","Fishes","Bluegill sunfish","Lepomis macrochirus","<2.5 g","72-1","S","41","96 hr","LC50","","2.4","PPM","","N.R.","1979","1985","S","FWS","D. McLane","",""]
[7620,"Glyphosate isopropylamine salt","38641-94-0","Herbicide","00162296","2009151","Fishes","Rainbow trout","Oncorhynchus mykiss","Finglg","72-1","S","41","96 hr","LC50","","8.3","PPM","","N.R.","1979","1985","S","FWS","D. McLane","",""]
[1981,"Glyphosate isopropylamine salt","38641-94-0","Herbicide","00124762","2009161","Crustacea","Scud","Gammarus pseudolimnaeus","6th-I","72-2","S","31","48 hr","LC50","","42","PPM","","5.4","1982","1985","S","ABL","D. Mclane","",""]
[1982,"Glyphosate isopropylamine salt","38641-94-0","Herbicide","00124761","2009133","Fishes","Rainbow trout","Oncorhynchus mykiss","2.4 g","72-1","S","41.8","96 hr","LC50","","8.2","PPM","","5.8","1982","1985","S","ABL","D. McLane","",""]
[7624,"Glyphosate isopropylamine salt","38641-94-0","Herbicide","00078660","2008935","Crustacea","Water flea","Daphnia magna","<24 hr","72-2","S","41.2","48 hr","EC50","","310","PPM","","56","1980","1985","C","ABL","D. McLane","",""]
[2009,"Glyphosate isopropylamine salt","38641-94-0","Herbicide","00162296","2009151","Fishes","Channel catfish","Ictalurus punctatus","2.2 g","72-1","S","96.7","96 hr","LC50","","130","PPM","","N.R.","1979","1985","C","FWS","D. McLane","",""]
[2019,"Glyphosate isopropylamine salt","38641-94-0","Herbicide","40098001","2049421","Crustacea","Crayfish","Orconectes nais","Adult","72-2","S","41","96 hr","LC50","","7.0","PPM","","N.R.","1986","1986","S","FWS","Mayer & Ellersieck","",""]
[2020,"Glyphosate isopropylamine salt","38641-94-0","Herbicide","40098001","2049421","Fishes","Rainbow trout","Oncorhynchus mykiss","0.5 g","72-1","S","41","96 hr","LC50","","1.3","PPM","","N.R.","1986","1986","S","FWS","Mayer & Ellersieck","",""]
[2021,"Glyphosate isopropylamine salt","38641-94-0","Herbicide","40098001","2049421","Fishes","Bluegill sunfish","Lepomis macrochirus","0.5 g","72-1","S","41","96 hr","LC50","","4.0","PPM","","N.R.","1986","1986","S","FWS","Mayer & Ellersieck","",""]
[2006,"Glyphosate isopropylamine salt","38641-94-0","Herbicide","MCOGLY08","2009102","Fishes","Rainbow trout","Oncorhynchus mykiss","N.R.","72-1","S","83","96 hr","LC50","","86","PPM","","42","1978","1985","C","ABL","D. McLane","",""]
[2007,"Glyphosate isopropylamine salt","38641-94-0","Herbicide","00162296","2009151","Fishes","Rainbow trout","Oncorhynchus mykiss","0.8 g","72-1","S","96.7","96 hr","LC50","","140","PPM","","N.R.","1979","1985","C","FWS","D. McLane","",""]
[2008,"Glyphosate isopropylamine salt","38641-94-0","Herbicide","00162296","2009151","Fishes","Fathead minnow","Pimephales promelas","0.6 g","72-1","S","96.7","96 hr","LC50","","97","PPM","","N.R.","1979","1985","C","FWS","D. McLane","",""]
[1998,"Glyphosate isopropylamine salt","38641-94-0","Herbicide","00108111","2009165","Crustacea","Shore shrimp","Palaemonetes vulgaris","20mm","72-3","S","96.7","96 hr","LC50","","281","PPM","","210","1973","1985","C","BIO","D. McLane","",""]
[1999,"Glyphosate isopropylamine salt","38641-94-0","Herbicide","00108111","2009165","Crustacea","Fiddler crab","Uca pugilator","20mm","72-3","S","96.7","96 hr","LC50","","934","PPM","","650","1973","1985","S","BIO","D. McLane","",""]
[2000,"Glyphosate isopropylamine salt","38641-94-0","Herbicide","00108110","2009164","Mollusca","Eastern oyster","Crassostrea virginica","EmbLrv","72-3","S","96.7","48 hr","LC50",">","10","PPM","","N.R.","1973","1985","S","BIO","D. McLane","","","Do Not Use - No LC50 obtained"]
[2001,"Glyphosate isopropylamine salt","38641-94-0","Herbicide","00162296","2009151","Insecta","Midge","Chironomus plumosus","N.R.","72-2","S","100S","48 hr","LC50","","13","PPM","","N.R.","1979","1985","C","FWS","D. McLane","",""]
[2002,"Glyphosate isopropylamine salt","38641-94-0","Herbicide","00108172","2009158","Crustacea","Water flea","Daphnia magna","18 hr","72-2","S","83","48 hr","EC50","","780","PPM","","560","1978","1985","C","ABL","D. McLane","",""]
[2005,"Glyphosate isopropylamine salt","38641-94-0","Herbicide","ACC 234395","2009141","Fishes","Bluegill sunfish","Lepomis macrochirus","1.0g","72-1","S","83","96 hr","LC50","","120","PPM","","100","1978","1985","C","ABL","D. McLane","",""]
[2004,"Glyphosate isopropylamine salt","38641-94-0","Herbicide","00108171","2009144","Fishes","Fathead minnow","Pimephales promelas","N.R.","72-1","S","87.3","24 hr","LC50","","84.9","PPM","","81","1975","1985","S","EGG","D. McLane","",""]
[7616,"Glyphosate isopropylamine salt","38641-94-0","Herbicide","00070897","2008935","Fishes","Bluegill sunfish","Lepomis macrochirus","0.45 g","72-1","S","41.4","96 hr","LC50","","14","PPM","","8.7","1980","1981","C","BIO","M. Rexrode","",""]
[1987,"Glyphosate isopropylamine salt","38641-94-0","Herbicide","00078664","2008935","Fishes","Rainbow trout","Oncorhynchus mykiss","1.0 g","72-1","S","7.03","96 hr","LC50","","240","PPM","","180","1980","1985","C","ABL","D. McLane","",""]
[2010,"Glyphosate isopropylamine salt","38641-94-0","Herbicide","00162296","2009151","Fishes","Bluegill sunfish","Lepomis macrochirus","N.R.","72-1","S","96.7","96 hr","LC50","","140","PPM","","N.R.","1979","1985","C","FWS","D. McLane","",""]
[1989,"Glyphosate isopropylamine salt","38641-94-0","Herbicide","00078662","2008935","Fishes","Bluegill sunfish","Lepomis macrochirus","N.R.","72-1","S","62.4","96 hr","LC50",">","1000","PPM","","N.R.","1981","1985","S","ABL","D. McLane","","","Do Not Use - No LC50 obtained"]
[1986,"Glyphosate isopropylamine salt","38641-94-0","Herbicide","00078661","2008935","Fishes","Rainbow trout","Oncorhynchus mykiss","0.22g","72-1","S","62.4","96 hr","LC50",">","1000","PPM","","N.R.","1980","1985","C","ABL","D. McLane","","","Do Not Use - No LC50 obtained"]
[7614,"Glyphosate isopropylamine salt","38641-94-0","Herbicide","00078658","2008935","Fishes","Rainbow trout","Oncorhynchus mykiss","0.5 g","72-1","S","41.2","96 hr","LC50","","120","PPM","","N.R.","1980","1985","C","ABL","D. McLane","",""]
[7613,"Glyphosate isopropylamine salt","38641-94-0","Herbicide","00078655","2008935","Fishes","Rainbow trout","Oncorhynchus mykiss","0.4 g","72-1","S","41","96 hr","LC50","","150","PPM","","100","1980","1985","C","ABL","D. McLane","",""]
[7612,"Glyphosate isopropylamine salt","38641-94-0","Herbicide","00070896","2008935","Fishes","Fathead minnow","Pimephales promelas","0.6 g","72-1","S","41.3","96 hr","LC50","","9.4","PPM","","5.6","1980","1985","C","BIO","D. McLane","",""]
[2003,"Glyphosate isopropylamine salt","38641-94-0","Herbicide","00162296","2009151","Insecta","Midge","Chironomus plumosus","4th-I","72-2","S","96.7","48 hr","LC50","","55","PPM","","N.R.","1979","1985","C","FWS","D. McLane","",""]
[1988,"Glyphosate isopropylamine salt","38641-94-0","Herbicide","00078665","2008935","Fishes","Bluegill sunfish","Lepomis macrochirus","0.18g","72-1","S","7.03","96 hr","LC50","","830.8","PPM","","180","1980","1985","C","ABL","D. McLane","",""]
[1980,"Glyphosate isopropylamine salt","38641-94-0","Herbicide","00162296","2009151","Insecta","Midge","Chironomus plumosus","Juv","72-2","S","41","48 hr","LC50","","18","PPM","","N.R.","1979","1985","C","FWS","D. McLane","",""]
[1979,"Glyphosate isopropylamine salt","38641-94-0","Herbicide","00162296","2009151","Crustacea","Scud","Gammarus pseudolimnaeus","N.R.","72-2","S","41","48 hr","LC50","","62","PPM","","N.R.","1979","1985","C","FWS","D. McLane","",""]
[1978,"Glyphosate isopropylamine salt","38641-94-0","Herbicide","00162296","2009151","Crustacea","Water flea","Daphnia magna","1st-I","72-2","S","41","48 hr","EC50","","3","PPM","","N.R.","1979","1985","C","FWS","D. McLane","",""]
[1977,"Glyphosate isopropylamine salt","38641-94-0","Herbicide","00078666","2008935","Crustacea","Water flea","Daphnia magna","1st-I","72-2","S","7.03","48 hr","EC50",">","1000","PPM","","560","1980","1985","S","ABL","D. McLane","","","Do Not Use - No LC50 obtained","Use NOEL value"]
[1976,"Glyphosate isopropylamine salt","38641-94-0","Herbicide","00078663","2008935","Crustacea","Water flea","Daphnia magna","1st-I","72-2","S","62.4","48 hr","EC50","","869","PPM","","320","1981","1985","C","ABL","D. McLane","",""]
[12293,"Glyphosate isopropylamine salt","38641-94-0","Herbicide","00124763","2009160","Crustacea","Water flea","Daphnia magna","LifCyc","72-4","F","99.7","21 D","LOEC","","96","PPM","","50","1982","1985","C","ABL","D. McLane","",""]
[13538,"Glyphosate isopropylamine salt","38641-94-0","Herbicide","43839601","2009184","Amphibia","Australian tree frog","Litoria moorei","Tadpol","N.G.","S","Tech","96 hr","LC50","","110.8","PPM","","N.R.","1995","1997","S","REF","D. McLane","092413QA",""]
[12639,"Glyphosate isopropylamine salt","38641-94-0","Herbicide","00108171","2009143","Fishes","Fathead minnow","Pimephales promelas","Lifcyc","72-5","S","87.3","255 D","LOEL",">","25.7","PPM",">",25.7,"1975","1985","C","EGG","D. McLane","","","Do Not Use - NOEL and LOEL not obtained"]
[10616,"Glyphosate isopropylamine salt","38641-94-0","Herbicide","44125713","2009179","Aquatic Plant","Duckweed","Lemna minor","N.R.","122-2","S","N.R.","48 hr","EC50",">","16.91","PPM","","16.91","1989","1997","S","REF","D. McLane","","","Do Not Use - No LC50 obtained","Use NOEL value"]
[10615,"Glyphosate isopropylamine salt","38641-94-0","Herbicide","44125714","2009152","Aquatic Plant","Duckweed","Lemna minor","N.R.","122-2","S","N.R.","48 hr","EC50","","2.0","PPM","","N.R.","1984","1997","S","REF","D. McLane","",""]
[10614,"Glyphosate isopropylamine salt","38641-94-0","Herbicide","44125714","2009178","Crustacea","Water flea","Daphnia pulex","<24 hr","72-2","S","N.R.","48 hr","EC50","","7.9","PPM","","N.R.","1984","1997","S","REF","D. McLane","",""]